Workbook

Sheet RESUMO
A1: Planilha Sintética Simples
A2: Base: Sinapi - Ref: 09/2022/ Estado: Amapá e ORSE - Ref: 09/2022 | D2: Valores: Não Desonerado
B3: BDI: 24,80% e BDI Dif.: 14,69%
A4: Item | B4: Tipo | D4: Total
A5: 1 | B5: Demolição | D5: =ORÇAMENTO!J6 -> 182774.24
A6: 1.1 | B6: Composição Sinapi | C6: 54 | D6: 20123.64
A7: 1.2 | B7: Composição Sinapi | C7: 250.45 | D7: 110182.97
A8: 1.3 | B8: Composição Sinapi | C8: 2.11 | D8: 17145.86
A9: 2 | B9: Administração de Obra | D9: =VLOOKUP(A9,ORÇAMENTO!$A$9:$J$272,10,0) -> 557969.02
A10: 2.1 | B10: Composição Sinapi | C10: 113.44 | D10: 63526.4
A11: 2.2 | B11: Composição Sinapi | C11: 4528.46 | D11: 63398.44
A12: 3 | B12: Serviços Iniciais | D12: =VLOOKUP(A12,ORÇAMENTO!$A$9:$J$272,10,0) -> 290169.06
A13: 3.1 | B13: Composição Sinapi | C13: 0.35 | D13: 1722.02
A14: 3.2 | B14: Composição Sinapi | C14: 74.32 | D14: 520.24
A15: 3.3 | B15: Composição Sinapi | C15: 63.4 | D15: 443.8
A16: 3.4 | B16: Composição Sinapi | C16: 2437.27 | D16: 2437.27
A17: 3.5 | B17: Composição Sinapi | C17: 390.01 | D17: 390.01
A18: 3.6 | B18: Composição Própria | C18: 1831.8 | D18: 1831.8
A19: 3.7 | B19: Composição Sinapi | C19: 52.29 | D19: 88893
A20: 3.8 | B20: Composição Sinapi | C20: 902.74 | D20: 27082.2
A21: 3.9 | B21: Composição Sinapi | C21: 296.09 | D21: 11843.6
A22: 3.10 | B22: Composição Sinapi | C22: 653.74 | D22: 19612.2
A23: 3.11 | B23: Composição Sinapi | C23: 1253.51 | D23: 6267.55
A24: 3.12 | B24: Composição Sinapi | C24: 132.61 | D24: 80923.92
A25: 3.13 | B25: Composição Sinapi | C25: 7.25 | D25: 4424.24
A26: 3.14 | B26: Insumo Sinapi | C26: 274.77 | D26: 1236.46
A27: 3.15 | B27: Insumo Sinapi | C27: 274.77 | D27: 1236.46
A28: 3.16 | B28: Composição Orse | C28: 497.52 | D28: 497.52
A29: 4 | B29: InfraEstrutura | D29: =VLOOKUP(A29,ORÇAMENTO!$A$9:$J$272,10,0) -> 506754.29
A30: 4.1 | B30: Estacas | D30: 171991.8
A31: 4.1.1 | B31: Composição Sinapi | C31: 182.97 | D31: 171991.8
A32: 4.2 | B32: Blocos de Fundação | D32: 112016.68
A33: 4.2.1 | B33: Composição Sinapi | C33: 83.18 | D33: 8407
A34: 4.2.2 | B34: Composição Sinapi | C34: 447.89 | D34: 1513.86
A35: 4.2.3 | B35: Composição Sinapi | C35: 79.87 | D35: 22283.73
A36: 4.2.4 | B36: Composição Sinapi | C36: 15.76 | D36: 8980.04
A37: 4.2.5 | B37: Composição Sinapi | C37: 16.42 | D37: 3150.99
A38: 4.2.6 | B38: Composição Sinapi | C38: 16.55 | D38: 2169.7
A39: 4.2.7 | B39: Composição Sinapi | C39: 15.38 | D39: 9304.9
A40: 4.2.8 | B40: Composição Sinapi | C40: 13.21 | D40: 1435.92
A41: 4.2.9 | B41: Composição Sinapi | C41: 1002.2 | D41: 52515.28
A42: 4.2.10 | B42: Composição Sinapi | C42: 28.39 | D42: 1407
A43: 4.2.11 | B43: Composição Sinapi | C43: 0.74 | D43: 848.26
A44: 4.3 | B44: Viga Baldrame | D44: 162294.49
A45: 4.3.1 | B45: Composição Sinapi | C45: 83.18 | D45: 29708.56
A46: 4.3.2 | B46: Composição Sinapi | C46: 447.89 | D46: 2037.89
A47: 4.3.3 | B47: Composição Sinapi | C47: 68.48 | D47: 53044.6
A48: 4.3.4 | B48: Composição Sinapi | C48: 1002.2 | D48: 49608.9
A49: 4.3.5 | B49: Composição Sinapi | C49: 28.39 | D49: 8053.1
A50: 4.3.6 | B50: Composição Sinapi | C50: 0.74 | D50: 2028.19
A51: 4.3.7 | B51: Composição Sinapi | C51: 60.9 | D51: 17813.25
A52: 5 | B52: Super Estrutura | D52: =VLOOKUP(A52,ORÇAMENTO!$A$9:$J$272,10,0) -> 1308331.6
A53: 5.1 | B53: PILARES + VIGAS | D53: 567701.51
A54: 5.1.1 | B54: Composição Sinapi | C54: 57.6 | D54: 43027.2
A55: 5.1.2 | B55: Composição Sinapi | C55: 15.1 | D55: 27211.71
A56: 5.1.3 | B56: Composição Sinapi | C56: 14.65 | D56: 26884.21
A57: 5.1.4 | B57: Composição Sinapi | C57: 19.97 | D57: 2919.61
A58: 5.1.5 | B58: Composição Sinapi | C58: 20.16 | D58: 89542.65
A59: 5.1.6 | B59: Composição Sinapi | C59: 942.32 | D59: 202975.72
A60: 5.1.7 | B60: Composição Sinapi | C60: 19.4 | D60: 72926.54
A61: 5.1.8 | B61: Composição Sinapi | C61: 17.7 | D61: 85977.75
A62: 5.1.9 | B62: Composição Sinapi | C62: 16.74 | D62: 16236.12
A63: 5.2 | B63: LAJES. + ESCADA | D63: 667869.97
A64: 5.2.1 | B64: Composição Sinapi | C64: 30.73 | D64: 32650.62
A65: 5.2.2 | B65: Composição Sinapi | C65: 20.16 | D65: 73505.37
A66: 5.2.3 | B66: Composição Sinapi | C66: 19.97 | D66: 93014.26
A67: 5.2.4 | B67: Composição Sinapi | C67: 19.4 | D67: 28347.28
A68: 5.2.5 | B68: Composição Sinapi | C68: 17.7 | D68: 163795.8
A69: 5.2.6 | B69: Composição Sinapi | C69: 15.1 | D69: 33902.52
A70: 5.2.7 | B70: Composição Sinapi | C70: 856.54 | D70: 233578.45
A71: 5.2.8 | B71: Composição Sinapi | C71: 14.65 | D71: 9075.67
A72: 6 | B72: Alvenaria | D72: =VLOOKUP(A72,ORÇAMENTO!$A$9:$J$272,10,0) -> 162537.43
A73: 6.1 | B73: Composição Sinapi | C73: 89.11 | D73: 151598.38
A74: 7 | B74: Esquadrias | D74: =VLOOKUP(A74,ORÇAMENTO!$A$9:$J$272,10,0) -> 786635.51
A75: 7.1 | B75: Composição Sinapi | C75: 840.73 | D75: 8407.3
A76: 7.2 | B76: Composição Sinapi | C76: 8.27 | D76: 463.94
A77: 7.3 | B77: Composição Sinapi | C77: 13.66 | D77: 35979.62
A78: 7.4 | B78: Composição Sinapi | C78: 115.59 | D78: 34059.74
A79: 7.5 | B79: Composição Sinapi | C79: 152.72 | D79: 50376.21
A80: 7.6 | B80: Composição Sinapi | C80: 49.38 | D80: 17363.98
A81: 7.7 | B81: Composição Orse | C81: 228.65 | D81: 204577.72
A82: 7.8 | B82: Composição Orse | C82: 720.78 | D82: 23756.9
A83: 7.9 | B83: Composição Orse | C83: 589.16 | D83: 328026.61
A84: 7.10 | B84: Composição Sinapi | C84: 1133.21 | D84: 18131.36
A85: 8 | B85: Revestimentos | D85: =VLOOKUP(A85,ORÇAMENTO!$A$9:$J$272,10,0) -> 1384833.24
A86: 8.1 | B86: Composição Sinapi | C86: 22.97 | D86: 47123.87
A87: 8.2 | B87: Composição Sinapi | C87: 59.16 | D87: 137302.66
A88: 8.3 | B88: Composição Sinapi | C88: 30.16 | D88: 102619.4
A89: 8.4 | B89: Composição Sinapi | C89: 178.53 | D89: 73547.21
A90: 8.5 | B90: Composição Sinapi | C90: 763.83 | D90: 117316.64
A91: 8.6 | B91: Composição Sinapi | C91: 1826.35 | D91: 112210.94
A92: 8.7 | B92: Composição Sinapi | C92: 49.59 | D92: 24514.32
A93: 8.8 | B93: Composição Sinapi | C93: 91.46 | D93: 212266.77
A94: 8.9 | B94: Composição Orse | C94: 485.92 | D94: 312830.43
A95: 8.10 | B95: Composição Sinapi | C95: 85.5 | D95: 17570.25
A96: 8.11 | B96: Composição Sinapi | C96: 454.2 | D96: 15324.7
A97: 8.12 | B97: Composição Sinapi | C97: 214.73 | D97: 35662.35
A98: 8.13 | B98: Insumo Sinapi | C98: 69.19 | D98: 34087.14
A99: 9 | B99: Cobertura | D99: =VLOOKUP(A99,ORÇAMENTO!$A$9:$J$272,10,0) -> 787253.27
A100: 9.1 | B100: Composição Sinapi | C100: 63.35 | D100: 795091.91
A101: 9.2 | B101: Composição Orse | C101: 485.92 | D101: 756426.8
A102: 9.3 | B102: Composição Sinapi | C102: 76.82 | D102: 23495.39
A103: 9.4 | B103: Composição Sinapi | C103: 65.61 | D103: 13423.8
A104: 9.5 | B104: Composição Sinapi | C104: 157.87 | D104: 20680.97
A105: 10 | B105: Instalações Elétricas | D105: =VLOOKUP(A105,ORÇAMENTO!$A$9:$J$272,10,0) -> 644925.25
A106: 10.1 | B106: Composição Sinapi | C106: 14.72 | D106: 3091.2
A107: 10.2 | B107: Composição Sinapi | C107: 25.2 | D107: 2520
A108: 10.3 | B108: Composição Sinapi | C108: 17.47 | D108: 34.94
A109: 10.4 | B109: Composição Orse | C109: 227.58 | D109: 227.58
A110: 10.5 | B110: Composição Orse | C110: 457.8 | D110: 457.8
A111: 10.6 | B111: Composição Sinapi | C111: 5.31 | D111: 42161.4
A112: 10.7 | B112: Composição Sinapi | C112: 8.8 | D112: 26664
A113: 10.8 | B113: Composição Sinapi | C113: 28.52 | D113: 3194.24
A114: 10.9 | B114: Composição Sinapi | C114: 33.81 | D114: 21570.78
A115: 10.10 | B115: Composição Sinapi | C115: 52.79 | D115: 105.58
A116: 10.11 | B116: Composição Sinapi | C116: 9.59 | D116: 35962.5
A117: 10.12 | B117: Composição Sinapi | C117: 84.01 | D117: 8401
A118: 10.13 | B118: Composição Sinapi | C118: 21.39 | D118: 77431.8
A119: 10.14 | B119: Composição Sinapi | C119: 15.17 | D119: 4050.39
A120: 10.15 | B120: Composição Sinapi | C120: 15.77 | D120: 1718.93
A121: 10.16 | B121: Composição Sinapi | C121: 27.9 | D121: 16740
A122: 10.17 | B122: Composição Orse | C122: 13.03 | D122: 11727
A123: 10.18 | B123: Composição Orse | C123: 6.36 | D123: 1462.8
A124: 10.19 | B124: Composição Orse | C124: 26.19 | D124: 6023.7
A125: 10.20 | B125: Composição Orse | C125: 394.41 | D125: 3944.1
A126: 10.21 | B126: Composição Orse | C126: 20.43 | D126: 102.15
A127: 10.22 | B127: Composição Orse | C127: 2453.45 | D127: 2453.45
A128: 10.23 | B128: Composição Orse | C128: 40.71 | D128: 4885.2
A129: 10.24 | B129: Composição Sinapi | C129: 1188.75 | D129: 1188.75
A130: 10.25 | B130: Composição Orse | C130: 280.65 | D130: 1683.9
A131: 10.26 | B131: Insumo Sinapi | C131: 438.67 | D131: 13160.1
A132: 10.27 | B132: Composição Sinapi | C132: 596.73 | D132: 23869.2
A133: 10.28 | B133: Composição Orse | C133: 7428.84 | D133: 29715.36
A134: 10.29 | B134: Composição Orse | C134: 1330.33 | D134: 2660.66
A135: 10.30 | B135: Composição Sinapi | C135: 20.14 | D135: 120.84
A136: 10.31 | B136: Composição Sinapi | C136: 56.84 | D136: 341.04
A137: 10.32 | B137: Insumo Sinapi | C137: 122.65 | D137: 490.6
A138: 10.33 | B138: Insumo Sinapi | C138: 14.78 | D138: 177.36
A139: 10.34 | B139: Insumo Sinapi | C139: 8.36 | D139: 16.72
A140: 10.35 | B140: Composição Orse | C140: 1.92 | D140: 7.68
A141: 10.36 | B141: Insumo Sinapi | C141: 100.62 | D141: 3018.6
A142: 10.37 | B142: Composição Orse | C142: 184.8 | D142: 554.4
A143: 10.38 | B143: Insumo Sinapi | C143: 1.9 | D143: 11.4
A144: 10.39 | B144: Insumo Sinapi | C144: 25.64 | D144: 769.2
A145: 10.40 | B145: Insumo Sinapi | C145: 8.79 | D145: 52.74
A146: 10.41 | B146: Insumo Sinapi | C146: 76.21 | D146: 1143.15
A147: 10.42 | B147: Insumo Sinapi | C147: 70.74 | D147: 424.44
A148: 10.43 | B148: Composição Sinapi | C148: 29144.08 | D148: 29144.08
A149: 10.44 | B149: Composição Sinapi | C149: 786.29 | D149: 786.29
A150: 10.45 | B150: Insumo Sinapi | C150: 51.58 | D150: 154.74
A151: 10.46 | B151: Composição Sinapi | C151: 28.63 | D151: 343.56
A152: 10.47 | B152: Composição Sinapi | C152: 2718.2 | D152: 2718.2
A153: 10.48 | B153: Composição Sinapi | C153: 1691.14 | D153: 5073.42
A154: 10.49 | B154: Composição Sinapi | C154: 782.33 | D154: 782.33
A155: 10.50 | B155: Composição Sinapi | C155: 185.85 | D155: 185.85
A156: 10.51 | B156: Insumo Sinapi | C156: 216.55 | D156: 866.2
A157: 10.52 | B157: Insumo Sinapi | C157: 79.69 | D157: 159.38
A158: 10.53 | B158: Insumo Sinapi | C158: 250.79 | D158: 110347.6
A159: 10.54 | B159: Insumo Sinapi | C159: 68.93 | D159: 1378.6
A160: 10.55 | B160: Insumo Sinapi | C160: 95.48 | D160: 5728.8
A161: 10.56 | B161: Insumo Sinapi | C161: 126.84 | D161: 11415.6
A162: 10.57 | B162: Insumo Sinapi | C162: 66.51 | D162: 2660.4
A163: 10.58 | B163: Insumo Sinapi | C163: 24.27 | D163: 242.7
A164: 10.59 | B164: Insumo Sinapi | C164: 36.7 | D164: 146.8
A165: 10.60 | B165: Insumo Sinapi | C165: 16.26 | D165: 65.04
A166: 10.61 | B166: Composição Sinapi | C166: 34.12 | D166: 1398.92
A167: 10.62 | B167: Insumo Sinapi | C167: 60.64 | D167: 2668.16
A168: 10.63 | B168: Composição Orse | C168: 72.71 | D168: 218.13
A169: 10.64 | B169: Composição Orse | C169: 6316.58 | D169: 6316.58
A170: 10.65 | B170: Composição Sinapi | C170: 9.59 | D170: 479.5
A171: 10.66 | B171: Insumo Sinapi | C171: 7.86 | D171: 1021.8
A172: 10.67 | B172: Insumo Sinapi | C172: 371.98 | D172: 11159.4
A173: 10.68 | B173: Insumo Sinapi | C173: 76.21 | D173: 16766.2
A174: 10.69 | B174: Composição Sinapi | C174: 69.02 | D174: 828.24
A175: 10.70 | B175: Composição Orse | C175: 27.87 | D175: 111.48
A176: 10.71 | B176: Insumo Sinapi | C176: 73.27 | D176: 879.24
A177: 10.72 | B177: Insumo Sinapi | C177: 54.18 | D177: 216.72
A178: 10.73 | B178: Composição Orse | C178: 24.42 | D178: 586.08
A179: 10.74 | B179: Composição Orse | C179: 21.57 | D179: 6082.74
A180: 10.75 | B180: Composição Orse | C180: 14.65 | D180: 1758
A181: 10.76 | B181: Composição Orse | C181: 16.04 | D181: 401
A182: 11 | B182: Instalações Hidráulicas | D182: =VLOOKUP(A182,ORÇAMENTO!$A$9:$J$272,10,0) -> 78682.4
A183: 11.1 | B183: Sanitário | D183: 56907.34
A184: 11.1.1 | B184: Composição Orse | C184: 389.96 | D184: 7019.28
A185: 11.1.2 | B185: Composição Orse | C185: 44.18 | D185: 530.16
A186: 11.1.3 | B186: Composição Orse | C186: 65.78 | D186: 657.8
A187: 11.1.4 | B187: Composição Sinapi | C187: 44.81 | D187: 44.81
A188: 11.1.5 | B188: Composição Sinapi | C188: 18.59 | D188: 18.59
A189: 11.1.6 | B189: Composição Sinapi | C189: 14.14 | D189: 56.56
A190: 11.1.7 | B190: Composição Sinapi | C190: 24.9 | D190: 796.8
A191: 11.1.8 | B191: Composição Sinapi | C191: 68.65 | D191: 2196.8
A192: 11.1.9 | B192: Insumo Sinapi | C192: 4.42 | D192: 17.68
A193: 11.1.10 | B193: Insumo Sinapi | C193: 51.32 | D193: 821.12
A194: 11.1.11 | B194: Insumo Sinapi | C194: 17.01 | D194: 340.2
A195: 11.1.12 | B195: Insumo Sinapi | C195: 11.13 | D195: 33.39
A196: 11.1.13 | B196: Insumo Sinapi | C196: 79.4 | D196: 79.4
A197: 11.1.14 | B197: Insumo Sinapi | C197: 2.88 | D197: 11.52
A198: 11.1.15 | B198: Insumo Sinapi | C198: 4.22 | D198: 42.2
A199: 11.1.16 | B199: Insumo Sinapi | C199: 11.22 | D199: 56.1
A200: 11.1.17 | B200: Insumo Sinapi | C200: 69.11 | D200: 345.55
... 64 more rows

Sheet ORÇAMENTO
A1: Planilha Sintética Simples
E2: Valores: Não Desonerado
E3: BDI: | F3: ='BDI '!C22:C22 -> 0.2480214044
A4: Base: Sinapi / Ref: 09/2022 / Estado: Amapá | E4: BDI DIF. | F4: ='BDI '!C48:C48 -> 0.146920122
A5: Item | B5: Tipo | C5: Código | D5: Descrição | E5: Un. | F5: Qtd. | G5: Preço Unit | H5: Preço com BDI | I5: Total sem BDI | J5: Total
A6: 1 | D6: Serviços Preliminares | I6: =SUM(I7:I9) -> 146438.64 | J6: =SUM(J7:J9) -> 182774.24
A7: 1.1 | B7: Composição Própria | C7: 1.1.1 | D7: MOBILIZAÇÃO PARA O CANTEIRO DE OBRAS | E7: UND | F7: 1 | G7: ='COMPOSIÇÕES PRÓPRIAS'!J13 -> 4156.5 | H7: =ROUND(G7*(1+$F$3),2) -> 5187.4 | I7: =ROUND(G7*F7,2) -> 4156.5 | J7: =ROUND(H7*F7,2) -> 5187.4
A8: 1.2 | B8: Composição Própria | C8: 1.1.1 | D8: DESMOBILIZAÇÃO PARA O CANTEIRO DE OBRAS | E8: UND | F8: 1 | G8: ='COMPOSIÇÕES PRÓPRIAS'!J13 -> 4156.5 | H8: =ROUND(G8*(1+$F$3),2) -> 5187.4 | I8: =ROUND(G8*F8,2) -> 4156.5 | J8: =ROUND(H8*F8,2) -> 5187.4
A9: 1.3 | B9: Demolição | F9: 1 | I9: =SUM(I10:I13) -> 138125.64 | J9: =SUM(J10:J13) -> 172399.44
A10: 1.3.1 | B10: Composição Sinapi | C10: 97625 | D10: DEMOLIÇÃO DE ALVENARIA PARA QUALQUER TIPO DE BLOCO, DE FORMA MECANIZADA, SEM REAPROVEITAMENTO. AF_12/2017 | E10: M3 | F10: 372,66 | G10: =VLOOKUP(C10,'COMPOSIÇÕES 1'!$B$3:$E$225,4,0) -> 52,59 | H10: =ROUND(G10*(1+$F$3),2) -> 65.63 | I10: =ROUND(G10*F10,2) -> 19598.19 | J10: =ROUND(H10*F10,2) -> 24457.68
A11: 1.3.2 | B11: Composição Sinapi | C11: 97627 | D11: DEMOLIÇÃO DE PILARES, VIGAS E LAJES EM CONCRETO ARMADO, DE FORMA MECANIZADA COM MARTELETE, SEM REAPROVEITAMENTO. AF_12/2017 | E11: M3 | F11: 439,94 | G11: =VLOOKUP(C11,'COMPOSIÇÕES 1'!$B$3:$E$225,4,0) -> 216,66 | H11: =ROUND(G11*(1+$F$3),2) -> 270.4 | I11: =ROUND(G11*F11,2) -> 95317.4 | J11: =ROUND(H11*F11,2) -> 118959.78
A12: 1.3.3 | B12: Composição Sinapi | C12: 95876 | D12: TRANSPORTE COM CAMINHÃO BASCULANTE DE 14 M³, EM VIA URBANA PAVIMENTADA, DMT ATÉ 30 KM (UNIDADE: M3XKM). AF_07/2020 | E12: M3XKM | F12: 8.126,00 | G12: =VLOOKUP(C12,'COMPOSIÇÕES 1'!$B$3:$E$225,4,0) -> 2,01 | H12: 2.51 | I12: 16333.26 | J12: 20396.26
A13: 1.3.4 | B13: Composição Sinapi | C13: 100983 | D13: CARGA, MANOBRA E DESCARGA DE ENTULHO EM CAMINHÃO BASCULANTE 14 M³ - CARGA COM ESCAVADEIRA HIDRÁULICA (CAÇAMBA DE 0,80 M³ / 111 HP) E DESCARGA LIVRE (UNIDADE: M3). AF_07/2020 | E13: M3 | F13: 821,60 | G13: =VLOOKUP(C13,'COMPOSIÇÕES 1'!$B$3:$E$225,4,0) -> 8,37 | H13: 10.45 | I13: 6876.79 | J13: 8585.72
A14: 2 | D14: Administração de Obra | F14: 1 | I14: =SUM(I15:I17) -> 447090.28 | J14: =SUM(J15:J17) -> 557969.02
A15: 2.1 | B15: Composição Sinapi | C15: 90777 | D15: ENGENHEIRO CIVIL DE OBRA JUNIOR COM ENCARGOS COMPLEMENTARES | E15: H | F15: 3.360,00 | G15: =VLOOKUP(C15,'COMPOSIÇÕES 1'!$B$3:$E$225,4,0) -> 102,22 | H15: =ROUND(G15*(1+$F$3),2) -> 127.57 | I15: =ROUND(G15*F15,2) -> 343459.2 | J15: =ROUND(H15*F15,2) -> 428635.2
A16: 2.2 | B16: Composição Sinapi | C16: 93572 | D16: ENCARREGADO GERAL DE OBRAS COM ENCARGOS COMPLEMENTARES | E16: MES | F16: 14,00 | G16: =VLOOKUP(C16,'COMPOSIÇÕES 1'!$B$3:$E$225,4,0) -> 4.068,68 | H16: 5077.8 | I16: 56961.52 | J16: 71089.2
A17: 2.3 | B17: Composição Própria | C17: 1 | D17: VEÍCULO LEVE | E17: MES | F17: 14 | G17: ='COMPOSIÇÕES PRÓPRIAS'!P44 -> 3333.54 | H17: 4160.33 | I17: 46669.56 | J17: 58244.62
A18: 3 | D18: Serviços Iniciais | F18: 1 | I18: =SUM(I19:I38) -> 232673.8 | J18: =SUM(J19:J38) -> 290169.06
A19: 3.2 | B19: Composição Sinapi | C19: 98525 | D19: LIMPEZA MECANIZADA DE CAMADA VEGETAL, VEGETAÇÃO E PEQUENAS ÁRVORES (DIÂMETRO DE TRONCO MENOR QUE 0,20 M), COM TRATOR DE ESTEIRAS.AF_05/2018 | E19: M2 | F19: 4.920,06 | G19: =VLOOKUP(C19,'COMPOSIÇÕES 1'!$B$3:$E$225,4,0) -> 0,32 | H19: =ROUND(G19*(1+$F$3),2) -> 0.4 | I19: =ROUND(G19*F19,2) -> 1574.42 | J19: =ROUND(H19*F19,2) -> 1968.02
A20: 3.3 | B20: Composição Sinapi | C20: 98526 | D20: REMOÇÃO DE RAÍZES REMANESCENTES DE TRONCO DE ÁRVORE COM DIÂMETRO MAIOR OU IGUAL A 0,20 M E MENOR QUE 0,40 M.AF_05/2018 | E20: UN | F20: 7,00 | G20: =VLOOKUP(C20,'COMPOSIÇÕES 1'!$B$3:$E$225,4,0) -> 66,75 | H20: 83.31 | I20: 467.25 | J20: 583.17
A21: 3.4 | B21: Composição Sinapi | C21: 98529 | D21: CORTE RASO E RECORTE DE ÁRVORE COM DIÂMETRO DE TRONCO MAIOR OU IGUAL A 0,20 M E MENOR QUE 0,40 M.AF_05/2018 | E21: UN | F21: 7,00 | G21: =VLOOKUP(C21,'COMPOSIÇÕES 1'!$B$3:$E$225,4,0) -> 49,13 | H21: 61.32 | I21: 343.91 | J21: 429.24
A22: 3.5 | B22: Composição Sinapi | C22: 101506 | D22: ENTRADA DE ENERGIA ELÉTRICA, AÉREA, TRIFÁSICA, COM CAIXA DE SOBREPOR, CABO DE 16 MM2 E DISJUNTOR DIN 50A (NÃO INCLUSO O POSTE DE CONCRETO). AF_07/2020_P | E22: UN | F22: 1,00 | G22: =VLOOKUP(C22,'COMPOSIÇÕES 1'!$B$3:$E$225,4,0) -> 2.190,02 | H22: 2733.19 | I22: 2190.02 | J22: 2733.19
A23: 3.6 | B23: Composição Sinapi | C23: 95636 | D23: KIT CAVALETE PARA MEDIÇÃO DE ÁGUA - ENTRADA PRINCIPAL, EM AÇO GALVANIZADO DN 25 (1 ) FORNECIMENTO E INSTALAÇÃO (EXCLUSIVE HIDRÔMETRO). AF_11/2016 | E23: UN | F23: 1,00 | G23: =VLOOKUP(C23,'COMPOSIÇÕES 1'!$B$3:$E$225,4,0) -> 341,51 | H23: 426.21 | I23: 341.51 | J23: 426.21
A24: 3.7 | B24: Composição Própria | C24: 1.1.2 | D24: MOBILIZAÇÃO | E24: UN | F24: 1,00 | G24: =VLOOKUP(C24,'COMPOSIÇÕES 1'!$B$3:$E$225,4,0) -> 1500 | H24: 1872.03 | I24: 1500 | J24: 1872.03
A25: 3.8 | B25: Composição Sinapi | C25: 99059 | D25: LOCACAO CONVENCIONAL DE OBRA, UTILIZANDO GABARITO DE TÁBUAS CORRIDAS PONTALETADAS A CADA 2,00M - 2 UTILIZAÇÕES. AF_10/2018 | E25: M | F25: 1.700,00 | G25: =VLOOKUP(C25,'COMPOSIÇÕES 1'!$B$3:$E$225,4,0) -> 44,89 | H25: 56.02 | I25: 76313 | J25: 95234
A26: 3.9 | B26: Composição Sinapi | C26: 93584 | D26: EXECUÇÃO DE DEPÓSITO EM CANTEIRO DE OBRA COM CONTAINER, NÃO INCLUSO MOBILIÁRIO. AF_04/2016 | E26: M2 | F26: 30,00 | G26: =VLOOKUP(C26,'COMPOSIÇÕES 1'!$B$3:$E$225,4,0) -> 771,57 | H26: 962.94 | I26: 23147.1 | J26: 28888.2
A27: 3.10 | B27: Composição Sinapi | C27: 93582 | D27: EXECUÇÃO DE CENTRAL DE ARMADURA EM CANTEIRO DE OBRA, NÃO INCLUSO MOBILIÁRIO E EQUIPAMENTOS. AF_04/2016 | E27: M2 | F27: 40,00 | G27: =VLOOKUP(C27,'COMPOSIÇÕES 1'!$B$3:$E$225,4,0) -> 250,62 | H27: 312.78 | I27: 10024.8 | J27: 12511.2
A28: 3.11 | B28: Composição Sinapi | C28: 93210 | D28: EXECUÇÃO DE REFEITÓRIO EM CANTEIRO DE OBRA EM CHAPA DE MADEIRA COMPENSADA, NÃO INCLUSO MOBILIÁRIO E EQUIPAMENTOS. AF_02/2016 | E28: M2 | F28: 30,00 | G28: =VLOOKUP(C28,'COMPOSIÇÕES 1'!$B$3:$E$225,4,0) -> 539,35 | H28: 673.12 | I28: 16180.5 | J28: 20193.6
A29: 3.12 | B29: Composição Sinapi | C29: 93206 | D29: EXECUÇÃO DE ESCRITÓRIO EM CANTEIRO DE OBRA EM ALVENARIA, NÃO INCLUSO MOBILIÁRIO E EQUIPAMENTOS. AF_02/2016 | E29: M2 | F29: 5,00 | G29: =VLOOKUP(C29,'COMPOSIÇÕES 1'!$B$3:$E$225,4,0) -> 1.092,49 | H29: 1363.45 | I29: 5462.45 | J29: 6817.25
A30: 3.13 | B30: Composição Sinapi | C30: 98458 | D30: TAPUME COM COMPENSADO DE MADEIRA. AF_05/2018 | E30: M2 | F30: 610,24 | G30: =VLOOKUP(C30,'COMPOSIÇÕES 1'!$B$3:$E$225,4,0) -> 109,24 | H30: 136.33 | I30: 66662.62 | J30: 83194.02
A31: 3.14 | B31: Composição Sinapi | C31: 102207 | D31: PINTURA TINTA DE ACABAMENTO (PIGMENTADA) A ÓLEO EM MADEIRA, 1 DEMÃO. AF_01/2021 | E31: M2 | F31: 610,24 | G31: =VLOOKUP(C31,'COMPOSIÇÕES 1'!$B$3:$E$225,4,0) -> 6,51 | H31: 8.12 | I31: 3972.66 | J31: 4955.15
A32: 3.15 | B32: Insumo Sinapi | C32: 4813 | D32: PLACA DE OBRA (PARA CONSTRUCAO CIVIL) EM CHAPA GALVANIZADA *N. 22*, ADESIVADA, DE *2,0 X 1,125* M (SEM POSTES PARA FIXACAO) | E32: M2 | F32: 4,50 | G32: =VLOOKUP(C32,'COMPOSIÇÕES 1'!$B$3:$E$225,4,0) -> 225 | H32: =ROUND(G32*(1+$F$4),2) -> 258.06 | I32: 1012.5 | J32: 1161.27
A33: 3.16 | B33: Insumo Sinapi | C33: 4813 | D33: PLACA DE OBRA (PARA CONSTRUCAO CIVIL) EM CHAPA GALVANIZADA *N. 22*, ADESIVADA, DE *2,0 X 1,125* M (SEM POSTES PARA FIXACAO) | E33: M2 | F33: 4,50 | G33: =VLOOKUP(C33,'COMPOSIÇÕES 1'!$B$3:$E$225,4,0) -> 225 | H33: =ROUND(G33*(1+$F$4),2) -> 258.06 | I33: 1012.5 | J33: 1161.27
A34: 3.17 | B34: Composição Orse | C34: 8646 | D34: Poste galvanizado com 5m para instalação de câmera de segurança p/penitenciária | E34: UN | F34: 1,00 | G34: =VLOOKUP(C34,'COMPOSIÇÕES 1'!$B$3:$E$225,4,0) -> 408.13 | H34: =ROUND(G34*(1+$F$3),2) -> 509.35 | I34: 408.13 | J34: 509.35
A35: 3.18 | B35: Composição Sinapi | C35: 93213 | D35: EXECUÇÃO DE SANITÁRIO E VESTIÁRIO EM CANTEIRO DE OBRA EM ALVENARIA, NÃO INCLUSO MOBILIÁRIO. AF_02/2016 | E35: M2 | F35: 20,00 | G35: =VLOOKUP(C35,'COMPOSIÇÕES 1'!$B$3:$E$225,4,0) -> 995,68 | H35: 1242.63 | I35: 19913.6 | J35: 24852.6
A36: 3.19 | B36: Composição Sinapi | C36: 86931 | D36: VASO SANITÁRIO SIFONADO COM CAIXA ACOPLADA LOUÇA BRANCA, INCLUSO ENGATE FLEXÍVEL EM PLÁSTICO BRANCO, 1/2 X 40CM - FORNECIMENTO E INSTALAÇÃO. AF_01/2020 | E36: UN | F36: 2,00 | G36: =VLOOKUP(C36,'COMPOSIÇÕES 1'!$B$3:$E$225,4,0) -> 450,96 | H36: 562.81 | I36: 901.92 | J36: 1125.62
A37: 3.20 | B37: Composição Sinapi | C37: 86902 | D37: LAVATÓRIO LOUÇA BRANCA COM COLUNA, *44 X 35,5* CM, PADRÃO POPULAR - FORNECIMENTO E INSTALAÇÃO. AF_01/2020 | E37: UN | F37: 2,00 | G37: =VLOOKUP(C37,'COMPOSIÇÕES 1'!$B$3:$E$225,4,0) -> 277,53 | H37: 346.36 | I37: 555.06 | J37: 692.72
A38: 3.21 | B38: Composição Orse | C38: 12342 | D38: Mictorio coletivo aco inox (aisi 304), e = 0,8 mm, de *100 x 40 x 30* cm (c x a x p) | E38: M | F38: 1,00 | G38: =VLOOKUP(C38,'COMPOSIÇÕES 1'!$B$3:$E$225,4,0) -> 689.85 | H38: 860.95 | I38: 689.85 | J38: 860.95
A39: 4 | D39: InfraEstrutura | F39: 1 | I39: =I40+I46+I53 -> 406036.04 | J39: =J40+J46+J53 -> 506754.29
A40: 4.1 | B40: Estacas | F40: 1 | I40: =SUM(I41:I45) -> 190042.03 | J40: =SUM(J41:J45) -> 237175.33
A41: 4.1.1 | B41: Composição Própria | C41: 1.1.2 | D41: MOBILIZAÇÃO - ESTACA HÉLICE CONTÍNUA | E41: UN | F41: 1,00 | G41: =VLOOKUP(C41,'COMPOSIÇÕES 1'!$B$3:$E$225,4,0) -> 1500 | H41: =ROUND(G41*(1+$F$3),2) -> 1872.03 | I41: =ROUND(G41*F41,2) -> 1500 | J41: =ROUND(H41*F41,2) -> 1872.03
A42: 4.1.2 | B42: Composição Sinapi | C42: 100651 | D42: ESTACA HÉLICE CONTÍNUA, DIÂMETRO DE 30 CM, INCLUSO CONCRETO FCK=30MPA E ARMADURA MÍNIMA (EXCLUSIVE MOBILIZAÇÃO, DESMOBILIZAÇÃO E BOMBEAMENTO). AF_12/2019 | E42: M | F42: 610,00 | G42: =VLOOKUP(C42,'COMPOSIÇÕES 1'!$B$3:$E$225,4,0) -> 157,29 | H42: 196.3 | I42: 95946.9 | J42: 119743
A43: 4.1.3 | B43: Composição Orse | C43: 8629 | D43: Execução de estaca hélice contínua monitorada Ø 400mm, concreto fck=30Mpa, inclusive aço, bombeamento; exclusive mobilização e desmobilização de equipamento e bate-estacas | E43: M | F43: 350,00 | G43: =VLOOKUP(C43,'COMPOSIÇÕES 1'!$B$3:$E$225,4,0) -> 248.69 | H43: 310.37 | I43: 87041.5 | J43: 108629.5
A44: 4.1.4 | B44: Composição Orse | C44: 129 | D44: Bombeamento de concreto | E44: M3 | F44: 87,10 | G44: =VLOOKUP(C44,'COMPOSIÇÕES 1'!$B$3:$E$225,4,0) -> 46.54 | H44: 58.08 | I44: 4053.63 | J44: 5058.77
A45: 4.1.5 | B45: Composição Própria | C45: 01.01.01 | D45: DESMOBILIZAÇÃO- ESTACA HÉLICE CONTÍNUA | E45: UN | F45: 1,00 | G45: =VLOOKUP(C45,'COMPOSIÇÕES 1'!$B$3:$E$225,4,0) -> 1500 | H45: 1872.03 | I45: 1500 | J45: 1872.03
A46: 4.2 | B46: Blocos de Fundação | F46: 1 | I46: =SUM(I47:I52) -> 73667.79 | J46: =SUM(J47:J52) -> 91944.17
A47: 4.2.1 | B47: Composição Sinapi | C47: 96523 | D47: ESCAVAÇÃO MANUAL PARA BLOCO DE COROAMENTO OU SAPATA, COM PREVISÃO DE FÔRMA. AF_06/2017 | E47: M3 | F47: 101,07 | G47: =VLOOKUP(C47,'COMPOSIÇÕES 1'!$B$3:$E$225,4,0) -> 74,68 | H47: =ROUND(G47*(1+$F$3),2) -> 93.2 | I47: =ROUND(G47*F47,2) -> 7547.91 | J47: =ROUND(H47*F47,2) -> 9419.72
A48: 4.2.2 | B48: Composição Sinapi | C48: 96621 | D48: LASTRO COM MATERIAL GRANULAR, APLICAÇÃO EM BLOCOS DE COROAMENTO, ESPESSURA DE *5 CM*. AF_08/2017 | E48: M3 | F48: 3,38 | G48: =VLOOKUP(C48,'COMPOSIÇÕES 1'!$B$3:$E$225,4,0) -> 391,32 | H48: 488.38 | I48: 1322.66 | J48: 1650.72
A49: 4.2.3 | B49: Composição Sinapi | C49: 96534 | D49: FABRICAÇÃO, MONTAGEM E DESMONTAGEM DE FÔRMA PARA BLOCO DE COROAMENTO, EM MADEIRA SERRADA, E=25 MM, 4 UTILIZAÇÕES. AF_06/2017 | E49: M2 | F49: 279,00 | G49: =VLOOKUP(C49,'COMPOSIÇÕES 1'!$B$3:$E$225,4,0) -> 68,13 | H49: 85.03 | I49: 19008.27 | J49: 23723.37
A50: 4.2.4 | B50: Composição Sinapi | C50: 96557 | D50: CONCRETAGEM DE BLOCOS DE COROAMENTO E VIGAS BALDRAMES, FCK 30 MPA, COM USO DE BOMBA - LANÇAMENTO, ADENSAMENTO E ACABAMENTO. AF_06/2017 | E50: M3 | F50: 52,40 | G50: =VLOOKUP(C50,'COMPOSIÇÕES 1'!$B$3:$E$225,4,0) -> 835,32 | H50: 1042.5 | I50: 43770.77 | J50: 54627
A51: 4.2.5 | B51: Composição Sinapi | C51: 93382 | D51: REATERRO MANUAL DE VALAS COM COMPACTAÇÃO MECANIZADA. AF_04/2016 | E51: M3 | F51: 49,56 | G51: =VLOOKUP(C51,'COMPOSIÇÕES 1'!$B$3:$E$225,4,0) -> 24,30 | H51: 30.33 | I51: 1204.31 | J51: 1503.15
A52: 4.2.6 | B52: Composição Sinapi | C52: 95427 | D52: TRANSPORTE COM CAMINHÃO BASCULANTE DE 18 M³, EM VIA URBANA PAVIMENTADA, ADICIONAL PARA DMT EXCEDENTE A 30 KM (UNIDADE: M3XKM). AF_07/2020 | E52: M3XKM | F52: 1.146,30 | G52: =VLOOKUP(C52,'COMPOSIÇÕES 1'!$B$3:$E$225,4,0) -> 0,71 | H52: 0.89 | I52: 813.87 | J52: 1020.21
A53: 4.3 | B53: Viga Baldrame | F53: 1 | I53: =SUM(I54:I60) -> 142326.22 | J53: =SUM(J54:J60) -> 177634.79
A54: 4.3.1 | B54: Composição Sinapi | C54: 96523 | D54: ESCAVAÇÃO MANUAL PARA BLOCO DE COROAMENTO OU SAPATA, COM PREVISÃO DE FÔRMA. AF_06/2017 | E54: M3 | F54: 357,16 | G54: =VLOOKUP(C54,'COMPOSIÇÕES 1'!$B$3:$E$225,4,0) -> 74,68 | H54: =ROUND(G54*(1+$F$3),2) -> 93.2 | I54: =ROUND(G54*F54,2) -> 26672.71 | J54: =ROUND(H54*F54,2) -> 33287.31
A55: 4.3.2 | B55: Composição Sinapi | C55: 96621 | D55: LASTRO COM MATERIAL GRANULAR, APLICAÇÃO EM BLOCOS DE COROAMENTO, ESPESSURA DE *5 CM*. AF_08/2017 | E55: M3 | F55: 4,55 | G55: =VLOOKUP(C55,'COMPOSIÇÕES 1'!$B$3:$E$225,4,0) -> 391,32 | H55: 488.38 | I55: 1780.51 | J55: 2222.13
A56: 4.3.3 | B56: Composição Sinapi | C56: 96536 | D56: FABRICAÇÃO, MONTAGEM E DESMONTAGEM DE FÔRMA PARA VIGA BALDRAME, EM MADEIRA SERRADA, E=25 MM, 4 UTILIZAÇÕES. AF_06/2017 | E56: M2 | F56: 774,60 | G56: =VLOOKUP(C56,'COMPOSIÇÕES 1'!$B$3:$E$225,4,0) -> 58,19 | H56: 72.62 | I56: 45073.97 | J56: 56251.45
A57: 4.3.4 | B57: Composição Sinapi | C57: 96557 | D57: CONCRETAGEM DE BLOCOS DE COROAMENTO E VIGAS BALDRAMES, FCK 30 MPA, COM USO DE BOMBA - LANÇAMENTO, ADENSAMENTO E ACABAMENTO. AF_06/2017 | E57: M3 | F57: 49,50 | G57: =VLOOKUP(C57,'COMPOSIÇÕES 1'!$B$3:$E$225,4,0) -> 835,32 | H57: 1042.5 | I57: 41348.34 | J57: 51603.75
A58: 4.3.5 | B58: Composição Sinapi | C58: 93382 | D58: REATERRO MANUAL DE VALAS COM COMPACTAÇÃO MECANIZADA. AF_04/2016 | E58: M3 | F58: 283,66 | G58: =VLOOKUP(C58,'COMPOSIÇÕES 1'!$B$3:$E$225,4,0) -> 24,30 | H58: 30.33 | I58: 6892.94 | J58: 8603.41
A59: 4.3.6 | B59: Composição Sinapi | C59: 95427 | D59: TRANSPORTE COM CAMINHÃO BASCULANTE DE 18 M³, EM VIA URBANA PAVIMENTADA, ADICIONAL PARA DMT EXCEDENTE A 30 KM (UNIDADE: M3XKM). AF_07/2020 | E59: M3XKM | F59: 2.740,80 | G59: =VLOOKUP(C59,'COMPOSIÇÕES 1'!$B$3:$E$225,4,0) -> 0,71 | H59: 0.89 | I59: 1945.97 | J59: 2439.31
A60: 4.3.7 | B60: Composição Sinapi | C60: 98557 | D60: IMPERMEABILIZAÇÃO DE SUPERFÍCIE COM EMULSÃO ASFÁLTICA, 2 DEMÃOS AF_06/2018 | E60: M2 | F60: 292,50 | G60: =VLOOKUP(C60,'COMPOSIÇÕES 1'!$B$3:$E$225,4,0) -> 63,63 | H60: 79.41 | I60: 18611.78 | J60: 23227.43
A61: 5 | D61: Super Estrutura | F61: 1 | I61: =I62+I72 -> 1048351.87 | J61: =J62+J72 -> 1308331.6
A62: 5.1 | B62: PILARES + VIGAS | F62: 1 | I62: =SUM(I63:I71) -> 469122.72 | J62: =SUM(J63:J71) -> 585459.18
A63: 5.1.1 | B63: Composição Sinapi | C63: 92443 | D63: MONTAGEM E DESMONTAGEM DE FÔRMA DE PILARES RETANGULARES E ESTRUTURAS SIMILARES, PÉ-DIREITO SIMPLES, EM CHAPA DE MADEIRA COMPENSADA PLASTIFICADA, 18 UTILIZAÇÕES. AF_09/2020 | E63: M2 | F63: 747,00 | G63: =VLOOKUP(C63,'COMPOSIÇÕES 1'!$B$3:$E$225,4,0) -> 48,88 | H63: =ROUND(G63*(1+$F$3),2) -> 61 | I63: =ROUND(G63*F63,2) -> 36513.36 | J63: =ROUND(H63*F63,2) -> 45567
A64: 5.1.2 | B64: Composição Sinapi | C64: 92763 | D64: ARMAÇÃO DE PILAR OU VIGA DE UMA ESTRUTURA CONVENCIONAL DE CONCRETO ARMADO EM UM EDIFÍCIO DE MÚLTIPLOS PAVIMENTOS UTILIZANDO AÇO CA-50 DE 12,5 MM - MONTAGEM. AF_12/2015 | E64: KG | F64: 1.802,10 | G64: =VLOOKUP(C64,'COMPOSIÇÕES 1'!$B$3:$E$225,4,0) -> 11,83 | H64: 14.76 | I64: 21318.84 | J64: 26599
A65: 5.1.3 | B65: Composição Sinapi | C65: 92764 | D65: ARMAÇÃO DE PILAR OU VIGA DE UMA ESTRUTURA CONVENCIONAL DE CONCRETO ARMADO EM UM EDIFÍCIO DE MÚLTIPLOS PAVIMENTOS UTILIZANDO AÇO CA-50 DE 16,0 MM - MONTAGEM. AF_12/2015 | E65: KG | F65: 1.835,10 | G65: =VLOOKUP(C65,'COMPOSIÇÕES 1'!$B$3:$E$225,4,0) -> 11,58 | H65: 14.45 | I65: 21250.46 | J65: 26517.2
A66: 5.1.4 | B66: Composição Sinapi | C66: 92760 | D66: ARMAÇÃO DE PILAR OU VIGA DE UMA ESTRUTURA CONVENCIONAL DE CONCRETO ARMADO EM UM EDIFÍCIO DE MÚLTIPLOS PAVIMENTOS UTILIZANDO AÇO CA-50 DE 6,3 MM - MONTAGEM. AF_12/2015 | E66: KG | F66: 146,20 | G66: =VLOOKUP(C66,'COMPOSIÇÕES 1'!$B$3:$E$225,4,0) -> 15,68 | H66: 19.57 | I66: 2292.42 | J66: 2861.13
A67: 5.1.5 | B67: Composição Sinapi | C67: 92759 | D67: ARMAÇÃO DE PILAR OU VIGA DE UMA ESTRUTURA CONVENCIONAL DE CONCRETO ARMADO EM UM EDIFÍCIO DE MÚLTIPLOS PAVIMENTOS UTILIZANDO AÇO CA-60 DE 5,0 MM - MONTAGEM. AF_12/2015 | E67: KG | F67: 4.441,60 | G67: =VLOOKUP(C67,'COMPOSIÇÕES 1'!$B$3:$E$225,4,0) -> 15,79 | H67: 19.71 | I67: 70132.86 | J67: 87543.94
A68: 5.1.6 | B68: Composição Sinapi | C68: 92761 | D68: ARMAÇÃO DE PILAR OU VIGA DE UMA ESTRUTURA CONVENCIONAL DE CONCRETO ARMADO EM UM EDIFÍCIO DE MÚLTIPLOS PAVIMENTOS UTILIZANDO AÇO CA-50 DE 8,0 MM - MONTAGEM. AF_12/2015 | E68: KG | F68: 3.759,10 | G68: =VLOOKUP(C68,'COMPOSIÇÕES 1'!$B$3:$E$225,4,0) -> 15,25 | H68: 19.03 | I68: 57326.28 | J68: 71535.67
A69: 5.1.7 | B69: Composição Sinapi | C69: 92762 | D69: ARMAÇÃO DE PILAR OU VIGA DE UMA ESTRUTURA CONVENCIONAL DE CONCRETO ARMADO EM UM EDIFÍCIO DE MÚLTIPLOS PAVIMENTOS UTILIZANDO AÇO CA-50 DE 10,0 MM - MONTAGEM. AF_12/2015 | E69: KG | F69: 4.857,50 | G69: =VLOOKUP(C69,'COMPOSIÇÕES 1'!$B$3:$E$225,4,0) -> 13,88 | H69: 17.32 | I69: 67422.1 | J69: 84131.9
A70: 5.1.8 | B70: Composição Sinapi | C70: 92765 | D70: ARMAÇÃO DE PILAR OU VIGA DE UMA ESTRUTURA CONVENCIONAL DE CONCRETO ARMADO EM UM EDIFÍCIO DE MÚLTIPLOS PAVIMENTOS UTILIZANDO AÇO CA-50 DE 20,0 MM - MONTAGEM. AF_12/2015 | E70: KG | F70: 969,90 | G70: =VLOOKUP(C70,'COMPOSIÇÕES 1'!$B$3:$E$225,4,0) -> 13,34 | H70: 16.65 | I70: 12938.47 | J70: 16148.84
A71: 5.1.9 | B71: Composição Sinapi | C71: 96557 | D71: CONCRETAGEM DE BLOCOS DE COROAMENTO E VIGAS BALDRAMES, FCK 30 MPA, COM USO DE BOMBA - LANÇAMENTO, ADENSAMENTO E ACABAMENTO. AF_06/2017 | E71: M3 | F71: 215,40 | G71: =VLOOKUP(C71,'COMPOSIÇÕES 1'!$B$3:$E$225,4,0) -> 835,32 | H71: 1042.5 | I71: 179927.93 | J71: 224554.5
A72: 5.2 | B72: LAJES. + ESCADA | F72: 1 | I72: =SUM(I73:I80) -> 579229.15 | J72: =SUM(J73:J80) -> 722872.42
A73: 5.2.1 | B73: Composição Sinapi | C73: 92538 | D73: MONTAGEM E DESMONTAGEM DE FÔRMA DE LAJE MACIÇA, PÉ-DIREITO SIMPLES, EM CHAPA DE MADEIRA COMPENSADA PLASTIFICADA, . AF_09/2020 | E73: M2 | F73: 1.062,50 | G73: =VLOOKUP(C73,'COMPOSIÇÕES 1'!$B$3:$E$225,4,0) -> 34,23 | H73: =ROUND(G73*(1+$F$3),2) -> 42.72 | I73: =ROUND(G73*F73,2) -> 36369.38 | J73: =ROUND(H73*F73,2) -> 45390
A74: 5.2.2 | B74: Composição Sinapi | C74: 92759 | D74: ARMAÇÃO DE PILAR OU VIGA DE UMA ESTRUTURA CONVENCIONAL DE CONCRETO ARMADO EM UM EDIFÍCIO DE MÚLTIPLOS PAVIMENTOS UTILIZANDO AÇO CA-60 DE 5,0 MM - MONTAGEM. AF_12/2015 | E74: KG | F74: 3.646,10 | G74: =VLOOKUP(C74,'COMPOSIÇÕES 1'!$B$3:$E$225,4,0) -> 15,79 | H74: 19.71 | I74: 57571.92 | J74: 71864.63
A75: 5.2.3 | B75: Composição Sinapi | C75: 92760 | D75: ARMAÇÃO DE PILAR OU VIGA DE UMA ESTRUTURA CONVENCIONAL DE CONCRETO ARMADO EM UM EDIFÍCIO DE MÚLTIPLOS PAVIMENTOS UTILIZANDO AÇO CA-50 DE 6,3 MM - MONTAGEM. AF_12/2015 | E75: KG | F75: 4.657,70 | G75: =VLOOKUP(C75,'COMPOSIÇÕES 1'!$B$3:$E$225,4,0) -> 15,68 | H75: 19.57 | I75: 73032.74 | J75: 91151.19
A76: 5.2.4 | B76: Composição Sinapi | C76: 92761 | D76: ARMAÇÃO DE PILAR OU VIGA DE UMA ESTRUTURA CONVENCIONAL DE CONCRETO ARMADO EM UM EDIFÍCIO DE MÚLTIPLOS PAVIMENTOS UTILIZANDO AÇO CA-50 DE 8,0 MM - MONTAGEM. AF_12/2015 | E76: KG | F76: 1.461,20 | G76: =VLOOKUP(C76,'COMPOSIÇÕES 1'!$B$3:$E$225,4,0) -> 15,25 | H76: 19.03 | I76: 22283.3 | J76: 27806.64
A77: 5.2.5 | B77: Composição Sinapi | C77: 92762 | D77: ARMAÇÃO DE PILAR OU VIGA DE UMA ESTRUTURA CONVENCIONAL DE CONCRETO ARMADO EM UM EDIFÍCIO DE MÚLTIPLOS PAVIMENTOS UTILIZANDO AÇO CA-50 DE 10,0 MM - MONTAGEM. AF_12/2015 | E77: KG | F77: 9.254,00 | G77: =VLOOKUP(C77,'COMPOSIÇÕES 1'!$B$3:$E$225,4,0) -> 13,88 | H77: 17.32 | I77: 128445.52 | J77: 160279.28
A78: 5.2.6 | B78: Composição Sinapi | C78: 92763 | D78: ARMAÇÃO DE PILAR OU VIGA DE UMA ESTRUTURA CONVENCIONAL DE CONCRETO ARMADO EM UM EDIFÍCIO DE MÚLTIPLOS PAVIMENTOS UTILIZANDO AÇO CA-50 DE 12,5 MM - MONTAGEM. AF_12/2015 | E78: KG | F78: 2.245,20 | G78: =VLOOKUP(C78,'COMPOSIÇÕES 1'!$B$3:$E$225,4,0) -> 11,83 | H78: 14.76 | I78: 26560.72 | J78: 33139.15
A79: 5.2.7 | B79: Composição Sinapi | C79: 92764 | D79: ARMAÇÃO DE PILAR OU VIGA DE UMA ESTRUTURA CONVENCIONAL DE CONCRETO ARMADO EM UM EDIFÍCIO DE MÚLTIPLOS PAVIMENTOS UTILIZANDO AÇO CA-50 DE 16,0 MM - MONTAGEM. AF_12/2015 | E79: KG | F79: 619,50 | G79: =VLOOKUP(C79,'COMPOSIÇÕES 1'!$B$3:$E$225,4,0) -> 11,58 | H79: 14.45 | I79: 7173.81 | J79: 8951.78
A80: 5.2.8 | B80: Composição Sinapi | C80: 96557 | D80: CONCRETAGEM DE BLOCOS DE COROAMENTO E VIGAS BALDRAMES, FCK 30 MPA, COM USO DE BOMBA - LANÇAMENTO, ADENSAMENTO E ACABAMENTO. AF_06/2017 | E80: M3 | F80: 272,70 | G80: =VLOOKUP(C80,'COMPOSIÇÕES 1'!$B$3:$E$225,4,0) -> 835,32 | H80: 1042.5 | I80: 227791.76 | J80: 284289.75
A81: 6 | D81: Alvenaria | F81: 1 | I81: =I82 -> 130230.69 | J81: =J82 -> 162537.43
A82: 6.1 | B82: Composição Sinapi | C82: 103324 | D82: ALVENARIA DE VEDAÇÃO DE BLOCOS CERÂMICOS FURADOS NA VERTICAL DE 14X19X39 CM (ESPESSURA 14 CM) E ARGAMASSA DE ASSENTAMENTO COM PREPARO EM BETONEIRA. AF_12/2021 | E82: M2 | F82: 1.701,25 | G82: =VLOOKUP(C82,'COMPOSIÇÕES 1'!$B$3:$E$225,4,0) -> 76,55 | H82: =ROUND(G82*(1+$F$3),2) -> 95.54 | I82: =ROUND(G82*F82,2) -> 130230.69 | J82: =ROUND(H82*F82,2) -> 162537.43
A83: 7 | D83: Esquadrias | F83: 1 | I83: =SUM(I84:I93) -> 630305.07 | J83: =SUM(J84:J93) -> 786635.51
A84: 7.1 | B84: Composição Sinapi | C84: 91314 | D84: KIT DE PORTA DE MADEIRA PARA PINTURA, SEMI-OCA (LEVE OU MÉDIA), PADRÃO POPULAR, 80X210CM, ESPESSURA DE 3,5CM, ITENS INCLUSOS: DOBRADIÇAS, MONTAGEM E INSTALAÇÃO DO BATENTE, FECHADURA COM EXECUÇÃO DO FURO - FORNECIMENTO E INSTALAÇÃO. AF_12/2019 | E84: UN | F84: 10,00 | G84: =VLOOKUP(C84,'COMPOSIÇÕES 1'!$B$3:$E$225,4,0) -> 752,54 | H84: =ROUND(G84*(1+$F$3),2) -> 939.19 | I84: =ROUND(G84*F84,2) -> 7525.4 | J84: =ROUND(H84*F84,2) -> 9391.9
A85: 7.2 | B85: Composição Sinapi | C85: 102205 | D85: PINTURA VERNIZ (INCOLOR) POLIURETÂNICO (RESINA ALQUÍDICA MODIFICADA) EM MADEIRA, 1 DEMÃO. AF_01/2021 | E85: M2 | F85: 56,10 | G85: =VLOOKUP(C85,'COMPOSIÇÕES 1'!$B$3:$E$225,4,0) -> 7,52 | H85: 9.39 | I85: 421.87 | J85: 526.78
A86: 7.3 | B86: Composição Sinapi | C86: 102220 | D86: PINTURA TINTA DE ACABAMENTO (PIGMENTADA) ESMALTE SINTÉTICO BRILHANTE EM MADEIRA, 2 DEMÃOS. AF_01/2021 | E86: M2 | F86: 2.633,94 | G86: =VLOOKUP(C86,'COMPOSIÇÕES 1'!$B$3:$E$225,4,0) -> 12,26 | H86: 15.3 | I86: 32292.1 | J86: 40299.28
A87: 7.4 | B87: Composição Sinapi | C87: 98689 | D87: SOLEIRA EM GRANITO, LARGURA 15 CM, ESPESSURA 2,0 CM. AF_09/2020 | E87: M | F87: 294,66 | G87: =VLOOKUP(C87,'COMPOSIÇÕES 1'!$B$3:$E$225,4,0) -> 123,73 | H87: 154.42 | I87: 36458.28 | J87: 45501.4
A88: 7.5 | B88: Composição Sinapi | C88: 101965 | D88: PEITORIL LINEAR EM GRANITO OU MÁRMORE, L = 15CM, COMPRIMENTO DE ATÉ 2M, ASSENTADO COM ARGAMASSA 1:6 COM ADITIVO. AF_11/2020 | E88: M | F88: 329,86 | G88: =VLOOKUP(C88,'COMPOSIÇÕES 1'!$B$3:$E$225,4,0) -> 152,10 | H88: 189.82 | I88: 50171.71 | J88: 62614.03
A89: 7.6 | B89: Composição Sinapi | C89: 93182 | D89: VERGA PRÉ-MOLDADA PARA JANELAS COM ATÉ 1,5 M DE VÃO. AF_03/2016 | E89: M | F89: 351,64 | G89: =VLOOKUP(C89,'COMPOSIÇÕES 1'!$B$3:$E$225,4,0) -> 41,90 | H89: 52.29 | I89: 14733.72 | J89: 18387.26
A90: 7.7 | B90: Composição Orse | C90: 1857 | D90: Porta em aço, em chapa galvanizada nº24, raiada, de enrolar | E90: M2 | F90: 894,72 | G90: =VLOOKUP(C90,'COMPOSIÇÕES 1'!$B$3:$E$225,4,0) -> 203.39 | H90: 253.84 | I90: 181977.1 | J90: 227115.72
A91: 7.8 | B91: Composição Orse | C91: 9074 | D91: Brise em perfil "C" de alumínio dobrado anodizado branco | E91: M2 | F91: 32,96 | G91: =VLOOKUP(C91,'COMPOSIÇÕES 1'!$B$3:$E$225,4,0) -> 659.9 | H91: 823.57 | I91: 21750.3 | J91: 27144.87
A92: 7.9 | B92: Composição Orse | C92: 12093 | D92: Gradil em alumínio anodizado branco, com barras de apoio em alumínio anodizado branco de 1"x2" horizontais a cada 5cm com 1,85m e barras externas verticais em alumínio anodizado branco de 1.1/2" x 1.1/2" com 3,05m - Fixado com rebite | E92: M2 | F92: 556,77 | G92: =VLOOKUP(C92,'COMPOSIÇÕES 1'!$B$3:$E$225,4,0) -> 486.33 | H92: 606.95 | I92: 270773.95 | J92: 337931.55
A93: 7.10 | B93: Composição Sinapi | C93: 90789 | D93: KIT DE PORTA-PRONTA DE MADEIRA EM ACABAMENTO MELAMÍNICO BRANCO, FOLHA LEVE OU MÉDIA, 70X210CM, EXCLUSIVE FECHADURA, FIXAÇÃO COM PREENCHIMENTO PARCIAL DE ESPUMA EXPANSIVA - FORNECIMENTO E INSTALAÇÃO. AF_12/2019 | E93: UN | F93: 16,00 | G93: =VLOOKUP(C93,'COMPOSIÇÕES 1'!$B$3:$E$225,4,0) -> 887,54 | H93: 1107.67 | I93: 14200.64 | J93: 17722.72
A94: 8 | D94: Revestimentos | F94: 1 | I94: =SUM(I95:I107) -> 1111891.02 | J94: =SUM(J95:J107) -> 1384833.24
A95: 8.1 | B95: Composição Sinapi | C95: 88650 | D95: RODAPÉ CERÂMICO DE 7CM DE ALTURA COM PLACAS TIPO ESMALTADA EXTRA DE DIMENSÕES 60X60CM. AF_06/2014 | E95: M | F95: 2.051,54 | G95: =VLOOKUP(C95,'COMPOSIÇÕES 1'!$B$3:$E$225,4,0) -> 22,63 | H95: =ROUND(G95*(1+$F$3),2) -> 28.24 | I95: =ROUND(G95*F95,2) -> 46426.35 | J95: =ROUND(H95*F95,2) -> 57935.49
A96: 8.2 | B96: Composição Sinapi | C96: 93391 | D96: REVESTIMENTO CERÂMICO PARA PISO COM PLACAS TIPO ESMALTADA PADRÃO POPULAR DE DIMENSÕES 35X35 CM APLICADA EM AMBIENTES DE ÁREA MAIOR QUE 10 M2. AF_06/2014 | E96: M2 | F96: 2.320,87 | G96: =VLOOKUP(C96,'COMPOSIÇÕES 1'!$B$3:$E$225,4,0) -> 57,91 | H96: 72.27 | I96: 134401.58 | J96: 167729.27
A97: 8.3 | B97: Composição Sinapi | C97: 87543 | D97: MASSA ÚNICA, PARA RECEBIMENTO DE PINTURA OU CERÂMICA, ARGAMASSA INDUSTRIALIZADA, PREPARO MECÂNICO, APLICADO COM EQUIPAMENTO DE MISTURA E PROJEÇÃO DE 1,5 M3/H EM FACES INTERNAS DE PAREDES, ESPESSURA DE 5MM, SEM EXECUÇÃO DE TALISCAS. AF_06/2014 | E97: M2 | F97: 3.402,50 | G97: =VLOOKUP(C97,'COMPOSIÇÕES 1'!$B$3:$E$225,4,0) -> 27,45 | H97: 34.26 | I97: 93398.63 | J97: 116569.65
A98: 8.4 | B98: Composição Sinapi | C98: 87791 | D98: EMBOÇO OU MASSA ÚNICA EM ARGAMASSA INDUSTRIALIZADA, PREPARO MECÂNICO E APLICAÇÃO COM EQUIPAMENTO DE MISTURA E PROJEÇÃO DE 1,5 M3/H DE ARGAMASSA EM PANOS DE FACHADA COM PRESENÇA DE VÃOS, ESPESSURA MAIOR OU IGUAL A 50 MM. AF_06/2014 | E98: M2 | F98: 411,96 | G98: =VLOOKUP(C98,'COMPOSIÇÕES 1'!$B$3:$E$225,4,0) -> 152,94 | H98: 190.87 | I98: 63005.16 | J98: 78630.81
A99: 8.5 | B99: Composição Sinapi | C99: 96620 | D99: LASTRO DE CONCRETO MAGRO, APLICADO EM PISOS, LAJES SOBRE SOLO OU RADIERS. AF_08/2017 | E99: M3 | F99: 153,59 | G99: =VLOOKUP(C99,'COMPOSIÇÕES 1'!$B$3:$E$225,4,0) -> 706,01 | H99: 881.12 | I99: 108436.08 | J99: 135331.22
A100: 8.6 | B100: Composição Sinapi | C100: 99841 | D100: GUARDA-CORPO PANORÂMICO COM PERFIS DE ALUMÍNIO E VIDRO LAMINADO 8 MM, FIXADO COM CHUMBADOR MECÂNICO. AF_04/2019_P | E100: M | F100: 61,44 | G100: =VLOOKUP(C100,'COMPOSIÇÕES 1'!$B$3:$E$225,4,0) -> 1.892,49 | H100: 2361.87 | I100: 116274.59 | J100: 145113.29
A101: 8.7 | B101: Composição Sinapi | C101: 98560 | D101: IMPERMEABILIZAÇÃO DE PISO COM ARGAMASSA DE CIMENTO E AREIA, COM ADITIVO IMPERMEABILIZANTE, E = 2CM. AF_06/2018 | E101: M2 | F101: 494,34 | G101: =VLOOKUP(C101,'COMPOSIÇÕES 1'!$B$3:$E$225,4,0) -> 46,63 | H101: 58.2 | I101: 23051.07 | J101: 28770.59
A102: 8.8 | B102: Composição Sinapi | C102: 87623 | D102: CONTRAPISO EM ARGAMASSA PRONTA, PREPARO MECÂNICO COM MISTURADOR 300 KG, APLICADO EM ÁREAS SECAS SOBRE LAJE, ADERIDO, ACABAMENTO NÃO REFORÇADO, ESPESSURA 2CM. AF_07/2021 | E102: M2 | F102: 2.320,87 | G102: =VLOOKUP(C102,'COMPOSIÇÕES 1'!$B$3:$E$225,4,0) -> 84,07 | H102: 104.92 | I102: 195115.54 | J102: 243505.68
A103: 8.9 | B103: Composição Orse | C103: 12734 | D103: Fechamento lateral com telha em aço galvalume, dupla, trapezoidal, com preenchimento PIR 50mm, pré-pintada, TP40 - 2 x 0,43mm, Kingspan- Isoeste ou similar | E103: M2 | F103: 643,79 | G103: =VLOOKUP(C103,'COMPOSIÇÕES 1'!$B$3:$E$225,4,0) -> 365.17 | H103: 455.74 | I103: 235092.79 | J103: 293400.85
A104: 8.10 | B104: Composição Sinapi | C104: 87266 | D104: REVESTIMENTO CERÂMICO PARA PAREDES INTERNAS COM PLACAS TIPO ESMALTADA EXTRA DE DIMENSÕES 20X20 CM APLICADAS EM AMBIENTES DE ÁREA MENOR QUE 5 M² A MEIA ALTURA DAS PAREDES. AF_06/2014 | E104: M2 | F104: 205,50 | G104: =VLOOKUP(C104,'COMPOSIÇÕES 1'!$B$3:$E$225,4,0) -> 84,01 | H104: 104.85 | I104: 17264.06 | J104: 21546.68
A105: 8.11 | B105: Composição Sinapi | C105: 98671 | D105: PISO EM GRANITO APLICADO EM AMBIENTES INTERNOS. AF_09/2020 | E105: M2 | F105: 33,74 | G105: =VLOOKUP(C105,'COMPOSIÇÕES 1'!$B$3:$E$225,4,0) -> 491,29 | H105: 613.14 | I105: 16576.12 | J105: 20687.34
A106: 8.12 | B106: Composição Sinapi | C106: 87263 | D106: REVESTIMENTO CERÂMICO PARA PISO COM PLACAS TIPO PORCELANATO DE DIMENSÕES 60X60 CM APLICADA EM AMBIENTES DE ÁREA MAIOR QUE 10 M². AF_06/2014 | E106: M2 | F106: 166,08 | G106: =VLOOKUP(C106,'COMPOSIÇÕES 1'!$B$3:$E$225,4,0) -> 210,35 | H106: 262.52 | I106: 34934.93 | J106: 43599.32
A107: 8.13 | B107: Insumo Sinapi | C107: 11062 | D107: PLACA CIMENTICIA LISA E = 10 MM, DE 1,20 X 3,00 M (SEM AMIANTO) | E107: M2 | F107: 492,66 | G107: =VLOOKUP(C107,'COMPOSIÇÕES 1'!$B$3:$E$225,4,0) -> 56.66 | H107: =ROUND(G107*(1+$F$4),2) -> 64.98 | I107: 27914.12 | J107: 32013.05
A108: 9 | D108: Cobertura | F108: 1 | I108: =SUM(I109:I114) -> 673133.14 | J108: =SUM(J109:J114) -> 787253.27
A109: 9.1 | B109: Composição Sinapi | C109: 92580 | D109: TRAMA DE AÇO COMPOSTA POR TERÇAS PARA TELHADOS DE ATÉ 2 ÁGUAS PARA TELHA ONDULADA DE FIBROCIMENTO, METÁLICA, PLÁSTICA OU TERMOACÚSTICA, INCLUSO TRANSPORTE VERTICAL. AF_07/2019 | E109: M2 | F109: 1.556,69 | G109: =VLOOKUP(C109,'COMPOSIÇÕES 1'!$B$3:$E$225,4,0) -> 55,21 | H109: =ROUND(G109*(1+$F$3),2) -> 68.9 | I109: =ROUND(G109*F109,2) -> 85944.85 | J109: =ROUND(H109*F109,2) -> 107255.94
A110: 9.2 | B110: Composição Orse | C110: 12734 | D110: Telhamento com telha em aço galvalume, dupla, trapezoidal, com preenchimento PIR 50mm, pré-pintada, TP40 - 2 x 0,43mm, Kingspan- Isoeste ou similar | E110: M2 | F110: 1.556,69 | G110: ='COMPOSIÇÕES 1'!E226 -> 9.37 | H110: 11.69 | I110: 14586.19 | J110: 18197.71
A111: 9.2 | B111: Insumo Orse | C111: 13491 | D111: Telha em aço galvalume, dupla, trapezoidal, com preenchimento PIR 50mm, pré-pintada, TP40 - 2 x 0,43mm, Kingspan- Isoeste ou similar | E111: M2 | F111: 1.556,69 | G111: ='COMPOSIÇÕES 1'!E204 -> 335.66 | H111: =ROUND(G111*(1+$F$4),2) -> 384.98 | I111: =ROUND(G111*F111,2) -> 522518.57 | J111: =ROUND(H111*F111,2) -> 599294.52
A112: 9.3 | B112: Composição Sinapi | C112: 94227 | D112: CALHA EM CHAPA DE AÇO GALVANIZADO NÚMERO 24, DESENVOLVIMENTO DE 33 CM, INCLUSO TRANSPORTE VERTICAL. AF_07/2019 | E112: M | F112: 305,85 | G112: =VLOOKUP(C112,'COMPOSIÇÕES 1'!$B$3:$E$225,4,0) -> 67,51 | H112: 84.25 | I112: 20647.93 | J112: 25767.86
A113: 9.4 | B113: Composição Sinapi | C113: 94231 | D113: RUFO EM CHAPA DE AÇO GALVANIZADO NÚMERO 24, CORTE DE 25 CM, INCLUSO TRANSPORTE VERTICAL. AF_07/2019 | E113: M | F113: 204,60 | G113: =VLOOKUP(C113,'COMPOSIÇÕES 1'!$B$3:$E$225,4,0) -> 59,18 | H113: 73.86 | I113: 12108.23 | J113: 15111.76
A114: 9.5 | B114: Composição Sinapi | C114: 96117 | D114: FORRO EM MADEIRA PINUS, PARA AMBIENTES COMERCIAIS, INCLUSIVE ESTRUTURA DE FIXAÇÃO. AF_05/2017 | E114: M2 | F114: 131,00 | G114: =VLOOKUP(C114,'COMPOSIÇÕES 1'!$B$3:$E$225,4,0) -> 132,27 | H114: 165.08 | I114: 17327.37 | J114: 21625.48
A115: 10 | D115: Instalações Elétricas | F115: 1 | I115: =SUM(I116:I193) -> 529047.01 | J115: =SUM(J116:J193) -> 644925.25
A116: 10.1 | B116: Composição Sinapi | C116: 93654 | D116: DISJUNTOR MONOPOLAR TIPO DIN, CORRENTE NOMINAL DE 16A - FORNECIMENTO E INSTALAÇÃO. AF_10/2020 | E116: UN | F116: 210,00 | G116: =VLOOKUP(C116,'COMPOSIÇÕES 1'!$B$3:$E$225,4,0) -> 12,80 | H116: =ROUND(G116*(1+$F$3),2) -> 15.97 | I116: =ROUND(G116*F116,2) -> 2688 | J116: =ROUND(H116*F116,2) -> 3353.7
A117: 10.2 | B117: Composição Sinapi | C117: 93658 | D117: DISJUNTOR MONOPOLAR TIPO DIN, CORRENTE NOMINAL DE 40A - FORNECIMENTO E INSTALAÇÃO. AF_10/2020 | E117: UN | F117: 100,00 | G117: =VLOOKUP(C117,'COMPOSIÇÕES 1'!$B$3:$E$225,4,0) -> 22,26 | H117: 27.78 | I117: 2226 | J117: 2778
A118: 10.3 | B118: Composição Sinapi | C118: 93657 | D118: DISJUNTOR MONOPOLAR TIPO DIN, CORRENTE NOMINAL DE 32A - FORNECIMENTO E INSTALAÇÃO. AF_10/2020 | E118: UN | F118: 2,00 | G118: =VLOOKUP(C118,'COMPOSIÇÕES 1'!$B$3:$E$225,4,0) -> 15,44 | H118: 19.27 | I118: 30.88 | J118: 38.54
A119: 10.4 | B119: Composição Orse | C119: 7998 | D119: Disjuntor termomagnetico tripolar 100 A, padrão NEMA (Americano - linha preta), 5KA | E119: UN | F119: 1,00 | G119: =VLOOKUP(C119,'COMPOSIÇÕES 1'!$B$3:$E$225,4,0) -> 188.7 | H119: 235.5 | I119: 188.7 | J119: 235.5
A120: 10.5 | B120: Composição Orse | C120: 13149 | D120: Dispositivo DR tetrapolar 100 A, tipo AC, 30MA | E120: UN | F120: 1,00 | G120: =VLOOKUP(C120,'COMPOSIÇÕES 1'!$B$3:$E$225,4,0) -> 361.59 | H120: 451.27 | I120: 361.59 | J120: 451.27
A121: 10.6 | B121: Composição Sinapi | C121: 91926 | D121: CABO DE COBRE FLEXÍVEL ISOLADO, 2,5 MM², ANTI-CHAMA 450/750 V, PARA CIRCUITOS TERMINAIS - FORNECIMENTO E INSTALAÇÃO. AF_12/2015 | E121: M | F121: 7.940,00 | G121: =VLOOKUP(C121,'COMPOSIÇÕES 1'!$B$3:$E$225,4,0) -> 4,88 | H121: 6.09 | I121: 38747.2 | J121: 48354.6
A122: 10.7 | B122: Composição Sinapi | C122: 91928 | D122: CABO DE COBRE FLEXÍVEL ISOLADO, 4 MM², ANTI-CHAMA 450/750 V, PARA CIRCUITOS TERMINAIS - FORNECIMENTO E INSTALAÇÃO. AF_12/2015 | E122: M | F122: 3.030,00 | G122: =VLOOKUP(C122,'COMPOSIÇÕES 1'!$B$3:$E$225,4,0) -> 7,61 | H122: 9.5 | I122: 23058.3 | J122: 28785
A123: 10.8 | B123: Composição Sinapi | C123: 91953 | D123: INTERRUPTOR SIMPLES (1 MÓDULO), 10A/250V, INCLUINDO SUPORTE E PLACA - FORNECIMENTO E INSTALAÇÃO. AF_12/2015 | E123: UN | F123: 112,00 | G123: =VLOOKUP(C123,'COMPOSIÇÕES 1'!$B$3:$E$225,4,0) -> 25,98 | H123: 32.42 | I123: 2909.76 | J123: 3631.04
A124: 10.9 | B124: Composição Sinapi | C124: 91990 | D124: TOMADA ALTA DE EMBUTIR (1 MÓDULO), 2P+T 10 A, SEM SUPORTE E SEM PLACA - FORNECIMENTO E INSTALAÇÃO. AF_12/2015 | E124: UN | F124: 638,00 | G124: =VLOOKUP(C124,'COMPOSIÇÕES 1'!$B$3:$E$225,4,0) -> 31,93 | H124: 39.85 | I124: 20371.34 | J124: 25424.3
A125: 10.10 | B125: Composição Sinapi | C125: 91966 | D125: INTERRUPTOR SIMPLES (3 MÓDULOS), 10A/250V, SEM SUPORTE E SEM PLACA - FORNECIMENTO E INSTALAÇÃO. AF_12/2015 | E125: UN | F125: 2,00 | G125: =VLOOKUP(C125,'COMPOSIÇÕES 1'!$B$3:$E$225,4,0) -> 48,64 | H125: 60.7 | I125: 97.28 | J125: 121.4
A126: 10.11 | B126: Composição Sinapi | C126: 91845 | D126: ELETRODUTO FLEXÍVEL CORRUGADO REFORÇADO, PVC, DN 25 MM (3/4"), PARA CIRCUITOS TERMINAIS, INSTALADO EM LAJE - FORNECIMENTO E INSTALAÇÃO. AF_12/2015 | E126: M | F126: 3.750,00 | G126: =VLOOKUP(C126,'COMPOSIÇÕES 1'!$B$3:$E$225,4,0) -> 9,13 | H126: 11.39 | I126: 34237.5 | J126: 42712.5
A127: 10.12 | B127: Composição Sinapi | C127: 101876 | D127: QUADRO DE DISTRIBUIÇÃO DE ENERGIA EM PVC, DE EMBUTIR, SEM BARRAMENTO, PARA 6 DISJUNTORES - FORNECIMENTO E INSTALAÇÃO. AF_10/2020 | E127: UN | F127: 100,00 | G127: =VLOOKUP(C127,'COMPOSIÇÕES 1'!$B$3:$E$225,4,0) -> 74,81 | H127: 93.36 | I127: 7481 | J127: 9336
A128: 10.13 | B128: Composição Sinapi | C128: 96562 | D128: SUPORTE PARA ELETROCALHA LISA OU PERFURADA EM AÇO GALVANIZADO, LARGURA 200 OU 400 MM E ALTURA 50 MM, ESPAÇADO A CADA 1,5 M, EM PERFILADO DE SEÇÃO 38X76 MM, POR METRO DE ELETRECOLHA FIXADA. AF_07/2017 | E128: M | F128: 3.620,00 | G128: =VLOOKUP(C128,'COMPOSIÇÕES 1'!$B$3:$E$225,4,0) -> 19,63 | H128: 24.5 | I128: 71060.6 | J128: 88690
A129: 10.14 | B129: Composição Sinapi | C129: 91936 | D129: CAIXA OCTOGONAL 4" X 4", PVC, INSTALADA EM LAJE - FORNECIMENTO E INSTALAÇÃO. AF_12/2015 | E129: UN | F129: 267,00 | G129: =VLOOKUP(C129,'COMPOSIÇÕES 1'!$B$3:$E$225,4,0) -> 14,09 | H129: 17.58 | I129: 3762.03 | J129: 4693.86
A130: 10.15 | B130: Composição Sinapi | C130: 91940 | D130: CAIXA RETANGULAR 4" X 2" MÉDIA (1,30 M DO PISO), PVC, INSTALADA EM PAREDE - FORNECIMENTO E INSTALAÇÃO. AF_12/2015 | E130: UN | F130: 109,00 | G130: =VLOOKUP(C130,'COMPOSIÇÕES 1'!$B$3:$E$225,4,0) -> 15,13 | H130: 18.88 | I130: 1649.17 | J130: 2057.92
A131: 10.16 | B131: Composição Sinapi | C131: 95805 | D131: CONDULETE DE PVC, TIPO B, PARA ELETRODUTO DE PVC SOLDÁVEL DN 25 MM (3/4''), APARENTE - FORNECIMENTO E INSTALAÇÃO. AF_11/2016 | E131: UN | F131: 600,00 | G131: =VLOOKUP(C131,'COMPOSIÇÕES 1'!$B$3:$E$225,4,0) -> 25,98 | H131: 32.42 | I131: 15588 | J131: 19452
A132: 10.17 | B132: Composição Orse | C132: 7138 | D132: Fornecimento e lançamento de cabo utp 4 pares cat 6 | E132: M | F132: 900,00 | G132: =VLOOKUP(C132,'COMPOSIÇÕES 1'!$B$3:$E$225,4,0) -> 11.68 | H132: 14.58 | I132: 10512 | J132: 13122
A133: 10.18 | B133: Composição Orse | C133: 11242 | D133: Fornecimento e instalação de conector rj 45 macho cat 6 | E133: UN | F133: 230,00 | G133: =VLOOKUP(C133,'COMPOSIÇÕES 1'!$B$3:$E$225,4,0) -> 6.52 | H133: 8.14 | I133: 1499.6 | J133: 1872.2
A134: 10.19 | B134: Composição Orse | C134: 7164 | D134: Fornecimento e instalação de conector rj 45 fêmea cat 6 (krone ou similar) | E134: UN | F134: 230,00 | G134: =VLOOKUP(C134,'COMPOSIÇÕES 1'!$B$3:$E$225,4,0) -> 31.57 | H134: 39.4 | I134: 7261.1 | J134: 9062
A135: 10.20 | B135: Composição Orse | C135: 10727 | D135: Fornecimento e instalação de voice panel 24 portas cat 6 | E135: UN | F135: 10,00 | G135: =VLOOKUP(C135,'COMPOSIÇÕES 1'!$B$3:$E$225,4,0) -> 274.18 | H135: 342.18 | I135: 2741.8 | J135: 3421.8
A136: 10.21 | B136: Composição Orse | C136: 9534 | D136: Fornecimento e instalação de patch cords cat.5e, conector rj-45 macho, c/1,50m - Rev 01 | E136: UN | F136: 5,00 | G136: =VLOOKUP(C136,'COMPOSIÇÕES 1'!$B$3:$E$225,4,0) -> 18.28 | H136: 22.81 | I136: 91.4 | J136: 114.05
A137: 10.22 | B137: Composição Orse | C137: 11227 | D137: Fornecimento e montagem de rack fechado tipo armário 19" x 36u x 600mm | E137: UN | F137: 1,00 | G137: =VLOOKUP(C137,'COMPOSIÇÕES 1'!$B$3:$E$225,4,0) -> 2098.87 | H137: 2619.43 | I137: 2098.87 | J137: 2619.43
A138: 10.23 | B138: Composição Orse | C138: 11418 | D138: Tomada para lógica, rj45, com placa | E138: UN | F138: 120,00 | G138: =VLOOKUP(C138,'COMPOSIÇÕES 1'!$B$3:$E$225,4,0) -> 34.11 | H138: 42.57 | I138: 4093.2 | J138: 5108.4
A139: 10.24 | B139: Composição Sinapi | C139: 101881 | D139: QUADRO DE DISTRIBUIÇÃO DE ENERGIA EM CHAPA DE AÇO GALVANIZADO, DE EMBUTIR, COM BARRAMENTO TRIFÁSICO, PARA 40 DISJUNTORES DIN 100A - FORNECIMENTO E INSTALAÇÃO. AF_10/2020 | E139: UN | F139: 1,00 | G139: =VLOOKUP(C139,'COMPOSIÇÕES 1'!$B$3:$E$225,4,0) -> 1.094,49 | H139: 1365.95 | I139: 1094.49 | J139: 1365.95
A140: 10.25 | B140: Composição Orse | C140: 7162 | D140: Ponto de sensor de presença embutido no teto | E140: UN | F140: 6,00 | G140: =VLOOKUP(C140,'COMPOSIÇÕES 1'!$B$3:$E$225,4,0) -> 255.87 | H140: 319.33 | I140: 1535.22 | J140: 1915.98
A141: 10.26 | B141: Insumo Sinapi | C141: 12388 | D141: POSTE DECORATIVO PARA JARDIM EM ACO TUBULAR, SEM LUMINARIA, H = *2,5* M | E141: UN | F141: 30,00 | G141: =VLOOKUP(C141,'COMPOSIÇÕES 1'!$B$3:$E$225,4,0) -> 359.22 | H141: =ROUND(G141*(1+$F$4),2) -> 412 | I141: 10776.6 | J141: 12360
A142: 10.27 | B142: Composição Sinapi | C142: 101655 | D142: LUMINÁRIA DE LED PARA ILUMINAÇÃO PÚBLICA, DE 51 W ATÉ 67 W - FORNECIMENTO E INSTALAÇÃO. AF_08/2020 | E142: UN | F142: 40,00 | G142: =VLOOKUP(C142,'COMPOSIÇÕES 1'!$B$3:$E$225,4,0) -> 504,71 | H142: =ROUND(G142*(1+$F$3),2) -> 629.89 | I142: 20188.4 | J142: 25195.6
A143: 10.28 | B143: Composição Orse | C143: 12474 | D143: Módulo para 36 medidores em chapa galvanizada 12,5mm, com barramento para 200A, pintado eletrostaticamente na cor bege | E143: UN | F143: 4,00 | G143: =VLOOKUP(C143,'COMPOSIÇÕES 1'!$B$3:$E$225,4,0) -> 6467.8 | H143: 8071.95 | I143: 25871.2 | J143: 32287.8
A144: 10.29 | B144: Composição Sinapi | C144: 101553 | D144: ALÇA PREFORMADA DE DISTRIBUIÇÃO, EM AÇO GALVANIZADO, AWG 1 - FORNECIMENTO E INSTALAÇÃO. AF_07/2020 | E144: UN | F144: 6,00 | G144: =VLOOKUP(C144,'COMPOSIÇÕES 1'!$B$3:$E$225,4,0) -> 17,29 | H144: 21.58 | I144: 103.74 | J144: 129.48
A145: 10.30 | B145: Composição Sinapi | C145: 101538 | D145: ARMAÇÃO SECUNDÁRIA, COM 1 ESTRIBO E 1 ISOLADOR - FORNECIMENTO E INSTALAÇÃO. AF_07/2020 | E145: UN | F145: 6,00 | G145: =VLOOKUP(C145,'COMPOSIÇÕES 1'!$B$3:$E$225,4,0) -> 49,28 | H145: 61.5 | I145: 295.68 | J145: 369
A146: 10.31 | B146: Insumo Sinapi | C146: 10510 | D146: CRUZETA DE MADEIRA TRATADA, *90 X 115 X 2400* MM, EM EUCALIPTO OU EQUIVALENTE DA REGIAO | E146: UN | F146: 4,00 | G146: =VLOOKUP(C146,'COMPOSIÇÕES 1'!$B$3:$E$225,4,0) -> 100.44 | H146: =ROUND(G146*(1+$F$4),2) -> 115.2 | I146: 401.76 | J146: 460.8
A147: 10.32 | B147: Insumo Sinapi | C147: 429 | D147: PARAFUSO M16 EM ACO GALVANIZADO, COMPRIMENTO = 300 MM, DIAMETRO = 16 MM, ROSCA DUPLA | E147: UN | F147: 12,00 | G147: =VLOOKUP(C147,'COMPOSIÇÕES 1'!$B$3:$E$225,4,0) -> 12.11 | H147: 13.89 | I147: 145.32 | J147: 166.68
A148: 10.33 | B148: Insumo Sinapi | C148: 436 | D148: PARAFUSO FRANCES M16 EM ACO GALVANIZADO, COMPRIMENTO = 150 MM, DIAMETRO = 16 MM, CABECA ABAULADA | E148: UN | F148: 2,00 | G148: =VLOOKUP(C148,'COMPOSIÇÕES 1'!$B$3:$E$225,4,0) -> 6.85 | H148: 7.86 | I148: 13.7 | J148: 15.72
A149: 10.34 | B149: Composição Orse | C149: 9892 | D149: PEÇA DE MADERIA 115X135X 600MM | E149: UN | F149: 4,00 | G149: =VLOOKUP(C149,'COMPOSIÇÕES 1'!$B$3:$E$225,4,0) -> 24.25 | H149: =ROUND(G149*(1+$F$3),2) -> 30.26 | I149: 97 | J149: 121.04
A150: 10.35 | B150: Insumo Sinapi | C150: 41953 | D150: CABO DE ACO GALVANIZADO, DIAMETRO 12,7 MM (1/2"), COM ALMA DE FIBRA 6 X 25 F | E150: KG | F150: 30,00 | G150: =VLOOKUP(C150,'COMPOSIÇÕES 1'!$B$3:$E$225,4,0) -> 82.4 | H150: =ROUND(G150*(1+$F$4),2) -> 94.51 | I150: 2472 | J150: 2835.3
A151: 10.36 | B151: Composição Orse | C151: 12876 | D151: Fornecimento e instalação de Para raios tipo polimérico 15kv - 12ka | E151: UN | F151: 3,00 | G151: =VLOOKUP(C151,'COMPOSIÇÕES 1'!$B$3:$E$225,4,0) -> 159.43 | H151: =ROUND(G151*(1+$F$3),2) -> 198.97 | I151: 478.29 | J151: 596.91
A152: 10.37 | B152: Insumo Sinapi | C152: 1574 | D152: TERMINAL A COMPRESSAO EM COBRE ESTANHADO PARA CABO 10 MM2, 1 FURO E 1 COMPRESSAO, PARA PARAFUSO DE FIXACAO M6 | E152: UN | F152: 6,00 | G152: =VLOOKUP(C152,'COMPOSIÇÕES 1'!$B$3:$E$225,4,0) -> 1.56 | H152: =ROUND(G152*(1+$F$4),2) -> 1.79 | I152: 9.36 | J152: 10.74
A153: 10.38 | B153: Insumo Sinapi | C153: 857 | D153: CABO DE COBRE NU 16 MM2 MEIO-DURO | E153: M | F153: 30,00 | G153: =VLOOKUP(C153,'COMPOSIÇÕES 1'!$B$3:$E$225,4,0) -> 21 | H153: 24.09 | I153: 630 | J153: 722.7
A154: 10.39 | B154: Insumo Sinapi | C154: 1539 | D154: CONECTOR METALICO TIPO PARAFUSO FENDIDO (SPLIT BOLT), PARA CABOS ATE 16 MM2 | E154: UN | F154: 6,00 | G154: =VLOOKUP(C154,'COMPOSIÇÕES 1'!$B$3:$E$225,4,0) -> 7.2 | H154: 8.26 | I154: 43.2 | J154: 49.56
A155: 10.40 | B155: Insumo Sinapi | C155: 867 | D155: CABO DE COBRE NU 50 MM2 MEIO-DURO | E155: M | F155: 15,00 | G155: =VLOOKUP(C155,'COMPOSIÇÕES 1'!$B$3:$E$225,4,0) -> 62.41 | H155: 71.58 | I155: 936.15 | J155: 1073.7
A156: 10.41 | B156: Insumo Sinapi | C156: 3379 | D156: !EM PROCESSO DE DESATIVACAO! HASTE DE ATERRAMENTO EM ACO COM 3,00 M DE COMPRIMENTO E DN = 5/8", REVESTIDA COM BAIXA CAMADA DE COBRE, SEM CONECTOR | E156: UN | F156: 6,00 | G156: =VLOOKUP(C156,'COMPOSIÇÕES 1'!$B$3:$E$225,4,0) -> 57.93 | H156: 66.44 | I156: 347.58 | J156: 398.64
A157: 10.42 | B157: Composição Sinapi | C157: 102107 | D157: TRANSFORMADOR DE DISTRIBUIÇÃO, 225 KVA, TRIFÁSICO, 60 HZ, CLASSE 15 KV, IMERSO EM ÓLEO MINERAL, INSTALAÇÃO EM POSTE (NÃO INCLUSO SUPORTE) - FORNECIMENTO E INSTALAÇÃO. AF_12/2020 | E157: UN | F157: 1,00 | G157: =VLOOKUP(C157,'COMPOSIÇÕES 1'!$B$3:$E$225,4,0) -> 47.287,85 | H157: =ROUND(G157*(1+$F$3),2) -> 59016.25 | I157: 47287.85 | J157: 59016.25
A158: 10.43 | B158: Composição Sinapi | C158: 96616 | D158: LASTRO DE CONCRETO MAGRO, APLICADO EM BLOCOS DE COROAMENTO OU SAPATAS. AF_08/2017 | E158: M3 | F158: 1,00 | G158: =VLOOKUP(C158,'COMPOSIÇÕES 1'!$B$3:$E$225,4,0) -> 726,10 | H158: 906.19 | I158: 726.1 | J158: 906.19
A159: 10.44 | B159: Insumo Sinapi | C159: 13343 | D159: KIT DE MATERIAIS PARA BRACADEIRA PARA FIXACAO EM POSTE CIRCULAR, CONTEM TRES FIXADORES E UM ROLO DE FITA DE 3 M EM ACO CARBONO | E159: UN | F159: 3,00 | G159: =VLOOKUP(C159,'COMPOSIÇÕES 1'!$B$3:$E$225,4,0) -> 42.24 | H159: =ROUND(G159*(1+$F$4),2) -> 48.45 | I159: 126.72 | J159: 145.35
A160: 10.45 | B160: Composição Sinapi | C160: 97670 | D160: ELETRODUTO FLEXÍVEL CORRUGADO, PEAD, DN 100 (4"), PARA REDE ENTERRADA DE DISTRIBUIÇÃO DE ENERGIA ELÉTRICA - FORNECIMENTO E INSTALAÇÃO. AF_12/2021 | E160: M | F160: 12,00 | G160: =VLOOKUP(C160,'COMPOSIÇÕES 1'!$B$3:$E$225,4,0) -> 23,86 | H160: =ROUND(G160*(1+$F$3),2) -> 29.78 | I160: 286.32 | J160: 357.36
A161: 10.46 | B161: Composição Sinapi | C161: 101898 | D161: DISJUNTOR TERMOMAGNÉTICO TRIPOLAR , CORRENTE NOMINAL DE 400A - FORNECIMENTO E INSTALAÇÃO. AF_10/2020 | E161: UN | F161: 3,00 | G161: =VLOOKUP(C161,'COMPOSIÇÕES 1'!$B$3:$E$225,4,0) -> 1.433,14 | H161: 1788.59 | I161: 4299.42 | J161: 5365.77
A162: 10.47 | B162: Composição Sinapi | C162: 101894 | D162: DISJUNTOR TRIPOLAR TIPO NEMA, CORRENTE NOMINAL DE 60 ATÉ 100A - FORNECIMENTO E INSTALAÇÃO. AF_10/2020 | E162: UN | F162: 2,00 | G162: =VLOOKUP(C162,'COMPOSIÇÕES 1'!$B$3:$E$225,4,0) -> 162,19 | H162: 202.42 | I162: 324.38 | J162: 404.84
A163: 10.48 | B163: Insumo Sinapi | C163: 39468 | D163: DISPOSITIVO DPS CLASSE II, 1 POLO, TENSAO MAXIMA DE 175 V, CORRENTE MAXIMA DE *90* KA (TIPO AC) | E163: UN | F163: 4,00 | G163: =VLOOKUP(C163,'COMPOSIÇÕES 1'!$B$3:$E$225,4,0) -> 177.33 | H163: =ROUND(G163*(1+$F$4),2) -> 203.38 | I163: 709.32 | J163: 813.52
A164: 10.49 | B164: Insumo Sinapi | C164: 37558 | D164: PLACA DE SINALIZACAO DE SEGURANCA CONTRA INCENDIO, FOTOLUMINESCENTE, RETANGULAR, *20 X 40* CM, EM PVC *2* MM ANTI-CHAMAS (SIMBOLOS, CORES E PICTOGRAMAS CONFORME NBR 16820) | E164: UN | F164: 2,00 | G164: =VLOOKUP(C164,'COMPOSIÇÕES 1'!$B$3:$E$225,4,0) -> 65.26 | H164: 74.85 | I164: 130.52 | J164: 149.7
A165: 10.50 | B165: Insumo Sinapi | C165: 1000 | D165: CABO DE COBRE, FLEXIVEL, CLASSE 4 OU 5, ISOLACAO EM PVC/A, ANTICHAMA BWF-B, COBERTURA PVC-ST1, ANTICHAMA BWF-B, 1 CONDUTOR, 0,6/1 KV, SECAO NOMINAL 185 MM2 | E165: M | F165: 440,00 | G165: =VLOOKUP(C165,'COMPOSIÇÕES 1'!$B$3:$E$225,4,0) -> 205.37 | H165: 235.54 | I165: 90362.8 | J165: 103637.6
A166: 10.51 | B166: Insumo Sinapi | C166: 1018 | D166: CABO DE COBRE, FLEXIVEL, CLASSE 4 OU 5, ISOLACAO EM PVC/A, ANTICHAMA BWF-B, COBERTURA PVC-ST1, ANTICHAMA BWF-B, 1 CONDUTOR, 0,6/1 KV, SECAO NOMINAL 50 MM2 | E166: M | F166: 20,00 | G166: =VLOOKUP(C166,'COMPOSIÇÕES 1'!$B$3:$E$225,4,0) -> 56.45 | H166: 64.74 | I166: 1129 | J166: 1294.8
A167: 10.52 | B167: Insumo Sinapi | C167: 977 | D167: CABO DE COBRE, FLEXIVEL, CLASSE 4 OU 5, ISOLACAO EM PVC/A, ANTICHAMA BWF-B, COBERTURA PVC-ST1, ANTICHAMA BWF-B, 1 CONDUTOR, 0,6/1 KV, SECAO NOMINAL 70 MM2 | E167: M | F167: 60,00 | G167: =VLOOKUP(C167,'COMPOSIÇÕES 1'!$B$3:$E$225,4,0) -> 78.19 | H167: 89.68 | I167: 4691.4 | J167: 5380.8
A168: 10.53 | B168: Insumo Sinapi | C168: 998 | D168: CABO DE COBRE, FLEXIVEL, CLASSE 4 OU 5, ISOLACAO EM PVC/A, ANTICHAMA BWF-B, COBERTURA PVC-ST1, ANTICHAMA BWF-B, 1 CONDUTOR, 0,6/1 KV, SECAO NOMINAL 95 MM2 | E168: M | F168: 90,00 | G168: =VLOOKUP(C168,'COMPOSIÇÕES 1'!$B$3:$E$225,4,0) -> 103.87 | H168: 119.13 | I168: 9348.3 | J168: 10721.7
A169: 10.54 | B169: Insumo Sinapi | C169: 11859 | D169: CONECTOR METALICO TIPO PARAFUSO FENDIDO (SPLIT BOLT), PARA CABOS ATE 185 MM2 | E169: UN | F169: 40,00 | G169: =VLOOKUP(C169,'COMPOSIÇÕES 1'!$B$3:$E$225,4,0) -> 54.47 | H169: 62.47 | I169: 2178.8 | J169: 2498.8
A170: 10.55 | B170: Insumo Sinapi | C170: 11855 | D170: CONECTOR METALICO TIPO PARAFUSO FENDIDO (SPLIT BOLT), PARA CABOS ATE 70 MM2 | E170: UN | F170: 10,00 | G170: =VLOOKUP(C170,'COMPOSIÇÕES 1'!$B$3:$E$225,4,0) -> 19.88 | H170: 22.8 | I170: 198.8 | J170: 228
A171: 10.56 | B171: Insumo Sinapi | C171: 11864 | D171: CONECTOR METALICO TIPO PARAFUSO FENDIDO (SPLIT BOLT), PARA CABOS ATE 95 MM2 | E171: UN | F171: 4,00 | G171: =VLOOKUP(C171,'COMPOSIÇÕES 1'!$B$3:$E$225,4,0) -> 30.06 | H171: 34.48 | I171: 120.24 | J171: 137.92
A172: 10.57 | B172: Insumo Sinapi | C172: 11862 | D172: CONECTOR METALICO TIPO PARAFUSO FENDIDO (SPLIT BOLT), PARA CABOS ATE 50 MM2 | E172: UN | F172: 4,00 | G172: =VLOOKUP(C172,'COMPOSIÇÕES 1'!$B$3:$E$225,4,0) -> 13.32 | H172: 15.28 | I172: 53.28 | J172: 61.12
A173: 10.58 | B173: Composição Sinapi | C173: 97599 | D173: LUMINÁRIA DE EMERGÊNCIA, COM 30 LÂMPADAS LED DE 2 W, SEM REATOR - FORNECIMENTO E INSTALAÇÃO. AF_02/2020 | E173: UN | F173: 41,00 | G173: =VLOOKUP(C173,'COMPOSIÇÕES 1'!$B$3:$E$225,4,0) -> 28,72 | H173: =ROUND(G173*(1+$F$3),2) -> 35.84 | I173: 1177.52 | J173: 1469.44
A174: 10.59 | B174: Insumo Sinapi | C174: 37559 | D174: PLACA DE SINALIZACAO DE SEGURANCA CONTRA INCENDIO, FOTOLUMINESCENTE, RETANGULAR, *12 X 40* CM, EM PVC *2* MM ANTI-CHAMAS (SIMBOLOS, CORES E PICTOGRAMAS CONFORME NBR 16820) | E174: UN | F174: 44,00 | G174: =VLOOKUP(C174,'COMPOSIÇÕES 1'!$B$3:$E$225,4,0) -> 49.66 | H174: =ROUND(G174*(1+$F$4),2) -> 56.96 | I174: 2185.04 | J174: 2506.24
A175: 10.60 | B175: Composição Orse | C175: 11979 | D175: Acionador Manual Convencional - Modelo AM-2 da Verin ou similar, tipo "Aperte aqui" | E175: UN | F175: 3,00 | G175: =VLOOKUP(C175,'COMPOSIÇÕES 1'!$B$3:$E$225,4,0) -> 66.53 | H175: =ROUND(G175*(1+$F$3),2) -> 83.03 | I175: 199.59 | J175: 249.09
A176: 10.61 | B176: Composição Orse | C176: 11820 | D176: Central de alarme endereçável de incendio com sistema p/ até 250 dispositivos, marcal Verin ou similar, Modelo VRE-250 c/ bateria de 12V e 7Amperes | E176: UN | F176: 1,00 | G176: =VLOOKUP(C176,'COMPOSIÇÕES 1'!$B$3:$E$225,4,0) -> 5768.87 | H176: 7199.67 | I176: 5768.87 | J176: 7199.67
A177: 10.62 | B177: Composição Sinapi | C177: 91845 | D177: ELETRODUTO FLEXÍVEL CORRUGADO REFORÇADO, PVC, DN 25 MM (3/4"), PARA CIRCUITOS TERMINAIS, INSTALADO EM LAJE - FORNECIMENTO E INSTALAÇÃO. AF_12/2015 | E177: M | F177: 50,00 | G177: =VLOOKUP(C177,'COMPOSIÇÕES 1'!$B$3:$E$225,4,0) -> 9,13 | H177: 11.39 | I177: 456.5 | J177: 569.5
A178: 10.63 | B178: Insumo Sinapi | C178: 34602 | D178: CABO FLEXIVEL PVC 750 V, 2 CONDUTORES DE 1,5 MM2 | E178: M | F178: 130,00 | G178: =VLOOKUP(C178,'COMPOSIÇÕES 1'!$B$3:$E$225,4,0) -> 6.44 | H178: =ROUND(G178*(1+$F$4),2) -> 7.39 | I178: 837.2 | J178: 960.7
A179: 10.64 | B179: Insumo Sinapi | C179: 10891 | D179: EXTINTOR DE INCENDIO PORTATIL COM CARGA DE PO QUIMICO SECO (PQS) DE 4 KG, CLASSE BC | E179: UN | F179: 30,00 | G179: =VLOOKUP(C179,'COMPOSIÇÕES 1'!$B$3:$E$225,4,0) -> 304.61 | H179: 349.36 | I179: 9138.3 | J179: 10480.8
A180: 10.65 | B180: Insumo Sinapi | C180: 867 | D180: CABO DE COBRE NU 50 MM2 MEIO-DURO | E180: M | F180: 220,00 | G180: =VLOOKUP(C180,'COMPOSIÇÕES 1'!$B$3:$E$225,4,0) -> 62.41 | H180: 71.58 | I180: =ROUND(G180*F180,2) -> 13730.2 | J180: =ROUND(H180*F180,2) -> 15747.6
A181: 10.66 | B181: Composição Sinapi | C181: 98111 | D181: CAIXA DE INSPEÇÃO PARA ATERRAMENTO, CIRCULAR, EM POLIETILENO, DIÂMETRO INTERNO = 0,3 M. AF_12/2020 | E181: UN | F181: 12,00 | G181: =VLOOKUP(C181,'COMPOSIÇÕES 1'!$B$3:$E$225,4,0) -> 49,71 | H181: =ROUND(G181*(1+$F$3),2) -> 62.04 | I181: 596.52 | J181: 744.48
A182: 10.67 | B182: Composição Orse | C182: 8795 | D182: Terminal aéreo em aço galvanizado 3/8" x 50cm, com fixação horizontal | E182: UN | F182: 4,00 | G182: =VLOOKUP(C182,'COMPOSIÇÕES 1'!$B$3:$E$225,4,0) -> 25.78 | H182: 32.17 | I182: 103.12 | J182: 128.68
A183: 10.68 | B183: Insumo Sinapi | C183: 3380 | D183: !EM PROCESSO DE DESATIVACAO! HASTE DE ATERRAMENTO EM ACO COM 3,00 M DE COMPRIMENTO E DN = 5/8", REVESTIDA COM BAIXA CAMADA DE COBRE, COM CONECTOR TIPO GRAMPO | E183: UN | F183: 12,00 | G183: =VLOOKUP(C183,'COMPOSIÇÕES 1'!$B$3:$E$225,4,0) -> 60 | H183: =ROUND(G183*(1+$F$4),2) -> 68.82 | I183: 720 | J183: 825.84
A184: 10.69 | B184: Insumo Sinapi | C184: 40552 | D184: PARAFUSO, AUTO ATARRACHANTE, CABECA CHATA, FENDA SIMPLES, 1/4" (6,35 MM) X 25 MM | E184: CENTO | F184: 4,00 | G184: =VLOOKUP(C184,'COMPOSIÇÕES 1'!$B$3:$E$225,4,0) -> 44.37 | H184: 50.89 | I184: 177.48 | J184: 203.56
A185: 10.70 | B185: Composição Orse | C185: 9953 | D185: Fornecimento de cartucho para solda exotérmica | E185: UN | F185: 24,00 | G185: =VLOOKUP(C185,'COMPOSIÇÕES 1'!$B$3:$E$225,4,0) -> 20 | H185: =ROUND(G185*(1+$F$3),2) -> 24.96 | I185: 480 | J185: 599.04
A186: 10.71 | B186: Composição Orse | C186: 12740 | D186: Fornecimento e assentamento de barra chata de alumínio de 7/8" x 1/8" | E186: M | F186: 282,00 | G186: =VLOOKUP(C186,'COMPOSIÇÕES 1'!$B$3:$E$225,4,0) -> 16.61 | H186: 20.73 | I186: 4684.02 | J186: 5845.86
A187: 10.72 | B187: Composição Orse | C187: 4143 | D187: Conector split bolt para cabo de cobre nu #35 mm2 - fornecimento | E187: UN | F187: 120,00 | G187: =VLOOKUP(C187,'COMPOSIÇÕES 1'!$B$3:$E$225,4,0) -> 12 | H187: 14.98 | I187: 1440 | J187: 1797.6
A188: 10.73 | B188: Composição Orse | C188: 12458 | D188: Terminal de compressão 2 furos para cabo de 50 mm2 - fornecimento e instalação | E188: UN | F188: 25,00 | G188: =VLOOKUP(C188,'COMPOSIÇÕES 1'!$B$3:$E$225,4,0) -> 12.33 | H188: 15.39 | I188: 308.25 | J188: 384.75
A189: 10.74 | B189: Composição Sinapi | C189: 101895 | D189: DISJUNTOR TERMOMAGNÉTICO TRIPOLAR , CORRENTE NOMINAL DE 125A - FORNECIMENTO E INSTALAÇÃO. AF_10/2020 | E189: UN | F189: 1,00 | G189: =VLOOKUP(C189,'COMPOSIÇÕES 1'!$B$3:$E$225,4,0) -> 443,82 | H189: 553.9 | I189: 443.82 | J189: 553.9
A190: 10.75 | B190: Composição Sinapi | C190: 101900 | D190: DISJUNTOR BAIXA TENSÃO TRIPOLAR A SECO 800A/600V - FORNECIMENTO E INSTALAÇÃO. AF_10/2020 | E190: UN | F190: 1,00 | G190: =VLOOKUP(C190,'COMPOSIÇÕES 1'!$B$3:$E$225,4,0) -> 4.794,80 | H190: 5984.01 | I190: 4794.8 | J190: 5984.01
A191: 10.76 | B191: Composição Sinapi | C191: 101895 | D191: DISJUNTOR TERMOMAGNÉTICO TRIPOLAR , CORRENTE NOMINAL DE 125A - FORNECIMENTO E INSTALAÇÃO. AF_10/2020 | E191: UN | F191: 1,00 | G191: =VLOOKUP(C191,'COMPOSIÇÕES 1'!$B$3:$E$225,4,0) -> 443,82 | H191: 553.9 | I191: 443.82 | J191: 553.9
A192: 10.77 | B192: Composição Sinapi | C192: 101896 | D192: DISJUNTOR TERMOMAGNÉTICO TRIPOLAR , CORRENTE NOMINAL DE 200A - FORNECIMENTO E INSTALAÇÃO. AF_10/2020 | E192: UN | F192: 1,00 | G192: =VLOOKUP(C192,'COMPOSIÇÕES 1'!$B$3:$E$225,4,0) -> 668,62 | H192: 834.45 | I192: 668.62 | J192: 834.45
A193: 10.78 | B193: Composição Orse | C193: 3836 | D193: Caixa em chapa metálica galvanizada 60 x 50 x 20cm, para quadro de comando | E193: UN | F193: 1,00 | G193: =VLOOKUP(C193,'COMPOSIÇÕES 1'!$B$3:$E$225,4,0) -> 525.08 | H193: 655.31 | I193: 525.08 | J193: 655.31
A194: 11 | D194: Instalações Hidráulicas | F194: 1 | I194: =I195+I233 -> 63662.06 | J194: =J195+J233 -> 78682.4
A195: 11.1 | B195: Sanitário | F195: 1 | I195: =SUM(I196:I232) -> 47624.74 | J195: =SUM(J196:J232) -> 59092.57
A196: 11.1.1 | B196: Composição Orse | C196: 5027 | D196: Caixa de passagem em alvenaria de tijolos maciços esp. = 0,12m, dim. int. = 0.60 x 0.60 x 0.40m | E196: UN | F196: 18,00 | G196: =VLOOKUP(C196,'COMPOSIÇÕES 1'!$B$3:$E$225,4,0) -> 345.89 | H196: =ROUND(G196*(1+$F$3),2) -> 431.68 | I196: =ROUND(G196*F196,2) -> 6226.02 | J196: =ROUND(H196*F196,2) -> 7770.24
A197: 11.1.2 | B197: Composição Orse | C197: 9383 | D197: Caixa sifonada quadrada, com três entradas e uma saida, d = 100x150x50mm, branco, com grelha, Akros ou similar | E197: UN | F197: 12,00 | G197: =VLOOKUP(C197,'COMPOSIÇÕES 1'!$B$3:$E$225,4,0) -> 38.12 | H197: 47.57 | I197: 457.44 | J197: 570.84
A198: 11.1.3 | B198: Composição Orse | C198: 1695 | D198: Caixa sifonada quadrada, com sete entradas e uma saída, d = 150 x 150 x 50mm, ref. nº25, acabamento branco, marca Akros ou similar | E198: UN | F198: 10,00 | G198: =VLOOKUP(C198,'COMPOSIÇÕES 1'!$B$3:$E$225,4,0) -> 55.81 | H198: 69.65 | I198: 558.1 | J198: 696.5
A199: 11.1.4 | B199: Composição Sinapi | C199: 89482 | D199: CAIXA SIFONADA, PVC, DN 100 X 100 X 50 MM, FORNECIDA E INSTALADA EM RAMAIS DE ENCAMINHAMENTO DE ÁGUA PLUVIAL. AF_12/2014 | E199: UN | F199: 1,00 | G199: =VLOOKUP(C199,'COMPOSIÇÕES 1'!$B$3:$E$225,4,0) -> 39,25 | H199: 48.98 | I199: 39.25 | J199: 48.98
A200: 11.1.5 | B200: Composição Sinapi | C200: 89495 | D200: RALO SIFONADO, PVC, DN 100 X 40 MM, JUNTA SOLDÁVEL, FORNECIDO E INSTALADO EM RAMAIS DE ENCAMINHAMENTO DE ÁGUA PLUVIAL. AF_12/2014 | E200: UN | F200: 1,00 | G200: =VLOOKUP(C200,'COMPOSIÇÕES 1'!$B$3:$E$225,4,0) -> 16,66 | H200: 20.79 | I200: 16.66 | J200: 20.79
... 77 more rows

Sheet COMPOSIÇÕES 1
A1: COMPOSIÇÕES UNITÁRIAS DE PREÇO
A2: CÓDIGO | B2: CÓDIGO | C2: ITEM | D2: UNIDADE | E2: PREÇO UNITÁRIO
A3: 3380 | B3: 3380 | C3: !EM PROCESSO DE DESATIVACAO! HASTE DE ATERRAMENTO EM ACO COM 3,00 M DE COMPRIMENTO E DN = 5/8", REVESTIDA COM BAIXA CAMADA DE COBRE, COM CONECTOR TIPO GRAMPO | D3: UN | E3: 60
A4: 3379 | B4: 3379 | C4: !EM PROCESSO DE DESATIVACAO! HASTE DE ATERRAMENTO EM ACO COM 3,00 M DE COMPRIMENTO E DN = 5/8", REVESTIDA COM BAIXA CAMADA DE COBRE, SEM CONECTOR | D4: UN | E4: 57.93
A5: 96765 | B5: 96765 | C5: ABRIGO PARA HIDRANTE, 90X60X17CM, COM REGISTRO GLOBO ANGULAR 45 GRAUS 2 1/2", ADAPTADOR STORZ 2 1/2", MANGUEIRA DE INCÊNDIO 20M, REDUÇÃO 2 1/2" X 1 1/2" E ESGUICHO EM LATÃO 1 1/2" - FORNECIMENTO E INSTALAÇÃO. AF_10/2020 | D5: UN | E5: =VLOOKUP(A5,'COMPOSIÇÕES 2'!$A$59:$L$7194,12,0) -> 1.671,75
A6: 11979 | B6: 11979 | C6: Acionador Manual Convencional - Modelo AM-2 da Verin ou similar, tipo "Aperte aqui" | D6: UN | E6: 66.53
A7: 89376 | B7: 89376 | C7: ADAPTADOR CURTO COM BOLSA E ROSCA PARA REGISTRO, PVC, SOLDÁVEL, DN 20MM X 1/2", INSTALADO EM RAMAL OU SUB-RAMAL DE ÁGUA - FORNECIMENTO E INSTALAÇÃO. AF_12/2014 | D7: UN | E7: =VLOOKUP(A7,'COMPOSIÇÕES 2'!$A$59:$L$7194,12,0) -> 4,63
A8: 99 | B8: 99 | C8: Adaptador longo, pvc rigido soldavel, c/ flanges livres p/ caixa agua, d= 40mm x 1 1/ 4" | D8: UN | E8: 37.07
A9: 101553 | B9: 101553 | C9: ALÇA PREFORMADA DE DISTRIBUIÇÃO, EM AÇO GALVANIZADO, AWG 1 - FORNECIMENTO E INSTALAÇÃO. AF_07/2020 | D9: UN | E9: =VLOOKUP(A9,'COMPOSIÇÕES 2'!$A$59:$L$7194,12,0) -> 17,29
A10: 103324 | B10: 103324 | C10: ALVENARIA DE VEDAÇÃO DE BLOCOS CERÂMICOS FURADOS NA VERTICAL DE 14X19X39 CM (ESPESSURA 14 CM) E ARGAMASSA DE ASSENTAMENTO COM PREPARO EM BETONEIRA. AF_12/2021 | D10: M2 | E10: =VLOOKUP(A10,'COMPOSIÇÕES 2'!$A$59:$L$7194,12,0) -> 76,55
A11: 88485 | B11: 88485 | C11: APLICAÇÃO DE FUNDO SELADOR ACRÍLICO EM PAREDES, UMA DEMÃO. AF_06/2014 | D11: M2 | E11: =VLOOKUP(A11,'COMPOSIÇÕES 2'!$A$59:$L$7194,12,0) -> 1,81
A12: 92762 | B12: 92762 | C12: ARMAÇÃO DE PILAR OU VIGA DE UMA ESTRUTURA CONVENCIONAL DE CONCRETO ARMADO EM UM EDIFÍCIO DE MÚLTIPLOS PAVIMENTOS UTILIZANDO AÇO CA-50 DE 10,0 MM - MONTAGEM. AF_12/2015 | D12: KG | E12: =VLOOKUP(A12,'COMPOSIÇÕES 2'!$A$59:$L$7194,12,0) -> 13,88
A13: 92763 | B13: 92763 | C13: ARMAÇÃO DE PILAR OU VIGA DE UMA ESTRUTURA CONVENCIONAL DE CONCRETO ARMADO EM UM EDIFÍCIO DE MÚLTIPLOS PAVIMENTOS UTILIZANDO AÇO CA-50 DE 12,5 MM - MONTAGEM. AF_12/2015 | D13: KG | E13: =VLOOKUP(A13,'COMPOSIÇÕES 2'!$A$59:$L$7194,12,0) -> 11,83
A14: 92764 | B14: 92764 | C14: ARMAÇÃO DE PILAR OU VIGA DE UMA ESTRUTURA CONVENCIONAL DE CONCRETO ARMADO EM UM EDIFÍCIO DE MÚLTIPLOS PAVIMENTOS UTILIZANDO AÇO CA-50 DE 16,0 MM - MONTAGEM. AF_12/2015 | D14: KG | E14: =VLOOKUP(A14,'COMPOSIÇÕES 2'!$A$59:$L$7194,12,0) -> 11,58
A15: 92765 | B15: 92765 | C15: ARMAÇÃO DE PILAR OU VIGA DE UMA ESTRUTURA CONVENCIONAL DE CONCRETO ARMADO EM UM EDIFÍCIO DE MÚLTIPLOS PAVIMENTOS UTILIZANDO AÇO CA-50 DE 20,0 MM - MONTAGEM. AF_12/2015 | D15: KG | E15: =VLOOKUP(A15,'COMPOSIÇÕES 2'!$A$59:$L$7194,12,0) -> 13,34
A16: 92760 | B16: 92760 | C16: ARMAÇÃO DE PILAR OU VIGA DE UMA ESTRUTURA CONVENCIONAL DE CONCRETO ARMADO EM UM EDIFÍCIO DE MÚLTIPLOS PAVIMENTOS UTILIZANDO AÇO CA-50 DE 6,3 MM - MONTAGEM. AF_12/2015 | D16: KG | E16: =VLOOKUP(A16,'COMPOSIÇÕES 2'!$A$59:$L$7194,12,0) -> 15,68
A17: 92761 | B17: 92761 | C17: ARMAÇÃO DE PILAR OU VIGA DE UMA ESTRUTURA CONVENCIONAL DE CONCRETO ARMADO EM UM EDIFÍCIO DE MÚLTIPLOS PAVIMENTOS UTILIZANDO AÇO CA-50 DE 8,0 MM - MONTAGEM. AF_12/2015 | D17: KG | E17: =VLOOKUP(A17,'COMPOSIÇÕES 2'!$A$59:$L$7194,12,0) -> 15,25
A18: 92759 | B18: 92759 | C18: ARMAÇÃO DE PILAR OU VIGA DE UMA ESTRUTURA CONVENCIONAL DE CONCRETO ARMADO EM UM EDIFÍCIO DE MÚLTIPLOS PAVIMENTOS UTILIZANDO AÇO CA-60 DE 5,0 MM - MONTAGEM. AF_12/2015 | D18: KG | E18: =VLOOKUP(A18,'COMPOSIÇÕES 2'!$A$59:$L$7194,12,0) -> 15,79
A19: 101538 | B19: 101538 | C19: ARMAÇÃO SECUNDÁRIA, COM 1 ESTRIBO E 1 ISOLADOR - FORNECIMENTO E INSTALAÇÃO. AF_07/2020 | D19: UN | E19: =VLOOKUP(A19,'COMPOSIÇÕES 2'!$A$59:$L$7194,12,0) -> 49,28
A20: 94273 | B20: 94273 | C20: ASSENTAMENTO DE GUIA (MEIO-FIO) EM TRECHO RETO, CONFECCIONADA EM CONCRETO PRÉ-FABRICADO, DIMENSÕES 100X15X13X30 CM (COMPRIMENTO X BASE INFERIOR X BASE SUPERIOR X ALTURA), PARA VIAS URBANAS (USO VIÁRIO). AF_06/2016 | D20: M | E20: =VLOOKUP(A20,'COMPOSIÇÕES 2'!$A$59:$L$7194,12,0) -> 49,87
A21: 129 | B21: 129 | C21: Bombeamento de concreto | D21: M3 | E21: 46.54
A22: 9074 | B22: 9074 | C22: Brise em perfil "C" de alumínio dobrado anodizado branco | D22: M2 | E22: 659.9
A23: 829 | B23: 829 | C23: BUCHA DE REDUCAO DE PVC, SOLDAVEL, CURTA, COM 32 X 25 MM, PARA AGUA FRIA PREDIAL | D23: UN | E23: 1.01
A24: 819 | B24: 819 | C24: BUCHA DE REDUCAO DE PVC, SOLDAVEL, CURTA, COM 50 X 40 MM, PARA AGUA FRIA PREDIAL | D24: UN | E24: 3.62
A25: 41953 | B25: 41953 | C25: CABO DE ACO GALVANIZADO, DIAMETRO 12,7 MM (1/2"), COM ALMA DE FIBRA 6 X 25 F | D25: KG | E25: 82.4
A26: 91926 | B26: 91926 | C26: CABO DE COBRE FLEXÍVEL ISOLADO, 2,5 MM², ANTI-CHAMA 450/750 V, PARA CIRCUITOS TERMINAIS - FORNECIMENTO E INSTALAÇÃO. AF_12/2015 | D26: M | E26: =VLOOKUP(A26,'COMPOSIÇÕES 2'!$A$59:$L$7194,12,0) -> 4,88
A27: 91928 | B27: 91928 | C27: CABO DE COBRE FLEXÍVEL ISOLADO, 4 MM², ANTI-CHAMA 450/750 V, PARA CIRCUITOS TERMINAIS - FORNECIMENTO E INSTALAÇÃO. AF_12/2015 | D27: M | E27: =VLOOKUP(A27,'COMPOSIÇÕES 2'!$A$59:$L$7194,12,0) -> 7,61
A28: 857 | B28: 857 | C28: CABO DE COBRE NU 16 MM2 MEIO-DURO | D28: M | E28: 21
A29: 867 | B29: 867 | C29: CABO DE COBRE NU 50 MM2 MEIO-DURO | D29: M | E29: 62.41
A30: 1000 | B30: 1000 | C30: CABO DE COBRE, FLEXIVEL, CLASSE 4 OU 5, ISOLACAO EM PVC/A, ANTICHAMA BWF-B, COBERTURA PVC-ST1, ANTICHAMA BWF-B, 1 CONDUTOR, 0,6/1 KV, SECAO NOMINAL 185 MM2 | D30: M | E30: 205.37
A31: 1018 | B31: 1018 | C31: CABO DE COBRE, FLEXIVEL, CLASSE 4 OU 5, ISOLACAO EM PVC/A, ANTICHAMA BWF-B, COBERTURA PVC-ST1, ANTICHAMA BWF-B, 1 CONDUTOR, 0,6/1 KV, SECAO NOMINAL 50 MM2 | D31: M | E31: 56.45
A32: 977 | B32: 977 | C32: CABO DE COBRE, FLEXIVEL, CLASSE 4 OU 5, ISOLACAO EM PVC/A, ANTICHAMA BWF-B, COBERTURA PVC-ST1, ANTICHAMA BWF-B, 1 CONDUTOR, 0,6/1 KV, SECAO NOMINAL 70 MM2 | D32: M | E32: 78.19
A33: 998 | B33: 998 | C33: CABO DE COBRE, FLEXIVEL, CLASSE 4 OU 5, ISOLACAO EM PVC/A, ANTICHAMA BWF-B, COBERTURA PVC-ST1, ANTICHAMA BWF-B, 1 CONDUTOR, 0,6/1 KV, SECAO NOMINAL 95 MM2 | D33: M | E33: 103.87
A34: 34602 | B34: 34602 | C34: CABO FLEXIVEL PVC 750 V, 2 CONDUTORES DE 1,5 MM2 | D34: M | E34: 6.44
A35: 98111 | B35: 98111 | C35: CAIXA DE INSPEÇÃO PARA ATERRAMENTO, CIRCULAR, EM POLIETILENO, DIÂMETRO INTERNO = 0,3 M. AF_12/2020 | D35: UN | E35: =VLOOKUP(A35,'COMPOSIÇÕES 2'!$A$59:$L$7194,12,0) -> 49,71
A36: 5027 | B36: 5027 | C36: Caixa de passagem em alvenaria de tijolos maciços esp. = 0,12m, dim. int. = 0.60 x 0.60 x 0.40m | D36: UN | E36: 345.89
A37: 3836 | B37: 3836 | C37: Caixa em chapa metálica galvanizada 60 x 50 x 20cm, para quadro de comando | D37: UN | E37: 525.08
A38: 91936 | B38: 91936 | C38: CAIXA OCTOGONAL 4" X 4", PVC, INSTALADA EM LAJE - FORNECIMENTO E INSTALAÇÃO. AF_12/2015 | D38: UN | E38: =VLOOKUP(A38,'COMPOSIÇÕES 2'!$A$59:$L$7194,12,0) -> 14,09
A39: 91940 | B39: 91940 | C39: CAIXA RETANGULAR 4" X 2" MÉDIA (1,30 M DO PISO), PVC, INSTALADA EM PAREDE - FORNECIMENTO E INSTALAÇÃO. AF_12/2015 | D39: UN | E39: =VLOOKUP(A39,'COMPOSIÇÕES 2'!$A$59:$L$7194,12,0) -> 15,13
A40: 1695 | B40: 1695 | C40: Caixa sifonada quadrada, com sete entradas e uma saída, d = 150 x 150 x 50mm, ref. nº25, acabamento branco, marca Akros ou similar | D40: UN | E40: 55.81
A41: 9383 | B41: 9383 | C41: Caixa sifonada quadrada, com três entradas e uma saida, d = 100x150x50mm, branco, com grelha, Akros ou similar | D41: UN | E41: 38.12
A42: 89482 | B42: 89482 | C42: CAIXA SIFONADA, PVC, DN 100 X 100 X 50 MM, FORNECIDA E INSTALADA EM RAMAIS DE ENCAMINHAMENTO DE ÁGUA PLUVIAL. AF_12/2014 | D42: UN | E42: =VLOOKUP(A42,'COMPOSIÇÕES 2'!$A$59:$L$7194,12,0) -> 39,25
A43: 94227 | B43: 94227 | C43: CALHA EM CHAPA DE AÇO GALVANIZADO NÚMERO 24, DESENVOLVIMENTO DE 33 CM, INCLUSO TRANSPORTE VERTICAL. AF_07/2019 | D43: M | E43: =VLOOKUP(A43,'COMPOSIÇÕES 2'!$A$59:$L$7194,12,0) -> 67,51
A44: 100983 | B44: 100983 | C44: CARGA, MANOBRA E DESCARGA DE ENTULHO EM CAMINHÃO BASCULANTE 14 M³ - CARGA COM ESCAVADEIRA HIDRÁULICA (CAÇAMBA DE 0,80 M³ / 111 HP) E DESCARGA LIVRE (UNIDADE: M3). AF_07/2020 | D44: M3 | E44: =VLOOKUP(A44,'COMPOSIÇÕES 2'!$A$59:$L$7194,12,0) -> 8,37
A45: 11820 | B45: 11820 | C45: Central de alarme endereçável de incendio com sistema p/ até 250 dispositivos, marcal Verin ou similar, Modelo VRE-250 c/ bateria de 12V e 7Amperes | D45: UN | E45: 5768.87
A46: 1402 | B46: 1402 | C46: COLAR TOMADA PVC, COM TRAVAS, SAIDA COM ROSCA, DE 32 MM X 1/2" OU 32 MM X 3/4", PARA LIGACAO PREDIAL DE AGUA | D46: UN | E46: 8.55
A47: 96557 | B47: 96557 | C47: CONCRETAGEM DE BLOCOS DE COROAMENTO E VIGAS BALDRAMES, FCK 30 MPA, COM USO DE BOMBA - LANÇAMENTO, ADENSAMENTO E ACABAMENTO. AF_06/2017 | D47: M3 | E47: =VLOOKUP(A47,'COMPOSIÇÕES 2'!$A$59:$L$7194,12,0) -> 835,32
A48: 92722 | B48: 92722 | C48: CONCRETAGEM DE PILARES, FCK = 25 MPA, COM USO DE BOMBA EM EDIFICAÇÃO COM SEÇÃO MÉDIA DE PILARES MAIOR QUE 0,25 M² - LANÇAMENTO, ADENSAMENTO E ACABAMENTO. AF_12/2015 | D48: M3 | E48: 771.64
A49: 92740 | B49: 92740 | C49: CONCRETAGEM DE VIGAS E LAJES, FCK=20 MPA, PARA LAJES MACIÇAS OU NERVURADAS COM GRUA DE CAÇAMBA DE 500 L EM EDIFICAÇÃO DE MULTIPAVIMENTOS ATÉ 16 ANDARES, COM ÁREA MÉDIA DE LAJES MAIOR QUE 20 M² - LANÇAMENTO, ADENSAMENTO E ACABAMENTO. AF_12/2015 | D49: M3 | E49: 701.4
A50: 94964 | B50: 94964 | C50: CONCRETO FCK = 20MPA, TRAÇO 1:2,7:3 (EM MASSA SECA DE CIMENTO/ AREIA MÉDIA/ BRITA 1) - PREPARO MECÂNICO COM BETONEIRA 400 L. AF_05/2021 | D50: M3 | E50: =VLOOKUP(A50,'COMPOSIÇÕES 2'!$A$59:$L$7194,12,0) -> 606,97
A51: 95805 | B51: 95805 | C51: CONDULETE DE PVC, TIPO B, PARA ELETRODUTO DE PVC SOLDÁVEL DN 25 MM (3/4''), APARENTE - FORNECIMENTO E INSTALAÇÃO. AF_11/2016 | D51: UN | E51: =VLOOKUP(A51,'COMPOSIÇÕES 2'!$A$59:$L$7194,12,0) -> 25,98
A52: 1539 | B52: 1539 | C52: CONECTOR METALICO TIPO PARAFUSO FENDIDO (SPLIT BOLT), PARA CABOS ATE 16 MM2 | D52: UN | E52: 7.2
A53: 11859 | B53: 11859 | C53: CONECTOR METALICO TIPO PARAFUSO FENDIDO (SPLIT BOLT), PARA CABOS ATE 185 MM2 | D53: UN | E53: 54.47
A54: 11862 | B54: 11862 | C54: CONECTOR METALICO TIPO PARAFUSO FENDIDO (SPLIT BOLT), PARA CABOS ATE 50 MM2 | D54: UN | E54: 13.32
A55: 11855 | B55: 11855 | C55: CONECTOR METALICO TIPO PARAFUSO FENDIDO (SPLIT BOLT), PARA CABOS ATE 70 MM2 | D55: UN | E55: 19.88
A56: 11864 | B56: 11864 | C56: CONECTOR METALICO TIPO PARAFUSO FENDIDO (SPLIT BOLT), PARA CABOS ATE 95 MM2 | D56: UN | E56: 30.06
A57: 4143 | B57: 4143 | C57: Conector split bolt para cabo de cobre nu #35 mm2 - fornecimento | D57: UN | E57: 12
A58: 87623 | B58: 87623 | C58: CONTRAPISO EM ARGAMASSA PRONTA, PREPARO MECÂNICO COM MISTURADOR 300 KG, APLICADO EM ÁREAS SECAS SOBRE LAJE, ADERIDO, ACABAMENTO NÃO REFORÇADO, ESPESSURA 2CM. AF_07/2021 | D58: M2 | E58: =VLOOKUP(A58,'COMPOSIÇÕES 2'!$A$59:$L$7194,12,0) -> 84,07
A59: 92794 | B59: 92794 | C59: CORTE E DOBRA DE AÇO CA-50, DIÂMETRO DE 10,0 MM, UTILIZADO EM ESTRUTURAS DIVERSAS, EXCETO LAJES. AF_12/2015 | D59: KG | E59: 12.6
A60: 92795 | B60: 92795 | C60: CORTE E DOBRA DE AÇO CA-50, DIÂMETRO DE 12,5 MM, UTILIZADO EM ESTRUTURAS DIVERSAS, EXCETO LAJES. AF_12/2015 | D60: KG | E60: 10.82
A61: 92792 | B61: 92792 | C61: CORTE E DOBRA DE AÇO CA-50, DIÂMETRO DE 6,3 MM, UTILIZADO EM ESTRUTURAS DIVERSAS, EXCETO LAJES. AF_12/2015 | D61: KG | E61: 13.45
A62: 92793 | B62: 92793 | C62: CORTE E DOBRA DE AÇO CA-50, DIÂMETRO DE 8,0 MM, UTILIZADO EM ESTRUTURAS DIVERSAS, EXCETO LAJES. AF_12/2015 | D62: KG | E62: 13.56
A63: 92791 | B63: 92791 | C63: CORTE E DOBRA DE AÇO CA-60, DIÂMETRO DE 5,0 MM, UTILIZADO EM ESTRUTURAS DIVERSAS, EXCETO LAJES. AF_12/2015 | D63: KG | E63: 12.91
A64: 98529 | B64: 98529 | C64: CORTE RASO E RECORTE DE ÁRVORE COM DIÂMETRO DE TRONCO MAIOR OU IGUAL A 0,20 M E MENOR QUE 0,40 M.AF_05/2018 | D64: UN | E64: =VLOOKUP(A64,'COMPOSIÇÕES 2'!$A$59:$L$7194,12,0) -> 49,13
A65: 3462 | B65: 3462 | C65: COTOVELO DE REDUCAO 90 GRAUS DE FERRO GALVANIZADO, COM ROSCA BSP, DE 3/4" X 1/2" | D65: UN | E65: 10.46
A66: 10510 | B66: 10510 | C66: CRUZETA DE MADEIRA TRATADA, *90 X 115 X 2400* MM, EM EUCALIPTO OU EQUIVALENTE DA REGIAO | D66: UN | E66: 100.44
A67: 20095 | B67: 20095 | C67: CURVA CURTA PVC, PB, JE, 90 GRAUS, DN 100 MM, PARA REDE COLETORA ESGOTO (NBR 10569) | D67: UN | E67: 42.03
A68: 1958 | B68: 1958 | C68: CURVA DE PVC 90 GRAUS, SOLDAVEL, 40 MM, PARA AGUA FRIA PREDIAL (NBR 5648) | D68: UN | E68: 13.93
A69: 97625 | B69: 97625 | C69: DEMOLIÇÃO DE ALVENARIA PARA QUALQUER TIPO DE BLOCO, DE FORMA MECANIZADA, SEM REAPROVEITAMENTO. AF_12/2017 | D69: M3 | E69: =VLOOKUP(A69,'COMPOSIÇÕES 2'!$A$59:$L$7194,12,0) -> 52,59
A70: 97627 | B70: 97627 | C70: DEMOLIÇÃO DE PILARES, VIGAS E LAJES EM CONCRETO ARMADO, DE FORMA MECANIZADA COM MARTELETE, SEM REAPROVEITAMENTO. AF_12/2017 | D70: M3 | E70: =VLOOKUP(A70,'COMPOSIÇÕES 2'!$A$59:$L$7194,12,0) -> 216,66
A71: 01.01.01 | B71: 01.01.01 | C71: DESMOBILIZAÇÃO | D71: UN | E71: 1500
A72: 101900 | B72: 101900 | C72: DISJUNTOR BAIXA TENSÃO TRIPOLAR A SECO 800A/600V - FORNECIMENTO E INSTALAÇÃO. AF_10/2020 | D72: UN | E72: =VLOOKUP(A72,'COMPOSIÇÕES 2'!$A$59:$L$7194,12,0) -> 4.794,80
A73: 93654 | B73: 93654 | C73: DISJUNTOR MONOPOLAR TIPO DIN, CORRENTE NOMINAL DE 16A - FORNECIMENTO E INSTALAÇÃO. AF_10/2020 | D73: UN | E73: =VLOOKUP(A73,'COMPOSIÇÕES 2'!$A$59:$L$7194,12,0) -> 12,80
A74: 93657 | B74: 93657 | C74: DISJUNTOR MONOPOLAR TIPO DIN, CORRENTE NOMINAL DE 32A - FORNECIMENTO E INSTALAÇÃO. AF_10/2020 | D74: UN | E74: =VLOOKUP(A74,'COMPOSIÇÕES 2'!$A$59:$L$7194,12,0) -> 15,44
A75: 93658 | B75: 93658 | C75: DISJUNTOR MONOPOLAR TIPO DIN, CORRENTE NOMINAL DE 40A - FORNECIMENTO E INSTALAÇÃO. AF_10/2020 | D75: UN | E75: =VLOOKUP(A75,'COMPOSIÇÕES 2'!$A$59:$L$7194,12,0) -> 22,26
A76: 101895 | B76: 101895 | C76: DISJUNTOR TERMOMAGNÉTICO TRIPOLAR , CORRENTE NOMINAL DE 125A - FORNECIMENTO E INSTALAÇÃO. AF_10/2020 | D76: UN | E76: =VLOOKUP(A76,'COMPOSIÇÕES 2'!$A$59:$L$7194,12,0) -> 443,82
A77: 101896 | B77: 101896 | C77: DISJUNTOR TERMOMAGNÉTICO TRIPOLAR , CORRENTE NOMINAL DE 200A - FORNECIMENTO E INSTALAÇÃO. AF_10/2020 | D77: UN | E77: =VLOOKUP(A77,'COMPOSIÇÕES 2'!$A$59:$L$7194,12,0) -> 668,62
A78: 101898 | B78: 101898 | C78: DISJUNTOR TERMOMAGNÉTICO TRIPOLAR , CORRENTE NOMINAL DE 400A - FORNECIMENTO E INSTALAÇÃO. AF_10/2020 | D78: UN | E78: =VLOOKUP(A78,'COMPOSIÇÕES 2'!$A$59:$L$7194,12,0) -> 1.433,14
A79: 7998 | B79: 7998 | C79: Disjuntor termomagnetico tripolar 100 A, padrão NEMA (Americano - linha preta), 5KA | D79: UN | E79: 188.7
A80: 101894 | B80: 101894 | C80: DISJUNTOR TRIPOLAR TIPO NEMA, CORRENTE NOMINAL DE 60 ATÉ 100A - FORNECIMENTO E INSTALAÇÃO. AF_10/2020 | D80: UN | E80: =VLOOKUP(A80,'COMPOSIÇÕES 2'!$A$59:$L$7194,12,0) -> 162,19
A81: 39468 | B81: 39468 | C81: DISPOSITIVO DPS CLASSE II, 1 POLO, TENSAO MAXIMA DE 175 V, CORRENTE MAXIMA DE *90* KA (TIPO AC) | D81: UN | E81: 177.33
A82: 13149 | B82: 13149 | C82: Dispositivo DR tetrapolar 100 A, tipo AC, 30MA | D82: UN | E82: 361.59
A83: 91845 | B83: 91845 | C83: ELETRODUTO FLEXÍVEL CORRUGADO REFORÇADO, PVC, DN 25 MM (3/4"), PARA CIRCUITOS TERMINAIS, INSTALADO EM LAJE - FORNECIMENTO E INSTALAÇÃO. AF_12/2015 | D83: M | E83: =VLOOKUP(A83,'COMPOSIÇÕES 2'!$A$59:$L$7194,12,0) -> 9,13
A84: 97670 | B84: 97670 | C84: ELETRODUTO FLEXÍVEL CORRUGADO, PEAD, DN 100 (4"), PARA REDE ENTERRADA DE DISTRIBUIÇÃO DE ENERGIA ELÉTRICA - FORNECIMENTO E INSTALAÇÃO. AF_12/2021 | D84: M | E84: =VLOOKUP(A84,'COMPOSIÇÕES 2'!$A$59:$L$7194,12,0) -> 23,86
A85: 87791 | B85: 87791 | C85: EMBOÇO OU MASSA ÚNICA EM ARGAMASSA INDUSTRIALIZADA, PREPARO MECÂNICO E APLICAÇÃO COM EQUIPAMENTO DE MISTURA E PROJEÇÃO DE 1,5 M3/H DE ARGAMASSA EM PANOS DE FACHADA COM PRESENÇA DE VÃOS, ESPESSURA MAIOR OU IGUAL A 50 MM. AF_06/2014 | D85: M2 | E85: =VLOOKUP(A85,'COMPOSIÇÕES 2'!$A$59:$L$7194,12,0) -> 152,94
A86: 93572 | B86: 93572 | C86: ENCARREGADO GERAL DE OBRAS COM ENCARGOS COMPLEMENTARES | D86: MES | E86: =VLOOKUP(A86,'COMPOSIÇÕES 2'!$A$59:$L$7194,12,0) -> 4.068,68
A87: 86885 | B87: 86885 | C87: ENGATE FLEXÍVEL EM COBRE, 1/2" X 30CM - FORNECIMENTO E INSTALAÇÃO. AF_01/2020 | D87: UN | E87: =VLOOKUP(A87,'COMPOSIÇÕES 2'!$A$59:$L$7194,12,0) -> 11,28
A88: 86884 | B88: 86884 | C88: ENGATE FLEXÍVEL EM PLÁSTICO BRANCO, 1/2" X 30CM - FORNECIMENTO E INSTALAÇÃO. AF_01/2020 | D88: UN | E88: =VLOOKUP(A88,'COMPOSIÇÕES 2'!$A$59:$L$7194,12,0) -> 9,78
A89: 90777 | B89: 90777 | C89: ENGENHEIRO CIVIL DE OBRA JUNIOR COM ENCARGOS COMPLEMENTARES | D89: H | E89: =VLOOKUP(A89,'COMPOSIÇÕES 2'!$A$59:$L$7194,12,0) -> 102,22
A90: 101506 | B90: 101506 | C90: ENTRADA DE ENERGIA ELÉTRICA, AÉREA, TRIFÁSICA, COM CAIXA DE SOBREPOR, CABO DE 16 MM2 E DISJUNTOR DIN 50A (NÃO INCLUSO O POSTE DE CONCRETO). AF_07/2020_P | D90: UN | E90: =VLOOKUP(A90,'COMPOSIÇÕES 2'!$A$59:$L$7194,12,0) -> 2.190,02
A91: 96523 | B91: 96523 | C91: ESCAVAÇÃO MANUAL PARA BLOCO DE COROAMENTO OU SAPATA, COM PREVISÃO DE FÔRMA. AF_06/2017 | D91: M3 | E91: =VLOOKUP(A91,'COMPOSIÇÕES 2'!$A$59:$L$7194,12,0) -> 74,68
A92: 100651 | B92: 100651 | C92: ESTACA HÉLICE CONTÍNUA, DIÂMETRO DE 30 CM, INCLUSO CONCRETO FCK=30MPA E ARMADURA MÍNIMA (EXCLUSIVE MOBILIZAÇÃO, DESMOBILIZAÇÃO E BOMBEAMENTO). AF_12/2019 | D92: M | E92: =VLOOKUP(A92,'COMPOSIÇÕES 2'!$A$59:$L$7194,12,0) -> 157,29
A93: 93582 | B93: 93582 | C93: EXECUÇÃO DE CENTRAL DE ARMADURA EM CANTEIRO DE OBRA, NÃO INCLUSO MOBILIÁRIO E EQUIPAMENTOS. AF_04/2016 | D93: M2 | E93: =VLOOKUP(A93,'COMPOSIÇÕES 2'!$A$59:$L$7194,12,0) -> 250,62
A94: 93584 | B94: 93584 | C94: EXECUÇÃO DE DEPÓSITO EM CANTEIRO DE OBRA COM CONTAINER, NÃO INCLUSO MOBILIÁRIO. AF_04/2016 | D94: M2 | E94: =VLOOKUP(A94,'COMPOSIÇÕES 2'!$A$59:$L$7194,12,0) -> 771,57
A95: 93206 | B95: 93206 | C95: EXECUÇÃO DE ESCRITÓRIO EM CANTEIRO DE OBRA EM ALVENARIA, NÃO INCLUSO MOBILIÁRIO E EQUIPAMENTOS. AF_02/2016 | D95: M2 | E95: =VLOOKUP(A95,'COMPOSIÇÕES 2'!$A$59:$L$7194,12,0) -> 1.092,49
A96: 8629 | B96: 8629 | C96: Execução de estaca hélice contínua monitorada Ø 400mm, concreto fck=30Mpa, inclusive aço, bombeamento; exclusive mobilização e desmobilização de equipamento e bate-estacas | D96: M | E96: 248.69
A97: 93210 | B97: 93210 | C97: EXECUÇÃO DE REFEITÓRIO EM CANTEIRO DE OBRA EM CHAPA DE MADEIRA COMPENSADA, NÃO INCLUSO MOBILIÁRIO E EQUIPAMENTOS. AF_02/2016 | D97: M2 | E97: =VLOOKUP(A97,'COMPOSIÇÕES 2'!$A$59:$L$7194,12,0) -> 539,35
A98: 93213 | B98: 93213 | C98: EXECUÇÃO DE SANITÁRIO E VESTIÁRIO EM CANTEIRO DE OBRA EM ALVENARIA, NÃO INCLUSO MOBILIÁRIO. AF_02/2016 | D98: M2 | E98: =VLOOKUP(A98,'COMPOSIÇÕES 2'!$A$59:$L$7194,12,0) -> 995,68
A99: 10891 | B99: 10891 | C99: EXTINTOR DE INCENDIO PORTATIL COM CARGA DE PO QUIMICO SECO (PQS) DE 4 KG, CLASSE BC | D99: UN | E99: 304.61
A100: 101910 | B100: 101910 | C100: EXTINTOR DE INCÊNDIO PORTÁTIL COM CARGA DE PQS DE 8 KG, CLASSE BC - FORNECIMENTO E INSTALAÇÃO. AF_10/2020_P | D100: UN | E100: =VLOOKUP(A100,'COMPOSIÇÕES 2'!$A$59:$L$7194,12,0) -> 483,58
A101: 96534 | B101: 96534 | C101: FABRICAÇÃO, MONTAGEM E DESMONTAGEM DE FÔRMA PARA BLOCO DE COROAMENTO, EM MADEIRA SERRADA, E=25 MM, 4 UTILIZAÇÕES. AF_06/2017 | D101: M2 | E101: =VLOOKUP(A101,'COMPOSIÇÕES 2'!$A$59:$L$7194,12,0) -> 68,13
A102: 96536 | B102: 96536 | C102: FABRICAÇÃO, MONTAGEM E DESMONTAGEM DE FÔRMA PARA VIGA BALDRAME, EM MADEIRA SERRADA, E=25 MM, 4 UTILIZAÇÕES. AF_06/2017 | D102: M2 | E102: =VLOOKUP(A102,'COMPOSIÇÕES 2'!$A$59:$L$7194,12,0) -> 58,19
A103: 12734 | B103: 12734 | C103: Fechamento lateral com telha em aço galvalume, dupla, trapezoidal, com preenchimento PIR 50mm, pré-pintada, TP40 - 2 x 0,43mm, Kingspan- Isoeste ou similar | D103: M2 | E103: 365.17
A104: 9953 | B104: 9953 | C104: Fornecimento de cartucho para solda exotérmica | D104: UN | E104: 20
A105: 12740 | B105: 12740 | C105: Fornecimento e assentamento de barra chata de alumínio de 7/8" x 1/8" | D105: M | E105: 16.61
A106: 7164 | B106: 7164 | C106: Fornecimento e instalação de conector rj 45 fêmea cat 6 (krone ou similar) | D106: UN | E106: 31.57
A107: 11242 | B107: 11242 | C107: Fornecimento e instalação de conector rj 45 macho cat 6 | D107: UN | E107: 6.52
A108: 12876 | B108: 12876 | C108: Fornecimento e instalação de Para raios tipo polimérico 15kv - 12ka | D108: UN | E108: 159.43
A109: 9534 | B109: 9534 | C109: Fornecimento e instalação de patch cords cat.5e, conector rj-45 macho, c/1,50m - Rev 01 | D109: UN | E109: 18.28
A110: 10727 | B110: 10727 | C110: Fornecimento e instalação de voice panel 24 portas cat 6 | D110: UN | E110: 274.18
A111: 7138 | B111: 7138 | C111: Fornecimento e lançamento de cabo utp 4 pares cat 6 | D111: M | E111: 11.68
A112: 11227 | B112: 11227 | C112: Fornecimento e montagem de rack fechado tipo armário 19" x 36u x 600mm | D112: UN | E112: 2098.87
A113: 96117 | B113: 96117 | C113: FORRO EM MADEIRA PINUS, PARA AMBIENTES COMERCIAIS, INCLUSIVE ESTRUTURA DE FIXAÇÃO. AF_05/2017 | D113: M2 | E113: =VLOOKUP(A113,'COMPOSIÇÕES 2'!$A$59:$L$7194,12,0) -> 132,27
A114: 12093 | B114: 12093 | C114: Gradil em alumínio anodizado branco, com barras de apoio em alumínio anodizado branco de 1"x2" horizontais a cada 5cm com 1,85m e barras externas verticais em alumínio anodizado branco de 1.1/2" x 1.1/2" com 3,05m - Fixado com rebite | D114: M2 | E114: 486.33
A115: 99841 | B115: 99841 | C115: GUARDA-CORPO PANORÂMICO COM PERFIS DE ALUMÍNIO E VIDRO LAMINADO 8 MM, FIXADO COM CHUMBADOR MECÂNICO. AF_04/2019_P | D115: M | E115: =VLOOKUP(A115,'COMPOSIÇÕES 2'!$A$59:$L$7194,12,0) -> 1.892,49
A116: 98560 | B116: 98560 | C116: IMPERMEABILIZAÇÃO DE PISO COM ARGAMASSA DE CIMENTO E AREIA, COM ADITIVO IMPERMEABILIZANTE, E = 2CM. AF_06/2018 | D116: M2 | E116: =VLOOKUP(A116,'COMPOSIÇÕES 2'!$A$59:$L$7194,12,0) -> 46,63
A117: 98557 | B117: 98557 | C117: IMPERMEABILIZAÇÃO DE SUPERFÍCIE COM EMULSÃO ASFÁLTICA, 2 DEMÃOS AF_06/2018 | D117: M2 | E117: =VLOOKUP(A117,'COMPOSIÇÕES 2'!$A$59:$L$7194,12,0) -> 63,63
A118: 91953 | B118: 91953 | C118: INTERRUPTOR SIMPLES (1 MÓDULO), 10A/250V, INCLUINDO SUPORTE E PLACA - FORNECIMENTO E INSTALAÇÃO. AF_12/2015 | D118: UN | E118: =VLOOKUP(A118,'COMPOSIÇÕES 2'!$A$59:$L$7194,12,0) -> 25,98
A119: 91966 | B119: 91966 | C119: INTERRUPTOR SIMPLES (3 MÓDULOS), 10A/250V, SEM SUPORTE E SEM PLACA - FORNECIMENTO E INSTALAÇÃO. AF_12/2015 | D119: UN | E119: =VLOOKUP(A119,'COMPOSIÇÕES 2'!$A$59:$L$7194,12,0) -> 48,64
A120: 20159 | B120: 20159 | C120: JOELHO COM VISITA, PVC SERIE R, 90 GRAUS, 100 X 50 MM, PARA ESGOTO OU AGUAS PLUVIAIS PREDIAIS | D120: UN | E120: 60.36
A121: 1672 | B121: 1672 | C121: Joelho de 90°com bolsa para anel, em pvc rígido c/ anéis, para esgoto secundário, diâm = 40mm | D121: UN | E121: 14.35
A122: 3497 | B122: 3497 | C122: JOELHO DE REDUCAO, PVC, ROSCAVEL COM BUCHA DE LATAO, 90 GRAUS, 3/4" X 1/2", PARA AGUA FRIA PREDIAL | D122: UN | E122: 16.49
A123: 3522 | B123: 3522 | C123: JOELHO PVC, SOLDAVEL COM ROSCA, 90 GRAUS, 25 MM X 3/4", PARA AGUA FRIA PREDIAL | D123: UN | E123: 3.74
A124: 3528 | B124: 3528 | C124: JOELHO PVC, SOLDAVEL, PB, 45 GRAUS, DN 100 MM, PARA ESGOTO PREDIAL | D124: UN | E124: 9.12
A125: 37952 | B125: 37952 | C125: JOELHO PVC, SOLDAVEL, PB, 45 GRAUS, DN 150 MM, PARA ESGOTO PREDIAL | D125: UN | E125: 65.02
A126: 37951 | B126: 37951 | C126: JOELHO PVC, SOLDAVEL, PB, 45 GRAUS, DN 40 MM, PARA ESGOTO PREDIAL | D126: UN | E126: 2.36
A127: 3518 | B127: 3518 | C127: JOELHO PVC, SOLDAVEL, PB, 45 GRAUS, DN 50 MM, PARA ESGOTO PREDIAL | D127: UN | E127: 3.46
A128: 3520 | B128: 3520 | C128: JOELHO PVC, SOLDAVEL, PB, 90 GRAUS, DN 100 MM, PARA ESGOTO PREDIAL | D128: UN | E128: 9.19
A129: 37950 | B129: 37950 | C129: JOELHO PVC, SOLDAVEL, PB, 90 GRAUS, DN 150 MM, PARA ESGOTO PREDIAL | D129: UN | E129: 56.6
A130: 3526 | B130: 3526 | C130: JOELHO PVC, SOLDAVEL, PB, 90 GRAUS, DN 50 MM, PARA ESGOTO PREDIAL | D130: UN | E130: 2.78
A131: 20144 | B131: 20144 | C131: JUNCAO SIMPLES, PVC SERIE R, DN 100 X 100 MM, PARA ESGOTO OU AGUAS PLUVIAIS PREDIAIS | D131: UN | E131: 64.8
A132: 95636 | B132: 95636 | C132: KIT CAVALETE PARA MEDIÇÃO DE ÁGUA - ENTRADA PRINCIPAL, EM AÇO GALVANIZADO DN 25 (1 ) FORNECIMENTO E INSTALAÇÃO (EXCLUSIVE HIDRÔMETRO). AF_11/2016 | D132: UN | E132: =VLOOKUP(A132,'COMPOSIÇÕES 2'!$A$59:$L$7194,12,0) -> 341,51
A133: 13343 | B133: 13343 | C133: KIT DE MATERIAIS PARA BRACADEIRA PARA FIXACAO EM POSTE CIRCULAR, CONTEM TRES FIXADORES E UM ROLO DE FITA DE 3 M EM ACO CARBONO | D133: UN | E133: 42.24
A134: 91314 | B134: 91314 | C134: KIT DE PORTA DE MADEIRA PARA PINTURA, SEMI-OCA (LEVE OU MÉDIA), PADRÃO POPULAR, 80X210CM, ESPESSURA DE 3,5CM, ITENS INCLUSOS: DOBRADIÇAS, MONTAGEM E INSTALAÇÃO DO BATENTE, FECHADURA COM EXECUÇÃO DO FURO - FORNECIMENTO E INSTALAÇÃO. AF_12/2019 | D134: UN | E134: =VLOOKUP(A134,'COMPOSIÇÕES 2'!$A$59:$L$7194,12,0) -> 752,54
A135: 90789 | B135: 90789 | C135: KIT DE PORTA-PRONTA DE MADEIRA EM ACABAMENTO MELAMÍNICO BRANCO, FOLHA LEVE OU MÉDIA, 70X210CM, EXCLUSIVE FECHADURA, FIXAÇÃO COM PREENCHIMENTO PARCIAL DE ESPUMA EXPANSIVA - FORNECIMENTO E INSTALAÇÃO. AF_12/2019 | D135: UN | E135: =VLOOKUP(A135,'COMPOSIÇÕES 2'!$A$59:$L$7194,12,0) -> 887,54
A136: 96621 | B136: 96621 | C136: LASTRO COM MATERIAL GRANULAR, APLICAÇÃO EM BLOCOS DE COROAMENTO, ESPESSURA DE *5 CM*. AF_08/2017 | D136: M3 | E136: =VLOOKUP(A136,'COMPOSIÇÕES 2'!$A$59:$L$7194,12,0) -> 391,32
A137: 96616 | B137: 96616 | C137: LASTRO DE CONCRETO MAGRO, APLICADO EM BLOCOS DE COROAMENTO OU SAPATAS. AF_08/2017 | D137: M3 | E137: =VLOOKUP(A137,'COMPOSIÇÕES 2'!$A$59:$L$7194,12,0) -> 726,10
A138: 96620 | B138: 96620 | C138: LASTRO DE CONCRETO MAGRO, APLICADO EM PISOS, LAJES SOBRE SOLO OU RADIERS. AF_08/2017 | D138: M3 | E138: =VLOOKUP(A138,'COMPOSIÇÕES 2'!$A$59:$L$7194,12,0) -> 706,01
A139: 86902 | B139: 86902 | C139: LAVATÓRIO LOUÇA BRANCA COM COLUNA, *44 X 35,5* CM, PADRÃO POPULAR - FORNECIMENTO E INSTALAÇÃO. AF_01/2020 | D139: UN | E139: =VLOOKUP(A139,'COMPOSIÇÕES 2'!$A$59:$L$7194,12,0) -> 277,53
A140: 2450 | B140: 2450 | C140: Limpeza geral | D140: M2 | E140: 2.18
A141: 98525 | B141: 98525 | C141: LIMPEZA MECANIZADA DE CAMADA VEGETAL, VEGETAÇÃO E PEQUENAS ÁRVORES (DIÂMETRO DE TRONCO MENOR QUE 0,20 M), COM TRATOR DE ESTEIRAS.AF_05/2018 | D141: M2 | E141: =VLOOKUP(A141,'COMPOSIÇÕES 2'!$A$59:$L$7194,12,0) -> 0,32
A142: 99059 | B142: 99059 | C142: LOCACAO CONVENCIONAL DE OBRA, UTILIZANDO GABARITO DE TÁBUAS CORRIDAS PONTALETADAS A CADA 2,00M - 2 UTILIZAÇÕES. AF_10/2018 | D142: M | E142: =VLOOKUP(A142,'COMPOSIÇÕES 2'!$A$59:$L$7194,12,0) -> 44,89
A143: 38774 | B143: 38774 | C143: LUMINARIA DE EMERGENCIA 30 LEDS, POTENCIA 2 W, BATERIA DE LITIO, AUTONOMIA DE 6 HORAS | D143: UN | E143: 22.61
A144: 97599 | B144: 97599 | C144: LUMINÁRIA DE EMERGÊNCIA, COM 30 LÂMPADAS LED DE 2 W, SEM REATOR - FORNECIMENTO E INSTALAÇÃO. AF_02/2020 | D144: UN | E144: =VLOOKUP(A144,'COMPOSIÇÕES 2'!$A$59:$L$7194,12,0) -> 28,72
A145: 101655 | B145: 101655 | C145: LUMINÁRIA DE LED PARA ILUMINAÇÃO PÚBLICA, DE 51 W ATÉ 67 W - FORNECIMENTO E INSTALAÇÃO. AF_08/2020 | D145: UN | E145: =VLOOKUP(A145,'COMPOSIÇÕES 2'!$A$59:$L$7194,12,0) -> 504,71
A146: 3840 | B146: 3840 | C146: LUVA DE CORRER DEFOFO, PVC, JE, DN 100 MM | D146: UN | E146: 67.8
A147: 3939 | B147: 3939 | C147: LUVA DE FERRO GALVANIZADO, COM ROSCA BSP, DE 1 1/2" | D147: UN | E147: 20.58
A148: 3899 | B148: 3899 | C148: LUVA SIMPLES, PVC, SOLDAVEL, DN 100 MM, SERIE NORMAL, PARA ESGOTO PREDIAL | D148: UN | E148: 7
A149: 38676 | B149: 38676 | C149: LUVA SIMPLES, PVC, SOLDAVEL, DN 150 MM, SERIE NORMAL, PARA ESGOTO PREDIAL | D149: UN | E149: 33.9
A150: 3875 | B150: 3875 | C150: LUVA SIMPLES, PVC, SOLDAVEL, DN 50 MM, SERIE NORMAL, PARA ESGOTO PREDIAL | D150: UN | E150: 3.19
A151: 87543 | B151: 87543 | C151: MASSA ÚNICA, PARA RECEBIMENTO DE PINTURA OU CERÂMICA, ARGAMASSA INDUSTRIALIZADA, PREPARO MECÂNICO, APLICADO COM EQUIPAMENTO DE MISTURA E PROJEÇÃO DE 1,5 M3/H EM FACES INTERNAS DE PAREDES, ESPESSURA DE 5MM, SEM EXECUÇÃO DE TALISCAS. AF_06/2014 | D151: M2 | E151: =VLOOKUP(A151,'COMPOSIÇÕES 2'!$A$59:$L$7194,12,0) -> 27,45
A152: 12342 | B152: 12342 | C152: Mictorio coletivo aco inox (aisi 304), e = 0,8 mm, de *100 x 40 x 30* cm (c x a x p) | D152: M | E152: 689.85
A153: 1.1.2 | B153: 1.1.2 | C153: MOBILIZAÇÃO | D153: UN | E153: 1500
A154: 12474 | B154: 12474 | C154: Módulo para 36 medidores em chapa galvanizada 12,5mm, com barramento para 200A, pintado eletrostaticamente na cor bege | D154: UN | E154: 6467.8
A155: 92538 | B155: 92538 | C155: MONTAGEM E DESMONTAGEM DE FÔRMA DE LAJE MACIÇA, PÉ-DIREITO SIMPLES, EM CHAPA DE MADEIRA COMPENSADA PLASTIFICADA, . AF_09/2020 | D155: M2 | E155: =VLOOKUP(A155,'COMPOSIÇÕES 2'!$A$59:$L$7194,12,0) -> 34,23
A156: 92443 | B156: 92443 | C156: MONTAGEM E DESMONTAGEM DE FÔRMA DE PILARES RETANGULARES E ESTRUTURAS SIMILARES, PÉ-DIREITO SIMPLES, EM CHAPA DE MADEIRA COMPENSADA PLASTIFICADA, 18 UTILIZAÇÕES. AF_09/2020 | D156: M2 | E156: =VLOOKUP(A156,'COMPOSIÇÕES 2'!$A$59:$L$7194,12,0) -> 48,88
A157: 436 | B157: 436 | C157: PARAFUSO FRANCES M16 EM ACO GALVANIZADO, COMPRIMENTO = 150 MM, DIAMETRO = 16 MM, CABECA ABAULADA | D157: UN | E157: 6.85
A158: 429 | B158: 429 | C158: PARAFUSO M16 EM ACO GALVANIZADO, COMPRIMENTO = 300 MM, DIAMETRO = 16 MM, ROSCA DUPLA | D158: UN | E158: 12.11
A159: 40552 | B159: 40552 | C159: PARAFUSO, AUTO ATARRACHANTE, CABECA CHATA, FENDA SIMPLES, 1/4" (6,35 MM) X 25 MM | D159: CENTO | E159: 44.37
A160: 11613 | B160: 11613 | C160: Pavimentação em placas de Basalato Regular, sobre base de areia E=5cm | D160: M2 | E160: 75.91
A161: 9892 | B161: 9892 | C161: PEÇA DE MADERIA 115X135X 600MM | D161: UN | E161: 24.25
A162: 4723 | B162: 4723 | C162: PEDRA BRITADA N. 4 (50 A 76 MM) POSTO PEDREIRA/FORNECEDOR, SEM FRETE | D162: M3 | E162: 232.88
A163: 101965 | B163: 101965 | C163: PEITORIL LINEAR EM GRANITO OU MÁRMORE, L = 15CM, COMPRIMENTO DE ATÉ 2M, ASSENTADO COM ARGAMASSA 1:6 COM ADITIVO. AF_11/2020 | D163: M | E163: =VLOOKUP(A163,'COMPOSIÇÕES 2'!$A$59:$L$7194,12,0) -> 152,10
A164: 100754 | B164: 100754 | C164: PINTURA COM TINTA ACRÍLICA DE ACABAMENTO APLICADA A ROLO OU PINCEL (EXCETO PERFIL) EXECUTADO EM OBRA (02 DEMÃOS). AF_01/2020 | D164: M2 | E164: =VLOOKUP(A164,'COMPOSIÇÕES 2'!$A$59:$L$7194,12,0) -> 22,88
A165: 100733 | B165: 100733 | C165: PINTURA COM TINTA ACRÍLICA DE FUNDO PULVERIZADA SOBRE SUPERFÍCIES METÁLICAS (EXCETO PERFIL) EXECUTADO EM OBRA (POR DEMÃO). AF_01/2020_P | D165: M2 | E165: =VLOOKUP(A165,'COMPOSIÇÕES 2'!$A$59:$L$7194,12,0) -> 8,51
A166: 102500 | B166: 102500 | C166: PINTURA DE DEMARCAÇÃO DE VAGA COM TINTA ACRÍLICA, E = 10 CM, APLICAÇÃO MANUAL. AF_05/2021 | D166: M | E166: =VLOOKUP(A166,'COMPOSIÇÕES 2'!$A$59:$L$7194,12,0) -> 3,22
A167: 102207 | B167: 102207 | C167: PINTURA TINTA DE ACABAMENTO (PIGMENTADA) A ÓLEO EM MADEIRA, 1 DEMÃO. AF_01/2021 | D167: M2 | E167: =VLOOKUP(A167,'COMPOSIÇÕES 2'!$A$59:$L$7194,12,0) -> 6,51
A168: 102220 | B168: 102220 | C168: PINTURA TINTA DE ACABAMENTO (PIGMENTADA) ESMALTE SINTÉTICO BRILHANTE EM MADEIRA, 2 DEMÃOS. AF_01/2021 | D168: M2 | E168: =VLOOKUP(A168,'COMPOSIÇÕES 2'!$A$59:$L$7194,12,0) -> 12,26
A169: 102205 | B169: 102205 | C169: PINTURA VERNIZ (INCOLOR) POLIURETÂNICO (RESINA ALQUÍDICA MODIFICADA) EM MADEIRA, 1 DEMÃO. AF_01/2021 | D169: M2 | E169: =VLOOKUP(A169,'COMPOSIÇÕES 2'!$A$59:$L$7194,12,0) -> 7,52
A170: 98671 | B170: 98671 | C170: PISO EM GRANITO APLICADO EM AMBIENTES INTERNOS. AF_09/2020 | D170: M2 | E170: =VLOOKUP(A170,'COMPOSIÇÕES 2'!$A$59:$L$7194,12,0) -> 491,29
A171: 11062 | B171: 11062 | C171: PLACA CIMENTICIA LISA E = 10 MM, DE 1,20 X 3,00 M (SEM AMIANTO) | D171: M2 | E171: 56.66
A172: 4813 | B172: 4813 | C172: PLACA DE OBRA (PARA CONSTRUCAO CIVIL) EM CHAPA GALVANIZADA *N. 22*, ADESIVADA, DE *2,0 X 1,125* M (SEM POSTES PARA FIXACAO) | D172: M2 | E172: 225
A173: 37557 | B173: 37557 | C173: PLACA DE SINALIZACAO DE SEGURANCA CONTRA INCENDIO, FOTOLUMINESCENTE, QUADRADA, *14 X 14* CM, EM PVC *2* MM ANTI-CHAMAS (SIMBOLOS, CORES E PICTOGRAMAS CONFORME NBR 16820) | D173: UN | E173: 20.92
A174: 37559 | B174: 37559 | C174: PLACA DE SINALIZACAO DE SEGURANCA CONTRA INCENDIO, FOTOLUMINESCENTE, RETANGULAR, *12 X 40* CM, EM PVC *2* MM ANTI-CHAMAS (SIMBOLOS, CORES E PICTOGRAMAS CONFORME NBR 16820) | D174: UN | E174: 49.66
A175: 37558 | B175: 37558 | C175: PLACA DE SINALIZACAO DE SEGURANCA CONTRA INCENDIO, FOTOLUMINESCENTE, RETANGULAR, *20 X 40* CM, EM PVC *2* MM ANTI-CHAMAS (SIMBOLOS, CORES E PICTOGRAMAS CONFORME NBR 16820) | D175: UN | E175: 65.26
A176: 98511 | B176: 98511 | C176: PLANTIO DE ÁRVORE ORNAMENTAL COM ALTURA DE MUDA MAIOR QUE 2,00 M E MENOR OU IGUAL A 4,00 M. AF_05/2018 | D176: UN | E176: =VLOOKUP(A176,'COMPOSIÇÕES 2'!$A$59:$L$7194,12,0) -> 125,62
A177: 98510 | B177: 98510 | C177: PLANTIO DE ÁRVORE ORNAMENTAL COM ALTURA DE MUDA MENOR OU IGUAL A 2,00 M. AF_05/2018 | D177: UN | E177: =VLOOKUP(A177,'COMPOSIÇÕES 2'!$A$59:$L$7194,12,0) -> 65,57
A178: 98504 | B178: 98504 | C178: PLANTIO DE GRAMA EM PLACAS. AF_05/2018 | D178: M2 | E178: =VLOOKUP(A178,'COMPOSIÇÕES 2'!$A$59:$L$7194,12,0) -> 13,83
A179: 7162 | B179: 7162 | C179: Ponto de sensor de presença embutido no teto | D179: UN | E179: 255.87
A180: 1857 | B180: 1857 | C180: Porta em aço, em chapa galvanizada nº24, raiada, de enrolar | D180: M2 | E180: 203.39
A181: 12388 | B181: 12388 | C181: POSTE DECORATIVO PARA JARDIM EM ACO TUBULAR, SEM LUMINARIA, H = *2,5* M | D181: UN | E181: 359.22
A182: 8646 | B182: 8646 | C182: Poste galvanizado com 5m para instalação de câmera de segurança p/penitenciária | D182: UN | E182: 408.13
A183: 101881 | B183: 101881 | C183: QUADRO DE DISTRIBUIÇÃO DE ENERGIA EM CHAPA DE AÇO GALVANIZADO, DE EMBUTIR, COM BARRAMENTO TRIFÁSICO, PARA 40 DISJUNTORES DIN 100A - FORNECIMENTO E INSTALAÇÃO. AF_10/2020 | D183: UN | E183: =VLOOKUP(A183,'COMPOSIÇÕES 2'!$A$59:$L$7194,12,0) -> 1.094,49
A184: 101876 | B184: 101876 | C184: QUADRO DE DISTRIBUIÇÃO DE ENERGIA EM PVC, DE EMBUTIR, SEM BARRAMENTO, PARA 6 DISJUNTORES - FORNECIMENTO E INSTALAÇÃO. AF_10/2020 | D184: UN | E184: =VLOOKUP(A184,'COMPOSIÇÕES 2'!$A$59:$L$7194,12,0) -> 74,81
A185: 12897 | B185: 12897 | C185: Ralo seco linear pvc sanitário d=75mm com grelha aluminio | D185: UN | E185: 86.48
A186: 89495 | B186: 89495 | C186: RALO SIFONADO, PVC, DN 100 X 40 MM, JUNTA SOLDÁVEL, FORNECIDO E INSTALADO EM RAMAIS DE ENCAMINHAMENTO DE ÁGUA PLUVIAL. AF_12/2014 | D186: UN | E186: =VLOOKUP(A186,'COMPOSIÇÕES 2'!$A$59:$L$7194,12,0) -> 16,66
A187: 93382 | B187: 93382 | C187: REATERRO MANUAL DE VALAS COM COMPACTAÇÃO MECANIZADA. AF_04/2016 | D187: M3 | E187: =VLOOKUP(A187,'COMPOSIÇÕES 2'!$A$59:$L$7194,12,0) -> 24,30
A188: 20034 | B188: 20034 | C188: REDUCAO EXCENTRICA PVC NBR 10569 P/REDE COLET ESG PB JE 150 X 100MM | D188: UN | E188: 130.74
A189: 94492 | B189: 94492 | C189: REGISTRO DE ESFERA, PVC, SOLDÁVEL, COM VOLANTE, DN 50 MM - FORNECIMENTO E INSTALAÇÃO. AF_08/2021 | D189: UN | E189: =VLOOKUP(A189,'COMPOSIÇÕES 2'!$A$59:$L$7194,12,0) -> 55,65
A190: 89353 | B190: 89353 | C190: REGISTRO DE GAVETA BRUTO, LATÃO, ROSCÁVEL, 3/4" - FORNECIMENTO E INSTALAÇÃO. AF_08/2021 | D190: UN | E190: =VLOOKUP(A190,'COMPOSIÇÕES 2'!$A$59:$L$7194,12,0) -> 39,36
A191: 100575 | B191: 100575 | C191: REGULARIZAÇÃO DE SUPERFÍCIES COM MOTONIVELADORA. AF_11/2019 | D191: M2 | E191: =VLOOKUP(A191,'COMPOSIÇÕES 2'!$A$59:$L$7194,12,0) -> 0,10
A192: 98526 | B192: 98526 | C192: REMOÇÃO DE RAÍZES REMANESCENTES DE TRONCO DE ÁRVORE COM DIÂMETRO MAIOR OU IGUAL A 0,20 M E MENOR QUE 0,40 M.AF_05/2018 | D192: UN | E192: =VLOOKUP(A192,'COMPOSIÇÕES 2'!$A$59:$L$7194,12,0) -> 66,75
A193: 87266 | B193: 87266 | C193: REVESTIMENTO CERÂMICO PARA PAREDES INTERNAS COM PLACAS TIPO ESMALTADA EXTRA DE DIMENSÕES 20X20 CM APLICADAS EM AMBIENTES DE ÁREA MENOR QUE 5 M² A MEIA ALTURA DAS PAREDES. AF_06/2014 | D193: M2 | E193: =VLOOKUP(A193,'COMPOSIÇÕES 2'!$A$59:$L$7194,12,0) -> 84,01
A194: 93391 | B194: 93391 | C194: REVESTIMENTO CERÂMICO PARA PISO COM PLACAS TIPO ESMALTADA PADRÃO POPULAR DE DIMENSÕES 35X35 CM APLICADA EM AMBIENTES DE ÁREA MAIOR QUE 10 M2. AF_06/2014 | D194: M2 | E194: =VLOOKUP(A194,'COMPOSIÇÕES 2'!$A$59:$L$7194,12,0) -> 57,91
A195: 87263 | B195: 87263 | C195: REVESTIMENTO CERÂMICO PARA PISO COM PLACAS TIPO PORCELANATO DE DIMENSÕES 60X60 CM APLICADA EM AMBIENTES DE ÁREA MAIOR QUE 10 M². AF_06/2014 | D195: M2 | E195: =VLOOKUP(A195,'COMPOSIÇÕES 2'!$A$59:$L$7194,12,0) -> 210,35
A196: 88650 | B196: 88650 | C196: RODAPÉ CERÂMICO DE 7CM DE ALTURA COM PLACAS TIPO ESMALTADA EXTRA DE DIMENSÕES 60X60CM. AF_06/2014 | D196: M | E196: =VLOOKUP(A196,'COMPOSIÇÕES 2'!$A$59:$L$7194,12,0) -> 22,63
A197: 94231 | B197: 94231 | C197: RUFO EM CHAPA DE AÇO GALVANIZADO NÚMERO 24, CORTE DE 25 CM, INCLUSO TRANSPORTE VERTICAL. AF_07/2019 | D197: M | E197: =VLOOKUP(A197,'COMPOSIÇÕES 2'!$A$59:$L$7194,12,0) -> 59,18
A198: 86883 | B198: 86883 | C198: SIFÃO DO TIPO FLEXÍVEL EM PVC 1 X 1.1/4 - 2 - FORNECIMENTO E INSTALAÇÃO. AF_01/2020 | D198: UN | E198: =VLOOKUP(A198,'COMPOSIÇÕES 2'!$A$59:$L$7194,12,0) -> 11,79
A199: 86882 | B199: 86882 | C199: SIFÃO DO TIPO GARRAFA/COPO EM PVC 1.1/4 X 1.1/2" - FORNECIMENTO E INSTALAÇÃO. AF_01/2020 | D199: UN | E199: =VLOOKUP(A199,'COMPOSIÇÕES 2'!$A$59:$L$7194,12,0) -> 21,91
A200: 98689 | B200: 98689 | C200: SOLEIRA EM GRANITO, LARGURA 15 CM, ESPESSURA 2,0 CM. AF_09/2020 | D200: M | E200: =VLOOKUP(A200,'COMPOSIÇÕES 2'!$A$59:$L$7194,12,0) -> 123,73
... 26 more rows

Sheet COMPOSIÇÕES 2
B1: PCI.817.01 - CUSTO DE COMPOSIÇÕES - SINTÉTICO DATA DE EMISSÃO: 17/10/2022 23:10:19 DATA DE RT: 17/10/2022
B2: ENCARGOS SOCIAIS SOBRE PREÇOS DA MÃO-DE-OBRA: 112,56%(HORA) 68,47%(MÊS)
B3: ABRANGÊNCIA : NACIONAL LOCALIDADE : MACAPA DATA DE PREÇO : 09/2022 REFERÊNCIA COLETA : MEDIANO
A5: CODIGO DA COMPOSICAO | B5: DESCRICAO DA CLASSE | C5: SIGLA DA CLASSE | D5: DESCRICAO DO TIPO 1 | E5: SIGLA DO TIPO 1 | F5: CODIGO DO AGRUPADOR | G5: DESCRICAO DO AGRUPADOR | H5: CODIGO DA COMPOSICAO | I5: DESCRICAO DA COMPOSICAO | J5: UNIDADE | K5: ORIGEM DE PREÇO | L5: CUSTO TOTAL | M5: VINCULO
A7: 97141 | B7: ASSENTAMENTO DE TUBOS E PECAS | C7: ASTU | D7: FORNEC E/OU ASSENT DE TUBO DE FERRO FUNDIDO JUNTA ELASTICA | E7: 0045 | H7: 97141 | I7: ASSENTAMENTO DE TUBO DE FERRO FUNDIDO PARA REDE DE ÁGUA, DN 80 MM, JUNTA ELÁSTICA, INSTALADO EM LOCAL COM NÍVEL ALTO DE INTERFERÊNCIAS (NÃO INCLUI FORNECIMENTO). AF_11/2017 | J7: M | K7: ATRIBUÍDO SÃO PAULO | L7: 6,95 | M7: CAIXA REFERENCIAL
A8: 97142 | B8: ASSENTAMENTO DE TUBOS E PECAS | C8: ASTU | D8: FORNEC E/OU ASSENT DE TUBO DE FERRO FUNDIDO JUNTA ELASTICA | E8: 0045 | H8: 97142 | I8: ASSENTAMENTO DE TUBO DE FERRO FUNDIDO PARA REDE DE ÁGUA, DN 100 MM, JUNTA ELÁSTICA, INSTALADO EM LOCAL COM NÍVEL ALTO DE INTERFERÊNCIAS (NÃO INCLUI FORNECIMENTO). AF_11/2017 | J8: M | K8: ATRIBUÍDO SÃO PAULO | L8: 7,70 | M8: CAIXA REFERENCIAL
A9: 97143 | B9: ASSENTAMENTO DE TUBOS E PECAS | C9: ASTU | D9: FORNEC E/OU ASSENT DE TUBO DE FERRO FUNDIDO JUNTA ELASTICA | E9: 0045 | H9: 97143 | I9: ASSENTAMENTO DE TUBO DE FERRO FUNDIDO PARA REDE DE ÁGUA, DN 150 MM, JUNTA ELÁSTICA, INSTALADO EM LOCAL COM NÍVEL ALTO DE INTERFERÊNCIAS (NÃO INCLUI FORNECIMENTO). AF_11/2017 | J9: M | K9: ATRIBUÍDO SÃO PAULO | L9: 9,63 | M9: CAIXA REFERENCIAL
A10: 97144 | B10: ASSENTAMENTO DE TUBOS E PECAS | C10: ASTU | D10: FORNEC E/OU ASSENT DE TUBO DE FERRO FUNDIDO JUNTA ELASTICA | E10: 0045 | H10: 97144 | I10: ASSENTAMENTO DE TUBO DE FERRO FUNDIDO PARA REDE DE ÁGUA, DN 200 MM, JUNTA ELÁSTICA, INSTALADO EM LOCAL COM NÍVEL ALTO DE INTERFERÊNCIAS (NÃO INCLUI FORNECIMENTO). AF_11/2017 | J10: M | K10: ATRIBUÍDO SÃO PAULO | L10: 11,54 | M10: CAIXA REFERENCIAL
A11: 97145 | B11: ASSENTAMENTO DE TUBOS E PECAS | C11: ASTU | D11: FORNEC E/OU ASSENT DE TUBO DE FERRO FUNDIDO JUNTA ELASTICA | E11: 0045 | H11: 97145 | I11: ASSENTAMENTO DE TUBO DE FERRO FUNDIDO PARA REDE DE ÁGUA, DN 250 MM, JUNTA ELÁSTICA, INSTALADO EM LOCAL COM NÍVEL ALTO DE INTERFERÊNCIAS (NÃO INCLUI FORNECIMENTO). AF_11/2017 | J11: M | K11: ATRIBUÍDO SÃO PAULO | L11: 13,47 | M11: CAIXA REFERENCIAL
A12: 97146 | B12: ASSENTAMENTO DE TUBOS E PECAS | C12: ASTU | D12: FORNEC E/OU ASSENT DE TUBO DE FERRO FUNDIDO JUNTA ELASTICA | E12: 0045 | H12: 97146 | I12: ASSENTAMENTO DE TUBO DE FERRO FUNDIDO PARA REDE DE ÁGUA, DN 300 MM, JUNTA ELÁSTICA, INSTALADO EM LOCAL COM NÍVEL ALTO DE INTERFERÊNCIAS (NÃO INCLUI FORNECIMENTO). AF_11/2017 | J12: M | K12: ATRIBUÍDO SÃO PAULO | L12: 15,41 | M12: CAIXA REFERENCIAL
A13: 97147 | B13: ASSENTAMENTO DE TUBOS E PECAS | C13: ASTU | D13: FORNEC E/OU ASSENT DE TUBO DE FERRO FUNDIDO JUNTA ELASTICA | E13: 0045 | H13: 97147 | I13: ASSENTAMENTO DE TUBO DE FERRO FUNDIDO PARA REDE DE ÁGUA, DN 350 MM, JUNTA ELÁSTICA, INSTALADO EM LOCAL COM NÍVEL ALTO DE INTERFERÊNCIAS (NÃO INCLUI FORNECIMENTO). AF_11/2017 | J13: M | K13: ATRIBUÍDO SÃO PAULO | L13: 17,34 | M13: CAIXA REFERENCIAL
A14: 97148 | B14: ASSENTAMENTO DE TUBOS E PECAS | C14: ASTU | D14: FORNEC E/OU ASSENT DE TUBO DE FERRO FUNDIDO JUNTA ELASTICA | E14: 0045 | H14: 97148 | I14: ASSENTAMENTO DE TUBO DE FERRO FUNDIDO PARA REDE DE ÁGUA, DN 400 MM, JUNTA ELÁSTICA, INSTALADO EM LOCAL COM NÍVEL ALTO DE INTERFERÊNCIAS (NÃO INCLUI FORNECIMENTO). AF_11/2017 | J14: M | K14: ATRIBUÍDO SÃO PAULO | L14: 19,28 | M14: CAIXA REFERENCIAL
A15: 97149 | B15: ASSENTAMENTO DE TUBOS E PECAS | C15: ASTU | D15: FORNEC E/OU ASSENT DE TUBO DE FERRO FUNDIDO JUNTA ELASTICA | E15: 0045 | H15: 97149 | I15: ASSENTAMENTO DE TUBO DE FERRO FUNDIDO PARA REDE DE ÁGUA, DN 450 MM, JUNTA ELÁSTICA, INSTALADO EM LOCAL COM NÍVEL ALTO DE INTERFERÊNCIAS (NÃO INCLUI FORNECIMENTO). AF_11/2017 | J15: M | K15: ATRIBUÍDO SÃO PAULO | L15: 21,24 | M15: CAIXA REFERENCIAL
A16: 97150 | B16: ASSENTAMENTO DE TUBOS E PECAS | C16: ASTU | D16: FORNEC E/OU ASSENT DE TUBO DE FERRO FUNDIDO JUNTA ELASTICA | E16: 0045 | H16: 97150 | I16: ASSENTAMENTO DE TUBO DE FERRO FUNDIDO PARA REDE DE ÁGUA, DN 500 MM, JUNTA ELÁSTICA, INSTALADO EM LOCAL COM NÍVEL ALTO DE INTERFERÊNCIAS (NÃO INCLUI FORNECIMENTO). AF_11/2017 | J16: M | K16: ATRIBUÍDO SÃO PAULO | L16: 27,89 | M16: CAIXA REFERENCIAL
A17: 97151 | B17: ASSENTAMENTO DE TUBOS E PECAS | C17: ASTU | D17: FORNEC E/OU ASSENT DE TUBO DE FERRO FUNDIDO JUNTA ELASTICA | E17: 0045 | H17: 97151 | I17: ASSENTAMENTO DE TUBO DE FERRO FUNDIDO PARA REDE DE ÁGUA, DN 600 MM, JUNTA ELÁSTICA, INSTALADO EM LOCAL COM NÍVEL ALTO DE INTERFERÊNCIAS (NÃO INCLUI FORNECIMENTO). AF_11/2017 | J17: M | K17: ATRIBUÍDO SÃO PAULO | L17: 32,47 | M17: CAIXA REFERENCIAL
A18: 97152 | B18: ASSENTAMENTO DE TUBOS E PECAS | C18: ASTU | D18: FORNEC E/OU ASSENT DE TUBO DE FERRO FUNDIDO JUNTA ELASTICA | E18: 0045 | H18: 97152 | I18: ASSENTAMENTO DE TUBO DE FERRO FUNDIDO PARA REDE DE ÁGUA, DN 700 MM, JUNTA ELÁSTICA, INSTALADO EM LOCAL COM NÍVEL ALTO DE INTERFERÊNCIAS (NÃO INCLUI FORNECIMENTO). AF_11/2017 | J18: M | K18: ATRIBUÍDO SÃO PAULO | L18: 36,82 | M18: CAIXA REFERENCIAL
A19: 97153 | B19: ASSENTAMENTO DE TUBOS E PECAS | C19: ASTU | D19: FORNEC E/OU ASSENT DE TUBO DE FERRO FUNDIDO JUNTA ELASTICA | E19: 0045 | H19: 97153 | I19: ASSENTAMENTO DE TUBO DE FERRO FUNDIDO PARA REDE DE ÁGUA, DN 800 MM, JUNTA ELÁSTICA, INSTALADO EM LOCAL COM NÍVEL ALTO DE INTERFERÊNCIAS (NÃO INCLUI FORNECIMENTO). AF_11/2017 | J19: M | K19: ATRIBUÍDO SÃO PAULO | L19: 41,31 | M19: CAIXA REFERENCIAL
A20: 97154 | B20: ASSENTAMENTO DE TUBOS E PECAS | C20: ASTU | D20: FORNEC E/OU ASSENT DE TUBO DE FERRO FUNDIDO JUNTA ELASTICA | E20: 0045 | H20: 97154 | I20: ASSENTAMENTO DE TUBO DE FERRO FUNDIDO PARA REDE DE ÁGUA, DN 900 MM, JUNTA ELÁSTICA, INSTALADO EM LOCAL COM NÍVEL ALTO DE INTERFERÊNCIAS (NÃO INCLUI FORNECIMENTO). AF_11/2017 | J20: M | K20: ATRIBUÍDO SÃO PAULO | L20: 45,83 | M20: CAIXA REFERENCIAL
A21: 97155 | B21: ASSENTAMENTO DE TUBOS E PECAS | C21: ASTU | D21: FORNEC E/OU ASSENT DE TUBO DE FERRO FUNDIDO JUNTA ELASTICA | E21: 0045 | H21: 97155 | I21: ASSENTAMENTO DE TUBO DE FERRO FUNDIDO PARA REDE DE ÁGUA, DN 1000 MM, JUNTA ELÁSTICA, INSTALADO EM LOCAL COM NÍVEL ALTO DE INTERFERÊNCIAS (NÃO INCLUI FORNECIMENTO). AF_11/2017 | J21: M | K21: ATRIBUÍDO SÃO PAULO | L21: 50,35 | M21: CAIXA REFERENCIAL
A22: 97156 | B22: ASSENTAMENTO DE TUBOS E PECAS | C22: ASTU | D22: FORNEC E/OU ASSENT DE TUBO DE FERRO FUNDIDO JUNTA ELASTICA | E22: 0045 | H22: 97156 | I22: ASSENTAMENTO DE TUBO DE FERRO FUNDIDO PARA REDE DE ÁGUA, DN 1200 MM, JUNTA ELÁSTICA, INSTALADO EM LOCAL COM NÍVEL ALTO DE INTERFERÊNCIAS (NÃO INCLUI FORNECIMENTO). AF_11/2017 | J22: M | K22: ATRIBUÍDO SÃO PAULO | L22: 59,79 | M22: CAIXA REFERENCIAL
A23: 97157 | B23: ASSENTAMENTO DE TUBOS E PECAS | C23: ASTU | D23: FORNEC E/OU ASSENT DE TUBO DE FERRO FUNDIDO JUNTA ELASTICA | E23: 0045 | H23: 97157 | I23: ASSENTAMENTO DE TUBO DE FERRO FUNDIDO PARA REDE DE ÁGUA, DN 80 MM, JUNTA ELÁSTICA, INSTALADO EM LOCAL COM NÍVEL BAIXO DE INTERFERÊNCIAS (NÃO INCLUI FORNECIMENTO). AF_11/2017 | J23: M | K23: ATRIBUÍDO SÃO PAULO | L23: 4,30 | M23: CAIXA REFERENCIAL
A24: 97158 | B24: ASSENTAMENTO DE TUBOS E PECAS | C24: ASTU | D24: FORNEC E/OU ASSENT DE TUBO DE FERRO FUNDIDO JUNTA ELASTICA | E24: 0045 | H24: 97158 | I24: ASSENTAMENTO DE TUBO DE FERRO FUNDIDO PARA REDE DE ÁGUA, DN 100 MM, JUNTA ELÁSTICA, INSTALADO EM LOCAL COM NÍVEL BAIXO DE INTERFERÊNCIAS (NÃO INCLUI FORNECIMENTO). AF_11/2017 | J24: M | K24: ATRIBUÍDO SÃO PAULO | L24: 4,77 | M24: CAIXA REFERENCIAL
A25: 97159 | B25: ASSENTAMENTO DE TUBOS E PECAS | C25: ASTU | D25: FORNEC E/OU ASSENT DE TUBO DE FERRO FUNDIDO JUNTA ELASTICA | E25: 0045 | H25: 97159 | I25: ASSENTAMENTO DE TUBO DE FERRO FUNDIDO PARA REDE DE ÁGUA, DN 150 MM, JUNTA ELÁSTICA, INSTALADO EM LOCAL COM NÍVEL BAIXO DE INTERFERÊNCIAS (NÃO INCLUI FORNECIMENTO). AF_11/2017 | J25: M | K25: ATRIBUÍDO SÃO PAULO | L25: 5,96 | M25: CAIXA REFERENCIAL
A26: 97160 | B26: ASSENTAMENTO DE TUBOS E PECAS | C26: ASTU | D26: FORNEC E/OU ASSENT DE TUBO DE FERRO FUNDIDO JUNTA ELASTICA | E26: 0045 | H26: 97160 | I26: ASSENTAMENTO DE TUBO DE FERRO FUNDIDO PARA REDE DE ÁGUA, DN 200 MM, JUNTA ELÁSTICA, INSTALADO EM LOCAL COM NÍVEL BAIXO DE INTERFERÊNCIAS (NÃO INCLUI FORNECIMENTO). AF_11/2017 | J26: M | K26: ATRIBUÍDO SÃO PAULO | L26: 7,13 | M26: CAIXA REFERENCIAL
A27: 97161 | B27: ASSENTAMENTO DE TUBOS E PECAS | C27: ASTU | D27: FORNEC E/OU ASSENT DE TUBO DE FERRO FUNDIDO JUNTA ELASTICA | E27: 0045 | H27: 97161 | I27: ASSENTAMENTO DE TUBO DE FERRO FUNDIDO PARA REDE DE ÁGUA, DN 250 MM, JUNTA ELÁSTICA, INSTALADO EM LOCAL COM NÍVEL BAIXO DE INTERFERÊNCIAS (NÃO INCLUI FORNECIMENTO). AF_11/2017 | J27: M | K27: ATRIBUÍDO SÃO PAULO | L27: 8,36 | M27: CAIXA REFERENCIAL
A28: 97162 | B28: ASSENTAMENTO DE TUBOS E PECAS | C28: ASTU | D28: FORNEC E/OU ASSENT DE TUBO DE FERRO FUNDIDO JUNTA ELASTICA | E28: 0045 | H28: 97162 | I28: ASSENTAMENTO DE TUBO DE FERRO FUNDIDO PARA REDE DE ÁGUA, DN 300 MM, JUNTA ELÁSTICA, INSTALADO EM LOCAL COM NÍVEL BAIXO DE INTERFERÊNCIAS (NÃO INCLUI FORNECIMENTO). AF_11/2017 | J28: M | K28: ATRIBUÍDO SÃO PAULO | L28: 9,56 | M28: CAIXA REFERENCIAL
A29: 97163 | B29: ASSENTAMENTO DE TUBOS E PECAS | C29: ASTU | D29: FORNEC E/OU ASSENT DE TUBO DE FERRO FUNDIDO JUNTA ELASTICA | E29: 0045 | H29: 97163 | I29: ASSENTAMENTO DE TUBO DE FERRO FUNDIDO PARA REDE DE ÁGUA, DN 350 MM, JUNTA ELÁSTICA, INSTALADO EM LOCAL COM NÍVEL BAIXO DE INTERFERÊNCIAS (NÃO INCLUI FORNECIMENTO). AF_11/2017 | J29: M | K29: ATRIBUÍDO SÃO PAULO | L29: 10,78 | M29: CAIXA REFERENCIAL
A30: 97164 | B30: ASSENTAMENTO DE TUBOS E PECAS | C30: ASTU | D30: FORNEC E/OU ASSENT DE TUBO DE FERRO FUNDIDO JUNTA ELASTICA | E30: 0045 | H30: 97164 | I30: ASSENTAMENTO DE TUBO DE FERRO FUNDIDO PARA REDE DE ÁGUA, DN 400 MM, JUNTA ELÁSTICA, INSTALADO EM LOCAL COM NÍVEL BAIXO DE INTERFERÊNCIAS (NÃO INCLUI FORNECIMENTO). AF_11/2017 | J30: M | K30: ATRIBUÍDO SÃO PAULO | L30: 11,97 | M30: CAIXA REFERENCIAL
A31: 97165 | B31: ASSENTAMENTO DE TUBOS E PECAS | C31: ASTU | D31: FORNEC E/OU ASSENT DE TUBO DE FERRO FUNDIDO JUNTA ELASTICA | E31: 0045 | H31: 97165 | I31: ASSENTAMENTO DE TUBO DE FERRO FUNDIDO PARA REDE DE ÁGUA, DN 450 MM, JUNTA ELÁSTICA, INSTALADO EM LOCAL COM NÍVEL BAIXO DE INTERFERÊNCIAS (NÃO INCLUI FORNECIMENTO). AF_11/2017 | J31: M | K31: ATRIBUÍDO SÃO PAULO | L31: 13,20 | M31: CAIXA REFERENCIAL
A32: 97166 | B32: ASSENTAMENTO DE TUBOS E PECAS | C32: ASTU | D32: FORNEC E/OU ASSENT DE TUBO DE FERRO FUNDIDO JUNTA ELASTICA | E32: 0045 | H32: 97166 | I32: ASSENTAMENTO DE TUBO DE FERRO FUNDIDO PARA REDE DE ÁGUA, DN 500 MM, JUNTA ELÁSTICA, INSTALADO EM LOCAL COM NÍVEL BAIXO DE INTERFERÊNCIAS (NÃO INCLUI FORNECIMENTO). AF_11/2017 | J32: M | K32: ATRIBUÍDO SÃO PAULO | L32: 17,32 | M32: CAIXA REFERENCIAL
A33: 97167 | B33: ASSENTAMENTO DE TUBOS E PECAS | C33: ASTU | D33: FORNEC E/OU ASSENT DE TUBO DE FERRO FUNDIDO JUNTA ELASTICA | E33: 0045 | H33: 97167 | I33: ASSENTAMENTO DE TUBO DE FERRO FUNDIDO PARA REDE DE ÁGUA, DN 600 MM, JUNTA ELÁSTICA, INSTALADO EM LOCAL COM NÍVEL BAIXO DE INTERFERÊNCIAS (NÃO INCLUI FORNECIMENTO). AF_11/2017 | J33: M | K33: ATRIBUÍDO SÃO PAULO | L33: 20,17 | M33: CAIXA REFERENCIAL
A34: 97168 | B34: ASSENTAMENTO DE TUBOS E PECAS | C34: ASTU | D34: FORNEC E/OU ASSENT DE TUBO DE FERRO FUNDIDO JUNTA ELASTICA | E34: 0045 | H34: 97168 | I34: ASSENTAMENTO DE TUBO DE FERRO FUNDIDO PARA REDE DE ÁGUA, DN 700 MM, JUNTA ELÁSTICA, INSTALADO EM LOCAL COM NÍVEL BAIXO DE INTERFERÊNCIAS (NÃO INCLUI FORNECIMENTO). AF_11/2017 | J34: M | K34: ATRIBUÍDO SÃO PAULO | L34: 22,82 | M34: CAIXA REFERENCIAL
A35: 97169 | B35: ASSENTAMENTO DE TUBOS E PECAS | C35: ASTU | D35: FORNEC E/OU ASSENT DE TUBO DE FERRO FUNDIDO JUNTA ELASTICA | E35: 0045 | H35: 97169 | I35: ASSENTAMENTO DE TUBO DE FERRO FUNDIDO PARA REDE DE ÁGUA, DN 800 MM, JUNTA ELÁSTICA, INSTALADO EM LOCAL COM NÍVEL BAIXO DE INTERFERÊNCIAS (NÃO INCLUI FORNECIMENTO). AF_11/2017 | J35: M | K35: ATRIBUÍDO SÃO PAULO | L35: 25,59 | M35: CAIXA REFERENCIAL
A36: 97170 | B36: ASSENTAMENTO DE TUBOS E PECAS | C36: ASTU | D36: FORNEC E/OU ASSENT DE TUBO DE FERRO FUNDIDO JUNTA ELASTICA | E36: 0045 | H36: 97170 | I36: ASSENTAMENTO DE TUBO DE FERRO FUNDIDO PARA REDE DE ÁGUA, DN 900 MM, JUNTA ELÁSTICA, INSTALADO EM LOCAL COM NÍVEL BAIXO DE INTERFERÊNCIAS (NÃO INCLUI FORNECIMENTO). AF_11/2017 | J36: M | K36: ATRIBUÍDO SÃO PAULO | L36: 28,39 | M36: CAIXA REFERENCIAL
A37: 97171 | B37: ASSENTAMENTO DE TUBOS E PECAS | C37: ASTU | D37: FORNEC E/OU ASSENT DE TUBO DE FERRO FUNDIDO JUNTA ELASTICA | E37: 0045 | H37: 97171 | I37: ASSENTAMENTO DE TUBO DE FERRO FUNDIDO PARA REDE DE ÁGUA, DN 1000 MM, JUNTA ELÁSTICA, INSTALADO EM LOCAL COM NÍVEL BAIXO DE INTERFERÊNCIAS (NÃO INCLUI FORNECIMENTO). AF_11/2017 | J37: M | K37: ATRIBUÍDO SÃO PAULO | L37: 31,20 | M37: CAIXA REFERENCIAL
A38: 97172 | B38: ASSENTAMENTO DE TUBOS E PECAS | C38: ASTU | D38: FORNEC E/OU ASSENT DE TUBO DE FERRO FUNDIDO JUNTA ELASTICA | E38: 0045 | H38: 97172 | I38: ASSENTAMENTO DE TUBO DE FERRO FUNDIDO PARA REDE DE ÁGUA, DN 1200 MM, JUNTA ELÁSTICA, INSTALADO EM LOCAL COM NÍVEL BAIXO DE INTERFERÊNCIAS (NÃO INCLUI FORNECIMENTO). AF_11/2017 | J38: M | K38: ATRIBUÍDO SÃO PAULO | L38: 37,21 | M38: CAIXA REFERENCIAL
A39: 97173 | B39: ASSENTAMENTO DE TUBOS E PECAS | C39: ASTU | D39: FORNEC E/OU ASSENT DE TUBO DE ACO COM JUNTA SOLDADA | E39: 0046 | H39: 97173 | I39: ASSENTAMENTO DE TUBO DE AÇO CARBONO PARA REDE DE ÁGUA, DN 600 MM (24), JUNTA SOLDADA, INSTALADO EM LOCAL COM NÍVEL ALTO DE INTERFERÊNCIAS (NÃO INCLUI FORNECIMENTO). AF_11/2017 | J39: M | K39: ATRIBUÍDO SÃO PAULO | L39: 31,95 | M39: CAIXA REFERENCIAL
A40: 97174 | B40: ASSENTAMENTO DE TUBOS E PECAS | C40: ASTU | D40: FORNEC E/OU ASSENT DE TUBO DE ACO COM JUNTA SOLDADA | E40: 0046 | H40: 97174 | I40: ASSENTAMENTO DE TUBO DE AÇO CARBONO PARA REDE DE ÁGUA, DN 700 MM (28), JUNTA SOLDADA, INSTALADO EM LOCAL COM NÍVEL ALTO DE INTERFERÊNCIAS (NÃO INCLUI FORNECIMENTO). AF_11/2017 | J40: M | K40: ATRIBUÍDO SÃO PAULO | L40: 37,01 | M40: CAIXA REFERENCIAL
A41: 97175 | B41: ASSENTAMENTO DE TUBOS E PECAS | C41: ASTU | D41: FORNEC E/OU ASSENT DE TUBO DE ACO COM JUNTA SOLDADA | E41: 0046 | H41: 97175 | I41: ASSENTAMENTO DE TUBO DE AÇO CARBONO PARA REDE DE ÁGUA, DN 800 MM (32), JUNTA SOLDADA, INSTALADO EM LOCAL COM NÍVEL ALTO DE INTERFERÊNCIAS (NÃO INCLUI FORNECIMENTO). AF_11/2017 | J41: M | K41: ATRIBUÍDO SÃO PAULO | L41: 42,07 | M41: CAIXA REFERENCIAL
A42: 97176 | B42: ASSENTAMENTO DE TUBOS E PECAS | C42: ASTU | D42: FORNEC E/OU ASSENT DE TUBO DE ACO COM JUNTA SOLDADA | E42: 0046 | H42: 97176 | I42: ASSENTAMENTO DE TUBO DE AÇO CARBONO PARA REDE DE ÁGUA, DN 900 MM (36), JUNTA SOLDADA, INSTALADO EM LOCAL COM NÍVEL ALTO DE INTERFERÊNCIAS (NÃO INCLUI FORNECIMENTO). AF_11/2017 | J42: M | K42: ATRIBUÍDO SÃO PAULO | L42: 47,12 | M42: CAIXA REFERENCIAL
A43: 97177 | B43: ASSENTAMENTO DE TUBOS E PECAS | C43: ASTU | D43: FORNEC E/OU ASSENT DE TUBO DE ACO COM JUNTA SOLDADA | E43: 0046 | H43: 97177 | I43: ASSENTAMENTO DE TUBO DE AÇO CARBONO PARA REDE DE ÁGUA, DN 1000 MM (40) OU DN 1100 MM (44), JUNTA SOLDADA, INSTALADO EM LOCAL COM NÍVEL ALTO DE INTERFERÊNCIAS (NÃO INCLUI FORNECIMENTO). AF_11/2017 | J43: M | K43: ATRIBUÍDO SÃO PAULO | L43: 57,24 | M43: CAIXA REFERENCIAL
A44: 97178 | B44: ASSENTAMENTO DE TUBOS E PECAS | C44: ASTU | D44: FORNEC E/OU ASSENT DE TUBO DE ACO COM JUNTA SOLDADA | E44: 0046 | H44: 97178 | I44: ASSENTAMENTO DE TUBO DE AÇO CARBONO PARA REDE DE ÁGUA, DN 1200 MM (48) OU DN 1300 MM (52), JUNTA SOLDADA, INSTALADO EM LOCAL COM NÍVEL ALTO DE INTERFERÊNCIAS (NÃO INCLUI FORNECIMENTO). AF_11/2017 | J44: M | K44: ATRIBUÍDO SÃO PAULO | L44: 67,36 | M44: CAIXA REFERENCIAL
A45: 97179 | B45: ASSENTAMENTO DE TUBOS E PECAS | C45: ASTU | D45: FORNEC E/OU ASSENT DE TUBO DE ACO COM JUNTA SOLDADA | E45: 0046 | H45: 97179 | I45: ASSENTAMENTO DE TUBO DE AÇO CARBONO PARA REDE DE ÁGUA, DN 1400 MM (56'') OU DN 1500 MM (60), JUNTA SOLDADA, INSTALADO EM LOCAL COM NÍVEL ALTO DE INTERFERÊNCIAS (NÃO INCLUI FORNECIMENTO). AF_11/2017 | J45: M | K45: ATRIBUÍDO SÃO PAULO | L45: 77,51 | M45: CAIXA REFERENCIAL
A46: 97180 | B46: ASSENTAMENTO DE TUBOS E PECAS | C46: ASTU | D46: FORNEC E/OU ASSENT DE TUBO DE ACO COM JUNTA SOLDADA | E46: 0046 | H46: 97180 | I46: ASSENTAMENTO DE TUBO DE AÇO CARBONO PARA REDE DE ÁGUA, DN 1600 MM (64) OU DN 1700 MM (68), JUNTA SOLDADA, INSTALADO EM LOCAL COM NÍVEL ALTO DE INTERFERÊNCIAS (NÃO INCLUI FORNECIMENTO). AF_11/2017 | J46: M | K46: ATRIBUÍDO SÃO PAULO | L46: 87,62 | M46: CAIXA REFERENCIAL
A47: 97181 | B47: ASSENTAMENTO DE TUBOS E PECAS | C47: ASTU | D47: FORNEC E/OU ASSENT DE TUBO DE ACO COM JUNTA SOLDADA | E47: 0046 | H47: 97181 | I47: ASSENTAMENTO DE TUBO DE AÇO CARBONO PARA REDE DE ÁGUA, DN 1800 MM (72) OU DN 1900 MM (76), JUNTA SOLDADA, INSTALADO EM LOCAL COM NÍVEL ALTO DE INTERFERÊNCIAS (NÃO INCLUI FORNECIMENTO). AF_11/2017 | J47: M | K47: ATRIBUÍDO SÃO PAULO | L47: 102,49 | M47: CAIXA REFERENCIAL
A48: 97182 | B48: ASSENTAMENTO DE TUBOS E PECAS | C48: ASTU | D48: FORNEC E/OU ASSENT DE TUBO DE ACO COM JUNTA SOLDADA | E48: 0046 | H48: 97182 | I48: ASSENTAMENTO DE TUBO DE AÇO CARBONO PARA REDE DE ÁGUA, DN 2000 MM (80) OU DN 2100 MM (84), JUNTA SOLDADA, INSTALADO EM LOCAL COM NÍVEL ALTO DE INTERFERÊNCIAS (NÃO INCLUI FORNECIMENTO). AF_11/2017 | J48: M | K48: ATRIBUÍDO SÃO PAULO | L48: 113,13 | M48: CAIXA REFERENCIAL
A49: 97183 | B49: ASSENTAMENTO DE TUBOS E PECAS | C49: ASTU | D49: FORNEC E/OU ASSENT DE TUBO DE ACO COM JUNTA SOLDADA | E49: 0046 | H49: 97183 | I49: ASSENTAMENTO DE TUBO DE AÇO CARBONO PARA REDE DE ÁGUA, DN 600 MM (24), JUNTA SOLDADA, INSTALADO EM LOCAL COM NÍVEL BAIXO DE INTERFERÊNCIAS (NÃO INCLUI FORNECIMENTO). AF_11/2017 | J49: M | K49: ATRIBUÍDO SÃO PAULO | L49: 25,93 | M49: CAIXA REFERENCIAL
A50: 97184 | B50: ASSENTAMENTO DE TUBOS E PECAS | C50: ASTU | D50: FORNEC E/OU ASSENT DE TUBO DE ACO COM JUNTA SOLDADA | E50: 0046 | H50: 97184 | I50: ASSENTAMENTO DE TUBO DE AÇO CARBONO PARA REDE DE ÁGUA, DN 700 MM (28), JUNTA SOLDADA, INSTALADO EM LOCAL COM NÍVEL BAIXO DE INTERFERÊNCIAS (NÃO INCLUI FORNECIMENTO). AF_11/2017 | J50: M | K50: ATRIBUÍDO SÃO PAULO | L50: 30,09 | M50: CAIXA REFERENCIAL
A51: 97185 | B51: ASSENTAMENTO DE TUBOS E PECAS | C51: ASTU | D51: FORNEC E/OU ASSENT DE TUBO DE ACO COM JUNTA SOLDADA | E51: 0046 | H51: 97185 | I51: ASSENTAMENTO DE TUBO DE AÇO CARBONO PARA REDE DE ÁGUA, DN 800 MM (32), JUNTA SOLDADA, INSTALADO EM LOCAL COM NÍVEL BAIXO DE INTERFERÊNCIAS (NÃO INCLUI FORNECIMENTO). AF_11/2017 | J51: M | K51: ATRIBUÍDO SÃO PAULO | L51: 34,25 | M51: CAIXA REFERENCIAL
A52: 97186 | B52: ASSENTAMENTO DE TUBOS E PECAS | C52: ASTU | D52: FORNEC E/OU ASSENT DE TUBO DE ACO COM JUNTA SOLDADA | E52: 0046 | H52: 97186 | I52: ASSENTAMENTO DE TUBO DE AÇO CARBONO PARA REDE DE ÁGUA, DN 900 MM (36), JUNTA SOLDADA, INSTALADO EM LOCAL COM NÍVEL BAIXO DE INTERFERÊNCIAS (NÃO INCLUI FORNECIMENTO). AF_11/2017 | J52: M | K52: ATRIBUÍDO SÃO PAULO | L52: 38,42 | M52: CAIXA REFERENCIAL
A53: 97187 | B53: ASSENTAMENTO DE TUBOS E PECAS | C53: ASTU | D53: FORNEC E/OU ASSENT DE TUBO DE ACO COM JUNTA SOLDADA | E53: 0046 | H53: 97187 | I53: ASSENTAMENTO DE TUBO DE AÇO CARBONO PARA REDE DE ÁGUA, DN 1000 MM (40 ) OU DN 1100 MM (44 ), JUNTA SOLDADA, INSTALADO EM LOCAL COM NÍVEL BAIXO DE INTERFERÊNCIAS (NÃO INCLUI FORNECIMENTO). AF_11/2017 | J53: M | K53: ATRIBUÍDO SÃO PAULO | L53: 46,75 | M53: CAIXA REFERENCIAL
A54: 97188 | B54: ASSENTAMENTO DE TUBOS E PECAS | C54: ASTU | D54: FORNEC E/OU ASSENT DE TUBO DE ACO COM JUNTA SOLDADA | E54: 0046 | H54: 97188 | I54: ASSENTAMENTO DE TUBO DE AÇO CARBONO PARA REDE DE ÁGUA, DN 1200 MM (48) OU DN 1300 MM (52), JUNTA SOLDADA, INSTALADO EM LOCAL COM NÍVEL BAIXO DE INTERFERÊNCIAS (NÃO INCLUI FORNECIMENTO). AF_11/2017 | J54: M | K54: ATRIBUÍDO SÃO PAULO | L54: 55,07 | M54: CAIXA REFERENCIAL
A55: 97189 | B55: ASSENTAMENTO DE TUBOS E PECAS | C55: ASTU | D55: FORNEC E/OU ASSENT DE TUBO DE ACO COM JUNTA SOLDADA | E55: 0046 | H55: 97189 | I55: ASSENTAMENTO DE TUBO DE AÇO CARBONO PARA REDE DE ÁGUA, DN 1400 MM (56'') OU DN 1500 MM (60), JUNTA SOLDADA, INSTALADO EM LOCAL COM NÍVEL BAIXO DE INTERFERÊNCIAS (NÃO INCLUI FORNECIMENTO). AF_11/2017 | J55: M | K55: ATRIBUÍDO SÃO PAULO | L55: 63,42 | M55: CAIXA REFERENCIAL
A56: 97190 | B56: ASSENTAMENTO DE TUBOS E PECAS | C56: ASTU | D56: FORNEC E/OU ASSENT DE TUBO DE ACO COM JUNTA SOLDADA | E56: 0046 | H56: 97190 | I56: ASSENTAMENTO DE TUBO DE AÇO CARBONO PARA REDE DE ÁGUA, DN 1600 MM (64) OU DN 1700 MM (68), JUNTA SOLDADA, INSTALADO EM LOCAL COM NÍVEL BAIXO DE INTERFERÊNCIAS (NÃO INCLUI FORNECIMENTO). AF_11/2017 | J56: M | K56: ATRIBUÍDO SÃO PAULO | L56: 71,74 | M56: CAIXA REFERENCIAL
A57: 97191 | B57: ASSENTAMENTO DE TUBOS E PECAS | C57: ASTU | D57: FORNEC E/OU ASSENT DE TUBO DE ACO COM JUNTA SOLDADA | E57: 0046 | H57: 97191 | I57: ASSENTAMENTO DE TUBO DE AÇO CARBONO PARA REDE DE ÁGUA, DN 1800 MM (72) OU DN 1900 MM (76), JUNTA SOLDADA, INSTALADO EM LOCAL COM NÍVEL BAIXO DE INTERFERÊNCIAS (NÃO INCLUI FORNECIMENTO). AF_11/2017 | J57: M | K57: ATRIBUÍDO SÃO PAULO | L57: 83,66 | M57: CAIXA REFERENCIAL
A58: 97192 | B58: ASSENTAMENTO DE TUBOS E PECAS | C58: ASTU | D58: FORNEC E/OU ASSENT DE TUBO DE ACO COM JUNTA SOLDADA | E58: 0046 | H58: 97192 | I58: ASSENTAMENTO DE TUBO DE AÇO CARBONO PARA REDE DE ÁGUA, DN 2000 MM (80) OU DN 2100 MM (84), JUNTA SOLDADA, INSTALADO EM LOCAL COM NÍVEL BAIXO DE INTERFERÊNCIAS (NÃO INCLUI FORNECIMENTO). AF_11/2017 | J58: M | K58: ATRIBUÍDO SÃO PAULO | L58: 92,37 | M58: CAIXA REFERENCIAL
A59: 90694 | B59: ASSENTAMENTO DE TUBOS E PECAS | C59: ASTU | D59: FORNEC E/OU ASSENT DE TUBO DE PVC COM JUNTA ELASTICA | E59: 0048 | H59: 90694 | I59: TUBO DE PVC PARA REDE COLETORA DE ESGOTO DE PAREDE MACIÇA, DN 100 MM, JUNTA ELÁSTICA - FORNECIMENTO E ASSENTAMENTO. AF_01/2021 | J59: M | K59: ATRIBUÍDO SÃO PAULO | L59: 45,85 | M59: CAIXA REFERENCIAL
A60: 90695 | B60: ASSENTAMENTO DE TUBOS E PECAS | C60: ASTU | D60: FORNEC E/OU ASSENT DE TUBO DE PVC COM JUNTA ELASTICA | E60: 0048 | H60: 90695 | I60: TUBO DE PVC PARA REDE COLETORA DE ESGOTO DE PAREDE MACIÇA, DN 150 MM, JUNTA ELÁSTICA - FORNECIMENTO E ASSENTAMENTO. AF_01/2021 | J60: M | K60: ATRIBUÍDO SÃO PAULO | L60: 96,17 | M60: CAIXA REFERENCIAL
A61: 90696 | B61: ASSENTAMENTO DE TUBOS E PECAS | C61: ASTU | D61: FORNEC E/OU ASSENT DE TUBO DE PVC COM JUNTA ELASTICA | E61: 0048 | H61: 90696 | I61: TUBO DE PVC PARA REDE COLETORA DE ESGOTO DE PAREDE MACIÇA, DN 200 MM, JUNTA ELÁSTICA - FORNECIMENTO E ASSENTAMENTO. AF_01/2021 | J61: M | K61: ATRIBUÍDO SÃO PAULO | L61: 143,19 | M61: CAIXA REFERENCIAL
A62: 90697 | B62: ASSENTAMENTO DE TUBOS E PECAS | C62: ASTU | D62: FORNEC E/OU ASSENT DE TUBO DE PVC COM JUNTA ELASTICA | E62: 0048 | H62: 90697 | I62: TUBO DE PVC PARA REDE COLETORA DE ESGOTO DE PAREDE MACIÇA, DN 250 MM, JUNTA ELÁSTICA - FORNECIMENTO E ASSENTAMENTO. AF_01/2021 | J62: M | K62: ATRIBUÍDO SÃO PAULO | L62: 241,94 | M62: CAIXA REFERENCIAL
A63: 90698 | B63: ASSENTAMENTO DE TUBOS E PECAS | C63: ASTU | D63: FORNEC E/OU ASSENT DE TUBO DE PVC COM JUNTA ELASTICA | E63: 0048 | H63: 90698 | I63: TUBO DE PVC PARA REDE COLETORA DE ESGOTO DE PAREDE MACIÇA, DN 300 MM, JUNTA ELÁSTICA, FORNECIMENTO E ASSENTAMENTO. AF_01/2021 | J63: M | K63: ATRIBUÍDO SÃO PAULO | L63: 388,57 | M63: CAIXA REFERENCIAL
A64: 90699 | B64: ASSENTAMENTO DE TUBOS E PECAS | C64: ASTU | D64: FORNEC E/OU ASSENT DE TUBO DE PVC COM JUNTA ELASTICA | E64: 0048 | H64: 90699 | I64: TUBO DE PVC PARA REDE COLETORA DE ESGOTO DE PAREDE MACIÇA, DN 350 MM, JUNTA ELÁSTICA - FORNECIMENTO E ASSENTAMENTO. AF_01/2021 | J64: M | K64: ATRIBUÍDO SÃO PAULO | L64: 480,61 | M64: CAIXA REFERENCIAL
A65: 90700 | B65: ASSENTAMENTO DE TUBOS E PECAS | C65: ASTU | D65: FORNEC E/OU ASSENT DE TUBO DE PVC COM JUNTA ELASTICA | E65: 0048 | H65: 90700 | I65: TUBO DE PVC PARA REDE COLETORA DE ESGOTO DE PAREDE MACIÇA, DN 400 MM, JUNTA ELÁSTICA FORNECIMENTO E ASSENTAMENTO. AF_01/2021 | J65: M | K65: ATRIBUÍDO SÃO PAULO | L65: 623,73 | M65: CAIXA REFERENCIAL
A66: 90701 | B66: ASSENTAMENTO DE TUBOS E PECAS | C66: ASTU | D66: FORNEC E/OU ASSENT DE TUBO DE PVC COM JUNTA ELASTICA | E66: 0048 | H66: 90701 | I66: TUBO DE PVC CORRUGADO DE DUPLA PAREDE PARA REDE COLETORA DE ESGOTO, DN 150 MM, JUNTA ELÁSTICA - FORNECIMENTO E ASSENTAMENTO. AF_01/2021 | J66: M | K66: ATRIBUÍDO SÃO PAULO | L66: 77,87 | M66: CAIXA REFERENCIAL
A67: 90702 | B67: ASSENTAMENTO DE TUBOS E PECAS | C67: ASTU | D67: FORNEC E/OU ASSENT DE TUBO DE PVC COM JUNTA ELASTICA | E67: 0048 | H67: 90702 | I67: TUBO DE PVC CORRUGADO DE DUPLA PAREDE PARA REDE COLETORA DE ESGOTO, DN 200 MM, JUNTA ELÁSTICA - FORNECIMENTO E ASSENTAMENTO. AF_01/2021 | J67: M | K67: ATRIBUÍDO SÃO PAULO | L67: 125,30 | M67: CAIXA REFERENCIAL
A68: 90703 | B68: ASSENTAMENTO DE TUBOS E PECAS | C68: ASTU | D68: FORNEC E/OU ASSENT DE TUBO DE PVC COM JUNTA ELASTICA | E68: 0048 | H68: 90703 | I68: TUBO DE PVC CORRUGADO DE DUPLA PAREDE PARA REDE COLETORA DE ESGOTO, DN 250 MM, JUNTA ELÁSTICA - FORNECIMENTO E ASSENTAMENTO. AF_01/2021 | J68: M | K68: ATRIBUÍDO SÃO PAULO | L68: 207,89 | M68: CAIXA REFERENCIAL
A69: 90704 | B69: ASSENTAMENTO DE TUBOS E PECAS | C69: ASTU | D69: FORNEC E/OU ASSENT DE TUBO DE PVC COM JUNTA ELASTICA | E69: 0048 | H69: 90704 | I69: TUBO DE PVC CORRUGADO DE DUPLA PAREDE PARA REDE COLETORA DE ESGOTO, DN 300 MM, JUNTA ELÁSTICA - FORNECIMENTO E ASSENTAMENTO. AF_01/2021 | J69: M | K69: ATRIBUÍDO SÃO PAULO | L69: 295,35 | M69: CAIXA REFERENCIAL
A70: 90705 | B70: ASSENTAMENTO DE TUBOS E PECAS | C70: ASTU | D70: FORNEC E/OU ASSENT DE TUBO DE PVC COM JUNTA ELASTICA | E70: 0048 | H70: 90705 | I70: TUBO DE PVC CORRUGADO DE DUPLA PAREDE PARA REDE COLETORA DE ESGOTO, DN 350 MM, JUNTA ELÁSTICA - FORNECIMENTO E ASSENTAMENTO. AF_01/2021 | J70: M | K70: ATRIBUÍDO SÃO PAULO | L70: 402,39 | M70: CAIXA REFERENCIAL
A71: 90706 | B71: ASSENTAMENTO DE TUBOS E PECAS | C71: ASTU | D71: FORNEC E/OU ASSENT DE TUBO DE PVC COM JUNTA ELASTICA | E71: 0048 | H71: 90706 | I71: TUBO DE PVC CORRUGADO DE DUPLA PAREDE PARA REDE COLETORA DE ESGOTO, DN 400 MM, JUNTA ELÁSTICA - FORNECIMENTO E ASSENTAMENTO. AF_01/2021 | J71: M | K71: ATRIBUÍDO SÃO PAULO | L71: 472,17 | M71: CAIXA REFERENCIAL
A72: 90708 | B72: ASSENTAMENTO DE TUBOS E PECAS | C72: ASTU | D72: FORNEC E/OU ASSENT DE TUBO DE PVC COM JUNTA ELASTICA | E72: 0048 | H72: 90708 | I72: TUBO DE PEAD CORRUGADO DE DUPLA PAREDE PARA REDE COLETORA DE ESGOTO, DN 600 MM, JUNTA ELÁSTICA INTEGRADA - FORNECIMENTO E ASSENTAMENTO. AF_01/2021 | J72: M | K72: ATRIBUÍDO SÃO PAULO | L72: 810,59 | M72: CAIXA REFERENCIAL
A73: 90724 | B73: ASSENTAMENTO DE TUBOS E PECAS | C73: ASTU | D73: FORNEC E/OU ASSENT DE TUBO DE PVC COM JUNTA ELASTICA | E73: 0048 | H73: 90724 | I73: JUNTA ARGAMASSADA ENTRE TUBO DN 100 MM E O POÇO DE VISITA/ CAIXA DE CONCRETO OU ALVENARIA EM REDES DE ESGOTO. AF_01/2021 | J73: UN | K73: COEFICIENTE DE REPRESENTATIVIDADE | L73: 18,96 | M73: CAIXA REFERENCIAL
A74: 90725 | B74: ASSENTAMENTO DE TUBOS E PECAS | C74: ASTU | D74: FORNEC E/OU ASSENT DE TUBO DE PVC COM JUNTA ELASTICA | E74: 0048 | H74: 90725 | I74: JUNTA ARGAMASSADA ENTRE TUBO DN 150 MM E O POÇO DE VISITA/ CAIXA DE CONCRETO OU ALVENARIA EM REDES DE ESGOTO. AF_01/2021 | J74: UN | K74: COEFICIENTE DE REPRESENTATIVIDADE | L74: 23,39 | M74: CAIXA REFERENCIAL
A75: 90726 | B75: ASSENTAMENTO DE TUBOS E PECAS | C75: ASTU | D75: FORNEC E/OU ASSENT DE TUBO DE PVC COM JUNTA ELASTICA | E75: 0048 | H75: 90726 | I75: JUNTA ARGAMASSADA ENTRE TUBO DN 200 MM E O POÇO/ CAIXA DE CONCRETO OU ALVENARIA EM REDES DE ESGOTO. AF_01/2021 | J75: UN | K75: COEFICIENTE DE REPRESENTATIVIDADE | L75: 27,88 | M75: CAIXA REFERENCIAL
A76: 90727 | B76: ASSENTAMENTO DE TUBOS E PECAS | C76: ASTU | D76: FORNEC E/OU ASSENT DE TUBO DE PVC COM JUNTA ELASTICA | E76: 0048 | H76: 90727 | I76: JUNTA ARGAMASSADA ENTRE TUBO DN 250 MM E O POÇO DE VISITA/ CAIXA DE CONCRETO OU ALVENARIA EM REDES DE ESGOTO. AF_01/2021 | J76: UN | K76: COEFICIENTE DE REPRESENTATIVIDADE | L76: 32,32 | M76: CAIXA REFERENCIAL
A77: 90728 | B77: ASSENTAMENTO DE TUBOS E PECAS | C77: ASTU | D77: FORNEC E/OU ASSENT DE TUBO DE PVC COM JUNTA ELASTICA | E77: 0048 | H77: 90728 | I77: JUNTA ARGAMASSADA ENTRE TUBO DN 300 MM E O POÇO DE VISITA/ CAIXA DE CONCRETO OU ALVENARIA EM REDES DE ESGOTO. AF_01/2021 | J77: UN | K77: COEFICIENTE DE REPRESENTATIVIDADE | L77: 36,74 | M77: CAIXA REFERENCIAL
A78: 90729 | B78: ASSENTAMENTO DE TUBOS E PECAS | C78: ASTU | D78: FORNEC E/OU ASSENT DE TUBO DE PVC COM JUNTA ELASTICA | E78: 0048 | H78: 90729 | I78: JUNTA ARGAMASSADA ENTRE TUBO DN 350 MM E O POÇO DE VISITA/ CAIXA DE CONCRETO OU ALVENARIA EM REDES DE ESGOTO. AF_01/2021 | J78: UN | K78: COEFICIENTE DE REPRESENTATIVIDADE | L78: 41,18 | M78: CAIXA REFERENCIAL
A79: 90730 | B79: ASSENTAMENTO DE TUBOS E PECAS | C79: ASTU | D79: FORNEC E/OU ASSENT DE TUBO DE PVC COM JUNTA ELASTICA | E79: 0048 | H79: 90730 | I79: JUNTA ARGAMASSADA ENTRE TUBO DN 400 MM E O POÇO DE VISITA/ CAIXA DE CONCRETO OU ALVENARIA EM REDES DE ESGOTO. AF_01/2021 | J79: UN | K79: COEFICIENTE DE REPRESENTATIVIDADE | L79: 45,61 | M79: CAIXA REFERENCIAL
A80: 90731 | B80: ASSENTAMENTO DE TUBOS E PECAS | C80: ASTU | D80: FORNEC E/OU ASSENT DE TUBO DE PVC COM JUNTA ELASTICA | E80: 0048 | H80: 90731 | I80: JUNTA ARGAMASSADA ENTRE TUBO DN 450 MM E O POÇO DE VISITA/ CAIXA DE CONCRETO OU ALVENARIA EM REDES DE ESGOTO. AF_01/2021 | J80: UN | K80: COEFICIENTE DE REPRESENTATIVIDADE | L80: 50,04 | M80: CAIXA REFERENCIAL
A81: 90732 | B81: ASSENTAMENTO DE TUBOS E PECAS | C81: ASTU | D81: FORNEC E/OU ASSENT DE TUBO DE PVC COM JUNTA ELASTICA | E81: 0048 | H81: 90732 | I81: JUNTA ARGAMASSADA ENTRE TUBO DN 600 MM E O POÇO DE VISITA/ CAIXA DE CONCRETO OU ALVENARIA EM REDES DE ESGOTO. AF_01/2021 | J81: UN | K81: COEFICIENTE DE REPRESENTATIVIDADE | L81: 63,33 | M81: CAIXA REFERENCIAL
A82: 90733 | B82: ASSENTAMENTO DE TUBOS E PECAS | C82: ASTU | D82: FORNEC E/OU ASSENT DE TUBO DE PVC COM JUNTA ELASTICA | E82: 0048 | H82: 90733 | I82: ASSENTAMENTO DE TUBO DE PVC PARA REDE COLETORA DE ESGOTO DE PAREDE MACIÇA, DN 100 MM, JUNTA ELÁSTICA (NÃO INCLUI FORNECIMENTO). AF_01/2021 | J82: M | K82: COEFICIENTE DE REPRESENTATIVIDADE | L82: 2,61 | M82: CAIXA REFERENCIAL
A83: 90734 | B83: ASSENTAMENTO DE TUBOS E PECAS | C83: ASTU | D83: FORNEC E/OU ASSENT DE TUBO DE PVC COM JUNTA ELASTICA | E83: 0048 | H83: 90734 | I83: ASSENTAMENTO DE TUBO DE PVC PARA REDE COLETORA DE ESGOTO DE PAREDE MACIÇA, DN 150 MM, JUNTA ELÁSTICA, (NÃO INCLUI FORNECIMENTO). AF_01/2021 | J83: M | K83: COEFICIENTE DE REPRESENTATIVIDADE | L83: 3,09 | M83: CAIXA REFERENCIAL
A84: 90735 | B84: ASSENTAMENTO DE TUBOS E PECAS | C84: ASTU | D84: FORNEC E/OU ASSENT DE TUBO DE PVC COM JUNTA ELASTICA | E84: 0048 | H84: 90735 | I84: ASSENTAMENTO DE TUBO DE PVC PARA REDE COLETORA DE ESGOTO DE PAREDE MACIÇA, DN 200 MM, JUNTA ELÁSTICA (NÃO INCLUI FORNECIMENTO). AF_01/2021 | J84: M | K84: COEFICIENTE DE REPRESENTATIVIDADE | L84: 3,57 | M84: CAIXA REFERENCIAL
A85: 90736 | B85: ASSENTAMENTO DE TUBOS E PECAS | C85: ASTU | D85: FORNEC E/OU ASSENT DE TUBO DE PVC COM JUNTA ELASTICA | E85: 0048 | H85: 90736 | I85: ASSENTAMENTO DE TUBO DE PVC PARA REDE COLETORA DE ESGOTO DE PAREDE MACIÇA, DN 250 MM, JUNTA ELÁSTICA (NÃO INCLUI FORNECIMENTO). AF_01/2021 | J85: M | K85: COEFICIENTE DE REPRESENTATIVIDADE | L85: 4,05 | M85: CAIXA REFERENCIAL
A86: 90737 | B86: ASSENTAMENTO DE TUBOS E PECAS | C86: ASTU | D86: FORNEC E/OU ASSENT DE TUBO DE PVC COM JUNTA ELASTICA | E86: 0048 | H86: 90737 | I86: ASSENTAMENTO DE TUBO DE PVC PARA REDE COLETORA DE ESGOTO DE PAREDE MACIÇA, DN 300 MM, JUNTA ELÁSTICA (NÃO INCLUI FORNECIMENTO). AF_01/2021 | J86: M | K86: COEFICIENTE DE REPRESENTATIVIDADE | L86: 4,54 | M86: CAIXA REFERENCIAL
A87: 90738 | B87: ASSENTAMENTO DE TUBOS E PECAS | C87: ASTU | D87: FORNEC E/OU ASSENT DE TUBO DE PVC COM JUNTA ELASTICA | E87: 0048 | H87: 90738 | I87: ASSENTAMENTO DE TUBO DE PVC PARA REDE COLETORA DE ESGOTO DE PAREDE MACIÇA, DN 350 MM, JUNTA ELÁSTICA (NÃO INCLUI FORNECIMENTO). AF_01/2021 | J87: M | K87: COEFICIENTE DE REPRESENTATIVIDADE | L87: 5,02 | M87: CAIXA REFERENCIAL
A88: 90739 | B88: ASSENTAMENTO DE TUBOS E PECAS | C88: ASTU | D88: FORNEC E/OU ASSENT DE TUBO DE PVC COM JUNTA ELASTICA | E88: 0048 | H88: 90739 | I88: ASSENTAMENTO DE TUBO DE PVC PARA REDE COLETORA DE ESGOTO DE PAREDE MACIÇA, DN 400 MM, JUNTA ELÁSTICA (NÃO INCLUI FORNECIMENTO). AF_01/2021 | J88: M | K88: ATRIBUÍDO SÃO PAULO | L88: 7,82 | M88: CAIXA REFERENCIAL
A89: 90740 | B89: ASSENTAMENTO DE TUBOS E PECAS | C89: ASTU | D89: FORNEC E/OU ASSENT DE TUBO DE PVC COM JUNTA ELASTICA | E89: 0048 | H89: 90740 | I89: ASSENTAMENTO DE TUBO DE PVC CORRUGADO DE DUPLA PAREDE PARA REDE COLETORA DE ESGOTO, DN 150 MM, JUNTA ELÁSTICA (NÃO INCLUI FORNECIMENTO). AF_01/2021 | J89: M | K89: COEFICIENTE DE REPRESENTATIVIDADE | L89: 3,44 | M89: CAIXA REFERENCIAL
A90: 90741 | B90: ASSENTAMENTO DE TUBOS E PECAS | C90: ASTU | D90: FORNEC E/OU ASSENT DE TUBO DE PVC COM JUNTA ELASTICA | E90: 0048 | H90: 90741 | I90: ASSENTAMENTO DE TUBO DE PVC CORRUGADO DE DUPLA PAREDE PARA REDE COLETORA DE ESGOTO, DN 200 MM, JUNTA ELÁSTICA (NÃO INCLUI FORNECIMENTO). AF_01/2021 | J90: M | K90: COEFICIENTE DE REPRESENTATIVIDADE | L90: 3,92 | M90: CAIXA REFERENCIAL
A91: 90742 | B91: ASSENTAMENTO DE TUBOS E PECAS | C91: ASTU | D91: FORNEC E/OU ASSENT DE TUBO DE PVC COM JUNTA ELASTICA | E91: 0048 | H91: 90742 | I91: ASSENTAMENTO DE TUBO DE PVC CORRUGADO DE DUPLA PAREDE PARA REDE COLETORA DE ESGOTO, DN 250 MM, JUNTA ELÁSTICA (NÃO INCLUI FORNECIMENTO). AF_01/2021 | J91: M | K91: COEFICIENTE DE REPRESENTATIVIDADE | L91: 4,41 | M91: CAIXA REFERENCIAL
A92: 90743 | B92: ASSENTAMENTO DE TUBOS E PECAS | C92: ASTU | D92: FORNEC E/OU ASSENT DE TUBO DE PVC COM JUNTA ELASTICA | E92: 0048 | H92: 90743 | I92: ASSENTAMENTO DE TUBO DE PVC CORRUGADO DE DUPLA PAREDE PARA REDE COLETORA DE ESGOTO, DN 300 MM, JUNTA ELÁSTICA (NÃO INCLUI FORNECIMENTO). AF_01/2021 | J92: M | K92: COEFICIENTE DE REPRESENTATIVIDADE | L92: 4,89 | M92: CAIXA REFERENCIAL
A93: 90744 | B93: ASSENTAMENTO DE TUBOS E PECAS | C93: ASTU | D93: FORNEC E/OU ASSENT DE TUBO DE PVC COM JUNTA ELASTICA | E93: 0048 | H93: 90744 | I93: ASSENTAMENTO DE TUBO DE PVC CORRUGADO DE DUPLA PAREDE PARA REDE COLETORA DE ESGOTO, DN 350 MM, JUNTA ELÁSTICA (NÃO INCLUI FORNECIMENTO). AF_01/2021 | J93: M | K93: COEFICIENTE DE REPRESENTATIVIDADE | L93: 5,37 | M93: CAIXA REFERENCIAL
A94: 90745 | B94: ASSENTAMENTO DE TUBOS E PECAS | C94: ASTU | D94: FORNEC E/OU ASSENT DE TUBO DE PVC COM JUNTA ELASTICA | E94: 0048 | H94: 90745 | I94: ASSENTAMENTO DE TUBO DE PVC CORRUGADO DE DUPLA PAREDE PARA REDE COLETORA DE ESGOTO, DN 400 MM, JUNTA ELÁSTICA (NÃO INCLUI FORNECIMENTO). AF_01/2021 | J94: M | K94: ATRIBUÍDO SÃO PAULO | L94: 8,73 | M94: CAIXA REFERENCIAL
A95: 90746 | B95: ASSENTAMENTO DE TUBOS E PECAS | C95: ASTU | D95: FORNEC E/OU ASSENT DE TUBO DE PVC COM JUNTA ELASTICA | E95: 0048 | H95: 90746 | I95: ASSENTAMENTO DE TUBO DE PEAD CORRUGADO DE DUPLA PAREDE PARA REDE COLETORA DE ESGOTO, DN 450 MM, JUNTA ELÁSTICA INTEGRADA (NÃO INCLUI FORNECIMENTO). AF_01/2021 | J95: M | K95: COEFICIENTE DE REPRESENTATIVIDADE | L95: 2,82 | M95: CAIXA REFERENCIAL
A96: 90747 | B96: ASSENTAMENTO DE TUBOS E PECAS | C96: ASTU | D96: FORNEC E/OU ASSENT DE TUBO DE PVC COM JUNTA ELASTICA | E96: 0048 | H96: 90747 | I96: ASSENTAMENTO DE TUBO DE PEAD CORRUGADO DE DUPLA PAREDE PARA REDE COLETORA DE ESGOTO, DN 600 MM, JUNTA ELÁSTICA INTEGRADA (NÃO INCLUI FORNECIMENTO). AF_01/2021 | J96: M | K96: ATRIBUÍDO SÃO PAULO | L96: 15,26 | M96: CAIXA REFERENCIAL
A97: 94869 | B97: ASSENTAMENTO DE TUBOS E PECAS | C97: ASTU | D97: FORNEC E/OU ASSENT DE TUBO DE PVC COM JUNTA ELASTICA | E97: 0048 | H97: 94869 | I97: TUBO DE PEAD CORRUGADO DE DUPLA PAREDE PARA REDE COLETORA DE ESGOTO, DN 250 MM, JUNTA ELÁSTICA INTEGRADA - FORNECIMENTO E ASSENTAMENTO. AF_01/2021 | J97: M | K97: ATRIBUÍDO SÃO PAULO | L97: 143,01 | M97: CAIXA REFERENCIAL
A98: 94870 | B98: ASSENTAMENTO DE TUBOS E PECAS | C98: ASTU | D98: FORNEC E/OU ASSENT DE TUBO DE PVC COM JUNTA ELASTICA | E98: 0048 | H98: 94870 | I98: ASSENTAMENTO DE TUBO DE PEAD CORRUGADO DE DUPLA PAREDE PARA REDE COLETORA DE ESGOTO, DN 250 MM, JUNTA ELÁSTICA INTEGRADA (NÃO INCLUI FORNECIMENTO). AF_01/2021 | J98: M | K98: COEFICIENTE DE REPRESENTATIVIDADE | L98: 1,59 | M98: CAIXA REFERENCIAL
A99: 94871 | B99: ASSENTAMENTO DE TUBOS E PECAS | C99: ASTU | D99: FORNEC E/OU ASSENT DE TUBO DE PVC COM JUNTA ELASTICA | E99: 0048 | H99: 94871 | I99: TUBO DE PEAD CORRUGADO DE DUPLA PAREDE PARA REDE COLETORA DE ESGOTO, DN 300 MM, JUNTA ELÁSTICA INTEGRADA - FORNECIMENTO E ASSENTAMENTO. AF_01/2021 | J99: M | K99: ATRIBUÍDO SÃO PAULO | L99: 223,76 | M99: CAIXA REFERENCIAL
A100: 94872 | B100: ASSENTAMENTO DE TUBOS E PECAS | C100: ASTU | D100: FORNEC E/OU ASSENT DE TUBO DE PVC COM JUNTA ELASTICA | E100: 0048 | H100: 94872 | I100: ASSENTAMENTO DE TUBO DE PEAD CORRUGADO DE DUPLA PAREDE PARA REDE COLETORA DE ESGOTO, DN 300 MM, JUNTA ELÁSTICA INTEGRADA (NÃO INCLUI FORNECIMENTO). AF_01/2021 | J100: M | K100: COEFICIENTE DE REPRESENTATIVIDADE | L100: 2,20 | M100: CAIXA REFERENCIAL
A101: 94875 | B101: ASSENTAMENTO DE TUBOS E PECAS | C101: ASTU | D101: FORNEC E/OU ASSENT DE TUBO DE PVC COM JUNTA ELASTICA | E101: 0048 | H101: 94875 | I101: TUBO DE PEAD CORRUGADO DE DUPLA PAREDE PARA REDE COLETORA DE ESGOTO, DN 800 MM, JUNTA ELÁSTICA INTEGRADA - FORNECIMENTO E ASSENTAMENTO. AF_01/2021 | J101: M | K101: ATRIBUÍDO SÃO PAULO | L101: 1.316,53 | M101: CAIXA REFERENCIAL
A102: 94876 | B102: ASSENTAMENTO DE TUBOS E PECAS | C102: ASTU | D102: FORNEC E/OU ASSENT DE TUBO DE PVC COM JUNTA ELASTICA | E102: 0048 | H102: 94876 | I102: ASSENTAMENTO DE TUBO DE PEAD CORRUGADO DE DUPLA PAREDE PARA REDE COLETORA DE ESGOTO, DN 800 MM, JUNTA ELÁSTICA INTEGRADA (NÃO INCLUI FORNECIMENTO). AF_01/2021 | J102: M | K102: ATRIBUÍDO SÃO PAULO | L102: 25,58 | M102: CAIXA REFERENCIAL
A103: 94878 | B103: ASSENTAMENTO DE TUBOS E PECAS | C103: ASTU | D103: FORNEC E/OU ASSENT DE TUBO DE PVC COM JUNTA ELASTICA | E103: 0048 | H103: 94878 | I103: ASSENTAMENTO DE TUBO DE PEAD CORRUGADO DE DUPLA PAREDE PARA REDE COLETORA DE ESGOTO, DN 900 MM, JUNTA ELÁSTICA INTEGRADA (NÃO INCLUI FORNECIMENTO). AF_01/2021 | J103: M | K103: ATRIBUÍDO SÃO PAULO | L103: 29,60 | M103: CAIXA REFERENCIAL
A104: 94879 | B104: ASSENTAMENTO DE TUBOS E PECAS | C104: ASTU | D104: FORNEC E/OU ASSENT DE TUBO DE PVC COM JUNTA ELASTICA | E104: 0048 | H104: 94879 | I104: TUBO DE PEAD CORRUGADO DE DUPLA PAREDE PARA REDE COLETORA DE ESGOTO, DN 1000 MM, JUNTA ELÁSTICA INTEGRADA - FORNECIMENTO E ASSENTAMENTO. AF_01/2021 | J104: M | K104: ATRIBUÍDO SÃO PAULO | L104: 2.026,83 | M104: CAIXA REFERENCIAL
A105: 94880 | B105: ASSENTAMENTO DE TUBOS E PECAS | C105: ASTU | D105: FORNEC E/OU ASSENT DE TUBO DE PVC COM JUNTA ELASTICA | E105: 0048 | H105: 94880 | I105: ASSENTAMENTO DE TUBO DE PEAD CORRUGADO DE DUPLA PAREDE PARA REDE COLETORA DE ESGOTO, DN 1000 MM, JUNTA ELÁSTICA INTEGRADA (NÃO INCLUI FORNECIMENTO). AF_01/2021 | J105: M | K105: ATRIBUÍDO SÃO PAULO | L105: 38,16 | M105: CAIXA REFERENCIAL
A106: 94881 | B106: ASSENTAMENTO DE TUBOS E PECAS | C106: ASTU | D106: FORNEC E/OU ASSENT DE TUBO DE PVC COM JUNTA ELASTICA | E106: 0048 | H106: 94881 | I106: TUBO DE PEAD CORRUGADO DE DUPLA PAREDE PARA REDE COLETORA DE ESGOTO, DN 1200 MM, JUNTA ELÁSTICA INTEGRADA - FORNECIMENTO E ASSENTAMENTO. AF_01/2021 | J106: M | K106: ATRIBUÍDO SÃO PAULO | L106: 2.792,84 | M106: CAIXA REFERENCIAL
A107: 94882 | B107: ASSENTAMENTO DE TUBOS E PECAS | C107: ASTU | D107: FORNEC E/OU ASSENT DE TUBO DE PVC COM JUNTA ELASTICA | E107: 0048 | H107: 94882 | I107: ASSENTAMENTO DE TUBO DE PEAD CORRUGADO DE DUPLA PAREDE PARA REDE COLETORA DE ESGOTO, DN 1200 MM, JUNTA ELÁSTICA INTEGRADA (NÃO INCLUI FORNECIMENTO). AF_01/2021 | J107: M | K107: ATRIBUÍDO SÃO PAULO | L107: 44,36 | M107: CAIXA REFERENCIAL
A108: 94884 | B108: ASSENTAMENTO DE TUBOS E PECAS | C108: ASTU | D108: FORNEC E/OU ASSENT DE TUBO DE PVC COM JUNTA ELASTICA | E108: 0048 | H108: 94884 | I108: ASSENTAMENTO DE TUBO DE PEAD CORRUGADO DE DUPLA PAREDE PARA REDE COLETORA DE ESGOTO, DN 1500 MM, JUNTA ELÁSTICA INTEGRADA (NÃO INCLUI FORNECIMENTO). AF_01/2021 | J108: M | K108: ATRIBUÍDO SÃO PAULO | L108: 56,88 | M108: CAIXA REFERENCIAL
A109: 97121 | B109: ASSENTAMENTO DE TUBOS E PECAS | C109: ASTU | D109: FORNEC E/OU ASSENT DE TUBO DE PVC COM JUNTA ELASTICA | E109: 0048 | H109: 97121 | I109: ASSENTAMENTO DE TUBO DE PVC PBA PARA REDE DE ÁGUA, DN 50 MM, JUNTA ELÁSTICA INTEGRADA, INSTALADO EM LOCAL COM NÍVEL ALTO DE INTERFERÊNCIAS (NÃO INCLUI FORNECIMENTO). AF_11/2017 | J109: M | K109: COEFICIENTE DE REPRESENTATIVIDADE | L109: 1,57 | M109: CAIXA REFERENCIAL
A110: 97122 | B110: ASSENTAMENTO DE TUBOS E PECAS | C110: ASTU | D110: FORNEC E/OU ASSENT DE TUBO DE PVC COM JUNTA ELASTICA | E110: 0048 | H110: 97122 | I110: ASSENTAMENTO DE TUBO DE PVC PBA PARA REDE DE ÁGUA, DN 75 MM, JUNTA ELÁSTICA INTEGRADA, INSTALADO EM LOCAL COM NÍVEL ALTO DE INTERFERÊNCIAS (NÃO INCLUI FORNECIMENTO). AF_11/2017 | J110: M | K110: COEFICIENTE DE REPRESENTATIVIDADE | L110: 2,18 | M110: CAIXA REFERENCIAL
A111: 97123 | B111: ASSENTAMENTO DE TUBOS E PECAS | C111: ASTU | D111: FORNEC E/OU ASSENT DE TUBO DE PVC COM JUNTA ELASTICA | E111: 0048 | H111: 97123 | I111: ASSENTAMENTO DE TUBO DE PVC PBA PARA REDE DE ÁGUA, DN 100 MM, JUNTA ELÁSTICA INTEGRADA, INSTALADO EM LOCAL COM NÍVEL ALTO DE INTERFERÊNCIAS (NÃO INCLUI FORNECIMENTO). AF_11/2017 | J111: M | K111: COEFICIENTE DE REPRESENTATIVIDADE | L111: 2,77 | M111: CAIXA REFERENCIAL
A112: 97124 | B112: ASSENTAMENTO DE TUBOS E PECAS | C112: ASTU | D112: FORNEC E/OU ASSENT DE TUBO DE PVC COM JUNTA ELASTICA | E112: 0048 | H112: 97124 | I112: ASSENTAMENTO DE TUBO DE PVC PBA PARA REDE DE ÁGUA, DN 50 MM, JUNTA ELÁSTICA INTEGRADA, INSTALADO EM LOCAL COM NÍVEL BAIXO DE INTERFERÊNCIAS (NÃO INCLUI FORNECIMENTO). AF_11/2017 | J112: M | K112: COEFICIENTE DE REPRESENTATIVIDADE | L112: 0,70 | M112: CAIXA REFERENCIAL
A113: 97125 | B113: ASSENTAMENTO DE TUBOS E PECAS | C113: ASTU | D113: FORNEC E/OU ASSENT DE TUBO DE PVC COM JUNTA ELASTICA | E113: 0048 | H113: 97125 | I113: ASSENTAMENTO DE TUBO DE PVC PBA PARA REDE DE ÁGUA, DN 75 MM, JUNTA ELÁSTICA INTEGRADA, INSTALADO EM LOCAL COM NÍVEL BAIXO DE INTERFERÊNCIAS (NÃO INCLUI FORNECIMENTO). AF_11/2017 | J113: M | K113: COEFICIENTE DE REPRESENTATIVIDADE | L113: 1,00 | M113: CAIXA REFERENCIAL
A114: 97126 | B114: ASSENTAMENTO DE TUBOS E PECAS | C114: ASTU | D114: FORNEC E/OU ASSENT DE TUBO DE PVC COM JUNTA ELASTICA | E114: 0048 | H114: 97126 | I114: ASSENTAMENTO DE TUBO DE PVC PBA PARA REDE DE ÁGUA, DN 100 MM, JUNTA ELÁSTICA INTEGRADA, INSTALADO EM LOCAL COM NÍVEL BAIXO DE INTERFERÊNCIAS (NÃO INCLUI FORNECIMENTO). AF_11/2017 | J114: M | K114: COEFICIENTE DE REPRESENTATIVIDADE | L114: 1,28 | M114: CAIXA REFERENCIAL
A115: 102264 | B115: ASSENTAMENTO DE TUBOS E PECAS | C115: ASTU | D115: FORNEC E/OU ASSENT DE TUBO DE PVC COM JUNTA ELASTICA | E115: 0048 | H115: 102264 | I115: TUBO DE PVC BRANCO PARA REDE COLETORA DE ESGOTO CONDOMINIAL DE PAREDE MACIÇA, DN 100 MM, JUNTA ELÁSTICA - FORNECIMENTO E ASSENTAMENTO. AF_01/2021 | J115: M | K115: COEFICIENTE DE REPRESENTATIVIDADE | L115: 20,49 | M115: CAIXA REFERENCIAL
A116: 102265 | B116: ASSENTAMENTO DE TUBOS E PECAS | C116: ASTU | D116: FORNEC E/OU ASSENT DE TUBO DE PVC COM JUNTA ELASTICA | E116: 0048 | H116: 102265 | I116: JUNTA ARGAMASSADA ENTRE TUBO DN 800 MM E O POÇO DE VISITA/ CAIXA DE CONCRETO OU ALVENARIA EM REDES DE ESGOTO. AF_01/2021 | J116: UN | K116: COEFICIENTE DE REPRESENTATIVIDADE | L116: 81,05 | M116: CAIXA REFERENCIAL
A117: 102266 | B117: ASSENTAMENTO DE TUBOS E PECAS | C117: ASTU | D117: FORNEC E/OU ASSENT DE TUBO DE PVC COM JUNTA ELASTICA | E117: 0048 | H117: 102266 | I117: JUNTA ARGAMASSADA ENTRE TUBO DN 900 MM E O POÇO DE VISITA/ CAIXA DE CONCRETO OU ALVENARIA EM REDES DE ESGOTO. AF_01/2021 | J117: UN | K117: COEFICIENTE DE REPRESENTATIVIDADE | L117: 89,91 | M117: CAIXA REFERENCIAL
A118: 102267 | B118: ASSENTAMENTO DE TUBOS E PECAS | C118: ASTU | D118: FORNEC E/OU ASSENT DE TUBO DE PVC COM JUNTA ELASTICA | E118: 0048 | H118: 102267 | I118: JUNTA ARGAMASSADA ENTRE TUBO DN 1000 MM E O POÇO DE VISITA/ CAIXA DE CONCRETO OU ALVENARIA EM REDES DE ESGOTO. AF_01/2021 | J118: UN | K118: COEFICIENTE DE REPRESENTATIVIDADE | L118: 103,27 | M118: CAIXA REFERENCIAL
A119: 102268 | B119: ASSENTAMENTO DE TUBOS E PECAS | C119: ASTU | D119: FORNEC E/OU ASSENT DE TUBO DE PVC COM JUNTA ELASTICA | E119: 0048 | H119: 102268 | I119: JUNTA ARGAMASSADA ENTRE TUBO DN 1200 MM E O POÇO DE VISITA/ CAIXA DE CONCRETO OU ALVENARIA EM REDES DE ESGOTO. AF_01/2021 | J119: UN | K119: COEFICIENTE DE REPRESENTATIVIDADE | L119: 116,57 | M119: CAIXA REFERENCIAL
A120: 102269 | B120: ASSENTAMENTO DE TUBOS E PECAS | C120: ASTU | D120: FORNEC E/OU ASSENT DE TUBO DE PVC COM JUNTA ELASTICA | E120: 0048 | H120: 102269 | I120: JUNTA ARGAMASSADA ENTRE TUBO DN 1500 MM E O POÇO DE VISITA/ CAIXA DE CONCRETO OU ALVENARIA EM REDES DE ESGOTO. AF_01/2021 | J120: UN | K120: COEFICIENTE DE REPRESENTATIVIDADE | L120: 143,16 | M120: CAIXA REFERENCIAL
A121: 92833 | B121: ASSENTAMENTO DE TUBOS E PECAS | C121: ASTU | D121: FORNEC E/OU ASSENT DE TUBO DE CONCRETO COM JUNTA ELASTICA | E121: 0051 | H121: 92833 | I121: TUBO DE CONCRETO PARA REDES COLETORAS DE ESGOTO SANITÁRIO, DIÂMETRO DE 300 MM, JUNTA ELÁSTICA, INSTALADO EM LOCAL COM BAIXO NÍVEL DE INTERFERÊNCIAS - FORNECIMENTO E ASSENTAMENTO. AF_12/2015 | J121: M | K121: ATRIBUÍDO SÃO PAULO | L121: 198,97 | M121: CAIXA REFERENCIAL
A122: 92834 | B122: ASSENTAMENTO DE TUBOS E PECAS | C122: ASTU | D122: FORNEC E/OU ASSENT DE TUBO DE CONCRETO COM JUNTA ELASTICA | E122: 0051 | H122: 92834 | I122: ASSENTAMENTO DE TUBO DE CONCRETO PARA REDES COLETORAS DE ESGOTO SANITÁRIO, DIÂMETRO DE 300 MM, JUNTA ELÁSTICA, INSTALADO EM LOCAL COM BAIXO NÍVEL DE INTERFERÊNCIAS (NÃO INCLUI FORNECIMENTO). AF_12/2015 | J122: M | K122: ATRIBUÍDO SÃO PAULO | L122: 7,90 | M122: CAIXA REFERENCIAL
A123: 92835 | B123: ASSENTAMENTO DE TUBOS E PECAS | C123: ASTU | D123: FORNEC E/OU ASSENT DE TUBO DE CONCRETO COM JUNTA ELASTICA | E123: 0051 | H123: 92835 | I123: TUBO DE CONCRETO PARA REDES COLETORAS DE ESGOTO SANITÁRIO, DIÂMETRO DE 400 MM, JUNTA ELÁSTICA, INSTALADO EM LOCAL COM BAIXO NÍVEL DE INTERFERÊNCIAS - FORNECIMENTO E ASSENTAMENTO. AF_12/2015 | J123: M | K123: ATRIBUÍDO SÃO PAULO | L123: 208,41 | M123: CAIXA REFERENCIAL
A124: 92836 | B124: ASSENTAMENTO DE TUBOS E PECAS | C124: ASTU | D124: FORNEC E/OU ASSENT DE TUBO DE CONCRETO COM JUNTA ELASTICA | E124: 0051 | H124: 92836 | I124: ASSENTAMENTO DE TUBO DE CONCRETO PARA REDES COLETORAS DE ESGOTO SANITÁRIO, DIÂMETRO DE 400 MM, JUNTA ELÁSTICA, INSTALADO EM LOCAL COM BAIXO NÍVEL DE INTERFERÊNCIAS (NÃO INCLUI FORNECIMENTO). AF_12/2015 | J124: M | K124: ATRIBUÍDO SÃO PAULO | L124: 10,10 | M124: CAIXA REFERENCIAL
A125: 92837 | B125: ASSENTAMENTO DE TUBOS E PECAS | C125: ASTU | D125: FORNEC E/OU ASSENT DE TUBO DE CONCRETO COM JUNTA ELASTICA | E125: 0051 | H125: 92837 | I125: TUBO DE CONCRETO PARA REDES COLETORAS DE ESGOTO SANITÁRIO, DIÂMETRO DE 500 MM, JUNTA ELÁSTICA, INSTALADO EM LOCAL COM BAIXO NÍVEL DE INTERFERÊNCIAS - FORNECIMENTO E ASSENTAMENTO. AF_12/2015 | J125: M | K125: ATRIBUÍDO SÃO PAULO | L125: 368,08 | M125: CAIXA REFERENCIAL
A126: 92838 | B126: ASSENTAMENTO DE TUBOS E PECAS | C126: ASTU | D126: FORNEC E/OU ASSENT DE TUBO DE CONCRETO COM JUNTA ELASTICA | E126: 0051 | H126: 92838 | I126: ASSENTAMENTO DE TUBO DE CONCRETO PARA REDES COLETORAS DE ESGOTO SANITÁRIO, DIÂMETRO DE 500 MM, JUNTA ELÁSTICA, INSTALADO EM LOCAL COM BAIXO NÍVEL DE INTERFERÊNCIAS (NÃO INCLUI FORNECIMENTO). AF_12/2015 | J126: M | K126: ATRIBUÍDO SÃO PAULO | L126: 12,09 | M126: CAIXA REFERENCIAL
A127: 92839 | B127: ASSENTAMENTO DE TUBOS E PECAS | C127: ASTU | D127: FORNEC E/OU ASSENT DE TUBO DE CONCRETO COM JUNTA ELASTICA | E127: 0051 | H127: 92839 | I127: TUBO DE CONCRETO PARA REDES COLETORAS DE ESGOTO SANITÁRIO, DIÂMETRO DE 600 MM, JUNTA ELÁSTICA, INSTALADO EM LOCAL COM BAIXO NÍVEL DE INTERFERÊNCIAS - FORNECIMENTO E ASSENTAMENTO. AF_12/2015 | J127: M | K127: ATRIBUÍDO SÃO PAULO | L127: 450,36 | M127: CAIXA REFERENCIAL
A128: 92840 | B128: ASSENTAMENTO DE TUBOS E PECAS | C128: ASTU | D128: FORNEC E/OU ASSENT DE TUBO DE CONCRETO COM JUNTA ELASTICA | E128: 0051 | H128: 92840 | I128: ASSENTAMENTO DE TUBO DE CONCRETO PARA REDES COLETORAS DE ESGOTO SANITÁRIO, DIÂMETRO DE 600 MM, JUNTA ELÁSTICA, INSTALADO EM LOCAL COM BAIXO NÍVEL DE INTERFERÊNCIAS (NÃO INCLUI FORNECIMENTO). AF_12/2015 | J128: M | K128: ATRIBUÍDO SÃO PAULO | L128: 14,36 | M128: CAIXA REFERENCIAL
A129: 92841 | B129: ASSENTAMENTO DE TUBOS E PECAS | C129: ASTU | D129: FORNEC E/OU ASSENT DE TUBO DE CONCRETO COM JUNTA ELASTICA | E129: 0051 | H129: 92841 | I129: TUBO DE CONCRETO PARA REDES COLETORAS DE ESGOTO SANITÁRIO, DIÂMETRO DE 700 MM, JUNTA ELÁSTICA, INSTALADO EM LOCAL COM BAIXO NÍVEL DE INTERFERÊNCIAS - FORNECIMENTO E ASSENTAMENTO. AF_12/2015 | J129: M | K129: ATRIBUÍDO SÃO PAULO | L129: 587,20 | M129: CAIXA REFERENCIAL
A130: 92842 | B130: ASSENTAMENTO DE TUBOS E PECAS | C130: ASTU | D130: FORNEC E/OU ASSENT DE TUBO DE CONCRETO COM JUNTA ELASTICA | E130: 0051 | H130: 92842 | I130: ASSENTAMENTO DE TUBO DE CONCRETO PARA REDES COLETORAS DE ESGOTO SANITÁRIO, DIÂMETRO DE 700 MM, JUNTA ELÁSTICA, INSTALADO EM LOCAL COM BAIXO NÍVEL DE INTERFERÊNCIAS (NÃO INCLUI FORNECIMENTO). AF_12/2015 | J130: M | K130: ATRIBUÍDO SÃO PAULO | L130: 16,37 | M130: CAIXA REFERENCIAL
A131: 92843 | B131: ASSENTAMENTO DE TUBOS E PECAS | C131: ASTU | D131: FORNEC E/OU ASSENT DE TUBO DE CONCRETO COM JUNTA ELASTICA | E131: 0051 | H131: 92843 | I131: TUBO DE CONCRETO PARA REDES COLETORAS DE ESGOTO SANITÁRIO, DIÂMETRO DE 800 MM, JUNTA ELÁSTICA, INSTALADO EM LOCAL COM BAIXO NÍVEL DE INTERFERÊNCIAS - FORNECIMENTO E ASSENTAMENTO. AF_12/2015 | J131: M | K131: ATRIBUÍDO SÃO PAULO | L131: 608,78 | M131: CAIXA REFERENCIAL
A132: 92844 | B132: ASSENTAMENTO DE TUBOS E PECAS | C132: ASTU | D132: FORNEC E/OU ASSENT DE TUBO DE CONCRETO COM JUNTA ELASTICA | E132: 0051 | H132: 92844 | I132: ASSENTAMENTO DE TUBO DE CONCRETO PARA REDES COLETORAS DE ESGOTO SANITÁRIO, DIÂMETRO DE 800 MM, JUNTA ELÁSTICA, INSTALADO EM LOCAL COM BAIXO NÍVEL DE INTERFERÊNCIAS (NÃO INCLUI FORNECIMENTO). AF_12/2015 | J132: M | K132: ATRIBUÍDO SÃO PAULO | L132: 18,63 | M132: CAIXA REFERENCIAL
A133: 92845 | B133: ASSENTAMENTO DE TUBOS E PECAS | C133: ASTU | D133: FORNEC E/OU ASSENT DE TUBO DE CONCRETO COM JUNTA ELASTICA | E133: 0051 | H133: 92845 | I133: TUBO DE CONCRETO PARA REDES COLETORAS DE ESGOTO SANITÁRIO, DIÂMETRO DE 900 MM, JUNTA ELÁSTICA, INSTALADO EM LOCAL COM BAIXO NÍVEL DE INTERFERÊNCIAS - FORNECIMENTO E ASSENTAMENTO. AF_12/2015 | J133: M | K133: ATRIBUÍDO SÃO PAULO | L133: 901,43 | M133: CAIXA REFERENCIAL
A134: 92846 | B134: ASSENTAMENTO DE TUBOS E PECAS | C134: ASTU | D134: FORNEC E/OU ASSENT DE TUBO DE CONCRETO COM JUNTA ELASTICA | E134: 0051 | H134: 92846 | I134: ASSENTAMENTO DE TUBO DE CONCRETO PARA REDES COLETORAS DE ESGOTO SANITÁRIO, DIÂMETRO DE 900 MM, JUNTA ELÁSTICA, INSTALADO EM LOCAL COM BAIXO NÍVEL DE INTERFERÊNCIAS (NÃO INCLUI FORNECIMENTO). AF_12/2015 | J134: M | K134: ATRIBUÍDO SÃO PAULO | L134: 20,62 | M134: CAIXA REFERENCIAL
A135: 92847 | B135: ASSENTAMENTO DE TUBOS E PECAS | C135: ASTU | D135: FORNEC E/OU ASSENT DE TUBO DE CONCRETO COM JUNTA ELASTICA | E135: 0051 | H135: 92847 | I135: TUBO DE CONCRETO PARA REDES COLETORAS DE ESGOTO SANITÁRIO, DIÂMETRO DE 1000 MM, JUNTA ELÁSTICA, INSTALADO EM LOCAL COM BAIXO NÍVEL DE INTERFERÊNCIAS - FORNECIMENTO E ASSENTAMENTO. AF_12/2015 | J135: M | K135: ATRIBUÍDO SÃO PAULO | L135: 927,24 | M135: CAIXA REFERENCIAL
A136: 92848 | B136: ASSENTAMENTO DE TUBOS E PECAS | C136: ASTU | D136: FORNEC E/OU ASSENT DE TUBO DE CONCRETO COM JUNTA ELASTICA | E136: 0051 | H136: 92848 | I136: ASSENTAMENTO DE TUBO DE CONCRETO PARA REDES COLETORAS DE ESGOTO SANITÁRIO, DIÂMETRO DE 1000 MM, JUNTA ELÁSTICA, INSTALADO EM LOCAL COM BAIXO NÍVEL DE INTERFERÊNCIAS (NÃO INCLUI FORNECIMENTO). AF_12/2015 | J136: M | K136: ATRIBUÍDO SÃO PAULO | L136: 22,91 | M136: CAIXA REFERENCIAL
A137: 92849 | B137: ASSENTAMENTO DE TUBOS E PECAS | C137: ASTU | D137: FORNEC E/OU ASSENT DE TUBO DE CONCRETO COM JUNTA ELASTICA | E137: 0051 | H137: 92849 | I137: TUBO DE CONCRETO PARA REDES COLETORAS DE ESGOTO SANITÁRIO, DIÂMETRO DE 300 MM, JUNTA ELÁSTICA, INSTALADO EM LOCAL COM ALTO NÍVEL DE INTERFERÊNCIAS - FORNECIMENTO E ASSENTAMENTO. AF_12/2015 | J137: M | K137: ATRIBUÍDO SÃO PAULO | L137: 206,02 | M137: CAIXA REFERENCIAL
A138: 92850 | B138: ASSENTAMENTO DE TUBOS E PECAS | C138: ASTU | D138: FORNEC E/OU ASSENT DE TUBO DE CONCRETO COM JUNTA ELASTICA | E138: 0051 | H138: 92850 | I138: ASSENTAMENTO DE TUBO DE CONCRETO PARA REDES COLETORAS DE ESGOTO SANITÁRIO, DIÂMETRO DE 300 MM, JUNTA ELÁSTICA, INSTALADO EM LOCAL COM ALTO NÍVEL DE INTERFERÊNCIAS (NÃO INCLUI FORNECIMENTO). AF_12/2015 | J138: M | K138: ATRIBUÍDO SÃO PAULO | L138: 14,95 | M138: CAIXA REFERENCIAL
A139: 92851 | B139: ASSENTAMENTO DE TUBOS E PECAS | C139: ASTU | D139: FORNEC E/OU ASSENT DE TUBO DE CONCRETO COM JUNTA ELASTICA | E139: 0051 | H139: 92851 | I139: TUBO DE CONCRETO PARA REDES COLETORAS DE ESGOTO SANITÁRIO, DIÂMETRO DE 400 MM, JUNTA ELÁSTICA, INSTALADO EM LOCAL COM ALTO NÍVEL DE INTERFERÊNCIAS - FORNECIMENTO E ASSENTAMENTO. AF_12/2015 | J139: M | K139: ATRIBUÍDO SÃO PAULO | L139: 217,18 | M139: CAIXA REFERENCIAL
A140: 92852 | B140: ASSENTAMENTO DE TUBOS E PECAS | C140: ASTU | D140: FORNEC E/OU ASSENT DE TUBO DE CONCRETO COM JUNTA ELASTICA | E140: 0051 | H140: 92852 | I140: ASSENTAMENTO DE TUBO DE CONCRETO PARA REDES COLETORAS DE ESGOTO SANITÁRIO, DIÂMETRO DE 400 MM, JUNTA ELÁSTICA, INSTALADO EM LOCAL COM ALTO NÍVEL DE INTERFERÊNCIAS (NÃO INCLUI FORNECIMENTO). AF_12/2015 | J140: M | K140: ATRIBUÍDO SÃO PAULO | L140: 18,87 | M140: CAIXA REFERENCIAL
A141: 92853 | B141: ASSENTAMENTO DE TUBOS E PECAS | C141: ASTU | D141: FORNEC E/OU ASSENT DE TUBO DE CONCRETO COM JUNTA ELASTICA | E141: 0051 | H141: 92853 | I141: TUBO DE CONCRETO PARA REDES COLETORAS DE ESGOTO SANITÁRIO, DIÂMETRO DE 500 MM, JUNTA ELÁSTICA, INSTALADO EM LOCAL COM ALTO NÍVEL DE INTERFERÊNCIAS - FORNECIMENTO E ASSENTAMENTO. AF_12/2015 | J141: M | K141: ATRIBUÍDO SÃO PAULO | L141: 378,97 | M141: CAIXA REFERENCIAL
A142: 92854 | B142: ASSENTAMENTO DE TUBOS E PECAS | C142: ASTU | D142: FORNEC E/OU ASSENT DE TUBO DE CONCRETO COM JUNTA ELASTICA | E142: 0051 | H142: 92854 | I142: ASSENTAMENTO DE TUBO DE CONCRETO PARA REDES COLETORAS DE ESGOTO SANITÁRIO, DIÂMETRO DE 500 MM, JUNTA ELÁSTICA, INSTALADO EM LOCAL COM ALTO NÍVEL DE INTERFERÊNCIAS (NÃO INCLUI FORNECIMENTO). AF_12/2015 | J142: M | K142: ATRIBUÍDO SÃO PAULO | L142: 22,98 | M142: CAIXA REFERENCIAL
A143: 92855 | B143: ASSENTAMENTO DE TUBOS E PECAS | C143: ASTU | D143: FORNEC E/OU ASSENT DE TUBO DE CONCRETO COM JUNTA ELASTICA | E143: 0051 | H143: 92855 | I143: TUBO DE CONCRETO PARA REDES COLETORAS DE ESGOTO SANITÁRIO, DIÂMETRO DE 600 MM, JUNTA ELÁSTICA, INSTALADO EM LOCAL COM ALTO NÍVEL DE INTERFERÊNCIAS - FORNECIMENTO E ASSENTAMENTO. AF_12/2015 | J143: M | K143: ATRIBUÍDO SÃO PAULO | L143: 463,08 | M143: CAIXA REFERENCIAL
A144: 92856 | B144: ASSENTAMENTO DE TUBOS E PECAS | C144: ASTU | D144: FORNEC E/OU ASSENT DE TUBO DE CONCRETO COM JUNTA ELASTICA | E144: 0051 | H144: 92856 | I144: ASSENTAMENTO DE TUBO DE CONCRETO PARA REDES COLETORAS DE ESGOTO SANITÁRIO, DIÂMETRO DE 600 MM, JUNTA ELÁSTICA, INSTALADO EM LOCAL COM ALTO NÍVEL DE INTERFERÊNCIAS (NÃO INCLUI FORNECIMENTO). AF_12/2015 | J144: M | K144: ATRIBUÍDO SÃO PAULO | L144: 27,08 | M144: CAIXA REFERENCIAL
A145: 92857 | B145: ASSENTAMENTO DE TUBOS E PECAS | C145: ASTU | D145: FORNEC E/OU ASSENT DE TUBO DE CONCRETO COM JUNTA ELASTICA | E145: 0051 | H145: 92857 | I145: TUBO DE CONCRETO PARA REDES COLETORAS DE ESGOTO SANITÁRIO, DIÂMETRO DE 700 MM, JUNTA ELÁSTICA, INSTALADO EM LOCAL COM ALTO NÍVEL DE INTERFERÊNCIAS - FORNECIMENTO E ASSENTAMENTO. AF_12/2015 | J145: M | K145: ATRIBUÍDO SÃO PAULO | L145: 601,80 | M145: CAIXA REFERENCIAL
A146: 92858 | B146: ASSENTAMENTO DE TUBOS E PECAS | C146: ASTU | D146: FORNEC E/OU ASSENT DE TUBO DE CONCRETO COM JUNTA ELASTICA | E146: 0051 | H146: 92858 | I146: ASSENTAMENTO DE TUBO DE CONCRETO PARA REDES COLETORAS DE ESGOTO SANITÁRIO, DIÂMETRO DE 700 MM, JUNTA ELÁSTICA, INSTALADO EM LOCAL COM ALTO NÍVEL DE INTERFERÊNCIAS (NÃO INCLUI FORNECIMENTO). AF_12/2015 | J146: M | K146: ATRIBUÍDO SÃO PAULO | L146: 30,97 | M146: CAIXA REFERENCIAL
A147: 92859 | B147: ASSENTAMENTO DE TUBOS E PECAS | C147: ASTU | D147: FORNEC E/OU ASSENT DE TUBO DE CONCRETO COM JUNTA ELASTICA | E147: 0051 | H147: 92859 | I147: TUBO DE CONCRETO PARA REDES COLETORAS DE ESGOTO SANITÁRIO, DIÂMETRO DE 800 MM, JUNTA ELÁSTICA, INSTALADO EM LOCAL COM ALTO NÍVEL DE INTERFERÊNCIAS - FORNECIMENTO E ASSENTAMENTO. AF_12/2015 | J147: M | K147: ATRIBUÍDO SÃO PAULO | L147: 625,32 | M147: CAIXA REFERENCIAL
A148: 92860 | B148: ASSENTAMENTO DE TUBOS E PECAS | C148: ASTU | D148: FORNEC E/OU ASSENT DE TUBO DE CONCRETO COM JUNTA ELASTICA | E148: 0051 | H148: 92860 | I148: ASSENTAMENTO DE TUBO DE CONCRETO PARA REDES COLETORAS DE ESGOTO SANITÁRIO, DIÂMETRO DE 800 MM, JUNTA ELÁSTICA, INSTALADO EM LOCAL COM ALTO NÍVEL DE INTERFERÊNCIAS (NÃO INCLUI FORNECIMENTO). AF_12/2015 | J148: M | K148: ATRIBUÍDO SÃO PAULO | L148: 35,17 | M148: CAIXA REFERENCIAL
A149: 92861 | B149: ASSENTAMENTO DE TUBOS E PECAS | C149: ASTU | D149: FORNEC E/OU ASSENT DE TUBO DE CONCRETO COM JUNTA ELASTICA | E149: 0051 | H149: 92861 | I149: TUBO DE CONCRETO PARA REDES COLETORAS DE ESGOTO SANITÁRIO, DIÂMETRO DE 900 MM, JUNTA ELÁSTICA, INSTALADO EM LOCAL COM ALTO NÍVEL DE INTERFERÊNCIAS - FORNECIMENTO E ASSENTAMENTO. AF_12/2015 | J149: M | K149: ATRIBUÍDO SÃO PAULO | L149: 920,07 | M149: CAIXA REFERENCIAL
A150: 92862 | B150: ASSENTAMENTO DE TUBOS E PECAS | C150: ASTU | D150: FORNEC E/OU ASSENT DE TUBO DE CONCRETO COM JUNTA ELASTICA | E150: 0051 | H150: 92862 | I150: ASSENTAMENTO DE TUBO DE CONCRETO PARA REDES COLETORAS DE ESGOTO SANITÁRIO, DIÂMETRO DE 900 MM, JUNTA ELÁSTICA, INSTALADO EM LOCAL COM ALTO NÍVEL DE INTERFERÊNCIAS (NÃO INCLUI FORNECIMENTO). AF_12/2015 | J150: M | K150: ATRIBUÍDO SÃO PAULO | L150: 39,26 | M150: CAIXA REFERENCIAL
A151: 92863 | B151: ASSENTAMENTO DE TUBOS E PECAS | C151: ASTU | D151: FORNEC E/OU ASSENT DE TUBO DE CONCRETO COM JUNTA ELASTICA | E151: 0051 | H151: 92863 | I151: TUBO DE CONCRETO PARA REDES COLETORAS DE ESGOTO SANITÁRIO, DIÂMETRO DE 1000 MM, JUNTA ELÁSTICA, INSTALADO EM LOCAL COM ALTO NÍVEL DE INTERFERÊNCIAS - FORNECIMENTO E ASSENTAMENTO. AF_12/2015 | J151: M | K151: ATRIBUÍDO SÃO PAULO | L151: 947,72 | M151: CAIXA REFERENCIAL
A152: 92864 | B152: ASSENTAMENTO DE TUBOS E PECAS | C152: ASTU | D152: FORNEC E/OU ASSENT DE TUBO DE CONCRETO COM JUNTA ELASTICA | E152: 0051 | H152: 92864 | I152: ASSENTAMENTO DE TUBO DE CONCRETO PARA REDES COLETORAS DE ESGOTO SANITÁRIO, DIÂMETRO DE 1000 MM, JUNTA ELÁSTICA, INSTALADO EM LOCAL COM ALTO NÍVEL DE INTERFERÊNCIAS (NÃO INCLUI FORNECIMENTO). AF_12/2015 | J152: M | K152: ATRIBUÍDO SÃO PAULO | L152: 43,39 | M152: CAIXA REFERENCIAL
A153: 92210 | B153: ASSENTAMENTO DE TUBOS E PECAS | C153: ASTU | D153: FORNEC E/OU ASSENT DE TUBO DE CONCRETO COM JUNTA ARGAMASSADA | E153: 0052 | H153: 92210 | I153: TUBO DE CONCRETO PARA REDES COLETORAS DE ÁGUAS PLUVIAIS, DIÂMETRO DE 400 MM, JUNTA RÍGIDA, INSTALADO EM LOCAL COM BAIXO NÍVEL DE INTERFERÊNCIAS - FORNECIMENTO E ASSENTAMENTO. AF_12/2015 | J153: M | K153: ATRIBUÍDO SÃO PAULO | L153: 157,74 | M153: CAIXA REFERENCIAL
A154: 92211 | B154: ASSENTAMENTO DE TUBOS E PECAS | C154: ASTU | D154: FORNEC E/OU ASSENT DE TUBO DE CONCRETO COM JUNTA ARGAMASSADA | E154: 0052 | H154: 92211 | I154: TUBO DE CONCRETO PARA REDES COLETORAS DE ÁGUAS PLUVIAIS, DIÂMETRO DE 500 MM, JUNTA RÍGIDA, INSTALADO EM LOCAL COM BAIXO NÍVEL DE INTERFERÊNCIAS - FORNECIMENTO E ASSENTAMENTO. AF_12/2015 | J154: M | K154: ATRIBUÍDO SÃO PAULO | L154: 189,60 | M154: CAIXA REFERENCIAL
A155: 92212 | B155: ASSENTAMENTO DE TUBOS E PECAS | C155: ASTU | D155: FORNEC E/OU ASSENT DE TUBO DE CONCRETO COM JUNTA ARGAMASSADA | E155: 0052 | H155: 92212 | I155: TUBO DE CONCRETO PARA REDES COLETORAS DE ÁGUAS PLUVIAIS, DIÂMETRO DE 600 MM, JUNTA RÍGIDA, INSTALADO EM LOCAL COM BAIXO NÍVEL DE INTERFERÊNCIAS - FORNECIMENTO E ASSENTAMENTO. AF_12/2015 | J155: M | K155: ATRIBUÍDO SÃO PAULO | L155: 283,25 | M155: CAIXA REFERENCIAL
A156: 92213 | B156: ASSENTAMENTO DE TUBOS E PECAS | C156: ASTU | D156: FORNEC E/OU ASSENT DE TUBO DE CONCRETO COM JUNTA ARGAMASSADA | E156: 0052 | H156: 92213 | I156: TUBO DE CONCRETO PARA REDES COLETORAS DE ÁGUAS PLUVIAIS, DIÂMETRO DE 700 MM, JUNTA RÍGIDA, INSTALADO EM LOCAL COM BAIXO NÍVEL DE INTERFERÊNCIAS - FORNECIMENTO E ASSENTAMENTO. AF_12/2015 | J156: M | K156: ATRIBUÍDO SÃO PAULO | L156: 372,52 | M156: CAIXA REFERENCIAL
A157: 92214 | B157: ASSENTAMENTO DE TUBOS E PECAS | C157: ASTU | D157: FORNEC E/OU ASSENT DE TUBO DE CONCRETO COM JUNTA ARGAMASSADA | E157: 0052 | H157: 92214 | I157: TUBO DE CONCRETO PARA REDES COLETORAS DE ÁGUAS PLUVIAIS, DIÂMETRO DE 800 MM, JUNTA RÍGIDA, INSTALADO EM LOCAL COM BAIXO NÍVEL DE INTERFERÊNCIAS - FORNECIMENTO E ASSENTAMENTO. AF_12/2015 | J157: M | K157: ATRIBUÍDO SÃO PAULO | L157: 450,67 | M157: CAIXA REFERENCIAL
A158: 92215 | B158: ASSENTAMENTO DE TUBOS E PECAS | C158: ASTU | D158: FORNEC E/OU ASSENT DE TUBO DE CONCRETO COM JUNTA ARGAMASSADA | E158: 0052 | H158: 92215 | I158: TUBO DE CONCRETO PARA REDES COLETORAS DE ÁGUAS PLUVIAIS, DIÂMETRO DE 900 MM, JUNTA RÍGIDA, INSTALADO EM LOCAL COM BAIXO NÍVEL DE INTERFERÊNCIAS - FORNECIMENTO E ASSENTAMENTO. AF_12/2015 | J158: M | K158: ATRIBUÍDO SÃO PAULO | L158: 518,09 | M158: CAIXA REFERENCIAL
A159: 92216 | B159: ASSENTAMENTO DE TUBOS E PECAS | C159: ASTU | D159: FORNEC E/OU ASSENT DE TUBO DE CONCRETO COM JUNTA ARGAMASSADA | E159: 0052 | H159: 92216 | I159: TUBO DE CONCRETO PARA REDES COLETORAS DE ÁGUAS PLUVIAIS, DIÂMETRO DE 1000 MM, JUNTA RÍGIDA, INSTALADO EM LOCAL COM BAIXO NÍVEL DE INTERFERÊNCIAS - FORNECIMENTO E ASSENTAMENTO. AF_12/2015 | J159: M | K159: ATRIBUÍDO SÃO PAULO | L159: 542,59 | M159: CAIXA REFERENCIAL
A160: 92219 | B160: ASSENTAMENTO DE TUBOS E PECAS | C160: ASTU | D160: FORNEC E/OU ASSENT DE TUBO DE CONCRETO COM JUNTA ARGAMASSADA | E160: 0052 | H160: 92219 | I160: TUBO DE CONCRETO PARA REDES COLETORAS DE ÁGUAS PLUVIAIS, DIÂMETRO DE 400 MM, JUNTA RÍGIDA, INSTALADO EM LOCAL COM ALTO NÍVEL DE INTERFERÊNCIAS - FORNECIMENTO E ASSENTAMENTO. AF_12/2015 | J160: M | K160: ATRIBUÍDO SÃO PAULO | L160: 166,50 | M160: CAIXA REFERENCIAL
A161: 92220 | B161: ASSENTAMENTO DE TUBOS E PECAS | C161: ASTU | D161: FORNEC E/OU ASSENT DE TUBO DE CONCRETO COM JUNTA ARGAMASSADA | E161: 0052 | H161: 92220 | I161: TUBO DE CONCRETO PARA REDES COLETORAS DE ÁGUAS PLUVIAIS, DIÂMETRO DE 500 MM, JUNTA RÍGIDA, INSTALADO EM LOCAL COM ALTO NÍVEL DE INTERFERÊNCIAS - FORNECIMENTO E ASSENTAMENTO. AF_12/2015 | J161: M | K161: ATRIBUÍDO SÃO PAULO | L161: 200,47 | M161: CAIXA REFERENCIAL
A162: 92221 | B162: ASSENTAMENTO DE TUBOS E PECAS | C162: ASTU | D162: FORNEC E/OU ASSENT DE TUBO DE CONCRETO COM JUNTA ARGAMASSADA | E162: 0052 | H162: 92221 | I162: TUBO DE CONCRETO PARA REDES COLETORAS DE ÁGUAS PLUVIAIS, DIÂMETRO DE 600 MM, JUNTA RÍGIDA, INSTALADO EM LOCAL COM ALTO NÍVEL DE INTERFERÊNCIAS - FORNECIMENTO E ASSENTAMENTO. AF_12/2015 | J162: M | K162: ATRIBUÍDO SÃO PAULO | L162: 295,99 | M162: CAIXA REFERENCIAL
A163: 92222 | B163: ASSENTAMENTO DE TUBOS E PECAS | C163: ASTU | D163: FORNEC E/OU ASSENT DE TUBO DE CONCRETO COM JUNTA ARGAMASSADA | E163: 0052 | H163: 92222 | I163: TUBO DE CONCRETO PARA REDES COLETORAS DE ÁGUAS PLUVIAIS, DIÂMETRO DE 700 MM, JUNTA RÍGIDA, INSTALADO EM LOCAL COM ALTO NÍVEL DE INTERFERÊNCIAS - FORNECIMENTO E ASSENTAMENTO. AF_12/2015 | J163: M | K163: ATRIBUÍDO SÃO PAULO | L163: 387,34 | M163: CAIXA REFERENCIAL
A164: 92223 | B164: ASSENTAMENTO DE TUBOS E PECAS | C164: ASTU | D164: FORNEC E/OU ASSENT DE TUBO DE CONCRETO COM JUNTA ARGAMASSADA | E164: 0052 | H164: 92223 | I164: TUBO DE CONCRETO PARA REDES COLETORAS DE ÁGUAS PLUVIAIS, DIÂMETRO DE 800 MM, JUNTA RÍGIDA, INSTALADO EM LOCAL COM ALTO NÍVEL DE INTERFERÊNCIAS - FORNECIMENTO E ASSENTAMENTO. AF_12/2015 | J164: M | K164: ATRIBUÍDO SÃO PAULO | L164: 467,22 | M164: CAIXA REFERENCIAL
A165: 92224 | B165: ASSENTAMENTO DE TUBOS E PECAS | C165: ASTU | D165: FORNEC E/OU ASSENT DE TUBO DE CONCRETO COM JUNTA ARGAMASSADA | E165: 0052 | H165: 92224 | I165: TUBO DE CONCRETO PARA REDES COLETORAS DE ÁGUAS PLUVIAIS, DIÂMETRO DE 900 MM, JUNTA RÍGIDA, INSTALADO EM LOCAL COM ALTO NÍVEL DE INTERFERÊNCIAS - FORNECIMENTO E ASSENTAMENTO. AF_12/2015 | J165: M | K165: ATRIBUÍDO SÃO PAULO | L165: 536,45 | M165: CAIXA REFERENCIAL
A166: 92226 | B166: ASSENTAMENTO DE TUBOS E PECAS | C166: ASTU | D166: FORNEC E/OU ASSENT DE TUBO DE CONCRETO COM JUNTA ARGAMASSADA | E166: 0052 | H166: 92226 | I166: TUBO DE CONCRETO PARA REDES COLETORAS DE ÁGUAS PLUVIAIS, DIÂMETRO DE 1000 MM, JUNTA RÍGIDA, INSTALADO EM LOCAL COM ALTO NÍVEL DE INTERFERÊNCIAS - FORNECIMENTO E ASSENTAMENTO. AF_12/2015 | J166: M | K166: ATRIBUÍDO SÃO PAULO | L166: 563,16 | M166: CAIXA REFERENCIAL
A167: 92808 | B167: ASSENTAMENTO DE TUBOS E PECAS | C167: ASTU | D167: FORNEC E/OU ASSENT DE TUBO DE CONCRETO COM JUNTA ARGAMASSADA | E167: 0052 | H167: 92808 | I167: ASSENTAMENTO DE TUBO DE CONCRETO PARA REDES COLETORAS DE ÁGUAS PLUVIAIS, DIÂMETRO DE 300 MM, JUNTA RÍGIDA, INSTALADO EM LOCAL COM BAIXO NÍVEL DE INTERFERÊNCIAS (NÃO INCLUI FORNECIMENTO). AF_12/2015 | J167: M | K167: ATRIBUÍDO SÃO PAULO | L167: 35,73 | M167: CAIXA REFERENCIAL
A168: 92809 | B168: ASSENTAMENTO DE TUBOS E PECAS | C168: ASTU | D168: FORNEC E/OU ASSENT DE TUBO DE CONCRETO COM JUNTA ARGAMASSADA | E168: 0052 | H168: 92809 | I168: ASSENTAMENTO DE TUBO DE CONCRETO PARA REDES COLETORAS DE ÁGUAS PLUVIAIS, DIÂMETRO DE 400 MM, JUNTA RÍGIDA, INSTALADO EM LOCAL COM BAIXO NÍVEL DE INTERFERÊNCIAS (NÃO INCLUI FORNECIMENTO). AF_12/2015 | J168: M | K168: ATRIBUÍDO SÃO PAULO | L168: 45,97 | M168: CAIXA REFERENCIAL
A169: 92810 | B169: ASSENTAMENTO DE TUBOS E PECAS | C169: ASTU | D169: FORNEC E/OU ASSENT DE TUBO DE CONCRETO COM JUNTA ARGAMASSADA | E169: 0052 | H169: 92810 | I169: ASSENTAMENTO DE TUBO DE CONCRETO PARA REDES COLETORAS DE ÁGUAS PLUVIAIS, DIÂMETRO DE 500 MM, JUNTA RÍGIDA, INSTALADO EM LOCAL COM BAIXO NÍVEL DE INTERFERÊNCIAS (NÃO INCLUI FORNECIMENTO). AF_12/2015 | J169: M | K169: ATRIBUÍDO SÃO PAULO | L169: 56,01 | M169: CAIXA REFERENCIAL
A170: 92811 | B170: ASSENTAMENTO DE TUBOS E PECAS | C170: ASTU | D170: FORNEC E/OU ASSENT DE TUBO DE CONCRETO COM JUNTA ARGAMASSADA | E170: 0052 | H170: 92811 | I170: ASSENTAMENTO DE TUBO DE CONCRETO PARA REDES COLETORAS DE ÁGUAS PLUVIAIS, DIÂMETRO DE 600 MM, JUNTA RÍGIDA, INSTALADO EM LOCAL COM BAIXO NÍVEL DE INTERFERÊNCIAS (NÃO INCLUI FORNECIMENTO). AF_12/2015 | J170: M | K170: ATRIBUÍDO SÃO PAULO | L170: 66,95 | M170: CAIXA REFERENCIAL
A171: 92812 | B171: ASSENTAMENTO DE TUBOS E PECAS | C171: ASTU | D171: FORNEC E/OU ASSENT DE TUBO DE CONCRETO COM JUNTA ARGAMASSADA | E171: 0052 | H171: 92812 | I171: ASSENTAMENTO DE TUBO DE CONCRETO PARA REDES COLETORAS DE ÁGUAS PLUVIAIS, DIÂMETRO DE 700 MM, JUNTA RÍGIDA, INSTALADO EM LOCAL COM BAIXO NÍVEL DE INTERFERÊNCIAS (NÃO INCLUI FORNECIMENTO). AF_12/2015 | J171: M | K171: ATRIBUÍDO SÃO PAULO | L171: 77,71 | M171: CAIXA REFERENCIAL
A172: 92813 | B172: ASSENTAMENTO DE TUBOS E PECAS | C172: ASTU | D172: FORNEC E/OU ASSENT DE TUBO DE CONCRETO COM JUNTA ARGAMASSADA | E172: 0052 | H172: 92813 | I172: ASSENTAMENTO DE TUBO DE CONCRETO PARA REDES COLETORAS DE ÁGUAS PLUVIAIS, DIÂMETRO DE 800 MM, JUNTA RÍGIDA, INSTALADO EM LOCAL COM BAIXO NÍVEL DE INTERFERÊNCIAS (NÃO INCLUI FORNECIMENTO). AF_12/2015 | J172: M | K172: ATRIBUÍDO SÃO PAULO | L172: 90,78 | M172: CAIXA REFERENCIAL
A173: 92814 | B173: ASSENTAMENTO DE TUBOS E PECAS | C173: ASTU | D173: FORNEC E/OU ASSENT DE TUBO DE CONCRETO COM JUNTA ARGAMASSADA | E173: 0052 | H173: 92814 | I173: ASSENTAMENTO DE TUBO DE CONCRETO PARA REDES COLETORAS DE ÁGUAS PLUVIAIS, DIÂMETRO DE 900 MM, JUNTA RÍGIDA, INSTALADO EM LOCAL COM BAIXO NÍVEL DE INTERFERÊNCIAS (NÃO INCLUI FORNECIMENTO). AF_12/2015 | J173: M | K173: ATRIBUÍDO SÃO PAULO | L173: 104,58 | M173: CAIXA REFERENCIAL
A174: 92815 | B174: ASSENTAMENTO DE TUBOS E PECAS | C174: ASTU | D174: FORNEC E/OU ASSENT DE TUBO DE CONCRETO COM JUNTA ARGAMASSADA | E174: 0052 | H174: 92815 | I174: ASSENTAMENTO DE TUBO DE CONCRETO PARA REDES COLETORAS DE ÁGUAS PLUVIAIS, DIÂMETRO DE 1000 MM, JUNTA RÍGIDA, INSTALADO EM LOCAL COM BAIXO NÍVEL DE INTERFERÊNCIAS (NÃO INCLUI FORNECIMENTO). AF_12/2015 | J174: M | K174: ATRIBUÍDO SÃO PAULO | L174: 120,90 | M174: CAIXA REFERENCIAL
A175: 92816 | B175: ASSENTAMENTO DE TUBOS E PECAS | C175: ASTU | D175: FORNEC E/OU ASSENT DE TUBO DE CONCRETO COM JUNTA ARGAMASSADA | E175: 0052 | H175: 92816 | I175: TUBO DE CONCRETO PARA REDES COLETORAS DE ÁGUAS PLUVIAIS, DIÂMETRO DE 1200 MM, JUNTA RÍGIDA, INSTALADO EM LOCAL COM BAIXO NÍVEL DE INTERFERÊNCIAS - FORNECIMENTO E ASSENTAMENTO. AF_12/2015 | J175: M | K175: ATRIBUÍDO SÃO PAULO | L175: 781,08 | M175: CAIXA REFERENCIAL
A176: 92817 | B176: ASSENTAMENTO DE TUBOS E PECAS | C176: ASTU | D176: FORNEC E/OU ASSENT DE TUBO DE CONCRETO COM JUNTA ARGAMASSADA | E176: 0052 | H176: 92817 | I176: ASSENTAMENTO DE TUBO DE CONCRETO PARA REDES COLETORAS DE ÁGUAS PLUVIAIS, DIÂMETRO DE 1200 MM, JUNTA RÍGIDA, INSTALADO EM LOCAL COM BAIXO NÍVEL DE INTERFERÊNCIAS (NÃO INCLUI FORNECIMENTO). AF_12/2015 | J176: M | K176: ATRIBUÍDO SÃO PAULO | L176: 151,27 | M176: CAIXA REFERENCIAL
A177: 92818 | B177: ASSENTAMENTO DE TUBOS E PECAS | C177: ASTU | D177: FORNEC E/OU ASSENT DE TUBO DE CONCRETO COM JUNTA ARGAMASSADA | E177: 0052 | H177: 92818 | I177: TUBO DE CONCRETO PARA REDES COLETORAS DE ÁGUAS PLUVIAIS, DIÂMETRO DE 1500 MM, JUNTA RÍGIDA, INSTALADO EM LOCAL COM BAIXO NÍVEL DE INTERFERÊNCIAS - FORNECIMENTO E ASSENTAMENTO. AF_12/2015 | J177: M | K177: ATRIBUÍDO SÃO PAULO | L177: 1.116,09 | M177: CAIXA REFERENCIAL
A178: 92819 | B178: ASSENTAMENTO DE TUBOS E PECAS | C178: ASTU | D178: FORNEC E/OU ASSENT DE TUBO DE CONCRETO COM JUNTA ARGAMASSADA | E178: 0052 | H178: 92819 | I178: ASSENTAMENTO DE TUBO DE CONCRETO PARA REDES COLETORAS DE ÁGUAS PLUVIAIS, DIÂMETRO DE 1500 MM, JUNTA RÍGIDA, INSTALADO EM LOCAL COM BAIXO NÍVEL DE INTERFERÊNCIAS (NÃO INCLUI FORNECIMENTO). AF_12/2015 | J178: M | K178: ATRIBUÍDO SÃO PAULO | L178: 203,64 | M178: CAIXA REFERENCIAL
A179: 92820 | B179: ASSENTAMENTO DE TUBOS E PECAS | C179: ASTU | D179: FORNEC E/OU ASSENT DE TUBO DE CONCRETO COM JUNTA ARGAMASSADA | E179: 0052 | H179: 92820 | I179: ASSENTAMENTO DE TUBO DE CONCRETO PARA REDES COLETORAS DE ÁGUAS PLUVIAIS, DIÂMETRO DE 300 MM, JUNTA RÍGIDA, INSTALADO EM LOCAL COM ALTO NÍVEL DE INTERFERÊNCIAS (NÃO INCLUI FORNECIMENTO). AF_12/2015 | J179: M | K179: ATRIBUÍDO SÃO PAULO | L179: 42,58 | M179: CAIXA REFERENCIAL
A180: 92821 | B180: ASSENTAMENTO DE TUBOS E PECAS | C180: ASTU | D180: FORNEC E/OU ASSENT DE TUBO DE CONCRETO COM JUNTA ARGAMASSADA | E180: 0052 | H180: 92821 | I180: ASSENTAMENTO DE TUBO DE CONCRETO PARA REDES COLETORAS DE ÁGUAS PLUVIAIS, DIÂMETRO DE 400 MM, JUNTA RÍGIDA, INSTALADO EM LOCAL COM ALTO NÍVEL DE INTERFERÊNCIAS (NÃO INCLUI FORNECIMENTO). AF_12/2015 | J180: M | K180: ATRIBUÍDO SÃO PAULO | L180: 54,73 | M180: CAIXA REFERENCIAL
A181: 92822 | B181: ASSENTAMENTO DE TUBOS E PECAS | C181: ASTU | D181: FORNEC E/OU ASSENT DE TUBO DE CONCRETO COM JUNTA ARGAMASSADA | E181: 0052 | H181: 92822 | I181: ASSENTAMENTO DE TUBO DE CONCRETO PARA REDES COLETORAS DE ÁGUAS PLUVIAIS, DIÂMETRO DE 500 MM, JUNTA RÍGIDA, INSTALADO EM LOCAL COM ALTO NÍVEL DE INTERFERÊNCIAS (NÃO INCLUI FORNECIMENTO). AF_12/2015 | J181: M | K181: ATRIBUÍDO SÃO PAULO | L181: 66,88 | M181: CAIXA REFERENCIAL
A182: 92824 | B182: ASSENTAMENTO DE TUBOS E PECAS | C182: ASTU | D182: FORNEC E/OU ASSENT DE TUBO DE CONCRETO COM JUNTA ARGAMASSADA | E182: 0052 | H182: 92824 | I182: ASSENTAMENTO DE TUBO DE CONCRETO PARA REDES COLETORAS DE ÁGUAS PLUVIAIS, DIÂMETRO DE 600 MM, JUNTA RÍGIDA, INSTALADO EM LOCAL COM ALTO NÍVEL DE INTERFERÊNCIAS (NÃO INCLUI FORNECIMENTO). AF_12/2015 | J182: M | K182: ATRIBUÍDO SÃO PAULO | L182: 79,69 | M182: CAIXA REFERENCIAL
A183: 92825 | B183: ASSENTAMENTO DE TUBOS E PECAS | C183: ASTU | D183: FORNEC E/OU ASSENT DE TUBO DE CONCRETO COM JUNTA ARGAMASSADA | E183: 0052 | H183: 92825 | I183: ASSENTAMENTO DE TUBO DE CONCRETO PARA REDES COLETORAS DE ÁGUAS PLUVIAIS, DIÂMETRO DE 700 MM, JUNTA RÍGIDA, INSTALADO EM LOCAL COM ALTO NÍVEL DE INTERFERÊNCIAS (NÃO INCLUI FORNECIMENTO). AF_12/2015 | J183: M | K183: ATRIBUÍDO SÃO PAULO | L183: 92,53 | M183: CAIXA REFERENCIAL
A184: 92826 | B184: ASSENTAMENTO DE TUBOS E PECAS | C184: ASTU | D184: FORNEC E/OU ASSENT DE TUBO DE CONCRETO COM JUNTA ARGAMASSADA | E184: 0052 | H184: 92826 | I184: ASSENTAMENTO DE TUBO DE CONCRETO PARA REDES COLETORAS DE ÁGUAS PLUVIAIS, DIÂMETRO DE 800 MM, JUNTA RÍGIDA, INSTALADO EM LOCAL COM ALTO NÍVEL DE INTERFERÊNCIAS (NÃO INCLUI FORNECIMENTO). AF_12/2015 | J184: M | K184: ATRIBUÍDO SÃO PAULO | L184: 107,33 | M184: CAIXA REFERENCIAL
A185: 92827 | B185: ASSENTAMENTO DE TUBOS E PECAS | C185: ASTU | D185: FORNEC E/OU ASSENT DE TUBO DE CONCRETO COM JUNTA ARGAMASSADA | E185: 0052 | H185: 92827 | I185: ASSENTAMENTO DE TUBO DE CONCRETO PARA REDES COLETORAS DE ÁGUAS PLUVIAIS, DIÂMETRO DE 900 MM, JUNTA RÍGIDA, INSTALADO EM LOCAL COM ALTO NÍVEL DE INTERFERÊNCIAS (NÃO INCLUI FORNECIMENTO). AF_12/2015 | J185: M | K185: ATRIBUÍDO SÃO PAULO | L185: 122,94 | M185: CAIXA REFERENCIAL
A186: 92828 | B186: ASSENTAMENTO DE TUBOS E PECAS | C186: ASTU | D186: FORNEC E/OU ASSENT DE TUBO DE CONCRETO COM JUNTA ARGAMASSADA | E186: 0052 | H186: 92828 | I186: ASSENTAMENTO DE TUBO DE CONCRETO PARA REDES COLETORAS DE ÁGUAS PLUVIAIS, DIÂMETRO DE 1000 MM, JUNTA RÍGIDA, INSTALADO EM LOCAL COM ALTO NÍVEL DE INTERFERÊNCIAS (NÃO INCLUI FORNECIMENTO). AF_12/2015 | J186: M | K186: ATRIBUÍDO SÃO PAULO | L186: 141,47 | M186: CAIXA REFERENCIAL
A187: 92829 | B187: ASSENTAMENTO DE TUBOS E PECAS | C187: ASTU | D187: FORNEC E/OU ASSENT DE TUBO DE CONCRETO COM JUNTA ARGAMASSADA | E187: 0052 | H187: 92829 | I187: TUBO DE CONCRETO PARA REDES COLETORAS DE ÁGUAS PLUVIAIS, DIÂMETRO DE 1200 MM, JUNTA RÍGIDA, INSTALADO EM LOCAL COM ALTO NÍVEL DE INTERFERÊNCIAS - FORNECIMENTO E ASSENTAMENTO. AF_12/2015 | J187: M | K187: ATRIBUÍDO SÃO PAULO | L187: 805,29 | M187: CAIXA REFERENCIAL
A188: 92830 | B188: ASSENTAMENTO DE TUBOS E PECAS | C188: ASTU | D188: FORNEC E/OU ASSENT DE TUBO DE CONCRETO COM JUNTA ARGAMASSADA | E188: 0052 | H188: 92830 | I188: ASSENTAMENTO DE TUBO DE CONCRETO PARA REDES COLETORAS DE ÁGUAS PLUVIAIS, DIÂMETRO DE 1200 MM, JUNTA RÍGIDA, INSTALADO EM LOCAL COM ALTO NÍVEL DE INTERFERÊNCIAS (NÃO INCLUI FORNECIMENTO). AF_12/2015 | J188: M | K188: ATRIBUÍDO SÃO PAULO | L188: 175,48 | M188: CAIXA REFERENCIAL
A189: 92831 | B189: ASSENTAMENTO DE TUBOS E PECAS | C189: ASTU | D189: FORNEC E/OU ASSENT DE TUBO DE CONCRETO COM JUNTA ARGAMASSADA | E189: 0052 | H189: 92831 | I189: TUBO DE CONCRETO PARA REDES COLETORAS DE ÁGUAS PLUVIAIS, DIÂMETRO DE 1500 MM, JUNTA RÍGIDA, INSTALADO EM LOCAL COM ALTO NÍVEL DE INTERFERÊNCIAS - FORNECIMENTO E ASSENTAMENTO. AF_12/2015 | J189: M | K189: ATRIBUÍDO SÃO PAULO | L189: 1.145,75 | M189: CAIXA REFERENCIAL
A190: 92832 | B190: ASSENTAMENTO DE TUBOS E PECAS | C190: ASTU | D190: FORNEC E/OU ASSENT DE TUBO DE CONCRETO COM JUNTA ARGAMASSADA | E190: 0052 | H190: 92832 | I190: ASSENTAMENTO DE TUBO DE CONCRETO PARA REDES COLETORAS DE ÁGUAS PLUVIAIS, DIÂMETRO DE 1500 MM, JUNTA RÍGIDA, INSTALADO EM LOCAL COM ALTO NÍVEL DE INTERFERÊNCIAS (NÃO INCLUI FORNECIMENTO). AF_12/2015 | J190: M | K190: ATRIBUÍDO SÃO PAULO | L190: 233,30 | M190: CAIXA REFERENCIAL
A191: 95565 | B191: ASSENTAMENTO DE TUBOS E PECAS | C191: ASTU | D191: FORNEC E/OU ASSENT DE TUBO DE CONCRETO COM JUNTA ARGAMASSADA | E191: 0052 | H191: 95565 | I191: TUBO DE CONCRETO PARA REDES COLETORAS DE ÁGUAS PLUVIAIS, DIÂMETRO DE 300MM, JUNTA RÍGIDA, INSTALADO EM LOCAL COM BAIXO NÍVEL DE INTERFERÊNCIAS - FORNECIMENTO E ASSENTAMENTO. AF_12/2015 | J191: M | K191: ATRIBUÍDO SÃO PAULO | L191: 134,78 | M191: CAIXA REFERENCIAL
A192: 95566 | B192: ASSENTAMENTO DE TUBOS E PECAS | C192: ASTU | D192: FORNEC E/OU ASSENT DE TUBO DE CONCRETO COM JUNTA ARGAMASSADA | E192: 0052 | H192: 95566 | I192: TUBO DE CONCRETO PARA REDES COLETORAS DE ÁGUAS PLUVIAIS, DIÂMETRO DE 300MM, JUNTA RÍGIDA, INSTALADO EM LOCAL COM ALTO NÍVEL DE INTERFERÊNCIAS - FORNECIMENTO E ASSENTAMENTO. AF_12/2015 | J192: M | K192: ATRIBUÍDO SÃO PAULO | L192: 141,63 | M192: CAIXA REFERENCIAL
A193: 95567 | B193: ASSENTAMENTO DE TUBOS E PECAS | C193: ASTU | D193: FORNEC E/OU ASSENT DE TUBO DE CONCRETO COM JUNTA ARGAMASSADA | E193: 0052 | H193: 95567 | I193: TUBO DE CONCRETO (SIMPLES) PARA REDES COLETORAS DE ÁGUAS PLUVIAIS, DIÂMETRO DE 300 MM, JUNTA RÍGIDA, INSTALADO EM LOCAL COM BAIXO NÍVEL DE INTERFERÊNCIAS - FORNECIMENTO E ASSENTAMENTO. AF_12/2015 | J193: M | K193: ATRIBUÍDO SÃO PAULO | L193: 97,53 | M193: CAIXA REFERENCIAL
A194: 95568 | B194: ASSENTAMENTO DE TUBOS E PECAS | C194: ASTU | D194: FORNEC E/OU ASSENT DE TUBO DE CONCRETO COM JUNTA ARGAMASSADA | E194: 0052 | H194: 95568 | I194: TUBO DE CONCRETO (SIMPLES) PARA REDES COLETORAS DE ÁGUAS PLUVIAIS, DIÂMETRO DE 400 MM, JUNTA RÍGIDA, INSTALADO EM LOCAL COM BAIXO NÍVEL DE INTERFERÊNCIAS - FORNECIMENTO E ASSENTAMENTO. AF_12/2015 | J194: M | K194: ATRIBUÍDO SÃO PAULO | L194: 118,99 | M194: CAIXA REFERENCIAL
A195: 95569 | B195: ASSENTAMENTO DE TUBOS E PECAS | C195: ASTU | D195: FORNEC E/OU ASSENT DE TUBO DE CONCRETO COM JUNTA ARGAMASSADA | E195: 0052 | H195: 95569 | I195: TUBO DE CONCRETO (SIMPLES) PARA REDES COLETORAS DE ÁGUAS PLUVIAIS, DIÂMETRO DE 500 MM, JUNTA RÍGIDA, INSTALADO EM LOCAL COM BAIXO NÍVEL DE INTERFERÊNCIAS - FORNECIMENTO E ASSENTAMENTO. AF_12/2015 | J195: M | K195: ATRIBUÍDO SÃO PAULO | L195: 164,69 | M195: CAIXA REFERENCIAL
A196: 95570 | B196: ASSENTAMENTO DE TUBOS E PECAS | C196: ASTU | D196: FORNEC E/OU ASSENT DE TUBO DE CONCRETO COM JUNTA ARGAMASSADA | E196: 0052 | H196: 95570 | I196: TUBO DE CONCRETO (SIMPLES) PARA REDES COLETORAS DE ÁGUAS PLUVIAIS, DIÂMETRO DE 300 MM, JUNTA RÍGIDA, INSTALADO EM LOCAL COM ALTO NÍVEL DE INTERFERÊNCIAS - FORNECIMENTO E ASSENTAMENTO. AF_12/2015 | J196: M | K196: ATRIBUÍDO SÃO PAULO | L196: 104,38 | M196: CAIXA REFERENCIAL
A197: 95571 | B197: ASSENTAMENTO DE TUBOS E PECAS | C197: ASTU | D197: FORNEC E/OU ASSENT DE TUBO DE CONCRETO COM JUNTA ARGAMASSADA | E197: 0052 | H197: 95571 | I197: TUBO DE CONCRETO (SIMPLES) PARA REDES COLETORAS DE ÁGUAS PLUVIAIS, DIÂMETRO DE 400 MM, JUNTA RÍGIDA, INSTALADO EM LOCAL COM ALTO NÍVEL DE INTERFERÊNCIAS - FORNECIMENTO E ASSENTAMENTO. AF_12/2015 | J197: M | K197: ATRIBUÍDO SÃO PAULO | L197: 127,75 | M197: CAIXA REFERENCIAL
A198: 95572 | B198: ASSENTAMENTO DE TUBOS E PECAS | C198: ASTU | D198: FORNEC E/OU ASSENT DE TUBO DE CONCRETO COM JUNTA ARGAMASSADA | E198: 0052 | H198: 95572 | I198: TUBO DE CONCRETO (SIMPLES) PARA REDES COLETORAS DE ÁGUAS PLUVIAIS, DIÂMETRO DE 500 MM, JUNTA RÍGIDA, INSTALADO EM LOCAL COM ALTO NÍVEL DE INTERFERÊNCIAS - FORNECIMENTO E ASSENTAMENTO. AF_12/2015 | J198: M | K198: ATRIBUÍDO SÃO PAULO | L198: 175,56 | M198: CAIXA REFERENCIAL
A199: 97127 | B199: ASSENTAMENTO DE TUBOS E PECAS | C199: ASTU | D199: FORNEC E/OU ASSENT DE TUBO PVC DEFOFO COM JUNTA ELASTICA | E199: 0230 | H199: 97127 | I199: ASSENTAMENTO DE TUBO DE PVC DEFOFO OU PRFV OU RPVC PARA REDE DE ÁGUA, DN 150 MM, JUNTA ELÁSTICA INTEGRADA, INSTALADO EM LOCAL COM NÍVEL ALTO DE INTERFERÊNCIAS (NÃO INCLUI FORNECIMENTO). AF_11/2017 | J199: M | K199: COEFICIENTE DE REPRESENTATIVIDADE | L199: 3,99 | M199: CAIXA REFERENCIAL
A200: 97128 | B200: ASSENTAMENTO DE TUBOS E PECAS | C200: ASTU | D200: FORNEC E/OU ASSENT DE TUBO PVC DEFOFO COM JUNTA ELASTICA | E200: 0230 | H200: 97128 | I200: ASSENTAMENTO DE TUBO DE PVC DEFOFO OU PRFV OU RPVC PARA REDE DE ÁGUA, DN 200 MM, JUNTA ELÁSTICA INTEGRADA, INSTALADO EM LOCAL COM NÍVEL ALTO DE INTERFERÊNCIAS (NÃO INCLUI FORNECIMENTO). AF_11/2017 | J200: M | K200: ATRIBUÍDO SÃO PAULO | L200: 8,39 | M200: CAIXA REFERENCIAL
A201: 97129 | B201: ASSENTAMENTO DE TUBOS E PECAS | C201: ASTU | D201: FORNEC E/OU ASSENT DE TUBO PVC DEFOFO COM JUNTA ELASTICA | E201: 0230 | H201: 97129 | I201: ASSENTAMENTO DE TUBO DE PVC DEFOFO OU PRFV OU RPVC PARA REDE DE ÁGUA, DN 250 MM, JUNTA ELÁSTICA INTEGRADA, INSTALADO EM LOCAL COM NÍVEL ALTO DE INTERFERÊNCIAS (NÃO INCLUI FORNECIMENTO). AF_11/2017 | J201: M | K201: ATRIBUÍDO SÃO PAULO | L201: 10,32 | M201: CAIXA REFERENCIAL
A202: 97130 | B202: ASSENTAMENTO DE TUBOS E PECAS | C202: ASTU | D202: FORNEC E/OU ASSENT DE TUBO PVC DEFOFO COM JUNTA ELASTICA | E202: 0230 | H202: 97130 | I202: ASSENTAMENTO DE TUBO DE PVC DEFOFO OU PRFV OU RPVC PARA REDE DE ÁGUA, DN 300 MM, JUNTA ELÁSTICA INTEGRADA, INSTALADO EM LOCAL COM NÍVEL ALTO DE INTERFERÊNCIAS (NÃO INCLUI FORNECIMENTO). AF_11/2017 | J202: M | K202: ATRIBUÍDO SÃO PAULO | L202: 12,25 | M202: CAIXA REFERENCIAL
... 7318 more rows

Sheet INSUMOS
A1: Planilha Sintética Simples
A2: Base: Sinapi / Ref: 09/2022/ Estado: Amapá | C2: BDI | D2: ='BDI '!C48 -> 0.146920122 | E2: Valores: Não Desonerado
A3: Item | B3: Tipo | C3: Código | D3: Descrição | E3: Un. | F3: Qtd. | G3: Preço Unit | H3: Preço com BDI | I3: Total sem BDI | J3: Total
A4: 3.15 | B4: Insumo Sinapi | C4: 4813 | D4: PLACA DE OBRA (PARA CONSTRUCAO CIVIL) EM CHAPA GALVANIZADA *N. 22*, ADESIVADA, DE *2,0 X 1,125* M (SEM POSTES PARA FIXACAO) | E4: M2 | F4: 4,50 | G4: =VLOOKUP(C4,ORÇAMENTO!$C$10:$J$272,5,0) -> 225 | H4: =ROUND(G4*(1+$D$2),2) -> 258.06 | I4: =ROUND(G4*F4,2) -> 1012.5 | J4: =ROUND(H4*F4,2) -> 1161.27
A5: 3.16 | B5: Insumo Sinapi | C5: 4813 | D5: PLACA DE OBRA (PARA CONSTRUCAO CIVIL) EM CHAPA GALVANIZADA *N. 22*, ADESIVADA, DE *2,0 X 1,125* M (SEM POSTES PARA FIXACAO) | E5: M2 | F5: 4,50 | G5: =VLOOKUP(C5,ORÇAMENTO!$C$10:$J$272,5,0) -> 225 | H5: =ROUND(G5*(1+$D$2),2) -> 258.06 | I5: =ROUND(G5*F5,2) -> 1012.5 | J5: =ROUND(H5*F5,2) -> 1161.27
A6: 8.13 | B6: Insumo Sinapi | C6: 11062 | D6: PLACA CIMENTICIA LISA E = 10 MM, DE 1,20 X 3,00 M (SEM AMIANTO) | E6: M2 | F6: 492,66 | G6: =VLOOKUP(C6,ORÇAMENTO!$C$10:$J$272,5,0) -> 56.66 | H6: 64.98 | I6: 27914.12 | J6: 32013.05
A7: 9.2 | B7: Insumo Orse | C7: 13491 | D7: Telhamento com telha em aço galvalume, dupla, trapezoidal, com preenchimento PIR 50mm, pré-pintada, TP40 - 2 x 0,43mm, Kingspan- Isoeste ou similar | E7: M2 | F7: 1.556,69 | G7: =VLOOKUP(C7,ORÇAMENTO!$C$10:$J$272,5,0) -> 335.66 | H7: 384.98 | I7: 522518.57 | J7: 599294.52
A8: 10.26 | B8: Insumo Sinapi | C8: 12388 | D8: POSTE DECORATIVO PARA JARDIM EM ACO TUBULAR, SEM LUMINARIA, H = *2,5* M | E8: UN | F8: 30,00 | G8: =VLOOKUP(C8,ORÇAMENTO!$C$10:$J$272,5,0) -> 359.22 | H8: 412 | I8: 10776.6 | J8: 12360
A9: 10.31 | B9: Insumo Sinapi | C9: 10510 | D9: CRUZETA DE MADEIRA TRATADA, *90 X 115 X 2400* MM, EM EUCALIPTO OU EQUIVALENTE DA REGIAO | E9: UN | F9: 4,00 | G9: =VLOOKUP(C9,ORÇAMENTO!$C$10:$J$272,5,0) -> 100.44 | H9: 115.2 | I9: 401.76 | J9: 460.8
A10: 10.32 | B10: Insumo Sinapi | C10: 429 | D10: PARAFUSO M16 EM ACO GALVANIZADO, COMPRIMENTO = 300 MM, DIAMETRO = 16 MM, ROSCA DUPLA | E10: UN | F10: 12,00 | G10: =VLOOKUP(C10,ORÇAMENTO!$C$10:$J$272,5,0) -> 12.11 | H10: 13.89 | I10: 145.32 | J10: 166.68
A11: 10.33 | B11: Insumo Sinapi | C11: 436 | D11: PARAFUSO FRANCES M16 EM ACO GALVANIZADO, COMPRIMENTO = 150 MM, DIAMETRO = 16 MM, CABECA ABAULADA | E11: UN | F11: 2,00 | G11: =VLOOKUP(C11,ORÇAMENTO!$C$10:$J$272,5,0) -> 6.85 | H11: 7.86 | I11: 13.7 | J11: 15.72
A12: 10.35 | B12: Insumo Sinapi | C12: 41953 | D12: CABO DE ACO GALVANIZADO, DIAMETRO 12,7 MM (1/2"), COM ALMA DE FIBRA 6 X 25 F | E12: KG | F12: 30,00 | G12: =VLOOKUP(C12,ORÇAMENTO!$C$10:$J$272,5,0) -> 82.4 | H12: 94.51 | I12: 2472 | J12: =ROUND(H12*F12,2) -> 2835.3
A13: 10.37 | B13: Insumo Sinapi | C13: 1574 | D13: TERMINAL A COMPRESSAO EM COBRE ESTANHADO PARA CABO 10 MM2, 1 FURO E 1 COMPRESSAO, PARA PARAFUSO DE FIXACAO M6 | E13: UN | F13: 6,00 | G13: =VLOOKUP(C13,ORÇAMENTO!$C$10:$J$272,5,0) -> 1.56 | H13: 1.79 | I13: 9.36 | J13: 10.74
A14: 10.38 | B14: Insumo Sinapi | C14: 857 | D14: CABO DE COBRE NU 16 MM2 MEIO-DURO | E14: M | F14: 30,00 | G14: =VLOOKUP(C14,ORÇAMENTO!$C$10:$J$272,5,0) -> 21 | H14: 24.09 | I14: 630 | J14: 722.7
A15: 10.39 | B15: Insumo Sinapi | C15: 1539 | D15: CONECTOR METALICO TIPO PARAFUSO FENDIDO (SPLIT BOLT), PARA CABOS ATE 16 MM2 | E15: UN | F15: 6,00 | G15: =VLOOKUP(C15,ORÇAMENTO!$C$10:$J$272,5,0) -> 7.2 | H15: 8.26 | I15: 43.2 | J15: 49.56
A16: 10.40 | B16: Insumo Sinapi | C16: 867 | D16: CABO DE COBRE NU 50 MM2 MEIO-DURO | E16: M | F16: 15,00 | G16: =VLOOKUP(C16,ORÇAMENTO!$C$10:$J$272,5,0) -> 62.41 | H16: 71.58 | I16: 936.15 | J16: 1073.7
A17: 10.41 | B17: Insumo Sinapi | C17: 3379 | D17: !EM PROCESSO DE DESATIVACAO! HASTE DE ATERRAMENTO EM ACO COM 3,00 M DE COMPRIMENTO E DN = 5/8", REVESTIDA COM BAIXA CAMADA DE COBRE, SEM CONECTOR | E17: UN | F17: 6,00 | G17: =VLOOKUP(C17,ORÇAMENTO!$C$10:$J$272,5,0) -> 57.93 | H17: 66.44 | I17: 347.58 | J17: 398.64
A18: 10.44 | B18: Insumo Sinapi | C18: 13343 | D18: KIT DE MATERIAIS PARA BRACADEIRA PARA FIXACAO EM POSTE CIRCULAR, CONTEM TRES FIXADORES E UM ROLO DE FITA DE 3 M EM ACO CARBONO | E18: UN | F18: 3,00 | G18: =VLOOKUP(C18,ORÇAMENTO!$C$10:$J$272,5,0) -> 42.24 | H18: 48.45 | I18: 126.72 | J18: 145.35
A19: 10.48 | B19: Insumo Sinapi | C19: 39468 | D19: DISPOSITIVO DPS CLASSE II, 1 POLO, TENSAO MAXIMA DE 175 V, CORRENTE MAXIMA DE *90* KA (TIPO AC) | E19: UN | F19: 4,00 | G19: =VLOOKUP(C19,ORÇAMENTO!$C$10:$J$272,5,0) -> 177.33 | H19: 203.38 | I19: 709.32 | J19: 813.52
A20: 10.49 | B20: Insumo Sinapi | C20: 37558 | D20: PLACA DE SINALIZACAO DE SEGURANCA CONTRA INCENDIO, FOTOLUMINESCENTE, RETANGULAR, *20 X 40* CM, EM PVC *2* MM ANTI-CHAMAS (SIMBOLOS, CORES E PICTOGRAMAS CONFORME NBR 16820) | E20: UN | F20: 2,00 | G20: =VLOOKUP(C20,ORÇAMENTO!$C$10:$J$272,5,0) -> 65.26 | H20: 74.85 | I20: 130.52 | J20: 149.7
A21: 10.50 | B21: Insumo Sinapi | C21: 1000 | D21: CABO DE COBRE, FLEXIVEL, CLASSE 4 OU 5, ISOLACAO EM PVC/A, ANTICHAMA BWF-B, COBERTURA PVC-ST1, ANTICHAMA BWF-B, 1 CONDUTOR, 0,6/1 KV, SECAO NOMINAL 185 MM2 | E21: M | F21: 440,00 | G21: =VLOOKUP(C21,ORÇAMENTO!$C$10:$J$272,5,0) -> 205.37 | H21: 235.54 | I21: 90362.8 | J21: 103637.6
A22: 10.51 | B22: Insumo Sinapi | C22: 1018 | D22: CABO DE COBRE, FLEXIVEL, CLASSE 4 OU 5, ISOLACAO EM PVC/A, ANTICHAMA BWF-B, COBERTURA PVC-ST1, ANTICHAMA BWF-B, 1 CONDUTOR, 0,6/1 KV, SECAO NOMINAL 50 MM2 | E22: M | F22: 20,00 | G22: =VLOOKUP(C22,ORÇAMENTO!$C$10:$J$272,5,0) -> 56.45 | H22: 64.74 | I22: 1129 | J22: 1294.8
A23: 10.52 | B23: Insumo Sinapi | C23: 977 | D23: CABO DE COBRE, FLEXIVEL, CLASSE 4 OU 5, ISOLACAO EM PVC/A, ANTICHAMA BWF-B, COBERTURA PVC-ST1, ANTICHAMA BWF-B, 1 CONDUTOR, 0,6/1 KV, SECAO NOMINAL 70 MM2 | E23: M | F23: 60,00 | G23: =VLOOKUP(C23,ORÇAMENTO!$C$10:$J$272,5,0) -> 78.19 | H23: 89.68 | I23: 4691.4 | J23: 5380.8
A24: 10.53 | B24: Insumo Sinapi | C24: 998 | D24: CABO DE COBRE, FLEXIVEL, CLASSE 4 OU 5, ISOLACAO EM PVC/A, ANTICHAMA BWF-B, COBERTURA PVC-ST1, ANTICHAMA BWF-B, 1 CONDUTOR, 0,6/1 KV, SECAO NOMINAL 95 MM2 | E24: M | F24: 90,00 | G24: =VLOOKUP(C24,ORÇAMENTO!$C$10:$J$272,5,0) -> 103.87 | H24: 119.13 | I24: 9348.3 | J24: 10721.7
A25: 10.54 | B25: Insumo Sinapi | C25: 11859 | D25: CONECTOR METALICO TIPO PARAFUSO FENDIDO (SPLIT BOLT), PARA CABOS ATE 185 MM2 | E25: UN | F25: 40,00 | G25: =VLOOKUP(C25,ORÇAMENTO!$C$10:$J$272,5,0) -> 54.47 | H25: 62.47 | I25: 2178.8 | J25: 2498.8
A26: 10.55 | B26: Insumo Sinapi | C26: 11855 | D26: CONECTOR METALICO TIPO PARAFUSO FENDIDO (SPLIT BOLT), PARA CABOS ATE 70 MM2 | E26: UN | F26: 10,00 | G26: =VLOOKUP(C26,ORÇAMENTO!$C$10:$J$272,5,0) -> 19.88 | H26: 22.8 | I26: 198.8 | J26: 228
A27: 10.56 | B27: Insumo Sinapi | C27: 11864 | D27: CONECTOR METALICO TIPO PARAFUSO FENDIDO (SPLIT BOLT), PARA CABOS ATE 95 MM2 | E27: UN | F27: 4,00 | G27: =VLOOKUP(C27,ORÇAMENTO!$C$10:$J$272,5,0) -> 30.06 | H27: 34.48 | I27: 120.24 | J27: 137.92
A28: 10.57 | B28: Insumo Sinapi | C28: 11862 | D28: CONECTOR METALICO TIPO PARAFUSO FENDIDO (SPLIT BOLT), PARA CABOS ATE 50 MM2 | E28: UN | F28: 4,00 | G28: =VLOOKUP(C28,ORÇAMENTO!$C$10:$J$272,5,0) -> 13.32 | H28: 15.28 | I28: 53.28 | J28: 61.12
A29: 10.59 | B29: Insumo Sinapi | C29: 37559 | D29: PLACA DE SINALIZACAO DE SEGURANCA CONTRA INCENDIO, FOTOLUMINESCENTE, RETANGULAR, *12 X 40* CM, EM PVC *2* MM ANTI-CHAMAS (SIMBOLOS, CORES E PICTOGRAMAS CONFORME NBR 16820) | E29: UN | F29: 44,00 | G29: =VLOOKUP(C29,ORÇAMENTO!$C$10:$J$272,5,0) -> 49.66 | H29: 56.96 | I29: 2185.04 | J29: 2506.24
A30: 10.63 | B30: Insumo Sinapi | C30: 34602 | D30: CABO FLEXIVEL PVC 750 V, 2 CONDUTORES DE 1,5 MM2 | E30: M | F30: 130,00 | G30: =VLOOKUP(C30,ORÇAMENTO!$C$10:$J$272,5,0) -> 6.44 | H30: 7.39 | I30: 837.2 | J30: 960.7
A31: 10.64 | B31: Insumo Sinapi | C31: 10891 | D31: EXTINTOR DE INCENDIO PORTATIL COM CARGA DE PO QUIMICO SECO (PQS) DE 4 KG, CLASSE BC | E31: UN | F31: 30,00 | G31: =VLOOKUP(C31,ORÇAMENTO!$C$10:$J$272,5,0) -> 304.61 | H31: 349.36 | I31: 9138.3 | J31: 10480.8
A32: 10.65 | B32: Insumo Sinapi | C32: 867 | D32: CABO DE COBRE NU 50 MM2 MEIO-DURO | E32: M | F32: 220,00 | G32: =VLOOKUP(C32,ORÇAMENTO!$C$10:$J$272,5,0) -> 62.41 | H32: 71.58 | I32: 13730.2 | J32: 15747.6
A33: 10.68 | B33: Insumo Sinapi | C33: 3380 | D33: !EM PROCESSO DE DESATIVACAO! HASTE DE ATERRAMENTO EM ACO COM 3,00 M DE COMPRIMENTO E DN = 5/8", REVESTIDA COM BAIXA CAMADA DE COBRE, COM CONECTOR TIPO GRAMPO | E33: UN | F33: 12,00 | G33: =VLOOKUP(C33,ORÇAMENTO!$C$10:$J$272,5,0) -> 60 | H33: 68.82 | I33: 720 | J33: 825.84
A34: 10.69 | B34: Insumo Sinapi | C34: 40552 | D34: PARAFUSO, AUTO ATARRACHANTE, CABECA CHATA, FENDA SIMPLES, 1/4" (6,35 MM) X 25 MM | E34: CENTO | F34: 4,00 | G34: =VLOOKUP(C34,ORÇAMENTO!$C$10:$J$272,5,0) -> 44.37 | H34: 50.89 | I34: 177.48 | J34: 203.56
A35: 11.1.9 | B35: Insumo Sinapi | C35: 819 | D35: BUCHA DE REDUCAO DE PVC, SOLDAVEL, CURTA, COM 50 X 40 MM, PARA AGUA FRIA PREDIAL | E35: UN | F35: 4,00 | G35: =VLOOKUP(C35,ORÇAMENTO!$C$10:$J$272,5,0) -> 3.62 | H35: 4.15 | I35: 14.48 | J35: 16.6
A36: 11.1.10 | B36: Insumo Sinapi | C36: 20095 | D36: CURVA CURTA PVC, PB, JE, 90 GRAUS, DN 100 MM, PARA REDE COLETORA ESGOTO (NBR 10569) | E36: UN | F36: 16,00 | G36: =VLOOKUP(C36,ORÇAMENTO!$C$10:$J$272,5,0) -> 42.03 | H36: 48.21 | I36: 672.48 | J36: 771.36
A37: 11.1.11 | B37: Insumo Sinapi | C37: 1958 | D37: CURVA DE PVC 90 GRAUS, SOLDAVEL, 40 MM, PARA AGUA FRIA PREDIAL (NBR 5648) | E37: UN | F37: 20,00 | G37: =VLOOKUP(C37,ORÇAMENTO!$C$10:$J$272,5,0) -> 13.93 | H37: 15.98 | I37: 278.6 | J37: 319.6
A38: 11.1.12 | B38: Insumo Sinapi | C38: 3528 | D38: JOELHO PVC, SOLDAVEL, PB, 45 GRAUS, DN 100 MM, PARA ESGOTO PREDIAL | E38: UN | F38: 3,00 | G38: =VLOOKUP(C38,ORÇAMENTO!$C$10:$J$272,5,0) -> 9.12 | H38: 10.46 | I38: 27.36 | J38: 31.38
A39: 11.1.13 | B39: Insumo Sinapi | C39: 37952 | D39: JOELHO PVC, SOLDAVEL, PB, 45 GRAUS, DN 150 MM, PARA ESGOTO PREDIAL | E39: UN | F39: 1,00 | G39: =VLOOKUP(C39,ORÇAMENTO!$C$10:$J$272,5,0) -> 65.02 | H39: 74.57 | I39: 65.02 | J39: 74.57
A40: 11.1.14 | B40: Insumo Sinapi | C40: 37951 | D40: JOELHO PVC, SOLDAVEL, PB, 45 GRAUS, DN 40 MM, PARA ESGOTO PREDIAL | E40: UN | F40: 4,00 | G40: =VLOOKUP(C40,ORÇAMENTO!$C$10:$J$272,5,0) -> 2.36 | H40: 2.71 | I40: 9.44 | J40: 10.84
A41: 11.1.15 | B41: Insumo Sinapi | C41: 3518 | D41: JOELHO PVC, SOLDAVEL, PB, 45 GRAUS, DN 50 MM, PARA ESGOTO PREDIAL | E41: UN | F41: 10,00 | G41: =VLOOKUP(C41,ORÇAMENTO!$C$10:$J$272,5,0) -> 3.46 | H41: 3.97 | I41: 34.6 | J41: 39.7
A42: 11.1.16 | B42: Insumo Sinapi | C42: 3520 | D42: JOELHO PVC, SOLDAVEL, PB, 90 GRAUS, DN 100 MM, PARA ESGOTO PREDIAL | E42: UN | F42: 5,00 | G42: =VLOOKUP(C42,ORÇAMENTO!$C$10:$J$272,5,0) -> 9.19 | H42: 10.54 | I42: 45.95 | J42: 52.7
A43: 11.1.17 | B43: Insumo Sinapi | C43: 37950 | D43: JOELHO PVC, SOLDAVEL, PB, 90 GRAUS, DN 150 MM, PARA ESGOTO PREDIAL | E43: UN | F43: 5,00 | G43: =VLOOKUP(C43,ORÇAMENTO!$C$10:$J$272,5,0) -> 56.6 | H43: 64.92 | I43: 283 | J43: 324.6
A44: 11.1.18 | B44: Insumo Sinapi | C44: 37951 | D44: JOELHO PVC, SOLDAVEL, PB, 45 GRAUS, DN 40 MM, PARA ESGOTO PREDIAL | E44: UN | F44: 4,00 | G44: =VLOOKUP(C44,ORÇAMENTO!$C$10:$J$272,5,0) -> 2.36 | H44: 2.71 | I44: 9.44 | J44: 10.84
A45: 11.1.19 | B45: Insumo Sinapi | C45: 3526 | D45: JOELHO PVC, SOLDAVEL, PB, 90 GRAUS, DN 50 MM, PARA ESGOTO PREDIAL | E45: UN | F45: 37,00 | G45: =VLOOKUP(C45,ORÇAMENTO!$C$10:$J$272,5,0) -> 2.78 | H45: 3.19 | I45: 102.86 | J45: 118.03
A46: 11.1.20 | B46: Insumo Sinapi | C46: 20159 | D46: JOELHO COM VISITA, PVC SERIE R, 90 GRAUS, 100 X 50 MM, PARA ESGOTO OU AGUAS PLUVIAIS PREDIAIS | E46: UN | F46: 1,00 | G46: =VLOOKUP(C46,ORÇAMENTO!$C$10:$J$272,5,0) -> 60.36 | H46: 69.23 | I46: 60.36 | J46: 69.23
A47: 11.1.22 | B47: Insumo Sinapi | C47: 20144 | D47: JUNCAO SIMPLES, PVC SERIE R, DN 100 X 100 MM, PARA ESGOTO OU AGUAS PLUVIAIS PREDIAIS | E47: UN | F47: 8,00 | G47: =VLOOKUP(C47,ORÇAMENTO!$C$10:$J$272,5,0) -> 64.8 | H47: 74.32 | I47: 518.4 | J47: 594.56
A48: 11.1.23 | B48: Insumo Sinapi | C48: 3840 | D48: LUVA DE CORRER DEFOFO, PVC, JE, DN 100 MM | E48: UN | F48: 1,00 | G48: =VLOOKUP(C48,ORÇAMENTO!$C$10:$J$272,5,0) -> 67.8 | H48: 77.76 | I48: 67.8 | J48: 77.76
A49: 11.1.24 | B49: Insumo Sinapi | C49: 3899 | D49: LUVA SIMPLES, PVC, SOLDAVEL, DN 100 MM, SERIE NORMAL, PARA ESGOTO PREDIAL | E49: UN | F49: 53,00 | G49: =VLOOKUP(C49,ORÇAMENTO!$C$10:$J$272,5,0) -> 7 | H49: 8.03 | I49: 371 | J49: 425.59
A50: 11.1.25 | B50: Insumo Sinapi | C50: 38676 | D50: LUVA SIMPLES, PVC, SOLDAVEL, DN 150 MM, SERIE NORMAL, PARA ESGOTO PREDIAL | E50: UN | F50: 4,00 | G50: =VLOOKUP(C50,ORÇAMENTO!$C$10:$J$272,5,0) -> 33.9 | H50: 38.88 | I50: 135.6 | J50: 155.52
A51: 11.1.26 | B51: Insumo Sinapi | C51: 3875 | D51: LUVA SIMPLES, PVC, SOLDAVEL, DN 50 MM, SERIE NORMAL, PARA ESGOTO PREDIAL | E51: UN | F51: 65,00 | G51: =VLOOKUP(C51,ORÇAMENTO!$C$10:$J$272,5,0) -> 3.19 | H51: 3.66 | I51: 207.35 | J51: 237.9
A52: 11.1.27 | B52: Insumo Sinapi | C52: 20034 | D52: REDUCAO EXCENTRICA PVC NBR 10569 P/REDE COLET ESG PB JE 150 X 100MM | E52: UN | F52: 1,00 | G52: =VLOOKUP(C52,ORÇAMENTO!$C$10:$J$272,5,0) -> 130.74 | H52: 149.95 | I52: 130.74 | J52: 149.95
A53: 11.1.28 | B53: Insumo Sinapi | C53: 39319 | D53: TERMINAL DE VENTILACAO, 50 MM, SERIE NORMAL, ESGOTO PREDIAL | E53: UN | F53: 5,00 | G53: =VLOOKUP(C53,ORÇAMENTO!$C$10:$J$272,5,0) -> 7.59 | H53: 8.71 | I53: 37.95 | J53: 43.55
A54: 11.1.29 | B54: Insumo Sinapi | C54: 39321 | D54: TERMINAL DE VENTILACAO, 100 MM, SERIE NORMAL, ESGOTO PREDIAL | E54: UN | F54: 3,00 | G54: =VLOOKUP(C54,ORÇAMENTO!$C$10:$J$272,5,0) -> 19.42 | H54: 22.27 | I54: 58.26 | J54: 66.81
A55: 11.1.34 | B55: Insumo Sinapi | C55: 7097 | D55: TE SANITARIO, PVC, DN 50 X 50 MM, SERIE NORMAL, PARA ESGOTO PREDIAL | E55: UN | F55: 4,00 | G55: =VLOOKUP(C55,ORÇAMENTO!$C$10:$J$272,5,0) -> 7.84 | H55: 8.99 | I55: 31.36 | J55: 35.96
A56: 11.1.35 | B56: Insumo Sinapi | C56: 4723 | D56: PEDRA BRITADA N. 4 (50 A 76 MM) POSTO PEDREIRA/FORNECEDOR, SEM FRETE | E56: M3 | F56: 1,03 | G56: =VLOOKUP(C56,ORÇAMENTO!$C$10:$J$272,5,0) -> 232.88 | H56: 267.09 | I56: 239.87 | J56: 275.1
A57: 11.2.1 | B57: Insumo Sinapi | C57: 11831 | D57: TORNEIRA PLASTICA PARA TANQUE 1/2 " OU 3/4 " COM BICO PARA MANGUEIRA | E57: UN | F57: 6,00 | G57: =VLOOKUP(C57,ORÇAMENTO!$C$10:$J$272,5,0) -> 50.08 | H57: 57.44 | I57: 300.48 | J57: 344.64
A58: 11.2.2 | B58: Insumo Sinapi | C58: 7602 | D58: TORNEIRA DE METAL AMARELO, PARA TANQUE / JARDIM, DE PAREDE, COM BICO PLASTICO, CANO CURTO, AREA EXTERNA, PADRAO POPULAR / USO GERAL, 1/2 " OU 3/4 " (REF 1128) | E58: UN | F58: 12,00 | G58: =VLOOKUP(C58,ORÇAMENTO!$C$10:$J$272,5,0) -> 37.33 | H58: 42.81 | I58: 447.96 | J58: 513.72
A59: 11.2.3 | B59: Insumo Sinapi | C59: 36791 | D59: TORNEIRA CROMADA DE MESA PARA LAVATORIO, BICA ALTA, COM AREJADOR (REF 1195) | E59: UN | F59: 24,00 | G59: =VLOOKUP(C59,ORÇAMENTO!$C$10:$J$272,5,0) -> 114.35 | H59: 131.15 | I59: 2744.4 | J59: 3147.6
A60: 11.2.5 | B60: Insumo Sinapi | C60: 3462 | D60: COTOVELO DE REDUCAO 90 GRAUS DE FERRO GALVANIZADO, COM ROSCA BSP, DE 3/4" X 1/2" | E60: UN | F60: 2,00 | G60: =VLOOKUP(C60,ORÇAMENTO!$C$10:$J$272,5,0) -> 10.46 | H60: 12 | I60: 20.92 | J60: 24
A61: 11.2.6 | B61: Insumo Sinapi | C61: 3939 | D61: LUVA DE FERRO GALVANIZADO, COM ROSCA BSP, DE 1 1/2" | E61: UN | F61: 2,00 | G61: =VLOOKUP(C61,ORÇAMENTO!$C$10:$J$272,5,0) -> 20.58 | H61: 23.6 | I61: 41.16 | J61: 47.2
A62: 11.2.11 | B62: Insumo Sinapi | C62: 1402 | D62: COLAR TOMADA PVC, COM TRAVAS, SAIDA COM ROSCA, DE 32 MM X 1/2" OU 32 MM X 3/4", PARA LIGACAO PREDIAL DE AGUA | E62: UN | F62: 1,00 | G62: =VLOOKUP(C62,ORÇAMENTO!$C$10:$J$272,5,0) -> 8.55 | H62: 9.81 | I62: 8.55 | J62: 9.81
A63: 11.2.12 | B63: Insumo Sinapi | C63: 3522 | D63: JOELHO PVC, SOLDAVEL COM ROSCA, 90 GRAUS, 25 MM X 3/4", PARA AGUA FRIA PREDIAL | E63: UN | F63: 4,00 | G63: =VLOOKUP(C63,ORÇAMENTO!$C$10:$J$272,5,0) -> 3.74 | H63: 4.29 | I63: 14.96 | J63: 17.16
A64: 11.2.13 | B64: Insumo Sinapi | C64: 3497 | D64: JOELHO DE REDUCAO, PVC, ROSCAVEL COM BUCHA DE LATAO, 90 GRAUS, 3/4" X 1/2", PARA AGUA FRIA PREDIAL | E64: UN | F64: 20,00 | G64: =VLOOKUP(C64,ORÇAMENTO!$C$10:$J$272,5,0) -> 16.49 | H64: 18.91 | I64: 329.8 | J64: 378.2
A65: 11.2.15 | B65: Insumo Orse | C65: 99 | D65: Adaptador longo, pvc rigido soldavel, c/ flanges livres p/ caixa agua, d= 40mm x 1 1/ 4" | E65: UN | F65: 8,00 | G65: =VLOOKUP(C65,ORÇAMENTO!$C$10:$J$272,5,0) -> 37.07 | H65: 42.52 | I65: 296.56 | J65: 340.16
A66: 11.2.16 | B66: Insumo Sinapi | C66: 829 | D66: BUCHA DE REDUCAO DE PVC, SOLDAVEL, CURTA, COM 32 X 25 MM, PARA AGUA FRIA PREDIAL | E66: UN | F66: 1,00 | G66: =VLOOKUP(C66,ORÇAMENTO!$C$10:$J$272,5,0) -> 1.01 | H66: 1.16 | I66: 1.01 | J66: 1.16
A67: 12.4 | B67: Insumo Sinapi | C67: 37557 | D67: PLACA DE SINALIZACAO DE SEGURANCA CONTRA INCENDIO, FOTOLUMINESCENTE, QUADRADA, *14 X 14* CM, EM PVC *2* MM ANTI-CHAMAS (SIMBOLOS, CORES E PICTOGRAMAS CONFORME NBR 16820) | E67: UN | F67: 30,00 | G67: =VLOOKUP(C67,ORÇAMENTO!$C$10:$J$272,5,0) -> 20.92 | H67: 23.99 | I67: 627.6 | J67: 719.7
A68: 12.5 | B68: Insumo Sinapi | C68: 38774 | D68: LUMINARIA DE EMERGENCIA 30 LEDS, POTENCIA 2 W, BATERIA DE LITIO, AUTONOMIA DE 6 HORAS | E68: UN | F68: 28,00 | G68: =VLOOKUP(C68,ORÇAMENTO!$C$10:$J$272,5,0) -> 22.61 | H68: 25.93 | I68: 633.08 | J68: 726.04

Sheet COMPOSIÇÕES PRÓPRIAS
A1: COMPOSIÇÕES PRÓPRIAS - OBRA "A" - MOBILIZAÇÃO E DESMOBILIZAÇÃO PARA CANTEIRO DE OBRAS
A2: ITEM | B2: EQUIPAMENTO TRANSPORTADO | C2: UNIDADE | D2: ORIGEM | E2: DESTINO | F2: QUANT. | G2: PESO TONELA DA | H2: PREÇO | I2: (R$) | J2: PREÇO TOTAL R$
A3: 1 | B3: EQUIPAMENTOS DE GRANDE PORTE
A4: 1.6 | B4: CAMINHÃO CARROCERIA COM GUINDAUTO 45 T | C4: CHP | D4: Raio 50 km | E4: Canteiro | F4: 8 | G4: - | H4: R$ | I4: 242.75 | J4: =I4*F4 -> 1942 | M4: Composição de Preços de Locação de Veículos
A5: SUB TOTAL 1 | J5: =SUM(J4) -> 1942 | M5: CONTRATAÇÃO DE EMPRESA PARA PRESTAÇÃO DE SERVIÇOS DE LOCAÇÃO DE VEÍCULOS TIPO CAMINHONETE PICK-UP 4X4, PARA USO NA EXECUÇÃO, ACOMPANHAMENTO E FISCALIZAÇÃO DE PROJETOS, SERVIÇOS, OBRAS E CONTRATOS, SOB GESTÃO DO CENTRO DE CONTROLE E OPERAÇÃO DO PISF – AD/GOI/CCO, EM SALGUEIRO-PE.
A6: 3 | B6: VEÍCULOS DE PRODUÇÃO | M6: CODEVASF
A7: 3.2 | B7: CAMINHÃO CARROCERIA 15 T | C7: CHP | D7: Raio 50 km | E7: Canteiro | F7: 8 | G7: - | H7: R$ | I7: 200 | J7: =I7*F7 -> 1600
A8: SUB TOTAL 3 | J8: =SUM(J7) -> 1600 | M8: Veículo Gol 1.0 Flex 12V 5p
A9: 4 | B9: TRABALHO MANUAL CARGA DESCARA | O9: Mensal (R$): | P9: 3749.57
A10: 4.1 | B10: SERVENTE | C10: H | D10: - | E10: Canteiro | F10: 50 | H10: R$ | I10: 12.29 | J10: =F10*I10 -> 614.5 | O10: Diária (R$): | P10: 170.44
A11: SUB TOTAL 4 | J11: =SUM(J10) -> 614.5 | M11: A | O11: Depreciação mensal do equipamento
M12: A1 | O12: Preço de Aquisição | P12: 73429
A13: TOTAL MOBILIZAÇÃO, DESMOBLIZAÇÃO | J13: =J11+J8+J5 -> 4156.5 | M13: A2 | O13: Tempo previsto de vida útil (meses) | P13: 36
M14: A3 | O14: Previsão de recup. Na venda do bem usado | P14: 0.4
M15: A4 | O15: Custo mensal [A1-(A3xA1)]/A2 | P15: 1223.82
A16: COMPOSIÇÕES PRÓPRIAS - OBRA "A" - MOBILIZAÇÃO E DESMOBILIZAÇÃO - ESTACA HÉLICE CONTÍNUA | M16: B | O16: Juros pelo Capital empregado
A17: ITEM | B17: EQUIPAMENTO TRANSPORTADO | C17: UNIDADE | D17: ORIGEM | E17: DESTINO | F17: QUANT. | G17: PESO TONELA DA | H17: PREÇO | I17: (R$) | J17: PREÇO TOTAL R$ | M17: B1 | O17: Taxa mensal de Juros * | P17: 0.010794
A18: 1 | B18: EQUIPAMENTOS DE GRANDE PORTE | M18: B2 | O18: Juros s/depreciação/aluguel (B1xA4) | P18: 13.21
A19: 1.6 | B19: CAMINHÃO CARROCERIA COM GUINDAUTO 45 T | C19: CHP | D19: Raio 50 km | E19: Canteiro | F19: 2 | G19: - | H19: R$ | I19: 242.75 | J19: =I19*F19 -> 485.5 | M19: C | O19: Conservação e manutenção ** | P19: 0.75
A20: SUB TOTAL 1 | J20: =SUM(J19) -> 485.5 | M20: C1 | O20: Taxa de gastos s/a deprec. Inc. seguros (%) | P20: 0.75
A21: 3 | B21: VEÍCULOS DE PRODUÇÃO | M21: C2 | O21: Incidência mensal (C1xA4) | P21: 917.87
A22: 3.2 | B22: CAMINHÃO CARROCERIA 15 T | C22: CHP | D22: Raio 50 km | E22: Canteiro | F22: 2 | G22: - | H22: R$ | I22: 200 | J22: =I22*F22 -> 400 | M22: D | O22: Combustível
A23: SUB TOTAL 3 | J23: =SUM(J22) -> 400 | M23: D1 | O23: Média mensal de quilômetro por veículo | P23: 3000
A24: 4 | B24: TRABALHO MANUAL CARGA DESCARA | M24: D2 | O24: Preço do litro de combustível | P24: 4.79
A25: 4.1 | B25: SERVENTE | C25: H | D25: - | E25: Canteiro | F25: 50 | H25: R$ | I25: 12.29 | J25: =F25*I25 -> 614.5 | M25: D3 | O25: Quilômetros rodados com um litro combustivel*** | P25: 13.7
A26: SUB TOTAL 4 | J26: =SUM(J25) -> 614.5 | M26: D4 | O26: Combustivel (D1/D3)*D2 | P26: 1048.91
M27: E | O27: Lubrificantes
A28: TOTAL MOBILIZAÇÃO, DESMOBLIZAÇÃO | J28: =J26+J23+J20 -> 1500 | M28: E1 | O28: Quilometragem do Contrato (D1*12) | P28: 36000
M29: E2 | O29: Franquia por troca de óleo (km) | P29: 10000
M30: E3 | O30: Preço do litro de óleo | P30: 38.75
M31: E4 | O31: Quantidade de litros de óleo por troca | P31: 3.5
M32: E5 | O32: Quantidade de dias do Contrato | P32: 365
M33: E6 | O33: Lubrificantes E = (E1*E3*E4*30)/E2*E5 | P33: 40.13
M34: F | O34: Pneus
M35: F1 | O35: Quilometragem do Contrato | P35: 36000
M36: F2 | O36: Vida do Pneu em quilômetros | P36: 45000
M37: F3 | O37: Quantidade de pneus | P37: 4
M38: F4 | O38: Preço do Pneu | P38: 340.65
M39: F5 | O39: Quantidade de dias do contrato | P39: 365
M40: F6 | O40: Pneus = (F1*F3*F4*30)/(F2*F5) | P40: 89.6
M41: G | O41: Motorista
M42: G1 | O42: Salário com encargos sociais | P42: Não se aplica
M43: H | O43: Custo Mensal
O44: Sem Motorista (A4+B2+C2+D4+E6+F6) | P44: 3333.54
O45: Com Motorista | P45: Não se aplica
M46: I | O46: Custo Direto p/ km Rodado
O47: Sem Motorista | P47: 1.11
O48: Com Motorista | P48: Não se aplica
M49: J | O49: Preço cobrado com BDI | P49: 3749.57

Sheet CURVA ABC INSUMOS
E1: Valores: Não Desonerado
E2: BDI | F2: ='BDI '!C22 -> 0.2480214044
A3: Base: Sinapi / Ref: 09/2022 / Estado: Amapá | E3: BDI DIF. | F3: ='BDI '!C48 -> 0.146920122
A4: Curva ABC de Insumo
A5: Código | B5: Base | C5: Descrição | D5: Un. | E5: Qtd. | F5: Preço com BDI | G5: Total | H5: % | I5: % Acumulado | J5: Classe
A6: 13491 | B6: Insumo Orse | C6: Telha em aço galvalume, dupla, trapezoidal, com preenchimento PIR 50mm, pré-pintada, TP40 - 2 x 0,43mm, Kingspan- Isoeste ou similar | D6: M2 | E6: 1.556,69 | F6: =ORÇAMENTO!H111 -> 384.98 | G6: =E6*F6 -> 599294.5162 | H6: =G6/$G$71 -> 0.7329120524 | I6: =H6 -> 0.7329120524 | J6: A
A7: 1000 | B7: Insumo Sinapi | C7: CABO DE COBRE, FLEXIVEL, CLASSE 4 OU 5, ISOLACAO EM PVC/A, ANTICHAMA BWF-B, COBERTURA PVC-ST1, ANTICHAMA BWF-B, 1 CONDUTOR, 0,6/1 KV, SECAO NOMINAL 185 MM2 | D7: M | E7: 440,00 | F7: 235.54 | G7: 103637.6 | H7: =G7/$G$71 -> 0.1267444371 | I7: =I6+H7 -> 0.8596564895 | J7: B
A8: 11062 | B8: Insumo Sinapi | C8: PLACA CIMENTICIA LISA E = 10 MM, DE 1,20 X 3,00 M (SEM AMIANTO) | D8: M2 | E8: 492,66 | F8: 64.98 | G8: 32013.05 | H8: 0.03915061718 | I8: =I7+H8 -> 0.8988071067 | J8: B
A9: 867 | B9: Insumo Sinapi | C9: CABO DE COBRE NU 50 MM2 MEIO-DURO | D9: M | E9: 220,00 | F9: 71.58 | G9: 15747.6 | H9: 0.01925865417 | I9: 0.9180657609 | J9: B
A10: 12388 | B10: Insumo Sinapi | C10: POSTE DECORATIVO PARA JARDIM EM ACO TUBULAR, SEM LUMINARIA, H = *2,5* M | D10: UN | E10: 30,00 | F10: 412 | G10: 12360 | H10: 0.01511576149 | I10: 0.9331815223 | J10: C
A11: 998 | B11: Insumo Sinapi | C11: CABO DE COBRE, FLEXIVEL, CLASSE 4 OU 5, ISOLACAO EM PVC/A, ANTICHAMA BWF-B, COBERTURA PVC-ST1, ANTICHAMA BWF-B, 1 CONDUTOR, 0,6/1 KV, SECAO NOMINAL 95 MM2 | D11: M | E11: 90,00 | F11: 119.13 | G11: 10721.7 | H11: 0.01311218932 | I11: 0.9462937117 | J11: C
A12: 10891 | B12: Insumo Sinapi | C12: EXTINTOR DE INCENDIO PORTATIL COM CARGA DE PO QUIMICO SECO (PQS) DE 4 KG, CLASSE BC | D12: UN | E12: 30,00 | F12: 349.36 | G12: 10480.8 | H12: 0.01281757872 | I12: 0.9591112904 | J12: C
A13: 977 | B13: Insumo Sinapi | C13: CABO DE COBRE, FLEXIVEL, CLASSE 4 OU 5, ISOLACAO EM PVC/A, ANTICHAMA BWF-B, COBERTURA PVC-ST1, ANTICHAMA BWF-B, 1 CONDUTOR, 0,6/1 KV, SECAO NOMINAL 70 MM2 | D13: M | E13: 60,00 | F13: 89.68 | G13: 5380.8 | H13: 0.006580492671 | I13: 0.9656917831 | J13: C
A14: 36791 | B14: Insumo Sinapi | C14: TORNEIRA CROMADA DE MESA PARA LAVATORIO, BICA ALTA, COM AREJADOR (REF 1195) | D14: UN | E14: 24,00 | F14: 131.15 | G14: 3147.6 | H14: 0.003849382755 | I14: 0.9695411658 | J14: C
A15: 41953 | B15: Insumo Sinapi | C15: CABO DE ACO GALVANIZADO, DIAMETRO 12,7 MM (1/2"), COM ALMA DE FIBRA 6 X 25 F | D15: KG | E15: 30,00 | F15: 94.51 | G15: 2835.3 | H15: 0.003467452957 | I15: 0.9730086188 | J15: C
A16: 37559 | B16: Insumo Sinapi | C16: PLACA DE SINALIZACAO DE SEGURANCA CONTRA INCENDIO, FOTOLUMINESCENTE, RETANGULAR, *12 X 40* CM, EM PVC *2* MM ANTI-CHAMAS (SIMBOLOS, CORES E PICTOGRAMAS CONFORME NBR 16820) | D16: UN | E16: 44,00 | F16: 56.96 | G16: 2506.24 | H16: 0.003065026381 | I16: 0.9760736452 | J16: C
A17: 11859 | B17: Insumo Sinapi | C17: CONECTOR METALICO TIPO PARAFUSO FENDIDO (SPLIT BOLT), PARA CABOS ATE 185 MM2 | D17: UN | E17: 40,00 | F17: 62.47 | G17: 2498.8 | H17: 0.003055927573 | I17: 0.9791295727 | J17: C
A18: 1018 | B18: Insumo Sinapi | C18: CABO DE COBRE, FLEXIVEL, CLASSE 4 OU 5, ISOLACAO EM PVC/A, ANTICHAMA BWF-B, COBERTURA PVC-ST1, ANTICHAMA BWF-B, 1 CONDUTOR, 0,6/1 KV, SECAO NOMINAL 50 MM2 | D18: M | E18: 20,00 | F18: 64.74 | G18: 1294.8 | H18: 0.001583486082 | I18: 0.9807130588 | J18: C
A19: 4813 | B19: Insumo Sinapi | C19: PLACA DE OBRA (PARA CONSTRUCAO CIVIL) EM CHAPA GALVANIZADA *N. 22*, ADESIVADA, DE *2,0 X 1,125* M (SEM POSTES PARA FIXACAO) | D19: M2 | E19: 4,50 | F19: 258.06 | G19: 1161.27 | H19: 0.001420184494 | I19: 0.9821332433 | J19: C
A20: 4813 | B20: Insumo Sinapi | C20: PLACA DE OBRA (PARA CONSTRUCAO CIVIL) EM CHAPA GALVANIZADA *N. 22*, ADESIVADA, DE *2,0 X 1,125* M (SEM POSTES PARA FIXACAO) | D20: M2 | E20: 4,50 | F20: 258.06 | G20: 1161.27 | H20: 0.001420184494 | I20: 0.9835534278 | J20: C
A21: 867 | B21: Insumo Sinapi | C21: CABO DE COBRE NU 50 MM2 MEIO-DURO | D21: M | E21: 15,00 | F21: 71.58 | G21: 1073.7 | H21: 0.001313090057 | I21: 0.9848665179 | J21: C
A22: 34602 | B22: Insumo Sinapi | C22: CABO FLEXIVEL PVC 750 V, 2 CONDUTORES DE 1,5 MM2 | D22: M | E22: 130,00 | F22: 7.39 | G22: 960.7 | H22: 0.001174895798 | I22: 0.9860414136 | J22: C
A23: 3380 | B23: Insumo Sinapi | C23: !EM PROCESSO DE DESATIVACAO! HASTE DE ATERRAMENTO EM ACO COM 3,00 M DE COMPRIMENTO E DN = 5/8", REVESTIDA COM BAIXA CAMADA DE COBRE, COM CONECTOR TIPO GRAMPO | D23: UN | E23: 12,00 | F23: 68.82 | G23: 825.84 | H23: 0.001009967675 | I23: 0.9870513813 | J23: C
A24: 39468 | B24: Insumo Sinapi | C24: DISPOSITIVO DPS CLASSE II, 1 POLO, TENSAO MAXIMA DE 175 V, CORRENTE MAXIMA DE *90* KA (TIPO AC) | D24: UN | E24: 4,00 | F24: 203.38 | G24: 813.52 | H24: 0.0009949008321 | I24: 0.9880462822 | J24: C
A25: 20095 | B25: Insumo Sinapi | C25: CURVA CURTA PVC, PB, JE, 90 GRAUS, DN 100 MM, PARA REDE COLETORA ESGOTO (NBR 10569) | D25: UN | E25: 16,00 | F25: 48.21 | G25: 771.36 | H25: 0.0009433409208 | I25: 0.9889896231 | J25: C
A26: 38774 | B26: Insumo Sinapi | C26: LUMINARIA DE EMERGENCIA 30 LEDS, POTENCIA 2 W, BATERIA DE LITIO, AUTONOMIA DE 6 HORAS | D26: UN | E26: 28,00 | F26: 25.93 | G26: 726.04 | H26: 0.000887916462 | I26: 0.9898775395 | J26: C
A27: 857 | B27: Insumo Sinapi | C27: CABO DE COBRE NU 16 MM2 MEIO-DURO | D27: M | E27: 30,00 | F27: 24.09 | G27: 722.7 | H27: 0.0008838317821 | I27: 0.9907613713 | J27: C
A28: 37557 | B28: Insumo Sinapi | C28: PLACA DE SINALIZACAO DE SEGURANCA CONTRA INCENDIO, FOTOLUMINESCENTE, QUADRADA, *14 X 14* CM, EM PVC *2* MM ANTI-CHAMAS (SIMBOLOS, CORES E PICTOGRAMAS CONFORME NBR 16820) | D28: UN | E28: 30,00 | F28: 23.99 | G28: 719.7 | H28: 0.000880162908 | I28: 0.9916415342 | J28: C
A29: 20144 | B29: Insumo Sinapi | C29: JUNCAO SIMPLES, PVC SERIE R, DN 100 X 100 MM, PARA ESGOTO OU AGUAS PLUVIAIS PREDIAIS | D29: UN | E29: 8,00 | F29: 74.32 | G29: 594.56 | H29: 0.0007271219377 | I29: 0.9923686562 | J29: C
A30: 7602 | B30: Insumo Sinapi | C30: TORNEIRA DE METAL AMARELO, PARA TANQUE / JARDIM, DE PAREDE, COM BICO PLASTICO, CANO CURTO, AREA EXTERNA, PADRAO POPULAR / USO GERAL, 1/2 " OU 3/4 " (REF 1128) | D30: UN | E30: 12,00 | F30: 42.81 | G30: 513.72 | H30: 0.000628258009 | I30: 0.9929969142 | J30: C
A31: 10510 | B31: Insumo Sinapi | C31: CRUZETA DE MADEIRA TRATADA, *90 X 115 X 2400* MM, EM EUCALIPTO OU EQUIVALENTE DA REGIAO | D31: UN | E31: 4,00 | F31: 115.2 | G31: 460.8 | H31: 0.000563539069 | I31: 0.9935604532 | J31: C
A32: 3899 | B32: Insumo Sinapi | C32: LUVA SIMPLES, PVC, SOLDAVEL, DN 100 MM, SERIE NORMAL, PARA ESGOTO PREDIAL | D32: UN | E32: 53,00 | F32: 8.03 | G32: 425.59 | H32: 0.0005204787161 | I32: 0.994080932 | J32: C
A33: 3379 | B33: Insumo Sinapi | C33: !EM PROCESSO DE DESATIVACAO! HASTE DE ATERRAMENTO EM ACO COM 3,00 M DE COMPRIMENTO E DN = 5/8", REVESTIDA COM BAIXA CAMADA DE COBRE, SEM CONECTOR | D33: UN | E33: 6,00 | F33: 66.44 | G33: 398.64 | H33: 0.0004875199967 | I33: 0.994568452 | J33: C
A34: 3497 | B34: Insumo Sinapi | C34: JOELHO DE REDUCAO, PVC, ROSCAVEL COM BUCHA DE LATAO, 90 GRAUS, 3/4" X 1/2", PARA AGUA FRIA PREDIAL | D34: UN | E34: 20,00 | F34: 18.91 | G34: 378.2 | H34: 0.0004625227342 | I34: 0.9950309747 | J34: C
A35: 11831 | B35: Insumo Sinapi | C35: TORNEIRA PLASTICA PARA TANQUE 1/2 " OU 3/4 " COM BICO PARA MANGUEIRA | D35: UN | E35: 6,00 | F35: 57.44 | G35: 344.64 | H35: 0.0004214802621 | I35: 0.995452455 | J35: C
A36: 99 | B36: Insumo Orse | C36: Adaptador longo, pvc rigido soldavel, c/ flanges livres p/ caixa agua, d= 40mm x 1 1/ 4" | D36: UN | E36: 8,00 | F36: 42.52 | G36: 340.16 | H36: 0.00041600141 | I36: 0.9958684564 | J36: C
A37: 37950 | B37: Insumo Sinapi | C37: JOELHO PVC, SOLDAVEL, PB, 90 GRAUS, DN 150 MM, PARA ESGOTO PREDIAL | D37: UN | E37: 5,00 | F37: 64.92 | G37: 324.6 | H37: 0.0003969721828 | I37: 0.9962654285 | J37: C
A38: 1958 | B38: Insumo Sinapi | C38: CURVA DE PVC 90 GRAUS, SOLDAVEL, 40 MM, PARA AGUA FRIA PREDIAL (NBR 5648) | D38: UN | E38: 20,00 | F38: 15.98 | G38: 319.6 | H38: 0.0003908573925 | I38: 0.9966562859 | J38: C
A39: 4723 | B39: Insumo Sinapi | C39: PEDRA BRITADA N. 4 (50 A 76 MM) POSTO PEDREIRA/FORNECEDOR, SEM FRETE | D39: M3 | E39: 1,03 | F39: 267.09 | G39: 275.1 | H39: 0.0003364357593 | I39: 0.9969927217 | J39: C
A40: 3875 | B40: Insumo Sinapi | C40: LUVA SIMPLES, PVC, SOLDAVEL, DN 50 MM, SERIE NORMAL, PARA ESGOTO PREDIAL | D40: UN | E40: 65,00 | F40: 3.66 | G40: 237.9 | H40: 0.0002909417199 | I40: 0.9972836634 | J40: C
A41: 11855 | B41: Insumo Sinapi | C41: CONECTOR METALICO TIPO PARAFUSO FENDIDO (SPLIT BOLT), PARA CABOS ATE 70 MM2 | D41: UN | E41: 10,00 | F41: 22.8 | G41: 228 | H41: 0.0002788344352 | I41: 0.9975624979 | J41: C
A42: 40552 | B42: Insumo Sinapi | C42: PARAFUSO, AUTO ATARRACHANTE, CABECA CHATA, FENDA SIMPLES, 1/4" (6,35 MM) X 25 MM | D42: CENTO | E42: 4,00 | F42: 50.89 | G42: 203.56 | H42: 0.0002489453405 | I42: 0.9978114432 | J42: C
A43: 429 | B43: Insumo Sinapi | C43: PARAFUSO M16 EM ACO GALVANIZADO, COMPRIMENTO = 300 MM, DIAMETRO = 16 MM, ROSCA DUPLA | D43: UN | E43: 12,00 | F43: 13.89 | G43: 166.68 | H43: 0.0002038426476 | I43: 0.9980152858 | J43: C
A44: 38676 | B44: Insumo Sinapi | C44: LUVA SIMPLES, PVC, SOLDAVEL, DN 150 MM, SERIE NORMAL, PARA ESGOTO PREDIAL | D44: UN | E44: 4,00 | F44: 38.88 | G44: 155.52 | H44: 0.0001901944358 | I44: 0.9982054803 | J44: C
A45: 20034 | B45: Insumo Sinapi | C45: REDUCAO EXCENTRICA PVC NBR 10569 P/REDE COLET ESG PB JE 150 X 100MM | D45: UN | E45: 1,00 | F45: 149.95 | G45: 149.95 | H45: 0.0001833825595 | I45: 0.9983888628 | J45: C
A46: 37558 | B46: Insumo Sinapi | C46: PLACA DE SINALIZACAO DE SEGURANCA CONTRA INCENDIO, FOTOLUMINESCENTE, RETANGULAR, *20 X 40* CM, EM PVC *2* MM ANTI-CHAMAS (SIMBOLOS, CORES E PICTOGRAMAS CONFORME NBR 16820) | D46: UN | E46: 2,00 | F46: 74.85 | G46: 149.7 | H46: 0.00018307682 | I46: 0.9985719397 | J46: C
A47: 13343 | B47: Insumo Sinapi | C47: KIT DE MATERIAIS PARA BRACADEIRA PARA FIXACAO EM POSTE CIRCULAR, CONTEM TRES FIXADORES E UM ROLO DE FITA DE 3 M EM ACO CARBONO | D47: UN | E47: 3,00 | F47: 48.45 | G47: 145.35 | H47: 0.0001777569524 | I47: 0.9987496966 | J47: C
A48: 11864 | B48: Insumo Sinapi | C48: CONECTOR METALICO TIPO PARAFUSO FENDIDO (SPLIT BOLT), PARA CABOS ATE 95 MM2 | D48: UN | E48: 4,00 | F48: 34.48 | G48: 137.92 | H48: 0.0001686703741 | I48: 0.998918367 | J48: C
A49: 3526 | B49: Insumo Sinapi | C49: JOELHO PVC, SOLDAVEL, PB, 90 GRAUS, DN 50 MM, PARA ESGOTO PREDIAL | D49: UN | E49: 37,00 | F49: 3.19 | G49: 118.03 | H49: 0.0001443457385 | I49: 0.9990627127 | J49: C
A50: 3840 | B50: Insumo Sinapi | C50: LUVA DE CORRER DEFOFO, PVC, JE, DN 100 MM | D50: UN | E50: 1,00 | F50: 77.76 | G50: 77.76 | H50: 9.50972179e-05 | I50: 0.9991578099 | J50: C
A51: 37952 | B51: Insumo Sinapi | C51: JOELHO PVC, SOLDAVEL, PB, 45 GRAUS, DN 150 MM, PARA ESGOTO PREDIAL | D51: UN | E51: 1,00 | F51: 74.57 | G51: 74.57 | H51: 9.119598172e-05 | I51: 0.9992490059 | J51: C
A52: 20159 | B52: Insumo Sinapi | C52: JOELHO COM VISITA, PVC SERIE R, 90 GRAUS, 100 X 50 MM, PARA ESGOTO OU AGUAS PLUVIAIS PREDIAIS | D52: UN | E52: 1,00 | F52: 69.23 | G52: 69.23 | H52: 8.466538574e-05 | I52: 0.9993336713 | J52: C
A53: 39321 | B53: Insumo Sinapi | C53: TERMINAL DE VENTILACAO, 100 MM, SERIE NORMAL, ESGOTO PREDIAL | D53: UN | E53: 3,00 | F53: 22.27 | G53: 66.81 | H53: 8.170582726e-05 | I53: 0.9994153771 | J53: C
A54: 11862 | B54: Insumo Sinapi | C54: CONECTOR METALICO TIPO PARAFUSO FENDIDO (SPLIT BOLT), PARA CABOS ATE 50 MM2 | D54: UN | E54: 4,00 | F54: 15.28 | G54: 61.12 | H54: 7.474719596e-05 | I54: 0.9994901243 | J54: C
A55: 3520 | B55: Insumo Sinapi | C55: JOELHO PVC, SOLDAVEL, PB, 90 GRAUS, DN 100 MM, PARA ESGOTO PREDIAL | D55: UN | E55: 5,00 | F55: 10.54 | G55: 52.7 | H55: 6.444988919e-05 | I55: 0.9995545742 | J55: C
A56: 1539 | B56: Insumo Sinapi | C56: CONECTOR METALICO TIPO PARAFUSO FENDIDO (SPLIT BOLT), PARA CABOS ATE 16 MM2 | D56: UN | E56: 6,00 | F56: 8.26 | G56: 49.56 | H56: 6.060980092e-05 | I56: 0.999615184 | J56: C
A57: 3939 | B57: Insumo Sinapi | C57: LUVA DE FERRO GALVANIZADO, COM ROSCA BSP, DE 1 1/2" | D57: UN | E57: 2,00 | F57: 23.6 | G57: 47.2 | H57: 5.772361992e-05 | I57: 0.9996729076 | J57: C
A58: 39319 | B58: Insumo Sinapi | C58: TERMINAL DE VENTILACAO, 50 MM, SERIE NORMAL, ESGOTO PREDIAL | D58: UN | E58: 5,00 | F58: 8.71 | G58: 43.55 | H58: 5.325982304e-05 | I58: 0.9997261675 | J58: C
A59: 3518 | B59: Insumo Sinapi | C59: JOELHO PVC, SOLDAVEL, PB, 45 GRAUS, DN 50 MM, PARA ESGOTO PREDIAL | D59: UN | E59: 10,00 | F59: 3.97 | G59: 39.7 | H59: 4.855143455e-05 | I59: 0.9997747189 | J59: C
A60: 7097 | B60: Insumo Sinapi | C60: TE SANITARIO, PVC, DN 50 X 50 MM, SERIE NORMAL, PARA ESGOTO PREDIAL | D60: UN | E60: 4,00 | F60: 8.99 | G60: 35.96 | H60: 4.397757145e-05 | I60: 0.9998186965 | J60: C
A61: 3528 | B61: Insumo Sinapi | C61: JOELHO PVC, SOLDAVEL, PB, 45 GRAUS, DN 100 MM, PARA ESGOTO PREDIAL | D61: UN | E61: 3,00 | F61: 10.46 | G61: 31.38 | H61: 3.837642358e-05 | I61: 0.9998570729 | J61: C
A62: 3462 | B62: Insumo Sinapi | C62: COTOVELO DE REDUCAO 90 GRAUS DE FERRO GALVANIZADO, COM ROSCA BSP, DE 3/4" X 1/2" | D62: UN | E62: 2,00 | F62: 12 | G62: 24 | H62: 2.935099318e-05 | I62: 0.9998864239 | J62: C
A63: 3522 | B63: Insumo Sinapi | C63: JOELHO PVC, SOLDAVEL COM ROSCA, 90 GRAUS, 25 MM X 3/4", PARA AGUA FRIA PREDIAL | D63: UN | E63: 4,00 | F63: 4.29 | G63: 17.16 | H63: 2.098596012e-05 | I63: 0.9999074098 | J63: C
A64: 819 | B64: Insumo Sinapi | C64: BUCHA DE REDUCAO DE PVC, SOLDAVEL, CURTA, COM 50 X 40 MM, PARA AGUA FRIA PREDIAL | D64: UN | E64: 4,00 | F64: 4.15 | G64: 16.6 | H64: 2.030110362e-05 | I64: 0.9999277109 | J64: C
A65: 436 | B65: Insumo Sinapi | C65: PARAFUSO FRANCES M16 EM ACO GALVANIZADO, COMPRIMENTO = 150 MM, DIAMETRO = 16 MM, CABECA ABAULADA | D65: UN | E65: 2,00 | F65: 7.86 | G65: 15.72 | H65: 1.922490053e-05 | I65: 0.9999469359 | J65: C
A66: 37951 | B66: Insumo Sinapi | C66: JOELHO PVC, SOLDAVEL, PB, 45 GRAUS, DN 40 MM, PARA ESGOTO PREDIAL | D66: UN | E66: 4,00 | F66: 2.71 | G66: 10.84 | H66: 1.325686525e-05 | I66: 0.9999601927 | J66: C
A67: 37951 | B67: Insumo Sinapi | C67: JOELHO PVC, SOLDAVEL, PB, 45 GRAUS, DN 40 MM, PARA ESGOTO PREDIAL | D67: UN | E67: 4,00 | F67: 2.71 | G67: 10.84 | H67: 1.325686525e-05 | I67: 0.9999734496 | J67: C
A68: 1574 | B68: Insumo Sinapi | C68: TERMINAL A COMPRESSAO EM COBRE ESTANHADO PARA CABO 10 MM2, 1 FURO E 1 COMPRESSAO, PARA PARAFUSO DE FIXACAO M6 | D68: UN | E68: 6,00 | F68: 1.79 | G68: 10.74 | H68: 1.313456945e-05 | I68: 0.9999865842 | J68: C
A69: 1402 | B69: Insumo Sinapi | C69: COLAR TOMADA PVC, COM TRAVAS, SAIDA COM ROSCA, DE 32 MM X 1/2" OU 32 MM X 3/4", PARA LIGACAO PREDIAL DE AGUA | D69: UN | E69: 1,00 | F69: 9.81 | G69: 9.81 | H69: 1.199721846e-05 | I69: 0.9999985814 | J69: C
A70: 829 | B70: Insumo Sinapi | C70: BUCHA DE REDUCAO DE PVC, SOLDAVEL, CURTA, COM 32 X 25 MM, PARA AGUA FRIA PREDIAL | D70: UN | E70: 1,00 | F70: 1.16 | G70: 1.16 | H70: 1.418631337e-06 | I70: 1 | J70: C
G71: =SUM(G6:G70) -> 817689.5362
G76: =G71+'CURVA ABC SERVIÇOS '!G183 -> 7045033.722

Sheet CURVA ABC SERVIÇOS
E1: Valores: Não Desonerado
E2: BDI | F2: ='BDI '!C22 -> 0.2480214044
A3: Base: Sinapi / Ref: 09/2022 / Estado: Amapá | E3: BDI DIF. | F3: ='BDI '!C48 -> 0.146920122
A4: Curva ABC de Serviços
A5: Código | B5: Base | C5: Descrição | D5: Un. | E5: Qtd. | F5: Preço com BDI | G5: Total | H5: % | I5: % Acumulado | J5: Classe
A6: 90777 | B6: Composição Sinapi | C6: ENGENHEIRO CIVIL DE OBRA JUNIOR COM ENCARGOS COMPLEMENTARES | D6: H | E6: 3.360,00 | F6: 127.81 | G6: 429441.6 | H6: =G6/$G$183 -> 0.06896063348 | I6: =H6 -> 0.06896063348 | J6: A
A7: 12093 | B7: Composição Orse | C7: Gradil em alumínio anodizado branco, com barras de apoio em alumínio anodizado branco de 1"x2" horizontais a cada 5cm com 1,85m e barras externas verticais em alumínio anodizado branco de 1.1/2" x 1.1/2" com 3,05m - Fixado com rebite | D7: M2 | E7: 556,77 | F7: 608.1 | G7: 338571.84 | H7: =G7/$G$183 -> 0.0543685767 | I7: =I6+H7 -> 0.1233292102 | J7: A
A8: 12734 | B8: Composição Orse | C8: Fechamento lateral com telha em aço galvalume, dupla, trapezoidal, com preenchimento PIR 50mm, pré-pintada, TP40 - 2 x 0,43mm, Kingspan- Isoeste ou similar | D8: M2 | E8: 643,79 | F8: 456.6 | G8: 293954.51 | H8: 0.0472038322 | I8: =I7+H8 -> 0.1705330424 | J8: A
A9: 96557 | B9: Composição Sinapi | C9: CONCRETAGEM DE BLOCOS DE COROAMENTO E VIGAS BALDRAMES, FCK 30 MPA, COM USO DE BOMBA - LANÇAMENTO, ADENSAMENTO E ACABAMENTO. AF_06/2017 | D9: M3 | E9: 272,70 | F9: 1044.47 | G9: 284826.97 | H9: 0.04573811267 | I9: 0.216271155 | J9: A
A10: 87623 | B10: Composição Sinapi | C10: CONTRAPISO EM ARGAMASSA PRONTA, PREPARO MECÂNICO COM MISTURADOR 300 KG, APLICADO EM ÁREAS SECAS SOBRE LAJE, ADERIDO, ACABAMENTO NÃO REFORÇADO, ESPESSURA 2CM. AF_07/2021 | D10: M2 | E10: 2.320,87 | F10: 105.12 | G10: 243969.85 | H10: 0.03917719058 | I10: 0.2554483456 | J10: A
A11: 1857 | B11: Composição Orse | C11: Porta em aço, em chapa galvanizada nº24, raiada, de enrolar | D11: M2 | E11: 894,72 | F11: 254.32 | G11: 227545.19 | H11: 0.03653968421 | I11: 0.2919880298 | J11: A
A12: 96557 | B12: Composição Sinapi | C12: CONCRETAGEM DE BLOCOS DE COROAMENTO E VIGAS BALDRAMES, FCK 30 MPA, COM USO DE BOMBA - LANÇAMENTO, ADENSAMENTO E ACABAMENTO. AF_06/2017 | D12: M3 | E12: 215,40 | F12: 1044.47 | G12: 224978.84 | H12: 0.03612757434 | I12: 0.3281156042 | J12: A
A13: 11613 | B13: Composição Orse | C13: Pavimentação em placas de Basalato Regular, sobre base de areia E=5cm | D13: M2 | E13: 1.795,23 | F13: 94.92 | G13: 170403.23 | H13: 0.02736370833 | I13: 0.3554793125 | J13: A
A14: 93391 | B14: Composição Sinapi | C14: REVESTIMENTO CERÂMICO PARA PISO COM PLACAS TIPO ESMALTADA PADRÃO POPULAR DE DIMENSÕES 35X35 CM APLICADA EM AMBIENTES DE ÁREA MAIOR QUE 10 M2. AF_06/2014 | D14: M2 | E14: 2.320,87 | F14: 72.41 | G14: 168054.2 | H14: 0.02698649617 | I14: 0.3824658087 | J14: A
A15: 103324 | B15: Composição Sinapi | C15: ALVENARIA DE VEDAÇÃO DE BLOCOS CERÂMICOS FURADOS NA VERTICAL DE 14X19X39 CM (ESPESSURA 14 CM) E ARGAMASSA DE ASSENTAMENTO COM PREPARO EM BETONEIRA. AF_12/2021 | D15: M2 | E15: 1.701,25 | F15: 95.72 | G15: 162843.65 | H15: 0.02614977511 | I15: 0.4086155838 | J15: A
A16: 92762 | B16: Composição Sinapi | C16: ARMAÇÃO DE PILAR OU VIGA DE UMA ESTRUTURA CONVENCIONAL DE CONCRETO ARMADO EM UM EDIFÍCIO DE MÚLTIPLOS PAVIMENTOS UTILIZANDO AÇO CA-50 DE 10,0 MM - MONTAGEM. AF_12/2015 | D16: KG | E16: 9.254,00 | F16: 17.36 | G16: 160649.44 | H16: 0.02579742426 | I16: 0.434413008 | J16: A
A17: 99841 | B17: Composição Sinapi | C17: GUARDA-CORPO PANORÂMICO COM PERFIS DE ALUMÍNIO E VIDRO LAMINADO 8 MM, FIXADO COM CHUMBADOR MECÂNICO. AF_04/2019_P | D17: M | E17: 61,44 | F17: 2366.34 | G17: 145387.93 | H17: 0.02334669895 | I17: 0.457759707 | J17: A
A18: 96620 | B18: Composição Sinapi | C18: LASTRO DE CONCRETO MAGRO, APLICADO EM PISOS, LAJES SOBRE SOLO OU RADIERS. AF_08/2017 | D18: M3 | E18: 153,59 | F18: 882.79 | G18: 135587.72 | H18: 0.02177296066 | I18: 0.4795326677 | J18: A
A19: 100651 | B19: Composição Sinapi | C19: ESTACA HÉLICE CONTÍNUA, DIÂMETRO DE 30 CM, INCLUSO CONCRETO FCK=30MPA E ARMADURA MÍNIMA (EXCLUSIVE MOBILIZAÇÃO, DESMOBILIZAÇÃO E BOMBEAMENTO). AF_12/2019 | D19: M | E19: 610,00 | F19: 196.67 | G19: 119968.7 | H19: 0.01926482565 | I19: 0.4987974933 | J19: A
A20: 97627 | B20: Composição Sinapi | C20: DEMOLIÇÃO DE PILARES, VIGAS E LAJES EM CONCRETO ARMADO, DE FORMA MECANIZADA COM MARTELETE, SEM REAPROVEITAMENTO. AF_12/2017 | D20: M3 | E20: 439,94 | F20: 270.91 | G20: 119184.15 | H20: 0.01913884096 | I20: 0.5179363343 | J20: A
A21: 87543 | B21: Composição Sinapi | C21: MASSA ÚNICA, PARA RECEBIMENTO DE PINTURA OU CERÂMICA, ARGAMASSA INDUSTRIALIZADA, PREPARO MECÂNICO, APLICADO COM EQUIPAMENTO DE MISTURA E PROJEÇÃO DE 1,5 M3/H EM FACES INTERNAS DE PAREDES, ESPESSURA DE 5MM, SEM EXECUÇÃO DE TALISCAS. AF_06/2014 | D21: M2 | E21: 3.402,50 | F21: 34.32 | G21: 116773.8 | H21: 0.0187517819 | I21: 0.5366881162 | J21: A
A22: 8629 | B22: Composição Orse | C22: Execução de estaca hélice contínua monitorada Ø 400mm, concreto fck=30Mpa, inclusive aço, bombeamento; exclusive mobilização e desmobilização de equipamento e bate-estacas | D22: M | E22: 350,00 | F22: 310.96 | G22: 108836 | H22: 0.01747711332 | I22: 0.5541652295 | J22: A
A23: 92580 | B23: Composição Sinapi | C23: TRAMA DE AÇO COMPOSTA POR TERÇAS PARA TELHADOS DE ATÉ 2 ÁGUAS PARA TELHA ONDULADA DE FIBROCIMENTO, METÁLICA, PLÁSTICA OU TERMOACÚSTICA, INCLUSO TRANSPORTE VERTICAL. AF_07/2019 | D23: M2 | E23: 1.556,69 | F23: 69.03 | G23: 107458.31 | H23: 0.01725588096 | I23: 0.5714211105 | J23: A
A24: 99059 | B24: Composição Sinapi | C24: LOCACAO CONVENCIONAL DE OBRA, UTILIZANDO GABARITO DE TÁBUAS CORRIDAS PONTALETADAS A CADA 2,00M - 2 UTILIZAÇÕES. AF_10/2018 | D24: M | E24: 1.700,00 | F24: 56.13 | G24: 95421 | H24: 0.01532290446 | I24: 0.5867440149 | J24: A
A25: 92760 | B25: Composição Sinapi | C25: ARMAÇÃO DE PILAR OU VIGA DE UMA ESTRUTURA CONVENCIONAL DE CONCRETO ARMADO EM UM EDIFÍCIO DE MÚLTIPLOS PAVIMENTOS UTILIZANDO AÇO CA-50 DE 6,3 MM - MONTAGEM. AF_12/2015 | D25: KG | E25: 4.657,70 | F25: 19.61 | G25: 91337.5 | H25: 0.01466716746 | I25: 0.6014111824 | J25: B
A26: 96562 | B26: Composição Sinapi | C26: SUPORTE PARA ELETROCALHA LISA OU PERFURADA EM AÇO GALVANIZADO, LARGURA 200 OU 400 MM E ALTURA 50 MM, ESPAÇADO A CADA 1,5 M, EM PERFILADO DE SEÇÃO 38X76 MM, POR METRO DE ELETRECOLHA FIXADA. AF_07/2017 | D26: M | E26: 3.620,00 | F26: 24.55 | G26: 88871 | H26: 0.01427109171 | I26: 0.6156822741 | J26: B
A27: 92759 | B27: Composição Sinapi | C27: ARMAÇÃO DE PILAR OU VIGA DE UMA ESTRUTURA CONVENCIONAL DE CONCRETO ARMADO EM UM EDIFÍCIO DE MÚLTIPLOS PAVIMENTOS UTILIZANDO AÇO CA-60 DE 5,0 MM - MONTAGEM. AF_12/2015 | D27: KG | E27: 4.441,60 | F27: 19.74 | G27: 87677.18 | H27: 0.01407938559 | I27: 0.6297616597 | J27: B
A28: 100754 | B28: Composição Sinapi | C28: PINTURA COM TINTA ACRÍLICA DE ACABAMENTO APLICADA A ROLO OU PINCEL (EXCETO PERFIL) EXECUTADO EM OBRA (02 DEMÃOS). AF_01/2020 | D28: M2 | E28: 2.990,54 | F28: 28.61 | G28: 85559.35 | H28: 0.0137393 | I28: 0.6435009597 | J28: B
A29: 92762 | B29: Composição Sinapi | C29: ARMAÇÃO DE PILAR OU VIGA DE UMA ESTRUTURA CONVENCIONAL DE CONCRETO ARMADO EM UM EDIFÍCIO DE MÚLTIPLOS PAVIMENTOS UTILIZANDO AÇO CA-50 DE 10,0 MM - MONTAGEM. AF_12/2015 | D29: KG | E29: 4.857,50 | F29: 17.36 | G29: 84326.2 | H29: 0.01354127819 | I29: 0.6570422379 | J29: B
A30: 98458 | B30: Composição Sinapi | C30: TAPUME COM COMPENSADO DE MADEIRA. AF_05/2018 | D30: M2 | E30: 610,24 | F30: 136.59 | G30: 83352.68 | H30: 0.0133849483 | I30: 0.6704271862 | J30: B
A31: 87791 | B31: Composição Sinapi | C31: EMBOÇO OU MASSA ÚNICA EM ARGAMASSA INDUSTRIALIZADA, PREPARO MECÂNICO E APLICAÇÃO COM EQUIPAMENTO DE MISTURA E PROJEÇÃO DE 1,5 M3/H DE ARGAMASSA EM PANOS DE FACHADA COM PRESENÇA DE VÃOS, ESPESSURA MAIOR OU IGUAL A 50 MM. AF_06/2014 | D31: M2 | E31: 411,96 | F31: 191.23 | G31: 78779.11 | H31: 0.01265051483 | I31: 0.683077701 | J31: B
A32: 92759 | B32: Composição Sinapi | C32: ARMAÇÃO DE PILAR OU VIGA DE UMA ESTRUTURA CONVENCIONAL DE CONCRETO ARMADO EM UM EDIFÍCIO DE MÚLTIPLOS PAVIMENTOS UTILIZANDO AÇO CA-60 DE 5,0 MM - MONTAGEM. AF_12/2015 | D32: KG | E32: 3.646,10 | F32: 19.74 | G32: 71974.01 | H32: 0.01155773759 | I32: 0.6946354386 | J32: B
A33: 92761 | B33: Composição Sinapi | C33: ARMAÇÃO DE PILAR OU VIGA DE UMA ESTRUTURA CONVENCIONAL DE CONCRETO ARMADO EM UM EDIFÍCIO DE MÚLTIPLOS PAVIMENTOS UTILIZANDO AÇO CA-50 DE 8,0 MM - MONTAGEM. AF_12/2015 | D33: KG | E33: 3.759,10 | F33: 19.07 | G33: 71686.04 | H33: 0.01151149477 | I33: 0.7061469334 | J33: B
A34: 93572 | B34: Composição Sinapi | C34: ENCARREGADO GERAL DE OBRAS COM ENCARGOS COMPLEMENTARES | D34: MES | E34: 14,00 | F34: 5087.42 | G34: 71223.88 | H34: 0.01143728014 | I34: 0.7175842135 | J34: B
A35: 101965 | B35: Composição Sinapi | C35: PEITORIL LINEAR EM GRANITO OU MÁRMORE, L = 15CM, COMPRIMENTO DE ATÉ 2M, ASSENTADO COM ARGAMASSA 1:6 COM ADITIVO. AF_11/2020 | D35: M | E35: 329,86 | F35: 190.18 | G35: 62732.77 | H35: 0.01007375988 | I35: 0.7276579734 | J35: B
A36: 102107 | B36: Composição Sinapi | C36: TRANSFORMADOR DE DISTRIBUIÇÃO, 225 KVA, TRIFÁSICO, 60 HZ, CLASSE 15 KV, IMERSO EM ÓLEO MINERAL, INSTALAÇÃO EM POSTE (NÃO INCLUSO SUPORTE) - FORNECIMENTO E INSTALAÇÃO. AF_12/2020 | D36: UN | E36: 1,00 | F36: 59128.1 | G36: 59128.1 | H36: 0.009494914402 | I36: 0.7371528878 | J36: B
A37: 1 | B37: Composição Própria | C37: VEÍCULO LEVE | D37: MES | E37: 14 | F37: 4168.21 | G37: 58354.94 | H37: 0.009370758747 | I37: 0.7465236465 | J37: B
A38: 88650 | B38: Composição Sinapi | C38: RODAPÉ CERÂMICO DE 7CM DE ALTURA COM PLACAS TIPO ESMALTADA EXTRA DE DIMENSÕES 60X60CM. AF_06/2014 | D38: M | E38: 2.051,54 | F38: 28.3 | G38: 58058.58 | H38: 0.009323168636 | I38: 0.7558468152 | J38: B
A39: 96536 | B39: Composição Sinapi | C39: FABRICAÇÃO, MONTAGEM E DESMONTAGEM DE FÔRMA PARA VIGA BALDRAME, EM MADEIRA SERRADA, E=25 MM, 4 UTILIZAÇÕES. AF_06/2017 | D39: M2 | E39: 774,60 | F39: 72.76 | G39: 56359.9 | H39: 0.009050391036 | I39: 0.7648972062 | J39: B
A40: 96557 | B40: Composição Sinapi | C40: CONCRETAGEM DE BLOCOS DE COROAMENTO E VIGAS BALDRAMES, FCK 30 MPA, COM USO DE BOMBA - LANÇAMENTO, ADENSAMENTO E ACABAMENTO. AF_06/2017 | D40: M3 | E40: 52,40 | F40: 1044.47 | G40: 54730.23 | H40: 0.008788695207 | I40: 0.7736859014 | J40: B
A41: 96557 | B41: Composição Sinapi | C41: CONCRETAGEM DE BLOCOS DE COROAMENTO E VIGAS BALDRAMES, FCK 30 MPA, COM USO DE BOMBA - LANÇAMENTO, ADENSAMENTO E ACABAMENTO. AF_06/2017 | D41: M3 | E41: 49,50 | F41: 1044.47 | G41: 51701.27 | H41: 0.008302298453 | I41: 0.7819881999 | J41: B
A42: 91926 | B42: Composição Sinapi | C42: CABO DE COBRE FLEXÍVEL ISOLADO, 2,5 MM², ANTI-CHAMA 450/750 V, PARA CIRCUITOS TERMINAIS - FORNECIMENTO E INSTALAÇÃO. AF_12/2015 | D42: M | E42: 7.940,00 | F42: 6.1 | G42: 48434 | H42: 0.007777633378 | I42: 0.7897658332 | J42: B
A43: 92443 | B43: Composição Sinapi | C43: MONTAGEM E DESMONTAGEM DE FÔRMA DE PILARES RETANGULARES E ESTRUTURAS SIMILARES, PÉ-DIREITO SIMPLES, EM CHAPA DE MADEIRA COMPENSADA PLASTIFICADA, 18 UTILIZAÇÕES. AF_09/2020 | D43: M2 | E43: 747,00 | F43: 61.12 | G43: 45656.64 | H43: 0.00733163908 | I43: 0.7970974723 | J43: B
A44: 98689 | B44: Composição Sinapi | C44: SOLEIRA EM GRANITO, LARGURA 15 CM, ESPESSURA 2,0 CM. AF_09/2020 | D44: M | E44: 294,66 | F44: 154.71 | G44: 45586.85 | H44: 0.007320432055 | I44: 0.8044179044 | J44: B
A45: 92538 | B45: Composição Sinapi | C45: MONTAGEM E DESMONTAGEM DE FÔRMA DE LAJE MACIÇA, PÉ-DIREITO SIMPLES, EM CHAPA DE MADEIRA COMPENSADA PLASTIFICADA, . AF_09/2020 | D45: M2 | E45: 1.062,50 | F45: 42.8 | G45: 45475 | H45: 0.007302470948 | I45: 0.8117203753 | J45: B
A46: 87263 | B46: Composição Sinapi | C46: REVESTIMENTO CERÂMICO PARA PISO COM PLACAS TIPO PORCELANATO DE DIMENSÕES 60X60 CM APLICADA EM AMBIENTES DE ÁREA MAIOR QUE 10 M². AF_06/2014 | D46: M2 | E46: 166,08 | F46: 263.02 | G46: 43682.36 | H46: 0.007014605054 | I46: 0.8187349804 | J46: B
A47: 91845 | B47: Composição Sinapi | C47: ELETRODUTO FLEXÍVEL CORRUGADO REFORÇADO, PVC, DN 25 MM (3/4"), PARA CIRCUITOS TERMINAIS, INSTALADO EM LAJE - FORNECIMENTO E INSTALAÇÃO. AF_12/2015 | D47: M | E47: 3.750,00 | F47: 11.42 | G47: 42825 | H47: 0.006876928386 | I47: 0.8256119088 | J47: B
A48: 102220 | B48: Composição Sinapi | C48: PINTURA TINTA DE ACABAMENTO (PIGMENTADA) ESMALTE SINTÉTICO BRILHANTE EM MADEIRA, 2 DEMÃOS. AF_01/2021 | D48: M2 | E48: 2.633,94 | F48: 15.33 | G48: 40378.3 | H48: 0.006484032164 | I48: 0.8320959409 | J48: B
A49: 96523 | B49: Composição Sinapi | C49: ESCAVAÇÃO MANUAL PARA BLOCO DE COROAMENTO OU SAPATA, COM PREVISÃO DE FÔRMA. AF_06/2017 | D49: M3 | E49: 357,16 | F49: 93.38 | G49: 33351.6 | H49: 0.00535566993 | I49: 0.8374516109 | J49: B
A50: 92763 | B50: Composição Sinapi | C50: ARMAÇÃO DE PILAR OU VIGA DE UMA ESTRUTURA CONVENCIONAL DE CONCRETO ARMADO EM UM EDIFÍCIO DE MÚLTIPLOS PAVIMENTOS UTILIZANDO AÇO CA-50 DE 12,5 MM - MONTAGEM. AF_12/2015 | D50: KG | E50: 2.245,20 | F50: 14.79 | G50: 33206.51 | H50: 0.005332371073 | I50: 0.8427839819 | J50: B
A51: 12474 | B51: Composição Orse | C51: Módulo para 36 medidores em chapa galvanizada 12,5mm, com barramento para 200A, pintado eletrostaticamente na cor bege | D51: UN | E51: 4,00 | F51: 8087.25 | G51: 32349 | H51: 0.005194670317 | I51: 0.8479786522 | J51: B
A52: 93584 | B52: Composição Sinapi | C52: EXECUÇÃO DE DEPÓSITO EM CANTEIRO DE OBRA COM CONTAINER, NÃO INCLUSO MOBILIÁRIO. AF_04/2016 | D52: M2 | E52: 30,00 | F52: 964.76 | G52: 28942.8 | H52: 0.004647695572 | I52: 0.8526263478 | J52: B
A53: 91928 | B53: Composição Sinapi | C53: CABO DE COBRE FLEXÍVEL ISOLADO, 4 MM², ANTI-CHAMA 450/750 V, PARA CIRCUITOS TERMINAIS - FORNECIMENTO E INSTALAÇÃO. AF_12/2015 | D53: M | E53: 3.030,00 | F53: 9.52 | G53: 28845.6 | H53: 0.004632086992 | I53: 0.8572584348 | J53: B
A54: 98560 | B54: Composição Sinapi | C54: IMPERMEABILIZAÇÃO DE PISO COM ARGAMASSA DE CIMENTO E AREIA, COM ADITIVO IMPERMEABILIZANTE, E = 2CM. AF_06/2018 | D54: M2 | E54: 494,34 | F54: 58.31 | G54: 28824.97 | H54: 0.004628774183 | I54: 0.861887209 | J54: B
A55: 92761 | B55: Composição Sinapi | C55: ARMAÇÃO DE PILAR OU VIGA DE UMA ESTRUTURA CONVENCIONAL DE CONCRETO ARMADO EM UM EDIFÍCIO DE MÚLTIPLOS PAVIMENTOS UTILIZANDO AÇO CA-50 DE 8,0 MM - MONTAGEM. AF_12/2015 | D55: KG | E55: 1.461,20 | F55: 19.07 | G55: 27865.08 | H55: 0.004474633033 | I55: 0.866361842 | J55: B
A56: 9074 | B56: Composição Orse | C56: Brise em perfil "C" de alumínio dobrado anodizado branco | D56: M2 | E56: 32,96 | F56: 825.13 | G56: 27196.28 | H56: 0.004367235725 | I56: 0.8707290778 | J56: B
A57: 92763 | B57: Composição Sinapi | C57: ARMAÇÃO DE PILAR OU VIGA DE UMA ESTRUTURA CONVENCIONAL DE CONCRETO ARMADO EM UM EDIFÍCIO DE MÚLTIPLOS PAVIMENTOS UTILIZANDO AÇO CA-50 DE 12,5 MM - MONTAGEM. AF_12/2015 | D57: KG | E57: 1.802,10 | F57: 14.79 | G57: 26653.06 | H57: 0.004280004317 | I57: 0.8750090821 | J57: B
A58: 92764 | B58: Composição Sinapi | C58: ARMAÇÃO DE PILAR OU VIGA DE UMA ESTRUTURA CONVENCIONAL DE CONCRETO ARMADO EM UM EDIFÍCIO DE MÚLTIPLOS PAVIMENTOS UTILIZANDO AÇO CA-50 DE 16,0 MM - MONTAGEM. AF_12/2015 | D58: KG | E58: 1.835,10 | F58: 14.48 | G58: 26572.25 | H58: 0.004267027678 | I58: 0.8792761097 | J58: B
A59: 94227 | B59: Composição Sinapi | C59: CALHA EM CHAPA DE AÇO GALVANIZADO NÚMERO 24, DESENVOLVIMENTO DE 33 CM, INCLUSO TRANSPORTE VERTICAL. AF_07/2019 | D59: M | E59: 305,85 | F59: 84.41 | G59: 25816.8 | H59: 0.004145715931 | I59: 0.8834218257 | J59: B
A60: 91990 | B60: Composição Sinapi | C60: TOMADA ALTA DE EMBUTIR (1 MÓDULO), 2P+T 10 A, SEM SUPORTE E SEM PLACA - FORNECIMENTO E INSTALAÇÃO. AF_12/2015 | D60: UN | E60: 638,00 | F60: 39.92 | G60: 25468.96 | H60: 0.004089859054 | I60: 0.8875116847 | J60: B
A61: 101655 | B61: Composição Sinapi | C61: LUMINÁRIA DE LED PARA ILUMINAÇÃO PÚBLICA, DE 51 W ATÉ 67 W - FORNECIMENTO E INSTALAÇÃO. AF_08/2020 | D61: UN | E61: 40,00 | F61: 631.08 | G61: 25243.2 | H61: 0.004053606039 | I61: 0.8915652908 | J61: B
A62: 93213 | B62: Composição Sinapi | C62: EXECUÇÃO DE SANITÁRIO E VESTIÁRIO EM CANTEIRO DE OBRA EM ALVENARIA, NÃO INCLUSO MOBILIÁRIO. AF_02/2016 | D62: M2 | E62: 20,00 | F62: 1244.98 | G62: 24899.6 | H62: 0.00399843003 | I62: 0.8955637208 | J62: B
A63: 97625 | B63: Composição Sinapi | C63: DEMOLIÇÃO DE ALVENARIA PARA QUALQUER TIPO DE BLOCO, DE FORMA MECANIZADA, SEM REAPROVEITAMENTO. AF_12/2017 | D63: M3 | E63: 372,66 | F63: 65.76 | G63: 24506.12 | H63: 0.003935244186 | I63: 0.899498965 | J63: B
A64: 96534 | B64: Composição Sinapi | C64: FABRICAÇÃO, MONTAGEM E DESMONTAGEM DE FÔRMA PARA BLOCO DE COROAMENTO, EM MADEIRA SERRADA, E=25 MM, 4 UTILIZAÇÕES. AF_06/2017 | D64: M2 | E64: 279,00 | F64: 85.19 | G64: 23768.01 | H64: 0.003816716933 | I64: 0.9033156819 | J64: C
A65: 98557 | B65: Composição Sinapi | C65: IMPERMEABILIZAÇÃO DE SUPERFÍCIE COM EMULSÃO ASFÁLTICA, 2 DEMÃOS AF_06/2018 | D65: M2 | E65: 292,50 | F65: 79.56 | G65: 23271.3 | H65: 0.003736954198 | I65: 0.9070526361 | J65: C
A66: 94273 | B66: Composição Sinapi | C66: ASSENTAMENTO DE GUIA (MEIO-FIO) EM TRECHO RETO, CONFECCIONADA EM CONCRETO PRÉ-FABRICADO, DIMENSÕES 100X15X13X30 CM (COMPRIMENTO X BASE INFERIOR X BASE SUPERIOR X ALTURA), PARA VIAS URBANAS (USO VIÁRIO). AF_06/2016 | D66: M | E66: 356,24 | F66: 62.36 | G66: 22215.13 | H66: 0.003567352203 | I66: 0.9106199883 | J66: C
A67: 96117 | B67: Composição Sinapi | C67: FORRO EM MADEIRA PINUS, PARA AMBIENTES COMERCIAIS, INCLUSIVE ESTRUTURA DE FIXAÇÃO. AF_05/2017 | D67: M2 | E67: 131,00 | F67: 165.39 | G67: 21666.09 | H67: 0.003479186207 | I67: 0.9140991745 | J67: C
A68: 87266 | B68: Composição Sinapi | C68: REVESTIMENTO CERÂMICO PARA PAREDES INTERNAS COM PLACAS TIPO ESMALTADA EXTRA DE DIMENSÕES 20X20 CM APLICADAS EM AMBIENTES DE ÁREA MENOR QUE 5 M² A MEIA ALTURA DAS PAREDES. AF_06/2014 | D68: M2 | E68: 205,50 | F68: 105.04 | G68: 21585.72 | H68: 0.003466280224 | I68: 0.9175654547 | J68: C
A69: 98671 | B69: Composição Sinapi | C69: PISO EM GRANITO APLICADO EM AMBIENTES INTERNOS. AF_09/2020 | D69: M2 | E69: 33,74 | F69: 614.3 | G69: 20726.48 | H69: 0.003328301661 | I69: 0.9208937564 | J69: C
A70: 95876 | B70: Composição Sinapi | C70: TRANSPORTE COM CAMINHÃO BASCULANTE DE 14 M³, EM VIA URBANA PAVIMENTADA, DMT ATÉ 30 KM (UNIDADE: M3XKM). AF_07/2020 | D70: M3XKM | E70: 8.126,00 | F70: 2.51 | G70: 20396.26 | H70: 0.003275274241 | I70: 0.9241690307 | J70: C
A71: 93210 | B71: Composição Sinapi | C71: EXECUÇÃO DE REFEITÓRIO EM CANTEIRO DE OBRA EM CHAPA DE MADEIRA COMPENSADA, NÃO INCLUSO MOBILIÁRIO E EQUIPAMENTOS. AF_02/2016 | D71: M2 | E71: 30,00 | F71: 674.4 | G71: 20232 | H71: =G71/$G$183 -> 0.003248897025 | I71: 0.9274179277 | J71: C
A72: 95805 | B72: Composição Sinapi | C72: CONDULETE DE PVC, TIPO B, PARA ELETRODUTO DE PVC SOLDÁVEL DN 25 MM (3/4''), APARENTE - FORNECIMENTO E INSTALAÇÃO. AF_11/2016 | D72: UN | E72: 600,00 | F72: 32.49 | G72: 19494 | H72: 0.003130387436 | I72: =I71+H72 -> 0.9305483151 | J72: C
A73: 90695 | B73: Composição Sinapi | C73: TUBO DE PVC PARA REDE COLETORA DE ESGOTO DE PAREDE MACIÇA, DN 150 MM, JUNTA ELÁSTICA - FORNECIMENTO E ASSENTAMENTO. AF_01/2021 | D73: M | E73: 160,03 | F73: 120.25 | G73: 19243.61 | H73: 0.003090179284 | I73: 0.9336384944 | J73: C
A74: 12734 | B74: Composição Orse | C74: Telhamento com telha em aço galvalume, dupla, trapezoidal, com preenchimento PIR 50mm, pré-pintada, TP40 - 2 x 0,43mm, Kingspan- Isoeste ou similar | D74: M2 | E74: 1.556,69 | F74: =ORÇAMENTO!H110 -> 11.69 | G74: =E74*F74 -> 18197.7061 | H74: 0.002922225841 | I74: 0.9365607202 | J74: C
A75: 93182 | B75: Composição Sinapi | C75: VERGA PRÉ-MOLDADA PARA JANELAS COM ATÉ 1,5 M DE VÃO. AF_03/2016 | D75: M | E75: 351,64 | F75: 52.39 | G75: 18422.42 | H75: 0.00295831087 | I75: 0.9395190311 | J75: C
A76: 90789 | B76: Composição Sinapi | C76: KIT DE PORTA-PRONTA DE MADEIRA EM ACABAMENTO MELAMÍNICO BRANCO, FOLHA LEVE OU MÉDIA, 70X210CM, EXCLUSIVE FECHADURA, FIXAÇÃO COM PREENCHIMENTO PARCIAL DE ESPUMA EXPANSIVA - FORNECIMENTO E INSTALAÇÃO. AF_12/2019 | D76: UN | E76: 16,00 | F76: 1109.77 | G76: 17756.32 | H76: 0.002851347134 | I76: 0.9423703782 | J76: C
A77: 96765 | B77: Composição Sinapi | C77: ABRIGO PARA HIDRANTE, 90X60X17CM, COM REGISTRO GLOBO ANGULAR 45 GRAUS 2 1/2", ADAPTADOR STORZ 2 1/2", MANGUEIRA DE INCÊNDIO 20M, REDUÇÃO 2 1/2" X 1 1/2" E ESGUICHO EM LATÃO 1 1/2" - FORNECIMENTO E INSTALAÇÃO. AF_10/2020 | D77: UN | E77: 8,00 | F77: 2090.33 | G77: 16722.64 | H77: 0.00268535663 | I77: 0.9450557349 | J77: C
A78: 92765 | B78: Composição Sinapi | C78: ARMAÇÃO DE PILAR OU VIGA DE UMA ESTRUTURA CONVENCIONAL DE CONCRETO ARMADO EM UM EDIFÍCIO DE MÚLTIPLOS PAVIMENTOS UTILIZANDO AÇO CA-50 DE 20,0 MM - MONTAGEM. AF_12/2015 | D78: KG | E78: 969,90 | F78: 16.68 | G78: 16177.93 | H78: 0.002597885955 | I78: 0.9476536208 | J78: C
A79: 94231 | B79: Composição Sinapi | C79: RUFO EM CHAPA DE AÇO GALVANIZADO NÚMERO 24, CORTE DE 25 CM, INCLUSO TRANSPORTE VERTICAL. AF_07/2019 | D79: M | E79: 204,60 | F79: 74 | G79: 15140.4 | H79: 0.00243127721 | I79: 0.950084898 | J79: C
A80: 101910 | B80: Composição Sinapi | C80: EXTINTOR DE INCÊNDIO PORTÁTIL COM CARGA DE PQS DE 8 KG, CLASSE BC - FORNECIMENTO E INSTALAÇÃO. AF_10/2020_P | D80: UN | E80: 24,00 | F80: 604.66 | G80: 14511.84 | H80: 0.002330341726 | I80: 0.9524152398 | J80: C
A81: 7138 | B81: Composição Orse | C81: Fornecimento e lançamento de cabo utp 4 pares cat 6 | D81: M | E81: 900,00 | F81: 14.6 | G81: 13140 | H81: 0.00211004878 | I81: 0.9545252885 | J81: C
A82: 90694 | B82: Composição Sinapi | C82: TUBO DE PVC PARA REDE COLETORA DE ESGOTO DE PAREDE MACIÇA, DN 100 MM, JUNTA ELÁSTICA - FORNECIMENTO E ASSENTAMENTO. AF_01/2021 | D82: M | E82: 223,00 | F82: 57.33 | G82: 12784.59 | H82: 0.002052976296 | I82: 0.9565782648 | J82: C
A83: 93582 | B83: Composição Sinapi | C83: EXECUÇÃO DE CENTRAL DE ARMADURA EM CANTEIRO DE OBRA, NÃO INCLUSO MOBILIÁRIO E EQUIPAMENTOS. AF_04/2016 | D83: M2 | E83: 40,00 | F83: 313.37 | G83: 12534.8 | H83: 0.002012864493 | I83: 0.9585911293 | J83: C
A84: 86931 | B84: Composição Sinapi | C84: VASO SANITÁRIO SIFONADO COM CAIXA ACOPLADA LOUÇA BRANCA, INCLUSO ENGATE FLEXÍVEL EM PLÁSTICO BRANCO, 1/2 X 40CM - FORNECIMENTO E INSTALAÇÃO. AF_01/2020 | D84: UN | E84: 20,00 | F84: 563.87 | G84: 11277.4 | H84: 0.001810948562 | I84: 0.9604020779 | J84: C
A85: 100733 | B85: Composição Sinapi | C85: PINTURA COM TINTA ACRÍLICA DE FUNDO PULVERIZADA SOBRE SUPERFÍCIES METÁLICAS (EXCETO PERFIL) EXECUTADO EM OBRA (POR DEMÃO). AF_01/2020_P | D85: M2 | E85: 894,72 | F85: 10.64 | G85: 9519.82 | H85: 0.001528712677 | I85: 0.9619307906 | J85: C
A86: 96523 | B86: Composição Sinapi | C86: ESCAVAÇÃO MANUAL PARA BLOCO DE COROAMENTO OU SAPATA, COM PREVISÃO DE FÔRMA. AF_06/2017 | D86: M3 | E86: 101,07 | F86: 93.38 | G86: 9437.92 | H86: 0.001515561003 | I86: 0.9634463516 | J86: C
A87: 91314 | B87: Composição Sinapi | C87: KIT DE PORTA DE MADEIRA PARA PINTURA, SEMI-OCA (LEVE OU MÉDIA), PADRÃO POPULAR, 80X210CM, ESPESSURA DE 3,5CM, ITENS INCLUSOS: DOBRADIÇAS, MONTAGEM E INSTALAÇÃO DO BATENTE, FECHADURA COM EXECUÇÃO DO FURO - FORNECIMENTO E INSTALAÇÃO. AF_12/2019 | D87: UN | E87: 10,00 | F87: 940.97 | G87: 9409.7 | H87: 0.001511029376 | I87: 0.964957381 | J87: C
A88: 101876 | B88: Composição Sinapi | C88: QUADRO DE DISTRIBUIÇÃO DE ENERGIA EM PVC, DE EMBUTIR, SEM BARRAMENTO, PARA 6 DISJUNTORES - FORNECIMENTO E INSTALAÇÃO. AF_10/2020 | D88: UN | E88: 100,00 | F88: 93.54 | G88: 9354 | H88: 0.001502084953 | I88: 0.9664594659 | J88: C
A89: 2450 | B89: Composição Orse | C89: Limpeza geral | D89: M2 | E89: 3.400,00 | F89: 2.73 | G89: 9282 | H89: 0.001490523042 | I89: 0.9679499889 | J89: C
A90: 7164 | B90: Composição Orse | C90: Fornecimento e instalação de conector rj 45 fêmea cat 6 (krone ou similar) | D90: UN | E90: 230,00 | F90: 39.47 | G90: 9078.1 | H90: 0.001457780352 | I90: 0.9694077693 | J90: C
A91: 92764 | B91: Composição Sinapi | C91: ARMAÇÃO DE PILAR OU VIGA DE UMA ESTRUTURA CONVENCIONAL DE CONCRETO ARMADO EM UM EDIFÍCIO DE MÚLTIPLOS PAVIMENTOS UTILIZANDO AÇO CA-50 DE 16,0 MM - MONTAGEM. AF_12/2015 | D91: KG | E91: 619,50 | F91: 14.48 | G91: 8970.36 | H91: 0.001440479237 | I91: 0.9708482485 | J91: C
A92: 93382 | B92: Composição Sinapi | C92: REATERRO MANUAL DE VALAS COM COMPACTAÇÃO MECANIZADA. AF_04/2016 | D92: M3 | E92: 283,66 | F92: 30.38 | G92: 8617.59 | H92: 0.00138383069 | I92: 0.9722320792 | J92: C
A93: 100983 | B93: Composição Sinapi | C93: CARGA, MANOBRA E DESCARGA DE ENTULHO EM CAMINHÃO BASCULANTE 14 M³ - CARGA COM ESCAVADEIRA HIDRÁULICA (CAÇAMBA DE 0,80 M³ / 111 HP) E DESCARGA LIVRE (UNIDADE: M3). AF_07/2020 | D93: M3 | E93: 821,60 | F93: 10.47 | G93: 8602.15 | H93: 0.001381351302 | I93: 0.9736134305 | J93: C
A94: 5027 | B94: Composição Orse | C94: Caixa de passagem em alvenaria de tijolos maciços esp. = 0,12m, dim. int. = 0.60 x 0.60 x 0.40m | D94: UN | E94: 18,00 | F94: 432.5 | G94: 7785 | H94: 0.00125013164 | I94: 0.9748635622 | J94: C
A95: 11820 | B95: Composição Orse | C95: Central de alarme endereçável de incendio com sistema p/ até 250 dispositivos, marcal Verin ou similar, Modelo VRE-250 c/ bateria de 12V e 7Amperes | D95: UN | E95: 1,00 | F95: 7213.32 | G95: 7213.32 | H95: 0.001158330066 | I95: 0.9760218922 | J95: C
A96: 93206 | B96: Composição Sinapi | C96: EXECUÇÃO DE ESCRITÓRIO EM CANTEIRO DE OBRA EM ALVENARIA, NÃO INCLUSO MOBILIÁRIO E EQUIPAMENTOS. AF_02/2016 | D96: M2 | E96: 5,00 | F96: 1366.03 | G96: 6830.15 | H96: 0.001096799823 | I96: 0.9771186921 | J96: C
A97: 88485 | B97: Composição Sinapi | C97: APLICAÇÃO DE FUNDO SELADOR ACRÍLICO EM PAREDES, UMA DEMÃO. AF_06/2014 | D97: M2 | E97: 2.990,54 | F97: 2.26 | G97: 6758.62 | H97: 0.001085313385 | I97: 0.9782040054 | J97: C
A98: 101900 | B98: Composição Sinapi | C98: DISJUNTOR BAIXA TENSÃO TRIPOLAR A SECO 800A/600V - FORNECIMENTO E INSTALAÇÃO. AF_10/2020 | D98: UN | E98: 1,00 | F98: 5995.35 | G98: 5995.35 | H98: 0.0009627458867 | I98: 0.9791667513 | J98: C
A99: 12740 | B99: Composição Orse | C99: Fornecimento e assentamento de barra chata de alumínio de 7/8" x 1/8" | D99: M | E99: 282,00 | F99: 20.77 | G99: 5857.14 | H99: 0.0009405518348 | I99: 0.9801073032 | J99: C
A100: 101898 | B100: Composição Sinapi | C100: DISJUNTOR TERMOMAGNÉTICO TRIPOLAR , CORRENTE NOMINAL DE 400A - FORNECIMENTO E INSTALAÇÃO. AF_10/2020 | D100: UN | E100: 3,00 | F100: 1791.98 | G100: 5375.94 | H100: 0.0008632797288 | I100: 0.9809705829 | J100: C
A101: 1.1.1 | B101: Composição Própria | C101: MOBILIZAÇÃO PARA O CANTEIRO DE OBRAS | D101: UND | E101: 1 | F101: 5197.23 | G101: 5197.23 | H101: 0.0008345821019 | I101: 0.981805165 | J101: C
A102: 1.1.1 | B102: Composição Própria | C102: DESMOBILIZAÇÃO PARA O CANTEIRO DE OBRAS | D102: UND | E102: 1 | F102: 5197.23 | G102: 5197.23 | H102: 0.0008345821019 | I102: 0.9826397471 | J102: C
A103: 11418 | B103: Composição Orse | C103: Tomada para lógica, rj45, com placa | D103: UN | E103: 120,00 | F103: 42.65 | G103: 5118 | H103: 0.0008218591822 | I103: 0.9834616063 | J103: C
A104: 129 | B104: Composição Orse | C104: Bombeamento de concreto | D104: M3 | E104: 87,10 | F104: 58.19 | G104: 5068.35 | H104: 0.000813886281 | I104: 0.9842754926 | J104: C
A105: 102207 | B105: Composição Sinapi | C105: PINTURA TINTA DE ACABAMENTO (PIGMENTADA) A ÓLEO EM MADEIRA, 1 DEMÃO. AF_01/2021 | D105: M2 | E105: 610,24 | F105: 8.14 | G105: 4967.35 | H105: 0.000797667489 | I105: 0.98507316 | J105: C
A106: 91936 | B106: Composição Sinapi | C106: CAIXA OCTOGONAL 4" X 4", PVC, INSTALADA EM LAJE - FORNECIMENTO E INSTALAÇÃO. AF_12/2015 | D106: UN | E106: 267,00 | F106: 17.62 | G106: 4704.54 | H106: 0.0007554649076 | I106: 0.985828625 | J106: C
A107: 89712 | B107: Composição Sinapi | C107: TUBO PVC, SERIE NORMAL, ESGOTO PREDIAL, DN 50 MM, FORNECIDO E INSTALADO EM RAMAL DE DESCARGA OU RAMAL DE ESGOTO SANITÁRIO. AF_12/2014 | D107: M | E107: 150,47 | F107: 28.27 | G107: 4253.79 | H107: 0.0006830825265 | I107: 0.9865117075 | J107: C
A108: 91953 | B108: Composição Sinapi | C108: INTERRUPTOR SIMPLES (1 MÓDULO), 10A/250V, INCLUINDO SUPORTE E PLACA - FORNECIMENTO E INSTALAÇÃO. AF_12/2015 | D108: UN | E108: 112,00 | F108: 32.49 | G108: 3638.88 | H108: 0.0005843389881 | I108: 0.9870960465 | J108: C
A109: 12897 | B109: Composição Orse | C109: Ralo seco linear pvc sanitário d=75mm com grelha aluminio | D109: UN | E109: 32,00 | F109: 108.13 | G109: 3460.16 | H109: 0.0005556397553 | I109: 0.9876516862 | J109: C
A110: 10727 | B110: Composição Orse | C110: Fornecimento e instalação de voice panel 24 portas cat 6 | D110: UN | E110: 10,00 | F110: 342.83 | G110: 3428.3 | H110: 0.0005505236097 | I110: 0.9882022098 | J110: C
A111: 93654 | B111: Composição Sinapi | C111: DISJUNTOR MONOPOLAR TIPO DIN, CORRENTE NOMINAL DE 16A - FORNECIMENTO E INSTALAÇÃO. AF_10/2020 | D111: UN | E111: 210,00 | F111: 16 | G111: 3360 | H111: 0.0005395558523 | I111: 0.9887417657 | J111: C
A112: 86878 | B112: Composição Sinapi | C112: VÁLVULA EM METAL CROMADO TIPO AMERICANA 1" PARA PIA - FORNECIMENTO E INSTALAÇÃO. AF_01/2020 | D112: UN | E112: 32,00 | F112: 96.15 | G112: 3076.8 | H112: 0.0004940790019 | I112: 0.9892358447 | J112: C
A113: 92760 | B113: Composição Sinapi | C113: ARMAÇÃO DE PILAR OU VIGA DE UMA ESTRUTURA CONVENCIONAL DE CONCRETO ARMADO EM UM EDIFÍCIO DE MÚLTIPLOS PAVIMENTOS UTILIZANDO AÇO CA-50 DE 6,3 MM - MONTAGEM. AF_12/2015 | D113: KG | E113: 146,20 | F113: 19.61 | G113: 2866.98 | H113: 0.0004603856659 | I113: 0.9896962304 | J113: C
A114: 93658 | B114: Composição Sinapi | C114: DISJUNTOR MONOPOLAR TIPO DIN, CORRENTE NOMINAL DE 40A - FORNECIMENTO E INSTALAÇÃO. AF_10/2020 | D114: UN | E114: 100,00 | F114: 27.83 | G114: 2783 | H114: 0.0004468999812 | I114: 0.9901431303 | J114: C
A115: 101506 | B115: Composição Sinapi | C115: ENTRADA DE ENERGIA ELÉTRICA, AÉREA, TRIFÁSICA, COM CAIXA DE SOBREPOR, CABO DE 16 MM2 E DISJUNTOR DIN 50A (NÃO INCLUSO O POSTE DE CONCRETO). AF_07/2020_P | D115: UN | E115: 1,00 | F115: 2738.37 | G115: 2738.37 | H115: 0.0004397332022 | I115: 0.9905828635 | J115: C
A116: 11227 | B116: Composição Orse | C116: Fornecimento e montagem de rack fechado tipo armário 19" x 36u x 600mm | D116: UN | E116: 1,00 | F116: 2624.4 | G116: 2624.4 | H116: 0.0004214316604 | I116: 0.9910042952 | J116: C
A117: 95427 | B117: Composição Sinapi | C117: TRANSPORTE COM CAMINHÃO BASCULANTE DE 18 M³, EM VIA URBANA PAVIMENTADA, ADICIONAL PARA DMT EXCEDENTE A 30 KM (UNIDADE: M3XKM). AF_07/2020 | D117: M3XKM | E117: 2.740,80 | F117: 0.89 | G117: 2439.31 | H117: 0.0003917095197 | I117: 0.9913960047 | J117: C
A118: 96621 | B118: Composição Sinapi | C118: LASTRO COM MATERIAL GRANULAR, APLICAÇÃO EM BLOCOS DE COROAMENTO, ESPESSURA DE *5 CM*. AF_08/2017 | D118: M3 | E118: 4,55 | F118: 489.3 | G118: 2226.32 | H118: 0.0003575071384 | I118: 0.9917535119 | J118: C
A119: 91940 | B119: Composição Sinapi | C119: CAIXA RETANGULAR 4" X 2" MÉDIA (1,30 M DO PISO), PVC, INSTALADA EM PAREDE - FORNECIMENTO E INSTALAÇÃO. AF_12/2015 | D119: UN | E119: 109,00 | F119: 18.92 | G119: 2062.28 | H119: 0.0003311652509 | I119: 0.9920846771 | J119: C
A120: 102500 | B120: Composição Sinapi | C120: PINTURA DE DEMARCAÇÃO DE VAGA COM TINTA ACRÍLICA, E = 10 CM, APLICAÇÃO MANUAL. AF_05/2021 | D120: M | E120: 504,00 | F120: 4.03 | G120: 2031.12 | H120: 0.0003261615127 | I120: 0.9924108386 | J120: C
A121: 98525 | B121: Composição Sinapi | C121: LIMPEZA MECANIZADA DE CAMADA VEGETAL, VEGETAÇÃO E PEQUENAS ÁRVORES (DIÂMETRO DE TRONCO MENOR QUE 0,20 M), COM TRATOR DE ESTEIRAS.AF_05/2018 | D121: M2 | E121: 4.920,06 | F121: 0.4 | G121: 1968.02 | H121: 0.0003160287823 | I121: 0.9927268674 | J121: C
A122: 7162 | B122: Composição Orse | C122: Ponto de sensor de presença embutido no teto | D122: UN | E122: 6,00 | F122: 319.94 | G122: 1919.64 | H122: 0.0003082598203 | I122: 0.9930351272 | J122: C
A123: 1.1.2 | B123: Composição Própria | C123: MOBILIZAÇÃO | D123: UN | E123: 1,00 | F123: 1875.58 | G123: 1875.58 | H123: 0.0003011845731 | I123: 0.9933363118 | J123: C
A124: 1.1.2 | B124: Composição Própria | C124: MOBILIZAÇÃO - ESTACA HÉLICE CONTÍNUA | D124: UN | E124: 1,00 | F124: 1875.58 | G124: 1875.58 | H124: 0.0003011845731 | I124: 0.9936374964 | J124: C
A125: 01.01.01 | B125: Composição Própria | C125: DESMOBILIZAÇÃO- ESTACA HÉLICE CONTÍNUA | D125: UN | E125: 1,00 | F125: 1875.58 | G125: 1875.58 | H125: 0.0003011845731 | I125: 0.9939386809 | J125: C
A126: 11242 | B126: Composição Orse | C126: Fornecimento e instalação de conector rj 45 macho cat 6 | D126: UN | E126: 230,00 | F126: 8.15 | G126: 1874.5 | H126: 0.0003010111444 | I126: 0.9942396921 | J126: C
A127: 4143 | B127: Composição Orse | C127: Conector split bolt para cabo de cobre nu #35 mm2 - fornecimento | D127: UN | E127: 120,00 | F127: 15 | G127: 1800 | H127: 0.000289047778 | I127: 0.9945287399 | J127: C
A128: 96621 | B128: Composição Sinapi | C128: LASTRO COM MATERIAL GRANULAR, APLICAÇÃO EM BLOCOS DE COROAMENTO, ESPESSURA DE *5 CM*. AF_08/2017 | D128: M3 | E128: 3,38 | F128: 489.3 | G128: 1653.83 | H128: 0.0002655754926 | I128: 0.9947943154 | J128: C
A129: 93382 | B129: Composição Sinapi | C129: REATERRO MANUAL DE VALAS COM COMPACTAÇÃO MECANIZADA. AF_04/2016 | D129: M3 | E129: 49,56 | F129: 30.38 | G129: 1505.63 | H129: 0.0002417772256 | I129: 0.9950360926 | J129: C
A130: 89353 | B130: Composição Sinapi | C130: REGISTRO DE GAVETA BRUTO, LATÃO, ROSCÁVEL, 3/4" - FORNECIMENTO E INSTALAÇÃO. AF_08/2021 | D130: UN | E130: 30,00 | F130: 49.22 | G130: 1476.6 | H130: 0.0002371155272 | I130: 0.9952732081 | J130: C
A131: 98510 | B131: Composição Sinapi | C131: PLANTIO DE ÁRVORE ORNAMENTAL COM ALTURA DE MUDA MENOR OU IGUAL A 2,00 M. AF_05/2018 | D131: UN | E131: 18,00 | F131: 81.99 | G131: 1475.82 | H131: 0.0002369902732 | I131: 0.9955101984 | J131: C
A132: 97599 | B132: Composição Sinapi | C132: LUMINÁRIA DE EMERGÊNCIA, COM 30 LÂMPADAS LED DE 2 W, SEM REATOR - FORNECIMENTO E INSTALAÇÃO. AF_02/2020 | D132: UN | E132: 41,00 | F132: 35.91 | G132: 1472.31 | H132: 0.00023642663 | I132: 0.995746625 | J132: C
A133: 101881 | B133: Composição Sinapi | C133: QUADRO DE DISTRIBUIÇÃO DE ENERGIA EM CHAPA DE AÇO GALVANIZADO, DE EMBUTIR, COM BARRAMENTO TRIFÁSICO, PARA 40 DISJUNTORES DIN 100A - FORNECIMENTO E INSTALAÇÃO. AF_10/2020 | D133: UN | E133: 1,00 | F133: 1368.54 | G133: 1368.54 | H133: 0.0002197630256 | I133: 0.995966388 | J133: C
A134: 94964 | B134: Composição Sinapi | C134: CONCRETO FCK = 20MPA, TRAÇO 1:2,7:3 (EM MASSA SECA DE CIMENTO/ AREIA MÉDIA/ BRITA 1) - PREPARO MECÂNICO COM BETONEIRA 400 L. AF_05/2021 | D134: M3 | E134: 1,74 | F134: 758.95 | G134: 1320.57 | H134: 0.0002120599023 | I134: 0.9961784479 | J134: C
A135: 86931 | B135: Composição Sinapi | C135: VASO SANITÁRIO SIFONADO COM CAIXA ACOPLADA LOUÇA BRANCA, INCLUSO ENGATE FLEXÍVEL EM PLÁSTICO BRANCO, 1/2 X 40CM - FORNECIMENTO E INSTALAÇÃO. AF_01/2020 | D135: UN | E135: 2,00 | F135: 563.87 | G135: 1127.74 | H135: =G135/$G$183 -> 0.0001810948562 | I135: 0.9963595428 | J135: C
A136: 94492 | B136: Composição Sinapi | C136: REGISTRO DE ESFERA, PVC, SOLDÁVEL, COM VOLANTE, DN 50 MM - FORNECIMENTO E INSTALAÇÃO. AF_08/2021 | D136: UN | E136: 16,00 | F136: 69.58 | G136: 1113.28 | H136: 0.0001787728391 | I136: =I135+H136 -> 0.9965383156 | J136: C
A137: 95427 | B137: Composição Sinapi | C137: TRANSPORTE COM CAMINHÃO BASCULANTE DE 18 M³, EM VIA URBANA PAVIMENTADA, ADICIONAL PARA DMT EXCEDENTE A 30 KM (UNIDADE: M3XKM). AF_07/2020 | D137: M3XKM | E137: 1.146,30 | F137: 0.89 | G137: 1020.21 | H137: 0.0001638274631 | I137: 0.9967021431 | J137: C
A138: 96616 | B138: Composição Sinapi | C138: LASTRO DE CONCRETO MAGRO, APLICADO EM BLOCOS DE COROAMENTO OU SAPATAS. AF_08/2017 | D138: M3 | E138: 1,00 | F138: 907.91 | G138: 907.91 | H138: 0.0001457940934 | I138: 0.9968479372 | J138: C
A139: 86882 | B139: Composição Sinapi | C139: SIFÃO DO TIPO GARRAFA/COPO EM PVC 1.1/4 X 1.1/2" - FORNECIMENTO E INSTALAÇÃO. AF_01/2020 | D139: UN | E139: 32,00 | F139: 27.4 | G139: 876.8 | H139: 0.0001407983843 | I139: 0.9969887356 | J139: C
A140: 98504 | B140: Composição Sinapi | C140: PLANTIO DE GRAMA EM PLACAS. AF_05/2018 | D140: M2 | E140: 50,00 | F140: 17.29 | G140: 864.5 | H140: 0.0001388232245 | I140: 0.9971275588 | J140: C
A141: 12342 | B141: Composição Orse | C141: Mictorio coletivo aco inox (aisi 304), e = 0,8 mm, de *100 x 40 x 30* cm (c x a x p) | D141: M | E141: 1,00 | F141: 862.58 | G141: 862.58 | H141: 0.0001385149069 | I141: 0.9972660737 | J141: C
A142: 101896 | B142: Composição Sinapi | C142: DISJUNTOR TERMOMAGNÉTICO TRIPOLAR , CORRENTE NOMINAL DE 200A - FORNECIMENTO E INSTALAÇÃO. AF_10/2020 | D142: UN | E142: 1,00 | F142: 836.03 | G142: 836.03 | H142: 0.0001342514521 | I142: 0.9974003252 | J142: C
A143: 89711 | B143: Composição Sinapi | C143: TUBO PVC, SERIE NORMAL, ESGOTO PREDIAL, DN 40 MM, FORNECIDO E INSTALADO EM RAMAL DE DESCARGA OU RAMAL DE ESGOTO SANITÁRIO. AF_12/2014 | D143: M | E143: 37,30 | F143: 21.67 | G143: 808.29 | H143: 0.0001297969047 | I143: 0.9975301221 | J143: C
A144: 98511 | B144: Composição Sinapi | C144: PLANTIO DE ÁRVORE ORNAMENTAL COM ALTURA DE MUDA MAIOR QUE 2,00 M E MENOR OU IGUAL A 4,00 M. AF_05/2018 | D144: UN | E144: 5,00 | F144: 157.07 | G144: 785.35 | H144: 0.0001261131514 | I144: 0.9976562352 | J144: C
A145: 102220 | B145: Composição Sinapi | C145: PINTURA TINTA DE ACABAMENTO (PIGMENTADA) ESMALTE SINTÉTICO BRILHANTE EM MADEIRA, 2 DEMÃOS. AF_01/2021 | D145: M2 | E145: 49,14 | F145: 15.33 | G145: 753.32 | H145: 0.0001209697067 | I145: 0.9977772049 | J145: C
A146: 98111 | B146: Composição Sinapi | C146: CAIXA DE INSPEÇÃO PARA ATERRAMENTO, CIRCULAR, EM POLIETILENO, DIÂMETRO INTERNO = 0,3 M. AF_12/2020 | D146: UN | E146: 12,00 | F146: 62.16 | G146: 745.92 | H146: 0.0001197813992 | I146: 0.9978969863 | J146: C
A147: 1695 | B147: Composição Orse | C147: Caixa sifonada quadrada, com sete entradas e uma saída, d = 150 x 150 x 50mm, ref. nº25, acabamento branco, marca Akros ou similar | D147: UN | E147: 10,00 | F147: 69.78 | G147: 697.8 | H147: 0.0001120541886 | I147: 0.9980090405 | J147: C
A148: 86902 | B148: Composição Sinapi | C148: LAVATÓRIO LOUÇA BRANCA COM COLUNA, *44 X 35,5* CM, PADRÃO POPULAR - FORNECIMENTO E INSTALAÇÃO. AF_01/2020 | D148: UN | E148: 2,00 | F148: 347.02 | G148: 694.04 | H148: 0.0001114503999 | I148: 0.9981204909 | J148: C
A149: 3836 | B149: Composição Orse | C149: Caixa em chapa metálica galvanizada 60 x 50 x 20cm, para quadro de comando | D149: UN | E149: 1,00 | F149: 656.55 | G149: 656.55 | H149: 0.000105430177 | I149: 0.9982259211 | J149: C
A150: 9953 | B150: Composição Orse | C150: Fornecimento de cartucho para solda exotérmica | D150: UN | E150: 24,00 | F150: 25.01 | G150: 600.24 | H150: 9.638779905e-05 | I150: 0.9983223089 | J150: C
A151: 12876 | B151: Composição Orse | C151: Fornecimento e instalação de Para raios tipo polimérico 15kv - 12ka | D151: UN | E151: 3,00 | F151: 199.35 | G151: 598.05 | H151: 9.603612425e-05 | I151: 0.998418345 | J151: C
A152: 98526 | B152: Composição Sinapi | C152: REMOÇÃO DE RAÍZES REMANESCENTES DE TRONCO DE ÁRVORE COM DIÂMETRO MAIOR OU IGUAL A 0,20 M E MENOR QUE 0,40 M.AF_05/2018 | D152: UN | E152: 7,00 | F152: 83.46 | G152: 584.22 | H152: 9.381527382e-05 | I152: 0.9985121603 | J152: C
A153: 9383 | B153: Composição Orse | C153: Caixa sifonada quadrada, com três entradas e uma saida, d = 100x150x50mm, branco, com grelha, Akros ou similar | D153: UN | E153: 12,00 | F153: 47.66 | G153: 571.92 | H153: 9.184011401e-05 | I153: 0.9986040004 | J153: C
A154: 91845 | B154: Composição Sinapi | C154: ELETRODUTO FLEXÍVEL CORRUGADO REFORÇADO, PVC, DN 25 MM (3/4"), PARA CIRCUITOS TERMINAIS, INSTALADO EM LAJE - FORNECIMENTO E INSTALAÇÃO. AF_12/2015 | D154: M | E154: 50,00 | F154: 11.42 | G154: 571 | H154: 9.169237847e-05 | I154: 0.9986956928 | J154: C
A155: 101895 | B155: Composição Sinapi | C155: DISJUNTOR TERMOMAGNÉTICO TRIPOLAR , CORRENTE NOMINAL DE 125A - FORNECIMENTO E INSTALAÇÃO. AF_10/2020 | D155: UN | E155: 1,00 | F155: 554.95 | G155: 554.95 | H155: 8.911503579e-05 | I155: 0.9987848078 | J155: C
A156: 101895 | B156: Composição Sinapi | C156: DISJUNTOR TERMOMAGNÉTICO TRIPOLAR , CORRENTE NOMINAL DE 125A - FORNECIMENTO E INSTALAÇÃO. AF_10/2020 | D156: UN | E156: 1,00 | F156: 554.95 | G156: 554.95 | H156: 8.911503579e-05 | I156: 0.9988739228 | J156: C
A157: 102205 | B157: Composição Sinapi | C157: PINTURA VERNIZ (INCOLOR) POLIURETÂNICO (RESINA ALQUÍDICA MODIFICADA) EM MADEIRA, 1 DEMÃO. AF_01/2021 | D157: M2 | E157: 56,10 | F157: 9.4 | G157: 527.34 | H157: 8.468136404e-05 | I157: 0.9989586042 | J157: C
A158: 8646 | B158: Composição Orse | C158: Poste galvanizado com 5m para instalação de câmera de segurança p/penitenciária | D158: UN | E158: 1,00 | F158: 510.32 | G158: 510.32 | H158: 8.194825671e-05 | I158: 0.9990405525 | J158: C
A159: 13149 | B159: Composição Orse | C159: Dispositivo DR tetrapolar 100 A, tipo AC, 30MA | D159: UN | E159: 1,00 | F159: 452.13 | G159: 452.13 | H159: 7.260398438e-05 | I159: 0.9991131565 | J159: C
A160: 97599 | B160: Composição Sinapi | C160: LUMINÁRIA DE EMERGÊNCIA, COM 30 LÂMPADAS LED DE 2 W, SEM REATOR - FORNECIMENTO E INSTALAÇÃO. AF_02/2020 | D160: UN | E160: 12,00 | F160: 35.91 | G160: 430.92 | H160: 6.919803806e-05 | I160: 0.9991823545 | J160: C
A161: 98529 | B161: Composição Sinapi | C161: CORTE RASO E RECORTE DE ÁRVORE COM DIÂMETRO DE TRONCO MAIOR OU IGUAL A 0,20 M E MENOR QUE 0,40 M.AF_05/2018 | D161: UN | E161: 7,00 | F161: 61.43 | G161: 430.01 | H161: 6.905190835e-05 | I161: 0.9992514064 | J161: C
A162: 95636 | B162: Composição Sinapi | C162: KIT CAVALETE PARA MEDIÇÃO DE ÁGUA - ENTRADA PRINCIPAL, EM AÇO GALVANIZADO DN 25 (1 ) FORNECIMENTO E INSTALAÇÃO (EXCLUSIVE HIDRÔMETRO). AF_11/2016 | D162: UN | E162: 1,00 | F162: 427.02 | G162: 427.02 | H162: 6.857176787e-05 | I162: 0.9993199782 | J162: C
A163: 101894 | B163: Composição Sinapi | C163: DISJUNTOR TRIPOLAR TIPO NEMA, CORRENTE NOMINAL DE 60 ATÉ 100A - FORNECIMENTO E INSTALAÇÃO. AF_10/2020 | D163: UN | E163: 2,00 | F163: 202.8 | G163: 405.6 | H163: 6.513209932e-05 | I163: 0.9993851103 | J163: C
A164: 12458 | B164: Composição Orse | C164: Terminal de compressão 2 furos para cabo de 50 mm2 - fornecimento e instalação | D164: UN | E164: 25,00 | F164: 15.42 | G164: 385.5 | H164: 6.190439913e-05 | I164: 0.9994470147 | J164: C
A165: 101538 | B165: Composição Sinapi | C165: ARMAÇÃO SECUNDÁRIA, COM 1 ESTRIBO E 1 ISOLADOR - FORNECIMENTO E INSTALAÇÃO. AF_07/2020 | D165: UN | E165: 6,00 | F165: 61.62 | G165: 369.72 | H165: 5.937041361e-05 | I165: 0.9995063851 | J165: C
A166: 97670 | B166: Composição Sinapi | C166: ELETRODUTO FLEXÍVEL CORRUGADO, PEAD, DN 100 (4"), PARA REDE ENTERRADA DE DISTRIBUIÇÃO DE ENERGIA ELÉTRICA - FORNECIMENTO E INSTALAÇÃO. AF_12/2021 | D166: M | E166: 12,00 | F166: 29.83 | G166: 357.96 | H166: 5.748196812e-05 | I166: 0.999563867 | J166: C
A167: 89376 | B167: Composição Sinapi | C167: ADAPTADOR CURTO COM BOLSA E ROSCA PARA REGISTRO, PVC, SOLDÁVEL, DN 20MM X 1/2", INSTALADO EM RAMAL OU SUB-RAMAL DE ÁGUA - FORNECIMENTO E INSTALAÇÃO. AF_12/2014 | D167: UN | E167: 60,00 | F167: 5.79 | G167: 347.4 | H167: 5.578622116e-05 | I167: 0.9996196533 | J167: C
A168: 86885 | B168: Composição Sinapi | C168: ENGATE FLEXÍVEL EM COBRE, 1/2" X 30CM - FORNECIMENTO E INSTALAÇÃO. AF_01/2020 | D168: UN | E168: 22,00 | F168: 14.1 | G168: 310.2 | H168: 4.981256708e-05 | I168: 0.9996694658 | J168: C
A169: 1672 | B169: Composição Orse | C169: Joelho de 90°com bolsa para anel, em pvc rígido c/ anéis, para esgoto secundário, diâm = 40mm | D169: UN | E169: 16,00 | F169: 17.94 | G169: 287.04 | H169: 4.609348567e-05 | I169: 0.9997155593 | J169: C
A170: 86884 | B170: Composição Sinapi | C170: ENGATE FLEXÍVEL EM PLÁSTICO BRANCO, 1/2" X 30CM - FORNECIMENTO E INSTALAÇÃO. AF_01/2020 | D170: UN | E170: 22,00 | F170: 12.23 | G170: 269.06 | H170: 4.320621953e-05 | I170: 0.9997587655 | J170: C
A171: 11979 | B171: Composição Orse | C171: Acionador Manual Convencional - Modelo AM-2 da Verin ou similar, tipo "Aperte aqui" | D171: UN | E171: 3,00 | F171: 83.19 | G171: 249.57 | H171: 4.007647442e-05 | I171: 0.999798842 | J171: C
A172: 7998 | B172: Composição Orse | C172: Disjuntor termomagnetico tripolar 100 A, padrão NEMA (Americano - linha preta), 5KA | D172: UN | E172: 1,00 | F172: 235.95 | G172: 235.95 | H172: 3.788934624e-05 | I172: 0.9998367314 | J172: C
A173: 100575 | B173: Composição Sinapi | C173: REGULARIZAÇÃO DE SUPERFÍCIES COM MOTONIVELADORA. AF_11/2019 | D173: M2 | E173: 1.795,23 | F173: 0.13 | G173: 233.38 | H173: 3.747665024e-05 | I173: 0.999874208 | J173: C
A174: 101553 | B174: Composição Sinapi | C174: ALÇA PREFORMADA DE DISTRIBUIÇÃO, EM AÇO GALVANIZADO, AWG 1 - FORNECIMENTO E INSTALAÇÃO. AF_07/2020 | D174: UN | E174: 6,00 | F174: 21.62 | G174: 129.72 | H174: 2.083070987e-05 | I174: 0.9998950387 | J174: C
A175: 8795 | B175: Composição Orse | C175: Terminal aéreo em aço galvanizado 3/8" x 50cm, com fixação horizontal | D175: UN | E175: 4,00 | F175: 32.23 | G175: 128.92 | H175: 2.070224419e-05 | I175: 0.999915741 | J175: C
A176: 91966 | B176: Composição Sinapi | C176: INTERRUPTOR SIMPLES (3 MÓDULOS), 10A/250V, SEM SUPORTE E SEM PLACA - FORNECIMENTO E INSTALAÇÃO. AF_12/2015 | D176: UN | E176: 2,00 | F176: 60.82 | G176: 121.64 | H176: 1.953320651e-05 | I176: 0.9999352742 | J176: C
A177: 9892 | B177: Composição Orse | C177: PEÇA DE MADERIA 115X135X 600MM | D177: UN | E177: 4,00 | F177: 30.32 | G177: 121.28 | H177: 1.947539696e-05 | I177: 0.9999547496 | J177: C
A178: 9534 | B178: Composição Orse | C178: Fornecimento e instalação de patch cords cat.5e, conector rj-45 macho, c/1,50m - Rev 01 | D178: UN | E178: 5,00 | F178: 22.86 | G178: 114.3 | H178: 1.83545339e-05 | I178: 0.9999731041 | J178: C
A179: 86883 | B179: Composição Sinapi | C179: SIFÃO DO TIPO FLEXÍVEL EM PVC 1 X 1.1/4 - 2 - FORNECIMENTO E INSTALAÇÃO. AF_01/2020 | D179: UN | E179: 4,00 | F179: 14.74 | G179: 58.96 | H179: 9.467920551e-06 | I179: 0.999982572 | J179: C
A180: 89482 | B180: Composição Sinapi | C180: CAIXA SIFONADA, PVC, DN 100 X 100 X 50 MM, FORNECIDA E INSTALADA EM RAMAIS DE ENCAMINHAMENTO DE ÁGUA PLUVIAL. AF_12/2014 | D180: UN | E180: 1,00 | F180: 49.08 | G180: 49.08 | H180: 7.881369414e-06 | I180: 0.9999904534 | J180: C
A181: 93657 | B181: Composição Sinapi | C181: DISJUNTOR MONOPOLAR TIPO DIN, CORRENTE NOMINAL DE 32A - FORNECIMENTO E INSTALAÇÃO. AF_10/2020 | D181: UN | E181: 2,00 | F181: 19.31 | G181: 38.62 | H181: 6.20168066e-06 | I181: 0.9999966551 | J181: C
A182: 89495 | B182: Composição Sinapi | C182: RALO SIFONADO, PVC, DN 100 X 40 MM, JUNTA SOLDÁVEL, FORNECIDO E INSTALADO EM RAMAIS DE ENCAMINHAMENTO DE ÁGUA PLUVIAL. AF_12/2014 | D182: UN | E182: 1,00 | F182: 20.83 | G182: 20.83 | H182: 3.34492512e-06 | I182: 1 | J182: C
G183: =SUM(G6:G182) -> 6227344.186

Sheet CFF
K1: CRONOGRAMA FÍSICO FINANCEIRO CENTRO COMERCIAL DE SANTANA
K3: DURAÇÃO (mês)
K4: 1 | O4: 2 | S4: 3 | W4: 4 | AA4: 5 | AE4: 6 | AI4: 7 | AM4: 8 | AQ4: 9 | AU4: 10 | AY4: 11 | BC4: 12 | BG4: 13 | BK4: 14
A5: Item | B5: DESCRIÇÃO DOS SERVIÇOS | C5: Código | D5: Descrição | E5: Un. | F5: Qtd. | G5: Preço Unit | H5: Preço com BDI | I5: Total sem BDI | J5: Total (R$)
A6: 1 | B6: Demolição | F6: 1 | I6: 105465.17 | J6: =VLOOKUP(A6,'RESUMO '!$A$5:$D$250,4,0) -> 182774.24 | K6: =J6 -> 182774.24
A7: 1.1 | B7: Composição Sinapi | C7: 97625 | D7: DEMOLIÇÃO DE ALVENARIA PARA QUALQUER TIPO DE BLOCO, DE FORMA MECANIZADA, SEM REAPROVEITAMENTO. AF_12/2017 | E7: M3 | F7: 372,66 | G7: 40.34 | H7: 49.26 | I7: 15033.1 | J7: 18357.23
A8: 1.2 | B8: Composição Sinapi | C8: 97627 | D8: DEMOLIÇÃO DE PILARES, VIGAS E LAJES EM CONCRETO ARMADO, DE FORMA MECANIZADA COM MARTELETE, SEM REAPROVEITAMENTO. AF_12/2017 | E8: M3 | F8: 439,94 | G8: 177.48 | H8: 216.73 | I8: 78080.55 | J8: 95348.19
A9: 1.3 | B9: Composição Sinapi | C9: 95876 | D9: TRANSPORTE COM CAMINHÃO BASCULANTE DE 14 M³, EM VIA URBANA PAVIMENTADA, DMT ATÉ 30 KM (UNIDADE: M3XKM). AF_07/2020 | E9: M3XKM | F9: 8.126,00 | G9: 1.52 | H9: 1.85 | I9: 12351.52 | J9: 15033.1
A10: 2 | B10: Administração de Obra | F10: 1 | I10: 87465.69 | J10: =VLOOKUP(A10,'RESUMO '!$A$5:$D$250,4,0) -> 557969.02 | K10: =$J$10/14 -> 39854.93 | O10: =$J$10/14 -> 39854.93 | S10: =$J$10/14 -> 39854.93 | W10: =$J$10/14 -> 39854.93 | AA10: =$J$10/14 -> 39854.93 | AE10: =$J$10/14 -> 39854.93 | AI10: =$J$10/14 -> 39854.93 | AM10: =$J$10/14 -> 39854.93 | AQ10: =$J$10/14 -> 39854.93 | AU10: =$J$10/14 -> 39854.93 | AY10: =$J$10/14 -> 39854.93 | BC10: =$J$10/14 -> 39854.93 | BG10: =$J$10/14 -> 39854.93 | BK10: =$J$10/14 -> 39854.93
A11: 2.1 | B11: Composição Orse | C11: 51 | D11: Placa de obra em chapa aço galvanizado, instalada | E11: M2 | F11: 2,50 | G11: 350.67 | H11: 428.23 | I11: 876.67 | J11: 1070.57
A12: 2.2 | B12: Composição Sinapi | C12: 101506 | D12: ENTRADA DE ENERGIA ELÉTRICA, AÉREA, TRIFÁSICA, COM CAIXA DE SOBREPOR, CABO DE 16 MM2 E DISJUNTOR DIN 50A (NÃO INCLUSO O POSTE DE CONCRETO). AF_07/2020_P | E12: UN | F12: 1,00 | G12: 1660.29 | H12: 2027.54 | I12: 1660.29 | J12: 2027.54
A13: 2.3 | B13: Composição Orse | C13: 10794 | D13: Poste circular de concreto 7/150 - fornecimento e assentamento | E13: UN | F13: 1,00 | G13: 721.18 | H13: 880.7 | I13: 721.18 | J13: 880.7
A14: 2.4 | B14: Composição Sinapi | C14: 95636 | D14: KIT CAVALETE PARA MEDIÇÃO DE ÁGUA - ENTRADA PRINCIPAL, EM AÇO GALVANIZADO DN 25 (1 ) FORNECIMENTO E INSTALAÇÃO (EXCLUSIVE HIDRÔMETRO). AF_11/2016 | E14: UN | F14: 1,00 | G14: 300.25 | H14: 366.66 | I14: 300.25 | J14: 366.66
A15: 2.5 | B15: Composição Sinapi | C15: 99059 | D15: LOCACAO CONVENCIONAL DE OBRA, UTILIZANDO GABARITO DE TÁBUAS CORRIDAS PONTALETADAS A CADA 2,00M - 2 UTILIZAÇÕES. AF_10/2018 | E15: M | F15: 1.432,70 | G15: 38.26 | H15: 46.72 | I15: 54815.1 | J15: 66935.74
A16: 2.6 | B16: Composição Sinapi | C16: 93584 | D16: EXECUÇÃO DE DEPÓSITO EM CANTEIRO DE OBRA COM CONTAINER, NÃO INCLUSO MOBILIÁRIO. AF_04/2016 | E16: M2 | F16: 30,00 | G16: 668.3 | H16: 816.12 | I16: 20049 | J16: 24483.6
A17: 2.7 | B17: Composição Sinapi | C17: 93582 | D17: EXECUÇÃO DE CENTRAL DE ARMADURA EM CANTEIRO DE OBRA, NÃO INCLUSO MOBILIÁRIO E EQUIPAMENTOS. AF_04/2016 | E17: M2 | F17: 40,00 | G17: 226.08 | H17: 276.08 | I17: 9043.2 | J17: 11043.2
A18: 3 | B18: Serviços Iniciais | F18: 1 | I18: 505196.51 | J18: =VLOOKUP(A18,'RESUMO '!$A$5:$D$250,4,0) -> 290169.06 | K18: =J18 -> 290169.06
A19: 3.1 | B19: Estacas | F19: 1 | I19: 159766.75 | J19: 195104.55
A20: 3.1.1 | B20: Composição Sinapi | C20: 100900 | D20: ESTACA ESCAVADA MECANICAMENTE, SEM FLUIDO ESTABILIZANTE, COM 60CM DE DIÂMETRO, CONCRETO LANÇADO POR BOMBA LANÇA (EXCLUSIVE MOBILIZAÇÃO E DESMOBILIZAÇÃO). AF_01/2020 | E20: M | F20: 545,00 | G20: 293.15 | H20: 357.99 | I20: 159766.75 | J20: 195104.55
A21: 3.2 | B21: Viga Baldrame | F21: 1 | I21: 181697.96 | J21: 221845.02
A22: 3.2.1 | B22: Composição Sinapi | C22: 96523 | D22: ESCAVAÇÃO MANUAL PARA BLOCO DE COROAMENTO OU SAPATA, COM PREVISÃO DE FÔRMA. AF_06/2017 | E22: M3 | F22: 265,00 | G22: 58.76 | H22: 71.75 | I22: 15571.4 | J22: 19013.75
A23: 3.2.2 | B23: Composição Sinapi | C23: 96621 | D23: LASTRO COM MATERIAL GRANULAR, APLICAÇÃO EM BLOCOS DE COROAMENTO, ESPESSURA DE *5 CM*. AF_08/2017 | E23: M3 | F23: 8,55 | G23: 134.53 | H23: 164.28 | I23: 1150.23 | J23: 1404.59
A24: 3.2.3 | B24: Composição Sinapi | C24: 96534 | D24: FABRICAÇÃO, MONTAGEM E DESMONTAGEM DE FÔRMA PARA BLOCO DE COROAMENTO, EM MADEIRA SERRADA, E=25 MM, 4 UTILIZAÇÕES. AF_06/2017 | E24: M2 | F24: 588,04 | G24: 58.91 | H24: 71.94 | I24: 34641.43 | J24: 42303.59
A25: 3.2.4 | B25: Composição Sinapi | C25: 96544 | D25: ARMAÇÃO DE BLOCO, VIGA BALDRAME OU SAPATA UTILIZANDO AÇO CA-50 DE 6,3 MM - MONTAGEM. AF_06/2017 | E25: KG | F25: 827,00 | G25: 17.21 | H25: 21.01 | I25: 14232.67 | J25: 17375.27
A26: 3.2.5 | B26: Composição Sinapi | C26: 96545 | D26: ARMAÇÃO DE BLOCO, VIGA BALDRAME OU SAPATA UTILIZANDO AÇO CA-50 DE 8 MM - MONTAGEM. AF_06/2017 | E26: KG | F26: 1.140,40 | G26: 16.57 | H26: 20.23 | I26: 18896.42 | J26: 23070.29
A27: 3.2.6 | B27: Composição Sinapi | C27: 96547 | D27: ARMAÇÃO DE BLOCO, VIGA BALDRAME OU SAPATA UTILIZANDO AÇO CA-50 DE 12,5 MM - MONTAGEM. AF_06/2017 | E27: KG | F27: 1.269,30 | G27: 12.75 | H27: 15.57 | I27: 16183.57 | J27: 19763
A28: 3.2.7 | B28: Composição Sinapi | C28: 96557 | D28: CONCRETAGEM DE BLOCOS DE COROAMENTO E VIGAS BALDRAMES, FCK 30 MPA, COM USO DE BOMBA - LANÇAMENTO, ADENSAMENTO E ACABAMENTO. AF_06/2017 | E28: M3 | F28: 61,87 | G28: 779.01 | H28: 951.32 | I28: 48197.34 | J28: 58858.16
A29: 3.2.8 | B29: Composição Sinapi | C29: 93382 | D29: REATERRO MANUAL DE VALAS COM COMPACTAÇÃO MECANIZADA. AF_04/2016 | E29: M3 | F29: 194,58 | G29: 20.43 | H29: 24.94 | I29: 3975.26 | J29: 4852.82
A30: 3.2.9 | B30: Composição Sinapi | C30: 95427 | D30: TRANSPORTE COM CAMINHÃO BASCULANTE DE 18 M³, EM VIA URBANA PAVIMENTADA, ADICIONAL PARA DMT EXCEDENTE A 30 KM (UNIDADE: M3XKM). AF_07/2020 | E30: M3XKM | F30: 2.740,80 | G30: 0.54 | H30: 0.65 | I30: 1480.03 | J30: 1781.52
A31: 3.2.10 | B31: Composição Sinapi | C31: 98557 | D31: IMPERMEABILIZAÇÃO DE SUPERFÍCIE COM EMULSÃO ASFÁLTICA, 2 DEMÃOS AF_06/2018 | E31: M2 | F31: 703,77 | G31: 38.89 | H31: 47.49 | I31: 27369.61 | J31: 33422.03
A32: 3.3 | B32: Blocos de Fundação | F32: 1 | I32: 163731.8 | J32: 199888.92
A33: 3.3.1 | B33: Composição Sinapi | C33: 96523 | D33: ESCAVAÇÃO MANUAL PARA BLOCO DE COROAMENTO OU SAPATA, COM PREVISÃO DE FÔRMA. AF_06/2017 | E33: M3 | F33: 152,04 | G33: 58.76 | H33: 71.75 | I33: 8933.87 | J33: 10908.87
A34: 3.3.2 | B34: Composição Sinapi | C34: 96621 | D34: LASTRO COM MATERIAL GRANULAR, APLICAÇÃO EM BLOCOS DE COROAMENTO, ESPESSURA DE *5 CM*. AF_08/2017 | E34: M3 | F34: 4,72 | G34: 134.53 | H34: 164.28 | I34: 634.98 | J34: 775.4
A35: 3.3.3 | B35: Composição Sinapi | C35: 96534 | D35: FABRICAÇÃO, MONTAGEM E DESMONTAGEM DE FÔRMA PARA BLOCO DE COROAMENTO, EM MADEIRA SERRADA, E=25 MM, 4 UTILIZAÇÕES. AF_06/2017 | E35: M2 | F35: 170,32 | G35: 58.91 | H35: 71.94 | I35: 10033.55 | J35: 12252.82
A36: 3.3.4 | B36: Composição Sinapi | C36: 92792 | D36: CORTE E DOBRA DE AÇO CA-50, DIÂMETRO DE 6,3 MM, UTILIZADO EM ESTRUTURAS DIVERSAS, EXCETO LAJES. AF_12/2015 | E36: KG | F36: 4.137,00 | G36: 13.42 | H36: 16.38 | I36: 55518.54 | J36: 67764.06
A37: 3.3.5 | B37: Composição Sinapi | C37: 92793 | D37: CORTE E DOBRA DE AÇO CA-50, DIÂMETRO DE 8,0 MM, UTILIZADO EM ESTRUTURAS DIVERSAS, EXCETO LAJES. AF_12/2015 | E37: KG | F37: 99,50 | G37: 13.61 | H37: 16.62 | I37: 1354.19 | J37: 1653.69
A38: 3.3.6 | B38: Composição Sinapi | C38: 92794 | D38: CORTE E DOBRA DE AÇO CA-50, DIÂMETRO DE 10,0 MM, UTILIZADO EM ESTRUTURAS DIVERSAS, EXCETO LAJES. AF_12/2015 | E38: KG | F38: 1.004,40 | G38: 12.67 | H38: 15.47 | I38: 12725.74 | J38: 15538.06
A39: 3.3.7 | B39: Composição Sinapi | C39: 92795 | D39: CORTE E DOBRA DE AÇO CA-50, DIÂMETRO DE 12,5 MM, UTILIZADO EM ESTRUTURAS DIVERSAS, EXCETO LAJES. AF_12/2015 | E39: KG | F39: 986,10 | G39: 10.89 | H39: 13.29 | I39: 10738.62 | J39: 13105.26
A40: 3.3.8 | B40: Composição Sinapi | C40: 92796 | D40: CORTE E DOBRA DE AÇO CA-50, DIÂMETRO DE 16,0 MM, UTILIZADO EM ESTRUTURAS DIVERSAS, EXCETO LAJES. AF_12/2015 | E40: KG | F40: 70,80 | G40: 10.83 | H40: 13.22 | I40: 766.76 | J40: 935.97
A41: 3.3.9 | B41: Composição Sinapi | C41: 96557 | D41: CONCRETAGEM DE BLOCOS DE COROAMENTO E VIGAS BALDRAMES, FCK 30 MPA, COM USO DE BOMBA - LANÇAMENTO, ADENSAMENTO E ACABAMENTO. AF_06/2017 | E41: M3 | F41: 78,30 | G41: 779.01 | H41: 951.32 | I41: 60996.48 | J41: 74488.35
A42: 3.3.10 | B42: Composição Sinapi | C42: 93382 | D42: REATERRO MANUAL DE VALAS COM COMPACTAÇÃO MECANIZADA. AF_04/2016 | E42: M3 | F42: 69,02 | G42: 20.43 | H42: 24.94 | I42: 1410.07 | J42: 1721.35
A43: 3.3.11 | B43: Composição Sinapi | C43: 95427 | D43: TRANSPORTE COM CAMINHÃO BASCULANTE DE 18 M³, EM VIA URBANA PAVIMENTADA, ADICIONAL PARA DMT EXCEDENTE A 30 KM (UNIDADE: M3XKM). AF_07/2020 | E43: M3XKM | F43: 1.146,30 | G43: 0.54 | H43: 0.65 | I43: 619 | J43: 745.09
A44: 4 | B44: InfraEstrutura | F44: 1 | I44: 1001411.66 | J44: =VLOOKUP(A44,'RESUMO '!$A$5:$D$250,4,0) -> 506754.29 | O44: =$J$44 -> 506754.29
A45: 4.1 | B45: PILARES (INFERIORES + COBERTURA) | F45: 1 | I45: 169327.99 | J45: 206755.66
A46: 4.1.1 | B46: Composição Sinapi | C46: 92443 | D46: MONTAGEM E DESMONTAGEM DE FÔRMA DE PILARES RETANGULARES E ESTRUTURAS SIMILARES, PÉ-DIREITO SIMPLES, EM CHAPA DE MADEIRA COMPENSADA PLASTIFICADA, 18 UTILIZAÇÕES. AF_09/2020 | E46: M2 | F46: 1.296,90 | G46: 41.78 | H46: 51.02 | I46: 54184.48 | J46: 66167.83
A47: 4.1.2 | B47: Composição Sinapi | C47: 92763 | D47: ARMAÇÃO DE PILAR OU VIGA DE UMA ESTRUTURA CONVENCIONAL DE CONCRETO ARMADO EM UM EDIFÍCIO DE MÚLTIPLOS PAVIMENTOS UTILIZANDO AÇO CA-50 DE 12,5 MM - MONTAGEM. AF_12/2015 | E47: KG | F47: 2.270,80 | G47: 12.06 | H47: 14.72 | I47: 27385.84 | J47: 33426.17
A48: 4.1.3 | B48: Composição Sinapi | C48: 92764 | D48: ARMAÇÃO DE PILAR OU VIGA DE UMA ESTRUTURA CONVENCIONAL DE CONCRETO ARMADO EM UM EDIFÍCIO DE MÚLTIPLOS PAVIMENTOS UTILIZANDO AÇO CA-50 DE 16,0 MM - MONTAGEM. AF_12/2015 | E48: KG | F48: 190,00 | G48: 11.74 | H48: 14.33 | I48: 2230.6 | J48: 2722.7
A49: 4.1.4 | B49: Composição Sinapi | C49: 92761 | D49: ARMAÇÃO DE PILAR OU VIGA DE UMA ESTRUTURA CONVENCIONAL DE CONCRETO ARMADO EM UM EDIFÍCIO DE MÚLTIPLOS PAVIMENTOS UTILIZANDO AÇO CA-50 DE 8,0 MM - MONTAGEM. AF_12/2015 | E49: KG | F49: 656,10 | G49: 15.48 | H49: 18.9 | I49: 10156.42 | J49: 12400.29
A50: 4.1.5 | B50: Composição Sinapi | C50: 92760 | D50: ARMAÇÃO DE PILAR OU VIGA DE UMA ESTRUTURA CONVENCIONAL DE CONCRETO ARMADO EM UM EDIFÍCIO DE MÚLTIPLOS PAVIMENTOS UTILIZANDO AÇO CA-50 DE 6,3 MM - MONTAGEM. AF_12/2015 | E50: KG | F50: 398,70 | G50: 15.79 | H50: 19.28 | I50: 6295.47 | J50: 7686.93
A51: 4.1.6 | B51: Composição Sinapi | C51: 92759 | D51: ARMAÇÃO DE PILAR OU VIGA DE UMA ESTRUTURA CONVENCIONAL DE CONCRETO ARMADO EM UM EDIFÍCIO DE MÚLTIPLOS PAVIMENTOS UTILIZANDO AÇO CA-60 DE 5,0 MM - MONTAGEM. AF_12/2015 | E51: KG | F51: 627,50 | G51: 15.75 | H51: 19.23 | I51: 9883.12 | J51: 12066.82
A52: 4.1.7 | B52: Composição Sinapi | C52: 92722 | D52: CONCRETAGEM DE PILARES, FCK = 25 MPA, COM USO DE BOMBA EM EDIFICAÇÃO COM SEÇÃO MÉDIA DE PILARES MAIOR QUE 0,25 M² - LANÇAMENTO, ADENSAMENTO E ACABAMENTO. AF_12/2015 | E52: M3 | F52: 80,89 | G52: 731.76 | H52: 893.62 | I52: 59192.06 | J52: 72284.92
A53: 4.2 | B53: VIGAS (SUPERIORES + COBERTURA) | F53: 1 | I53: 238414.95 | J53: 291091.13
A54: 4.2.1 | B54: Composição Sinapi | C54: 92479 | D54: MONTAGEM E DESMONTAGEM DE FÔRMA DE VIGA, ESCORAMENTO COM GARFO DE MADEIRA, PÉ-DIREITO SIMPLES, EM CHAPA DE MADEIRA PLASTIFICADA, 18 UTILIZAÇÕES. AF_09/2020 | E54: M2 | F54: 2.162,81 | G54: 52.1 | H54: 63.62 | I54: 112682.4 | J54: 137597.97
A55: 4.2.2 | B55: Composição Sinapi | C55: 92764 | D55: ARMAÇÃO DE PILAR OU VIGA DE UMA ESTRUTURA CONVENCIONAL DE CONCRETO ARMADO EM UM EDIFÍCIO DE MÚLTIPLOS PAVIMENTOS UTILIZANDO AÇO CA-50 DE 16,0 MM - MONTAGEM. AF_12/2015 | E55: KG | F55: 67,80 | G55: 11.74 | H55: 14.33 | I55: 795.97 | J55: 971.57
A56: 4.2.3 | B56: Composição Sinapi | C56: 92764 | D56: ARMAÇÃO DE PILAR OU VIGA DE UMA ESTRUTURA CONVENCIONAL DE CONCRETO ARMADO EM UM EDIFÍCIO DE MÚLTIPLOS PAVIMENTOS UTILIZANDO AÇO CA-50 DE 16,0 MM - MONTAGEM. AF_12/2015 | E56: KG | F56: 1.943,70 | G56: 11.74 | H56: 14.33 | I56: 22819.03 | J56: 27853.22
A57: 4.2.4 | B57: Composição Sinapi | C57: 92763 | D57: ARMAÇÃO DE PILAR OU VIGA DE UMA ESTRUTURA CONVENCIONAL DE CONCRETO ARMADO EM UM EDIFÍCIO DE MÚLTIPLOS PAVIMENTOS UTILIZANDO AÇO CA-50 DE 12,5 MM - MONTAGEM. AF_12/2015 | E57: KG | F57: 2.888,30 | G57: 12.06 | H57: 14.72 | I57: 34832.89 | J57: 42515.77
A58: 4.2.5 | B58: Composição Sinapi | C58: 92762 | D58: ARMAÇÃO DE PILAR OU VIGA DE UMA ESTRUTURA CONVENCIONAL DE CONCRETO ARMADO EM UM EDIFÍCIO DE MÚLTIPLOS PAVIMENTOS UTILIZANDO AÇO CA-50 DE 10,0 MM - MONTAGEM. AF_12/2015 | E58: KG | F58: 90,70 | G58: 14.15 | H58: 17.27 | I58: 1283.4 | J58: 1566.38
A59: 4.2.6 | B59: Composição Sinapi | C59: 92761 | D59: ARMAÇÃO DE PILAR OU VIGA DE UMA ESTRUTURA CONVENCIONAL DE CONCRETO ARMADO EM UM EDIFÍCIO DE MÚLTIPLOS PAVIMENTOS UTILIZANDO AÇO CA-50 DE 8,0 MM - MONTAGEM. AF_12/2015 | E59: KG | F59: 1.045,90 | G59: 15.48 | H59: 18.9 | I59: 16190.53 | J59: 19767.51
A60: 4.2.7 | B60: Composição Sinapi | C60: 92760 | D60: ARMAÇÃO DE PILAR OU VIGA DE UMA ESTRUTURA CONVENCIONAL DE CONCRETO ARMADO EM UM EDIFÍCIO DE MÚLTIPLOS PAVIMENTOS UTILIZANDO AÇO CA-50 DE 6,3 MM - MONTAGEM. AF_12/2015 | E60: KG | F60: 1.884,60 | G60: 15.79 | H60: 19.28 | I60: 29757.83 | J60: 36335.08
A61: 4.2.8 | B61: Composição Sinapi | C61: 92759 | D61: ARMAÇÃO DE PILAR OU VIGA DE UMA ESTRUTURA CONVENCIONAL DE CONCRETO ARMADO EM UM EDIFÍCIO DE MÚLTIPLOS PAVIMENTOS UTILIZANDO AÇO CA-60 DE 5,0 MM - MONTAGEM. AF_12/2015 | E61: KG | F61: 1.273,20 | G61: 15.75 | H61: 19.23 | I61: 20052.9 | J61: 24483.63
A62: 4.3 | B62: LAJE INTERMED. + ESCADA | F62: 1 | I62: 349868.84 | J62: 427196.8
A63: 4.3.1 | B63: Composição Sinapi | C63: 92538 | D63: MONTAGEM E DESMONTAGEM DE FÔRMA DE LAJE MACIÇA, PÉ-DIREITO SIMPLES, EM CHAPA DE MADEIRA COMPENSADA PLASTIFICADA, . AF_09/2020 | E63: M2 | F63: 1.242,74 | G63: 20.96 | H63: 25.59 | I63: 26047.83 | J63: 31801.71
A64: 4.3.2 | B64: Composição Sinapi | C64: 92759 | D64: ARMAÇÃO DE PILAR OU VIGA DE UMA ESTRUTURA CONVENCIONAL DE CONCRETO ARMADO EM UM EDIFÍCIO DE MÚLTIPLOS PAVIMENTOS UTILIZANDO AÇO CA-60 DE 5,0 MM - MONTAGEM. AF_12/2015 | E64: KG | F64: 1.273,20 | G64: 15.75 | H64: 19.23 | I64: 20052.9 | J64: 24483.63
A65: 4.3.3 | B65: Composição Sinapi | C65: 92760 | D65: ARMAÇÃO DE PILAR OU VIGA DE UMA ESTRUTURA CONVENCIONAL DE CONCRETO ARMADO EM UM EDIFÍCIO DE MÚLTIPLOS PAVIMENTOS UTILIZANDO AÇO CA-50 DE 6,3 MM - MONTAGEM. AF_12/2015 | E65: KG | F65: 2.014,20 | G65: 15.79 | H65: 19.28 | I65: 31804.21 | J65: 38833.77
A66: 4.3.4 | B66: Composição Sinapi | C66: 92761 | D66: ARMAÇÃO DE PILAR OU VIGA DE UMA ESTRUTURA CONVENCIONAL DE CONCRETO ARMADO EM UM EDIFÍCIO DE MÚLTIPLOS PAVIMENTOS UTILIZANDO AÇO CA-50 DE 8,0 MM - MONTAGEM. AF_12/2015 | E66: KG | F66: 4.407,50 | G66: 15.48 | H66: 18.9 | I66: 68228.1 | J66: 83301.75
A67: 4.3.5 | B67: Composição Sinapi | C67: 92762 | D67: ARMAÇÃO DE PILAR OU VIGA DE UMA ESTRUTURA CONVENCIONAL DE CONCRETO ARMADO EM UM EDIFÍCIO DE MÚLTIPLOS PAVIMENTOS UTILIZANDO AÇO CA-50 DE 10,0 MM - MONTAGEM. AF_12/2015 | E67: KG | F67: 837,40 | G67: 14.15 | H67: 17.27 | I67: 11849.21 | J67: 14461.89
A68: 4.3.6 | B68: Composição Sinapi | C68: 92763 | D68: ARMAÇÃO DE PILAR OU VIGA DE UMA ESTRUTURA CONVENCIONAL DE CONCRETO ARMADO EM UM EDIFÍCIO DE MÚLTIPLOS PAVIMENTOS UTILIZANDO AÇO CA-50 DE 12,5 MM - MONTAGEM. AF_12/2015 | E68: KG | F68: 2.230,20 | G68: 12.06 | H68: 14.72 | I68: 26896.21 | J68: 32828.54
A69: 4.3.7 | B69: Composição Sinapi | C69: 92740 | D69: CONCRETAGEM DE VIGAS E LAJES, FCK=20 MPA, PARA LAJES MACIÇAS OU NERVURADAS COM GRUA DE CAÇAMBA DE 500 L EM EDIFICAÇÃO DE MULTIPAVIMENTOS ATÉ 16 ANDARES, COM ÁREA MÉDIA DE LAJES MAIOR QUE 20 M² - LANÇAMENTO, ADENSAMENTO E ACABAMENTO. AF_12/2015 | E69: M3 | F69: 248,30 | G69: 664.48 | H69: 811.46 | I69: 164990.38 | J69: 201485.51
A70: 4.4 | B70: LAJE COBERTURA | F70: 1 | I70: 243799.88 | J70: 297694.47
A71: 4.4.1 | B71: Composição Sinapi | C71: 92538 | D71: MONTAGEM E DESMONTAGEM DE FÔRMA DE LAJE MACIÇA, PÉ-DIREITO SIMPLES, EM CHAPA DE MADEIRA COMPENSADA PLASTIFICADA. AF_09/2020 | E71: M2 | F71: 1.335,71 | G71: 20.96 | H71: 25.59 | I71: 27996.48 | J71: 34180.81
A72: 4.4.2 | B72: Composição Sinapi | C72: 92759 | D72: ARMAÇÃO DE PILAR OU VIGA DE UMA ESTRUTURA CONVENCIONAL DE CONCRETO ARMADO EM UM EDIFÍCIO DE MÚLTIPLOS PAVIMENTOS UTILIZANDO AÇO CA-60 DE 5,0 MM - MONTAGEM. AF_12/2015 | E72: KG | F72: 2.109,10 | G72: 15.75 | H72: 19.23 | I72: 33218.32 | J72: 40557.99
A73: 4.4.3 | B73: Composição Sinapi | C73: 92760 | D73: ARMAÇÃO DE PILAR OU VIGA DE UMA ESTRUTURA CONVENCIONAL DE CONCRETO ARMADO EM UM EDIFÍCIO DE MÚLTIPLOS PAVIMENTOS UTILIZANDO AÇO CA-50 DE 6,3 MM - MONTAGEM. AF_12/2015 | E73: KG | F73: 359,70 | G73: 15.79 | H73: 19.28 | I73: 5679.66 | J73: 6935.01
A74: 4.4.4 | B74: Composição Sinapi | C74: 92761 | D74: ARMAÇÃO DE PILAR OU VIGA DE UMA ESTRUTURA CONVENCIONAL DE CONCRETO ARMADO EM UM EDIFÍCIO DE MÚLTIPLOS PAVIMENTOS UTILIZANDO AÇO CA-50 DE 8,0 MM - MONTAGEM. AF_12/2015 | E74: KG | F74: 3.599,10 | G74: 15.48 | H74: 18.9 | I74: 55714.06 | J74: 68022.99
A75: 4.4.5 | B75: Composição Sinapi | C75: 92762 | D75: ARMAÇÃO DE PILAR OU VIGA DE UMA ESTRUTURA CONVENCIONAL DE CONCRETO ARMADO EM UM EDIFÍCIO DE MÚLTIPLOS PAVIMENTOS UTILIZANDO AÇO CA-50 DE 10,0 MM - MONTAGEM. AF_12/2015 | E75: KG | F75: 67,40 | G75: 14.15 | H75: 17.27 | I75: 953.71 | J75: 1163.99
A76: 4.4.6 | B76: Composição Sinapi | C76: 92740 | D76: CONCRETAGEM DE VIGAS E LAJES, FCK=20 MPA, PARA LAJES MACIÇAS OU NERVURADAS COM GRUA DE CAÇAMBA DE 500 L EM EDIFICAÇÃO DE MULTIPAVIMENTOS ATÉ 16 ANDARES, COM ÁREA MÉDIA DE LAJES MAIOR QUE 20 M² - LANÇAMENTO, ADENSAMENTO E ACABAMENTO. AF_12/2015 | E76: M3 | F76: 180,95 | G76: 664.48 | H76: 811.46 | I76: 120237.65 | J76: 146833.68
A77: 5 | B77: Super Estrutura | J77: =VLOOKUP(A77,'RESUMO '!$A$5:$D$250,4,0) -> 1308331.6 | S77: =$J$78/3 -> 189233.8367 | W77: =$J$78/3+230000 -> 419233.8367 | AA77: =$J$78/3+288006.77 -> 477240.6067 | AE77: =$J$79/3 -> 222623.3233
A78: 5.1 | B78: PILARES + VIGAS | J78: 567701.51 | AA78: =$J$78/3 -> 189233.8367
A79: 5.2 | B79: LAJES + ESCADA | J79: 667869.97 | W79: =$J$79/3 -> 222623.3233 | AA79: =$J$79/3 -> 222623.3233
A80: 5.1 | B80: Composição Sinapi | C80: 87505 | D80: ALVENARIA DE VEDAÇÃO DE BLOCOS CERÂMICOS FURADOS NA HORIZONTAL DE 11,5X19X19CM (ESPESSURA 11,5M) DE PAREDES COM ÁREA LÍQUIDA MAIOR OU IGUAL A 6M² SEM VÃOS E ARGAMASSA DE ASSENTAMENTO COM PREPARO EM BETONEIRA. AF_06/2014 | E80: M2 | F80: 2.641,60 | G80: 65.92 | H80: 80.5 | I80: 174134.27 | J80: 212648.8
A81: 5.2 | B81: Composição Sinapi | C81: 87474 | D81: ALVENARIA DE VEDAÇÃO DE BLOCOS CERÂMICOS FURADOS NA VERTICAL DE 14X19X39CM (ESPESSURA 14CM) DE PAREDES COM ÁREA LÍQUIDA MENOR QUE 6M² SEM VÃOS E ARGAMASSA DE ASSENTAMENTO COM PREPARO MANUAL. AF_06/2014 | E81: M2 | F81: 490,26 | G81: 68.86 | H81: 84.09 | I81: 33759.3 | J81: 41225.96
A82: 5.3 | B82: Composição Orse | C82: 12859 | D82: Andaime metálico - locação mensal SEM VALIDADE | E82: M2XMES | F82: 60,00 | G82: 9.3 | H82: 11.35 | I82: 558 | J82: 681
A83: 6 | B83: Alvenaria | F83: 1 | I83: 370105.87 | J83: =VLOOKUP(A83,'RESUMO '!$A$5:$D$250,4,0) -> 162537.43 | AA83: =$J$83/2 -> 81268.715 | AI83: =$J$83/2 -> 81268.715
A84: 6.1 | B84: Composição Sinapi | C84: 94213 | D84: TELHAMENTO COM TELHA DE AÇO/ALUMÍNIO E = 0,5 MM, COM ATÉ 2 ÁGUAS, INCLUSO IÇAMENTO. AF_07/2019 | E84: M2 | F84: 1.524,20 | G84: 94.5 | H84: 115.4 | I84: 144036.9 | J84: 175892.68
A85: 6.2 | B85: Composição Sinapi | C85: 100773 | D85: ESTRUTURA TRELIÇADA DE COBERTURA, TIPO ARCO, COM LIGAÇÕES SOLDADAS, INCLUSOS PERFIS METÁLICOS, CHAPAS METÁLICAS, MÃO DE OBRA E TRANSPORTE COM GUINDASTE - FORNECIMENTO E INSTALAÇÃO. AF_01/2020_P | E85: KG | F85: 12.193,58 | G85: 18.54 | H85: 22.64 | I85: 226068.97 | J85: 276062.65
A86: 7 | B86: Esquadrias | F86: 1 | I86: 397298.03 | J86: =VLOOKUP(A86,'RESUMO '!$A$5:$D$250,4,0) -> 786635.51 | AY86: =$J$86/2 -> 393317.755 | BG86: =$J$86/2 -> 393317.755
A87: 7.1 | B87: Composição Sinapi | C87: 91314 | D87: KIT DE PORTA DE MADEIRA PARA PINTURA, SEMI-OCA (LEVE OU MÉDIA), PADRÃO POPULAR, 80X210CM, ESPESSURA DE 3,5CM, ITENS INCLUSOS: DOBRADIÇAS, MONTAGEM E INSTALAÇÃO DO BATENTE, FECHADURA COM EXECUÇÃO DO FURO - FORNECIMENTO E INSTALAÇÃO. AF_12/2019 | E87: UN | F87: 2,00 | G87: 607.18 | H87: 741.48 | I87: 1214.36 | J87: 1482.96
A88: 7.2 | B88: Composição Sinapi | C88: 90850 | D88: KIT DE PORTA DE MADEIRA PARA PINTURA, SEMI-OCA (LEVE OU MÉDIA), PADRÃO MÉDIO, 90X210CM, ESPESSURA DE 3,5CM, ITENS INCLUSOS: DOBRADIÇAS, MONTAGEM E INSTALAÇÃO DO BATENTE, SEM FECHADURA - FORNECIMENTO E INSTALAÇÃO. AF_12/2019 | E88: UN | F88: 4,00 | G88: 682.73 | H88: 833.74 | I88: 2730.92 | J88: 3334.96
A89: 7.3 | B89: Composição Sinapi | C89: 100667 | D89: JANELA DE MADEIRA (IMBUIA/CEDRO OU EQUIV.) DE ABRIR COM 4 FOLHAS (2 VENEZIANAS E 2 GUILHOTINAS PARA VIDRO), COM BATENTE, ALIZAR E FERRAGENS. EXCLUSIVE VIDROS, ACABAMENTO E CONTRAMARCO. FORNECIMENTO E INSTALAÇÃO. AF_12/2019 | E89: M2 | F89: 6,63 | G89: 967.79 | H89: 1181.86 | I89: 6416.44 | J89: 7835.73
A90: 7.4 | B90: Composição Orse | C90: 1857 | D90: Porta em aço, em chapa galvanizada nº24, raiada, de enrolar | E90: M2 | F90: 877,98 | G90: 186 | H90: 227.14 | I90: 163304.28 | J90: 199424.37
A91: 7.5 | B91: Composição Orse | C91: 1762 | D91: Janela em madeira de lei, tipo veneziana, de abrir, c/batentes e 2 jogos de alizar, exclusive ferragens | E91: M2 | F91: 212,41 | G91: 630.3 | H91: 769.72 | I91: 133882.02 | J91: 163496.22
A92: 7.6 | B92: Composição Sinapi | C92: 102205 | D92: PINTURA VERNIZ (INCOLOR) POLIURETÂNICO (RESINA ALQUÍDICA MODIFICADA) EM MADEIRA, 1 DEMÃO. AF_01/2021 | E92: M2 | F92: 1.164,33 | G92: 6.21 | H92: 7.58 | I92: 7230.48 | J92: 8825.62
A93: 7.7 | B93: Composição Sinapi | C93: 100743 | D93: PINTURA COM TINTA ALQUÍDICA DE ACABAMENTO (ESMALTE SINTÉTICO BRILHANTE) PULVERIZADA SOBRE PERFIL METÁLICO EXECUTADO EM FÁBRICA (POR DEMÃO). AF_01/2020_P | E93: M2 | F93: 2.633,94 | G93: 6.71 | H93: 8.19 | I93: 17673.73 | J93: 21571.96
A94: 7.8 | B94: Composição Sinapi | C94: 102160 | D94: INSTALAÇÃO DE VIDRO IMPRESSO, E = 4 MM, EM ESQUADRIA DE MADEIRA, FIXADO COM BAGUETE. AF_01/2021 | E94: M2 | F94: 9,60 | G94: 226.61 | H94: 276.73 | I94: 2175.45 | J94: 2656.6
A95: 7.9 | B95: Composição Sinapi | C95: 98689 | D95: SOLEIRA EM GRANITO, LARGURA 15 CM, ESPESSURA 2,0 CM. AF_09/2020 | E95: M | F95: 294,66 | G95: 75.7 | H95: 92.44 | I95: 22305.76 | J95: 27238.37
A96: 7.10 | B96: Composição Sinapi | C96: 101965 | D96: PEITORIL LINEAR EM GRANITO OU MÁRMORE, L = 15CM, COMPRIMENTO DE ATÉ 2M, ASSENTADO COM ARGAMASSA 1:6 COM ADITIVO. AF_11/2020 | E96: M | F96: 329,86 | G96: 112.54 | H96: 137.43 | I96: 37122.44 | J96: 45332.65
A97: 7.11 | B97: Composição Sinapi | C97: 93182 | D97: VERGA PRÉ-MOLDADA PARA JANELAS COM ATÉ 1,5 M DE VÃO. AF_03/2016 | E97: M | F97: 48,04 | G97: 36.94 | H97: 45.11 | I97: 1774.59 | J97: 2167.08
A98: 7.12 | B98: Composição Sinapi | C98: 93194 | D98: CONTRAVERGA PRÉ-MOLDADA PARA VÃOS DE ATÉ 1,5 M DE COMPRIMENTO. AF_03/2016 | E98: M | F98: 40,44 | G98: 36.29 | H98: 44.31 | I98: 1467.56 | J98: 1791.89
A99: 8 | B99: Revestimentos | F99: 1 | I99: 244405.78 | J99: =VLOOKUP(A99,'RESUMO '!$A$5:$D$250,4,0) -> 1384833.24 | AE99: =$J$99/4 -> 346208.31 | AI99: =$J$99/4 -> 346208.31 | AM99: =$J$99/4 -> 346208.31 | BC99: =$J$99/4 -> 346208.31
A100: 8.1 | B100: Composição Sinapi | C100: 87265 | D100: REVESTIMENTO CERÂMICO PARA PAREDES INTERNAS COM PLACAS TIPO ESMALTADA EXTRA DE DIMENSÕES 20X20 CM APLICADAS EM AMBIENTES DE ÁREA MAIOR QUE 5 M² NA ALTURA INTEIRA DAS PAREDES. AF_06/2014 | E100: M2 | F100: 111,20 | G100: 53.35 | H100: 65.15 | I100: 5932.52 | J100: 7244.68
A101: 8.2 | B101: Composição Sinapi | C101: 88650 | D101: RODAPÉ CERÂMICO DE 7CM DE ALTURA COM PLACAS TIPO ESMALTADA EXTRA DE DIMENSÕES 60X60CM. AF_06/2014 | E101: M | F101: 1.127,98 | G101: 13.92 | H101: 16.99 | I101: 15701.48 | J101: 19164.38
A102: 8.3 | B102: Composição Sinapi | C102: 93391 | D102: REVESTIMENTO CERÂMICO PARA PISO COM PLACAS TIPO ESMALTADA PADRÃO POPULAR DE DIMENSÕES 35X35 CM APLICADA EM AMBIENTES DE ÁREA MAIOR QUE 10 M2. AF_06/2014 | E102: M2 | F102: 2.023,72 | G102: 36.93 | H102: 45.09 | I102: 74735.97 | J102: 91249.53
A103: 8.4 | B103: Composição Sinapi | C103: 87543 | D103: MASSA ÚNICA, PARA RECEBIMENTO DE PINTURA OU CERÂMICA, ARGAMASSA INDUSTRIALIZADA, PREPARO MECÂNICO, APLICADO COM EQUIPAMENTO DE MISTURA E PROJEÇÃO DE 1,5 M3/H EM FACES INTERNAS DE PAREDES, ESPESSURA DE 5MM, SEM EXECUÇÃO DE TALISCAS. AF_06/2014 | E103: M2 | F103: 1.445,40 | G103: 23.99 | H103: 29.29 | I103: 34675.14 | J103: 42335.76
A104: 8.5 | B104: Composição Sinapi | C104: 87791 | D104: EMBOÇO OU MASSA ÚNICA EM ARGAMASSA INDUSTRIALIZADA, PREPARO MECÂNICO E APLICAÇÃO COM EQUIPAMENTO DE MISTURA E PROJEÇÃO DE 1,5 M3/H DE ARGAMASSA EM PANOS DE FACHADA COM PRESENÇA DE VÃOS, ESPESSURA MAIOR OU IGUAL A 50 MM. AF_06/2014 | E104: M2 | F104: 245,10 | G104: 140.87 | H104: 172.03 | I104: 34527.23 | J104: 42164.55
A105: 8.6 | B105: Composição Sinapi | C105: 99857 | D105: CORRIMÃO SIMPLES, DIÂMETRO EXTERNO = 1 1/2", EM ALUMÍNIO. AF_04/2019_P | E105: M | F105: 183,98 | G105: 65.39 | H105: 79.85 | I105: 12030.45 | J105: 14690.8
A106: 8.7 | B106: Composição Sinapi | C106: 88477 | D106: CONTRAPISO COM ARGAMASSA AUTONIVELANTE, APLICADO SOBRE LAJE, ADERIDO, ESPESSURA 3CM. AF_07/2021 | E106: M2 | F106: 2.023,72 | G106: 33.01 | H106: 40.31 | I106: 66802.99 | J106: 81576.15
A107: 9 | B107: Cobertura | F107: 1 | I107: 63234.21 | J107: =VLOOKUP(A107,'RESUMO '!$A$5:$D$250,4,0) -> 787253.27 | AQ107: =$J$107/2 -> 393626.635 | AU107: =$J$107/2 -> 393626.635
A108: 9.1 | B108: Composição Sinapi | C108: 95470 | D108: VASO SANITARIO SIFONADO CONVENCIONAL COM LOUÇA BRANCA, INCLUSO CONJUNTO DE LIGAÇÃO PARA BACIA SANITÁRIA AJUSTÁVEL - FORNECIMENTO E INSTALAÇÃO. AF_10/2016 | E108: UN | F108: 20,00 | G108: 202.68 | H108: 247.51 | I108: 4053.6 | J108: 4950.2
A109: 9.2 | B109: Composição Sinapi | C109: 86940 | D109: LAVATÓRIO LOUÇA BRANCA COM COLUNA, 45 X 55CM OU EQUIVALENTE, PADRÃO MÉDIO, INCLUSO SIFÃO TIPO GARRAFA, VÁLVULA E ENGATE FLEXÍVEL DE 40CM EM METAL CROMADO, COM APARELHO MISTURADOR PADRÃO MÉDIO - FORNECIMENTO E INSTALAÇÃO. AF_01/2020 | E109: UN | F109: 16,00 | G109: 680.95 | H109: 831.57 | I109: 10895.2 | J109: 13305.12
A110: 9.3 | B110: Composição Sinapi | C110: 86909 | D110: TORNEIRA CROMADA TUBO MÓVEL, DE MESA, 1/2" OU 3/4", PARA PIA DE COZINHA, PADRÃO ALTO - FORNECIMENTO E INSTALAÇÃO. AF_01/2020 | E110: UN | F110: 16,00 | G110: 104.07 | H110: 127.09 | I110: 1665.12 | J110: 2033.44
